Workbook

Sheet Multiple PY-LU (hidden)
A1: Multiple Policy Year and Land Use Comparison Tool
A3: Location
A4: Ward | B4: =IF($B$3="","",VLOOKUP(B3,Ward,10,0)) -> 
A6: Number of units
A7: GFA
A8: ISA
A9: GST
A11: Number of 1 bedroom units | C11: Only required for Multi-Unit Residential & Residential Flat land uses from 2024/25 onwards
A12: Number of 2 bedroom units | C12: Only required for Multi-Unit Residential & Residential Flat land uses from 2024/25 onwards
A13: Number of 3+ bedroom units | C13: Only required for Multi-Unit Residential & Residential Flat land uses from 2024/25 onwards
A15: Reserve Land Contributing Area
A16: Subdivision or Development
A17: Urban or Township
A18: Greenfields or Brownfields
A19: Reserve Land Contribution (m2) | B19: =VLOOKUP(C31,ResLand_Areas,1+IFERROR(MATCH(B16,'Policy Inputs'!$CD$4:$CF$4,0),3),FALSE) -> 
A20: Reserve Land Value | B20: =IF(VALUE(LEFT(C31,4))>=2021,VLOOKUP(B15,'Policy Inputs'!$BY$234:$CB$239,4,FALSE),INDEX('Policy Inputs'!$BU:$BV,MATCH(1,('Policy Inputs'!$BR:$BR=$C$31)*('Policy Inputs'!BS:BS=$B$4),0),MATCH($B$17,'Policy Inputs'!$BU$4:$BV$4,0)))/(1+VLOOKUP($C$31,$C$91:$D$106,2,FALSE)) -> 
A21: Reserve Land Payable? | B21: =IF(B18="Brownfields",VLOOKUP(C31,$F$91:$G$106,2,0),1) -> 1
P22: Demand Calculation - Part A | U22: Demand Calculation - Part B | AB22: MUR & RF units
A23: Assessment 1
AB24: Differential
A25: Activity | B25: Required? | C25: Policy Year - Demand | D25: Land Use | E25: Policy Year - $/DE | F25: Demand Post Development (DE) | G25: Credits for Existing Demand (DE) | H25: Additional Demand (DE) | I25: Development Contribution per DE ($) | J25: Development Contribution (Excl GST) | K25: GST | L25: Development Contribution (Incl GST) | P25: Differential | Q25: Differential Type | R25: Quantity | S25: Demand | U25: Differential | V25: Differential Type | W25: Quantity | X25: Demand | Y25: =F25 -> Demand Post Development (DE) | AB25: (1 b/r) | AC25: (2 b/r) | AD25: (3+ b/r) | AE25: Demand (units) | AF25: Demand (GFA/ISA)
A26: Water Supply Contribution: | F26: =Y26 ->  | H26: =ROUND(MAX(F26-G26,0),2) ->  | I26: =INDEX('Policy Inputs'!$D:$K,MATCH(1,('Policy Inputs'!$A:$A=$E26)*('Policy Inputs'!$B:$B=$B$3),0),MATCH($Z26,'Policy Inputs'!$D$4:$K$4,0)) -> Standard Contributions | J26: =IF(B26="Not Required",0,ROUND(H26*I26,2)) ->  | K26: =ROUND(J26*$B$9,2) ->  | L26: =J26+K26 ->  | O26: Water SupplyDwelling Equivalents per 100m² GFA | P26: =INDEX('Policy Inputs'!$P:$AC,MATCH(1,('Policy Inputs'!$N:$N=$D26)*('Policy Inputs'!$M:$M=$C26),0),MATCH($O26,'Policy Inputs'!$P$4:$AC$4,0)) -> Land Use Differentials | Q26: =INDEX('Policy Inputs'!$AH:$AU,MATCH(1,('Policy Inputs'!$AF:$AF=$D26)*('Policy Inputs'!$AE:$AE=$C26),0),MATCH($O26,'Policy Inputs'!$AH$4:$AU$4,0)) -> Land Use Differential Type | R26: =IF(Q26="Unit",$B$6,IF(Q26="GFA",$B$7/100,0)) -> 0 | S26: =IF(Q26="Both (max)",MAX(AE26,AF26),P26*R26) ->  | T26: Water SupplyPlus Network Factor Dwelling Equivalents | U26: =INDEX('Policy Inputs'!$P:$AC,MATCH(1,('Policy Inputs'!$N:$N=$D26)*('Policy Inputs'!$M:$M=$C26),0),MATCH($T26,'Policy Inputs'!$P$4:$AC$4,0)) -> 0 | V26: =INDEX('Policy Inputs'!$AH:$AU,MATCH(1,('Policy Inputs'!$AF:$AF=$D26)*('Policy Inputs'!$AE:$AE=$C26),0),MATCH($T26,'Policy Inputs'!$AH$4:$AU$4,0)) -> 0 | W26: 1 | X26: =U26*W26 -> 0 | Y26: =S26+X26 ->  | Z26: Water Supply | AB26: =INDEX('Policy Inputs'!$P:$AC,MATCH(1,('Policy Inputs'!$N:$N=$D26&" "&AB$25)*('Policy Inputs'!$M:$M=$C26),0),MATCH($O26,'Policy Inputs'!$P$4:$AC$4,0)) ->  | AC26: =INDEX('Policy Inputs'!$P:$AC,MATCH(1,('Policy Inputs'!$N:$N=$D26&" "&AC$25)*('Policy Inputs'!$M:$M=$C26),0),MATCH($O26,'Policy Inputs'!$P$4:$AC$4,0)) ->  | AD26: =INDEX('Policy Inputs'!$P:$AC,MATCH(1,('Policy Inputs'!$N:$N=$D26&" "&AD$25)*('Policy Inputs'!$M:$M=$C26),0),MATCH($O26,'Policy Inputs'!$P$4:$AC$4,0)) ->  | AE26: =SUMPRODUCT(TRANSPOSE($B$11:$B$13),AB26:AD26) ->  | AF26: =$B$7/100*P26 -> 
A27: Wastewater Contribution: | F27: =Y27 -> 0 | H27: =ROUND(MAX(F27-G27,0),2) -> 0 | I27: =INDEX('Policy Inputs'!$D:$K,MATCH(1,('Policy Inputs'!$A:$A=$E27)*('Policy Inputs'!$B:$B=$B$3),0),MATCH($Z27,'Policy Inputs'!$D$4:$K$4,0)) -> 0 | J27: =IF(B27="Not Required",0,ROUND(H27*I27,2)) -> 0 | K27: =ROUND(J27*$B$9,2) -> 0 | L27: =J27+K27 -> 0 | O27: WastewaterDwelling Equivalents per 100m² GFA | P27: =INDEX('Policy Inputs'!$P:$AC,MATCH(1,('Policy Inputs'!$N:$N=$D27)*('Policy Inputs'!$M:$M=$C27),0),MATCH($O27,'Policy Inputs'!$P$4:$AC$4,0)) -> 0 | Q27: =INDEX('Policy Inputs'!$AH:$AU,MATCH(1,('Policy Inputs'!$AF:$AF=$D27)*('Policy Inputs'!$AE:$AE=$C27),0),MATCH($O27,'Policy Inputs'!$AH$4:$AU$4,0)) -> 0 | R27: =IF(Q27="Unit",$B$6,IF(Q27="GFA",$B$7/100,0)) -> 0 | S27: =IF(Q27="Both (max)",MAX(AE27,AF27),P27*R27) -> 0 | Y27: =S27 -> 0 | Z27: Wastewater | AB27: =INDEX('Policy Inputs'!$P:$AC,MATCH(1,('Policy Inputs'!$N:$N=$D27&" "&AB$25)*('Policy Inputs'!$M:$M=$C27),0),MATCH($O27,'Policy Inputs'!$P$4:$AC$4,0)) ->  | AC27: =INDEX('Policy Inputs'!$P:$AC,MATCH(1,('Policy Inputs'!$N:$N=$D27&" "&AC$25)*('Policy Inputs'!$M:$M=$C27),0),MATCH($O27,'Policy Inputs'!$P$4:$AC$4,0)) ->  | AD27: =INDEX('Policy Inputs'!$P:$AC,MATCH(1,('Policy Inputs'!$N:$N=$D27&" "&AD$25)*('Policy Inputs'!$M:$M=$C27),0),MATCH($O27,'Policy Inputs'!$P$4:$AC$4,0)) ->  | AE27: =SUMPRODUCT(TRANSPOSE($B$11:$B$13),AB27:AD27) ->  | AF27: 0
A28: Stormwater Contribution: | F28: 0 | H28: 0 | I28: =INDEX('Policy Inputs'!$D:$K,MATCH(1,('Policy Inputs'!$A:$A=$E28)*('Policy Inputs'!$B:$B=$B$3),0),MATCH($Z28,'Policy Inputs'!$D$4:$K$4,0)) -> 0 | J28: 0 | K28: 0 | L28: 0 | O28: StormwaterDwelling Equivalents per 100m² Impervious Surface Area | P28: =INDEX('Policy Inputs'!$P:$AC,MATCH(1,('Policy Inputs'!$N:$N=$D28)*('Policy Inputs'!$M:$M=$C28),0),MATCH($O28,'Policy Inputs'!$P$4:$AC$4,0)) -> 0 | Q28: =INDEX('Policy Inputs'!$AH:$AU,MATCH(1,('Policy Inputs'!$AF:$AF=$D28)*('Policy Inputs'!$AE:$AE=$C28),0),MATCH($O28,'Policy Inputs'!$AH$4:$AU$4,0)) -> 0 | R28: =IF(Q28="Unit",$B$6,IF(Q28="GFA",$B$8/100,0)) -> 0 | S28: 0 | Y28: =S28 -> 0 | Z28: Stormwater | AB28: =INDEX('Policy Inputs'!$P:$AC,MATCH(1,('Policy Inputs'!$N:$N=$D28&" "&AB$25)*('Policy Inputs'!$M:$M=$C28),0),MATCH($O28,'Policy Inputs'!$P$4:$AC$4,0)) ->  | AC28: =INDEX('Policy Inputs'!$P:$AC,MATCH(1,('Policy Inputs'!$N:$N=$D28&" "&AC$25)*('Policy Inputs'!$M:$M=$C28),0),MATCH($O28,'Policy Inputs'!$P$4:$AC$4,0)) ->  | AD28: =INDEX('Policy Inputs'!$P:$AC,MATCH(1,('Policy Inputs'!$N:$N=$D28&" "&AD$25)*('Policy Inputs'!$M:$M=$C28),0),MATCH($O28,'Policy Inputs'!$P$4:$AC$4,0)) ->  | AE28: =SUMPRODUCT(TRANSPOSE($B$11:$B$13),AB28:AD28) ->  | AF28: 0
A29: Reserve Improvements Contribution: | F29: ERROR | I29: =INDEX('Policy Inputs'!$D:$K,MATCH(1,('Policy Inputs'!$A:$A=$E29)*('Policy Inputs'!$B:$B=$B$3),0),MATCH($Z29,'Policy Inputs'!$D$4:$K$4,0)) -> 0 | O29: Reserve ImprovementsDwelling Equivalents per 100m² GFA for Wakatipu | P29: =INDEX('Policy Inputs'!$P:$AC,MATCH(1,('Policy Inputs'!$N:$N=$D29)*('Policy Inputs'!$M:$M=$C29),0),MATCH($O29,'Policy Inputs'!$P$4:$AC$4,0)) -> 0 | Q29: =INDEX('Policy Inputs'!$AH:$AU,MATCH(1,('Policy Inputs'!$AF:$AF=$D29)*('Policy Inputs'!$AE:$AE=$C29),0),MATCH($O29,'Policy Inputs'!$AH$4:$AU$4,0)) -> 0 | R29: =IF(Q29="Unit",$B$6,IF(Q29="GFA",$B$7/100,0)) -> 0 | S29: 0 | T29: Reserve ImprovementsDwelling Equivalents per 100m² GFA for Wanaka | U29: =INDEX('Policy Inputs'!$P:$AC,MATCH(1,('Policy Inputs'!$N:$N=$D29)*('Policy Inputs'!$M:$M=$C29),0),MATCH($T29,'Policy Inputs'!$P$4:$AC$4,0)) -> 0 | V29: =INDEX('Policy Inputs'!$AH:$AU,MATCH(1,('Policy Inputs'!$AF:$AF=$D29)*('Policy Inputs'!$AE:$AE=$C29),0),MATCH($T29,'Policy Inputs'!$AH$4:$AU$4,0)) -> 0 | W29: =IF(V29="Unit",$B$6,IF(V29="GFA",$B$7/100,0)) -> 0 | X29: =U29*W29 -> 0 | Y29: =IF($B$4="Wakatipu",S29,IF($B$4="Wanaka",X29,"ERROR")) -> ERROR | Z29: Reserve Improvements | AB29: =INDEX('Policy Inputs'!$P:$AC,MATCH(1,('Policy Inputs'!$N:$N=$D29&" "&AB$25)*('Policy Inputs'!$M:$M=$C29),0),MATCH($O29,'Policy Inputs'!$P$4:$AC$4,0)) ->  | AC29: =INDEX('Policy Inputs'!$P:$AC,MATCH(1,('Policy Inputs'!$N:$N=$D29&" "&AC$25)*('Policy Inputs'!$M:$M=$C29),0),MATCH($O29,'Policy Inputs'!$P$4:$AC$4,0)) ->  | AD29: =INDEX('Policy Inputs'!$P:$AC,MATCH(1,('Policy Inputs'!$N:$N=$D29&" "&AD$25)*('Policy Inputs'!$M:$M=$C29),0),MATCH($O29,'Policy Inputs'!$P$4:$AC$4,0)) ->  | AE29: =SUMPRODUCT(TRANSPOSE($B$11:$B$13),AB29:AD29) ->  | AF29: 0
A30: Community Infrastructure Contribution: | F30: ERROR | I30: =INDEX('Policy Inputs'!$D:$K,MATCH(1,('Policy Inputs'!$A:$A=$E30)*('Policy Inputs'!$B:$B=$B$3),0),MATCH($Z30,'Policy Inputs'!$D$4:$K$4,0)) -> 0 | O30: Community FacilitiesDwelling Equivalents per 100m² GFA for Wakatipu | P30: =INDEX('Policy Inputs'!$P:$AC,MATCH(1,('Policy Inputs'!$N:$N=$D30)*('Policy Inputs'!$M:$M=$C30),0),MATCH($O30,'Policy Inputs'!$P$4:$AC$4,0)) -> 0 | Q30: =INDEX('Policy Inputs'!$AH:$AU,MATCH(1,('Policy Inputs'!$AF:$AF=$D30)*('Policy Inputs'!$AE:$AE=$C30),0),MATCH($O30,'Policy Inputs'!$AH$4:$AU$4,0)) -> 0 | R30: 0 | S30: 0 | T30: Community FacilitiesDwelling Equivalents per 100m² GFA for Wanaka | U30: =INDEX('Policy Inputs'!$P:$AC,MATCH(1,('Policy Inputs'!$N:$N=$D30)*('Policy Inputs'!$M:$M=$C30),0),MATCH($T30,'Policy Inputs'!$P$4:$AC$4,0)) -> 0 | V30: =INDEX('Policy Inputs'!$AH:$AU,MATCH(1,('Policy Inputs'!$AF:$AF=$D30)*('Policy Inputs'!$AE:$AE=$C30),0),MATCH($T30,'Policy Inputs'!$AH$4:$AU$4,0)) -> 0 | W30: =IF(V30="Unit",$B$6,IF(V30="GFA",$B$7/100,0)) -> 0 | X30: =U30*W30 -> 0 | Y30: =IF($B$4="Wakatipu",S30,IF($B$4="Wanaka",X30,"ERROR")) -> ERROR | Z30: Community Facilities | AB30: =INDEX('Policy Inputs'!$P:$AC,MATCH(1,('Policy Inputs'!$N:$N=$D30&" "&AB$25)*('Policy Inputs'!$M:$M=$C30),0),MATCH($O30,'Policy Inputs'!$P$4:$AC$4,0)) ->  | AC30: =INDEX('Policy Inputs'!$P:$AC,MATCH(1,('Policy Inputs'!$N:$N=$D30&" "&AC$25)*('Policy Inputs'!$M:$M=$C30),0),MATCH($O30,'Policy Inputs'!$P$4:$AC$4,0)) ->  | AD30: =INDEX('Policy Inputs'!$P:$AC,MATCH(1,('Policy Inputs'!$N:$N=$D30&" "&AD$25)*('Policy Inputs'!$M:$M=$C30),0),MATCH($O30,'Policy Inputs'!$P$4:$AC$4,0)) ->  | AE30: =SUMPRODUCT(TRANSPOSE($B$11:$B$13),AB30:AD30) ->  | AF30: 0
A31: Reserve Land Contribution: | F31: =Y31 -> ERROR | I31: =B19*B20*B21 ->  | O31: Reserve LandDwelling Equivalents per 100m² GFA for Wakatipu | P31: =INDEX('Policy Inputs'!$P:$AC,MATCH(1,('Policy Inputs'!$N:$N=$D31)*('Policy Inputs'!$M:$M=$C31),0),MATCH($O31,'Policy Inputs'!$P$4:$AC$4,0)) -> 0 | Q31: =INDEX('Policy Inputs'!$AH:$AU,MATCH(1,('Policy Inputs'!$AF:$AF=$D31)*('Policy Inputs'!$AE:$AE=$C31),0),MATCH($O31,'Policy Inputs'!$AH$4:$AU$4,0)) -> 0 | R31: 0 | S31: 0 | T31: Reserve LandDwelling Equivalents per 100m² GFA for Wanaka | U31: =INDEX('Policy Inputs'!$P:$AC,MATCH(1,('Policy Inputs'!$N:$N=$D31)*('Policy Inputs'!$M:$M=$C31),0),MATCH($T31,'Policy Inputs'!$P$4:$AC$4,0)) -> 0 | V31: =INDEX('Policy Inputs'!$AH:$AU,MATCH(1,('Policy Inputs'!$AF:$AF=$D31)*('Policy Inputs'!$AE:$AE=$C31),0),MATCH($T31,'Policy Inputs'!$AH$4:$AU$4,0)) -> 0 | W31: =IF(V31="Unit",$B$6,IF(V31="GFA",$B$7/100,0)) -> 0 | X31: =U31*W31 -> 0 | Y31: =IF($B$4="Wakatipu",S31,IF($B$4="Wanaka",X31,"ERROR")) -> ERROR | AB31: =INDEX('Policy Inputs'!$P:$AC,MATCH(1,('Policy Inputs'!$N:$N=$D31&" "&AB$25)*('Policy Inputs'!$M:$M=$C31),0),MATCH($O31,'Policy Inputs'!$P$4:$AC$4,0)) ->  | AC31: =INDEX('Policy Inputs'!$P:$AC,MATCH(1,('Policy Inputs'!$N:$N=$D31&" "&AC$25)*('Policy Inputs'!$M:$M=$C31),0),MATCH($O31,'Policy Inputs'!$P$4:$AC$4,0)) ->  | AD31: =INDEX('Policy Inputs'!$P:$AC,MATCH(1,('Policy Inputs'!$N:$N=$D31&" "&AD$25)*('Policy Inputs'!$M:$M=$C31),0),MATCH($O31,'Policy Inputs'!$P$4:$AC$4,0)) ->  | AE31: =SUMPRODUCT(TRANSPOSE($B$11:$B$13),AB31:AD31) ->  | AF31: 0
A32: Premier Sportsfield Reserve Land: | F32: 0 | H32: 0 | I32: =INDEX('Policy Inputs'!$D:$K,MATCH(1,('Policy Inputs'!$A:$A=$E32)*('Policy Inputs'!$B:$B=$B$3),0),MATCH($Z32,'Policy Inputs'!$D$4:$K$4,0)) -> 0 | J32: 0 | K32: 0 | L32: 0 | O32: Reserve Land - premier sportsfieldDwelling Equivalents per 100m² GFA | P32: =INDEX('Policy Inputs'!$P:$AC,MATCH(1,('Policy Inputs'!$N:$N=$D32)*('Policy Inputs'!$M:$M=$C32),0),MATCH($O32,'Policy Inputs'!$P$4:$AC$4,0)) -> 0 | Q32: =INDEX('Policy Inputs'!$AH:$AU,MATCH(1,('Policy Inputs'!$AF:$AF=$D32)*('Policy Inputs'!$AE:$AE=$C32),0),MATCH($O32,'Policy Inputs'!$AH$4:$AU$4,0)) -> 0 | R32: 0 | S32: 0 | Y32: =S32 -> 0 | Z32: Premier Sportsfields - Reserve Land | AB32: =INDEX('Policy Inputs'!$P:$AC,MATCH(1,('Policy Inputs'!$N:$N=$D32&" "&AB$25)*('Policy Inputs'!$M:$M=$C32),0),MATCH($O32,'Policy Inputs'!$P$4:$AC$4,0)) ->  | AC32: =INDEX('Policy Inputs'!$P:$AC,MATCH(1,('Policy Inputs'!$N:$N=$D32&" "&AC$25)*('Policy Inputs'!$M:$M=$C32),0),MATCH($O32,'Policy Inputs'!$P$4:$AC$4,0)) ->  | AD32: =INDEX('Policy Inputs'!$P:$AC,MATCH(1,('Policy Inputs'!$N:$N=$D32&" "&AD$25)*('Policy Inputs'!$M:$M=$C32),0),MATCH($O32,'Policy Inputs'!$P$4:$AC$4,0)) ->  | AE32: =SUMPRODUCT(TRANSPOSE($B$11:$B$13),AB32:AD32) ->  | AF32: 0
A33: Roading Contribution: | F33: ERROR | I33: =INDEX('Policy Inputs'!$D:$K,MATCH(1,('Policy Inputs'!$A:$A=$E33)*('Policy Inputs'!$B:$B=$B$3),0),MATCH($Z33,'Policy Inputs'!$D$4:$K$4,0)) -> 0 | O33: RoadingDwelling Equivalents per 100m² GFA for Wakatipu | P33: =INDEX('Policy Inputs'!$P:$AC,MATCH(1,('Policy Inputs'!$N:$N=$D33)*('Policy Inputs'!$M:$M=$C33),0),MATCH($O33,'Policy Inputs'!$P$4:$AC$4,0)) -> 0 | Q33: =INDEX('Policy Inputs'!$AH:$AU,MATCH(1,('Policy Inputs'!$AF:$AF=$D33)*('Policy Inputs'!$AE:$AE=$C33),0),MATCH($O33,'Policy Inputs'!$AH$4:$AU$4,0)) -> 0 | R33: 0 | S33: 0 | T33: RoadingDwelling Equivalents per 100m² GFA for Wanaka | U33: =INDEX('Policy Inputs'!$P:$AC,MATCH(1,('Policy Inputs'!$N:$N=$D33)*('Policy Inputs'!$M:$M=$C33),0),MATCH($T33,'Policy Inputs'!$P$4:$AC$4,0)) -> 0 | V33: =INDEX('Policy Inputs'!$AH:$AU,MATCH(1,('Policy Inputs'!$AF:$AF=$D33)*('Policy Inputs'!$AE:$AE=$C33),0),MATCH($T33,'Policy Inputs'!$AH$4:$AU$4,0)) -> 0 | W33: =IF(V33="Unit",$B$6,IF(V33="GFA",$B$7/100,0)) -> 0 | X33: =U33*W33 -> 0 | Y33: =IF($B$4="Wakatipu",S33,IF($B$4="Wanaka",X33,"ERROR")) -> ERROR | Z33: Transportation | AB33: =INDEX('Policy Inputs'!$P:$AC,MATCH(1,('Policy Inputs'!$N:$N=$D33&" "&AB$25)*('Policy Inputs'!$M:$M=$C33),0),MATCH($O33,'Policy Inputs'!$P$4:$AC$4,0)) ->  | AC33: =INDEX('Policy Inputs'!$P:$AC,MATCH(1,('Policy Inputs'!$N:$N=$D33&" "&AC$25)*('Policy Inputs'!$M:$M=$C33),0),MATCH($O33,'Policy Inputs'!$P$4:$AC$4,0)) ->  | AD33: =INDEX('Policy Inputs'!$P:$AC,MATCH(1,('Policy Inputs'!$N:$N=$D33&" "&AD$25)*('Policy Inputs'!$M:$M=$C33),0),MATCH($O33,'Policy Inputs'!$P$4:$AC$4,0)) ->  | AE33: =SUMPRODUCT(TRANSPOSE($B$11:$B$13),AB33:AD33) ->  | AF33: 0
A34: Roading - EAR Contribution: | F34: 0 | H34: 0 | I34: =INDEX('Policy Inputs'!$D:$K,MATCH(1,('Policy Inputs'!$A:$A=$E34)*('Policy Inputs'!$B:$B=$B$3),0),MATCH($Z34,'Policy Inputs'!$D$4:$K$4,0)) -> 0 | J34: 0 | K34: 0 | L34: 0 | O34: Roading - EARDwelling Equivalents per 100m² GFA for Wakatipu | P34: =INDEX('Policy Inputs'!$P:$AC,MATCH(1,('Policy Inputs'!$N:$N=$D34)*('Policy Inputs'!$M:$M=$C34),0),MATCH($O34,'Policy Inputs'!$P$4:$AC$4,0)) -> 0 | Q34: =INDEX('Policy Inputs'!$AH:$AU,MATCH(1,('Policy Inputs'!$AF:$AF=$D34)*('Policy Inputs'!$AE:$AE=$C34),0),MATCH($O34,'Policy Inputs'!$AH$4:$AU$4,0)) -> 0 | R34: 0 | S34: 0 | Y34: =S34 -> 0 | Z34: Transportation - EAR | AB34: =INDEX('Policy Inputs'!$P:$AC,MATCH(1,('Policy Inputs'!$N:$N=$D34&" "&AB$25)*('Policy Inputs'!$M:$M=$C34),0),MATCH($O34,'Policy Inputs'!$P$4:$AC$4,0)) ->  | AC34: =INDEX('Policy Inputs'!$P:$AC,MATCH(1,('Policy Inputs'!$N:$N=$D34&" "&AC$25)*('Policy Inputs'!$M:$M=$C34),0),MATCH($O34,'Policy Inputs'!$P$4:$AC$4,0)) ->  | AD34: =INDEX('Policy Inputs'!$P:$AC,MATCH(1,('Policy Inputs'!$N:$N=$D34&" "&AD$25)*('Policy Inputs'!$M:$M=$C34),0),MATCH($O34,'Policy Inputs'!$P$4:$AC$4,0)) ->  | AE34: =SUMPRODUCT(TRANSPOSE($B$11:$B$13),AB34:AD34) ->  | AF34: 0
A35: Total Contribution: | J35: =SUM(J26:J34) ->  | K35: =SUM(K26:K34) ->  | L35: =SUM(L26:L34) -> 
A37: Assessment 2
A39: Policy Year
A40: Land Use
A41: Reserve Land Contribution (m2) | B41: =VLOOKUP(C51,ResLand_Areas,1+IFERROR(MATCH($B$16,'Policy Inputs'!$CD$4:$CF$4,0),3),FALSE) -> 
A42: Reserve Land Value | B42: =IF(VALUE(LEFT(C51,4))>=2021,VLOOKUP($B$15,'Policy Inputs'!$BY$234:$CB$239,4,FALSE),INDEX('Policy Inputs'!$BU:$BV,MATCH(1,('Policy Inputs'!$BR:$BR=$C$51)*('Policy Inputs'!BS:BS=$B$4),0),MATCH($B$17,'Policy Inputs'!$BU$4:$BV$4,0)))/(1+VLOOKUP(C51,$C$91:$D$106,2,FALSE)) -> 
A43: Reserve Land Payable? | B43: =IF($B$18="Brownfields",VLOOKUP(C51,$F$91:$G$106,2,0),1) -> 1
A45: Activity | B45: Required? | C45: Policy Year - Demand | D45: Land Use | E45: Policy Year - $/DE | F45: Demand Post Development (DE) | G45: Credits for Existing Demand (DE) | H45: Additional Demand (DE) | I45: Development Contribution per DE ($) | J45: Development Contribution (Excl GST) | K45: GST | L45: Development Contribution (Incl GST) | M45: Variance - DC excl GST | P45: Differential | Q45: Differential Type | R45: Quantity | S45: Demand | U45: Differential | V45: Differential Type | W45: Quantity | X45: Demand | Y45: =F45 -> Demand Post Development (DE) | AB45: (1 b/r) | AC45: (2 b/r) | AD45: (3+ b/r) | AE45: Demand (units) | AF45: Demand (GFA/ISA)
A46: Water Supply Contribution: | B46: =B26 -> 0 | C46: =$B$39 -> 0 | D46: =$B$40 -> 0 | E46: =$B$39 -> 0 | F46: =Y46 ->  | G46: =G26 -> 0 | H46: =ROUND(MAX(F46-G46,0),2) ->  | I46: =INDEX('Policy Inputs'!$D:$K,MATCH(1,('Policy Inputs'!$A:$A=$E46)*('Policy Inputs'!$B:$B=$B$3),0),MATCH($Z46,'Policy Inputs'!$D$4:$K$4,0)) -> Standard Contributions | J46: =IF(B46="Not Required",0,ROUND(H46*I46,2)) ->  | K46: =ROUND(J46*$B$9,2) ->  | L46: =J46+K46 ->  | M46: =J46-J26 ->  | O46: Water SupplyDwelling Equivalents per 100m² GFA | P46: =INDEX('Policy Inputs'!$P:$AC,MATCH(1,('Policy Inputs'!$N:$N=$D46)*('Policy Inputs'!$M:$M=$C46),0),MATCH($O46,'Policy Inputs'!$P$4:$AC$4,0)) -> Land Use Differentials | Q46: =INDEX('Policy Inputs'!$AH:$AU,MATCH(1,('Policy Inputs'!$AF:$AF=$D46)*('Policy Inputs'!$AE:$AE=$C46),0),MATCH($O46,'Policy Inputs'!$AH$4:$AU$4,0)) -> Land Use Differential Type | R46: =IF(Q46="Unit",$B$6,IF(Q46="GFA",$B$7/100,0)) -> 0 | S46: =IF(Q46="Both (max)",MAX(AE46,AF46),P46*R46) ->  | T46: Water SupplyPlus Network Factor Dwelling Equivalents | U46: =INDEX('Policy Inputs'!$P:$AC,MATCH(1,('Policy Inputs'!$N:$N=$D46)*('Policy Inputs'!$M:$M=$C46),0),MATCH($T46,'Policy Inputs'!$P$4:$AC$4,0)) -> 0 | V46: =INDEX('Policy Inputs'!$AH:$AU,MATCH(1,('Policy Inputs'!$AF:$AF=$D46)*('Policy Inputs'!$AE:$AE=$C46),0),MATCH($T46,'Policy Inputs'!$AH$4:$AU$4,0)) -> 0 | W46: 1 | X46: =U46*W46 -> 0 | Y46: =S46+X46 ->  | Z46: Water Supply | AB46: =INDEX('Policy Inputs'!$P:$AC,MATCH(1,('Policy Inputs'!$N:$N=$D46&" "&AB$25)*('Policy Inputs'!$M:$M=$C46),0),MATCH($O46,'Policy Inputs'!$P$4:$AC$4,0)) ->  | AC46: =INDEX('Policy Inputs'!$P:$AC,MATCH(1,('Policy Inputs'!$N:$N=$D46&" "&AC$25)*('Policy Inputs'!$M:$M=$C46),0),MATCH($O46,'Policy Inputs'!$P$4:$AC$4,0)) ->  | AD46: =INDEX('Policy Inputs'!$P:$AC,MATCH(1,('Policy Inputs'!$N:$N=$D46&" "&AD$25)*('Policy Inputs'!$M:$M=$C46),0),MATCH($O46,'Policy Inputs'!$P$4:$AC$4,0)) ->  | AE46: =SUMPRODUCT(TRANSPOSE($B$11:$B$13),AB46:AD46) ->  | AF46: =$B$7/100*P46 -> 
A47: Wastewater Contribution: | B47: 0 | C47: 0 | D47: 0 | E47: 0 | F47: 0 | G47: 0 | H47: =ROUND(MAX(F47-G47,0),2) -> 0 | I47: =INDEX('Policy Inputs'!$D:$K,MATCH(1,('Policy Inputs'!$A:$A=$E47)*('Policy Inputs'!$B:$B=$B$3),0),MATCH($Z47,'Policy Inputs'!$D$4:$K$4,0)) -> 0 | J47: =IF(B47="Not Required",0,ROUND(H47*I47,2)) -> 0 | K47: =ROUND(J47*$B$9,2) -> 0 | L47: =J47+K47 -> 0 | M47: 0 | O47: WastewaterDwelling Equivalents per 100m² GFA | P47: =INDEX('Policy Inputs'!$P:$AC,MATCH(1,('Policy Inputs'!$N:$N=$D47)*('Policy Inputs'!$M:$M=$C47),0),MATCH($O47,'Policy Inputs'!$P$4:$AC$4,0)) -> 0 | Q47: =INDEX('Policy Inputs'!$AH:$AU,MATCH(1,('Policy Inputs'!$AF:$AF=$D47)*('Policy Inputs'!$AE:$AE=$C47),0),MATCH($O47,'Policy Inputs'!$AH$4:$AU$4,0)) -> 0 | R47: =IF(Q47="Unit",$B$6,IF(Q47="GFA",$B$7/100,0)) -> 0 | S47: 0 | Y47: =S47 -> 0 | Z47: Wastewater | AB47: =INDEX('Policy Inputs'!$P:$AC,MATCH(1,('Policy Inputs'!$N:$N=$D47&" "&AB$25)*('Policy Inputs'!$M:$M=$C47),0),MATCH($O47,'Policy Inputs'!$P$4:$AC$4,0)) ->  | AC47: =INDEX('Policy Inputs'!$P:$AC,MATCH(1,('Policy Inputs'!$N:$N=$D47&" "&AC$25)*('Policy Inputs'!$M:$M=$C47),0),MATCH($O47,'Policy Inputs'!$P$4:$AC$4,0)) ->  | AD47: =INDEX('Policy Inputs'!$P:$AC,MATCH(1,('Policy Inputs'!$N:$N=$D47&" "&AD$25)*('Policy Inputs'!$M:$M=$C47),0),MATCH($O47,'Policy Inputs'!$P$4:$AC$4,0)) ->  | AE47: =SUMPRODUCT(TRANSPOSE($B$11:$B$13),AB47:AD47) ->  | AF47: =$B$7/100*P47 -> 0
A48: Stormwater Contribution: | B48: 0 | C48: 0 | D48: 0 | E48: 0 | F48: 0 | G48: 0 | H48: 0 | I48: =INDEX('Policy Inputs'!$D:$K,MATCH(1,('Policy Inputs'!$A:$A=$E48)*('Policy Inputs'!$B:$B=$B$3),0),MATCH($Z48,'Policy Inputs'!$D$4:$K$4,0)) -> 0 | J48: 0 | K48: 0 | L48: 0 | M48: 0 | O48: StormwaterDwelling Equivalents per 100m² Impervious Surface Area | P48: =INDEX('Policy Inputs'!$P:$AC,MATCH(1,('Policy Inputs'!$N:$N=$D48)*('Policy Inputs'!$M:$M=$C48),0),MATCH($O48,'Policy Inputs'!$P$4:$AC$4,0)) -> 0 | Q48: =INDEX('Policy Inputs'!$AH:$AU,MATCH(1,('Policy Inputs'!$AF:$AF=$D48)*('Policy Inputs'!$AE:$AE=$C48),0),MATCH($O48,'Policy Inputs'!$AH$4:$AU$4,0)) -> 0 | R48: =IF(Q48="Unit",$B$6,IF(Q48="GFA",$B$8/100,0)) -> 0 | S48: 0 | Y48: =S48 -> 0 | Z48: Stormwater | AB48: =INDEX('Policy Inputs'!$P:$AC,MATCH(1,('Policy Inputs'!$N:$N=$D48&" "&AB$25)*('Policy Inputs'!$M:$M=$C48),0),MATCH($O48,'Policy Inputs'!$P$4:$AC$4,0)) ->  | AC48: =INDEX('Policy Inputs'!$P:$AC,MATCH(1,('Policy Inputs'!$N:$N=$D48&" "&AC$25)*('Policy Inputs'!$M:$M=$C48),0),MATCH($O48,'Policy Inputs'!$P$4:$AC$4,0)) ->  | AD48: =INDEX('Policy Inputs'!$P:$AC,MATCH(1,('Policy Inputs'!$N:$N=$D48&" "&AD$25)*('Policy Inputs'!$M:$M=$C48),0),MATCH($O48,'Policy Inputs'!$P$4:$AC$4,0)) ->  | AE48: =SUMPRODUCT(TRANSPOSE($B$11:$B$13),AB48:AD48) ->  | AF48: 0
A49: Reserve Improvements Contribution: | B49: 0 | C49: 0 | D49: 0 | E49: 0 | F49: ERROR | G49: 0 | I49: =INDEX('Policy Inputs'!$D:$K,MATCH(1,('Policy Inputs'!$A:$A=$E49)*('Policy Inputs'!$B:$B=$B$3),0),MATCH($Z49,'Policy Inputs'!$D$4:$K$4,0)) -> 0 | O49: Reserve ImprovementsDwelling Equivalents per 100m² GFA for Wakatipu | P49: =INDEX('Policy Inputs'!$P:$AC,MATCH(1,('Policy Inputs'!$N:$N=$D49)*('Policy Inputs'!$M:$M=$C49),0),MATCH($O49,'Policy Inputs'!$P$4:$AC$4,0)) -> 0 | Q49: =INDEX('Policy Inputs'!$AH:$AU,MATCH(1,('Policy Inputs'!$AF:$AF=$D49)*('Policy Inputs'!$AE:$AE=$C49),0),MATCH($O49,'Policy Inputs'!$AH$4:$AU$4,0)) -> 0 | R49: =IF(Q49="Unit",$B$6,IF(Q49="GFA",$B$7/100,0)) -> 0 | S49: 0 | T49: Reserve ImprovementsDwelling Equivalents per 100m² GFA for Wanaka | U49: =INDEX('Policy Inputs'!$P:$AC,MATCH(1,('Policy Inputs'!$N:$N=$D49)*('Policy Inputs'!$M:$M=$C49),0),MATCH($T49,'Policy Inputs'!$P$4:$AC$4,0)) -> 0 | V49: =INDEX('Policy Inputs'!$AH:$AU,MATCH(1,('Policy Inputs'!$AF:$AF=$D49)*('Policy Inputs'!$AE:$AE=$C49),0),MATCH($T49,'Policy Inputs'!$AH$4:$AU$4,0)) -> 0 | W49: =IF(V49="Unit",$B$6,IF(V49="GFA",$B$7/100,0)) -> 0 | X49: =U49*W49 -> 0 | Y49: =IF($B$4="Wakatipu",S49,IF($B$4="Wanaka",X49,"ERROR")) -> ERROR | Z49: Reserve Improvements | AB49: =INDEX('Policy Inputs'!$P:$AC,MATCH(1,('Policy Inputs'!$N:$N=$D49&" "&AB$25)*('Policy Inputs'!$M:$M=$C49),0),MATCH($O49,'Policy Inputs'!$P$4:$AC$4,0)) ->  | AC49: =INDEX('Policy Inputs'!$P:$AC,MATCH(1,('Policy Inputs'!$N:$N=$D49&" "&AC$25)*('Policy Inputs'!$M:$M=$C49),0),MATCH($O49,'Policy Inputs'!$P$4:$AC$4,0)) ->  | AD49: =INDEX('Policy Inputs'!$P:$AC,MATCH(1,('Policy Inputs'!$N:$N=$D49&" "&AD$25)*('Policy Inputs'!$M:$M=$C49),0),MATCH($O49,'Policy Inputs'!$P$4:$AC$4,0)) ->  | AE49: =SUMPRODUCT(TRANSPOSE($B$11:$B$13),AB49:AD49) ->  | AF49: 0
A50: Community Infrastructure Contribution: | B50: 0 | C50: 0 | D50: 0 | E50: 0 | F50: ERROR | G50: 0 | I50: =INDEX('Policy Inputs'!$D:$K,MATCH(1,('Policy Inputs'!$A:$A=$E50)*('Policy Inputs'!$B:$B=$B$3),0),MATCH($Z50,'Policy Inputs'!$D$4:$K$4,0)) -> 0 | O50: Community FacilitiesDwelling Equivalents per 100m² GFA for Wakatipu | P50: =INDEX('Policy Inputs'!$P:$AC,MATCH(1,('Policy Inputs'!$N:$N=$D50)*('Policy Inputs'!$M:$M=$C50),0),MATCH($O50,'Policy Inputs'!$P$4:$AC$4,0)) -> 0 | Q50: =INDEX('Policy Inputs'!$AH:$AU,MATCH(1,('Policy Inputs'!$AF:$AF=$D50)*('Policy Inputs'!$AE:$AE=$C50),0),MATCH($O50,'Policy Inputs'!$AH$4:$AU$4,0)) -> 0 | R50: 0 | S50: 0 | T50: Community FacilitiesDwelling Equivalents per 100m² GFA for Wanaka | U50: =INDEX('Policy Inputs'!$P:$AC,MATCH(1,('Policy Inputs'!$N:$N=$D50)*('Policy Inputs'!$M:$M=$C50),0),MATCH($T50,'Policy Inputs'!$P$4:$AC$4,0)) -> 0 | V50: =INDEX('Policy Inputs'!$AH:$AU,MATCH(1,('Policy Inputs'!$AF:$AF=$D50)*('Policy Inputs'!$AE:$AE=$C50),0),MATCH($T50,'Policy Inputs'!$AH$4:$AU$4,0)) -> 0 | W50: =IF(V50="Unit",$B$6,IF(V50="GFA",$B$7/100,0)) -> 0 | X50: =U50*W50 -> 0 | Y50: =IF($B$4="Wakatipu",S50,IF($B$4="Wanaka",X50,"ERROR")) -> ERROR | Z50: Community Facilities | AB50: =INDEX('Policy Inputs'!$P:$AC,MATCH(1,('Policy Inputs'!$N:$N=$D50&" "&AB$25)*('Policy Inputs'!$M:$M=$C50),0),MATCH($O50,'Policy Inputs'!$P$4:$AC$4,0)) ->  | AC50: =INDEX('Policy Inputs'!$P:$AC,MATCH(1,('Policy Inputs'!$N:$N=$D50&" "&AC$25)*('Policy Inputs'!$M:$M=$C50),0),MATCH($O50,'Policy Inputs'!$P$4:$AC$4,0)) ->  | AD50: =INDEX('Policy Inputs'!$P:$AC,MATCH(1,('Policy Inputs'!$N:$N=$D50&" "&AD$25)*('Policy Inputs'!$M:$M=$C50),0),MATCH($O50,'Policy Inputs'!$P$4:$AC$4,0)) ->  | AE50: =SUMPRODUCT(TRANSPOSE($B$11:$B$13),AB50:AD50) ->  | AF50: 0
A51: Reserve Land Contribution: | B51: 0 | C51: 0 | D51: 0 | E51: 0 | F51: ERROR | G51: 0 | I51: =B41*B42*B43 ->  | O51: Reserve LandDwelling Equivalents per 100m² GFA for Wakatipu | P51: =INDEX('Policy Inputs'!$P:$AC,MATCH(1,('Policy Inputs'!$N:$N=$D51)*('Policy Inputs'!$M:$M=$C51),0),MATCH($O51,'Policy Inputs'!$P$4:$AC$4,0)) -> 0 | Q51: =INDEX('Policy Inputs'!$AH:$AU,MATCH(1,('Policy Inputs'!$AF:$AF=$D51)*('Policy Inputs'!$AE:$AE=$C51),0),MATCH($O51,'Policy Inputs'!$AH$4:$AU$4,0)) -> 0 | R51: 0 | S51: 0 | T51: Reserve LandDwelling Equivalents per 100m² GFA for Wanaka | U51: =INDEX('Policy Inputs'!$P:$AC,MATCH(1,('Policy Inputs'!$N:$N=$D51)*('Policy Inputs'!$M:$M=$C51),0),MATCH($T51,'Policy Inputs'!$P$4:$AC$4,0)) -> 0 | V51: =INDEX('Policy Inputs'!$AH:$AU,MATCH(1,('Policy Inputs'!$AF:$AF=$D51)*('Policy Inputs'!$AE:$AE=$C51),0),MATCH($T51,'Policy Inputs'!$AH$4:$AU$4,0)) -> 0 | W51: =IF(V51="Unit",$B$6,IF(V51="GFA",$B$7/100,0)) -> 0 | X51: =U51*W51 -> 0 | Y51: =IF($B$4="Wakatipu",S51,IF($B$4="Wanaka",X51,"ERROR")) -> ERROR | AB51: =INDEX('Policy Inputs'!$P:$AC,MATCH(1,('Policy Inputs'!$N:$N=$D51&" "&AB$25)*('Policy Inputs'!$M:$M=$C51),0),MATCH($O51,'Policy Inputs'!$P$4:$AC$4,0)) ->  | AC51: =INDEX('Policy Inputs'!$P:$AC,MATCH(1,('Policy Inputs'!$N:$N=$D51&" "&AC$25)*('Policy Inputs'!$M:$M=$C51),0),MATCH($O51,'Policy Inputs'!$P$4:$AC$4,0)) ->  | AD51: =INDEX('Policy Inputs'!$P:$AC,MATCH(1,('Policy Inputs'!$N:$N=$D51&" "&AD$25)*('Policy Inputs'!$M:$M=$C51),0),MATCH($O51,'Policy Inputs'!$P$4:$AC$4,0)) ->  | AE51: =SUMPRODUCT(TRANSPOSE($B$11:$B$13),AB51:AD51) ->  | AF51: 0
A52: Premier Sportsfield Reserve Land: | B52: 0 | C52: 0 | D52: 0 | E52: 0 | F52: 0 | G52: 0 | H52: 0 | I52: =INDEX('Policy Inputs'!$D:$K,MATCH(1,('Policy Inputs'!$A:$A=$E52)*('Policy Inputs'!$B:$B=$B$3),0),MATCH($Z52,'Policy Inputs'!$D$4:$K$4,0)) -> 0 | J52: 0 | K52: 0 | L52: 0 | M52: 0 | O52: Reserve Land - premier sportsfieldDwelling Equivalents per 100m² GFA | P52: =INDEX('Policy Inputs'!$P:$AC,MATCH(1,('Policy Inputs'!$N:$N=$D52)*('Policy Inputs'!$M:$M=$C52),0),MATCH($O52,'Policy Inputs'!$P$4:$AC$4,0)) -> 0 | Q52: =INDEX('Policy Inputs'!$AH:$AU,MATCH(1,('Policy Inputs'!$AF:$AF=$D52)*('Policy Inputs'!$AE:$AE=$C52),0),MATCH($O52,'Policy Inputs'!$AH$4:$AU$4,0)) -> 0 | R52: 0 | S52: 0 | Y52: =S52 -> 0 | Z52: Premier Sportsfields - Reserve Land | AB52: =INDEX('Policy Inputs'!$P:$AC,MATCH(1,('Policy Inputs'!$N:$N=$D52&" "&AB$25)*('Policy Inputs'!$M:$M=$C52),0),MATCH($O52,'Policy Inputs'!$P$4:$AC$4,0)) ->  | AC52: =INDEX('Policy Inputs'!$P:$AC,MATCH(1,('Policy Inputs'!$N:$N=$D52&" "&AC$25)*('Policy Inputs'!$M:$M=$C52),0),MATCH($O52,'Policy Inputs'!$P$4:$AC$4,0)) ->  | AD52: =INDEX('Policy Inputs'!$P:$AC,MATCH(1,('Policy Inputs'!$N:$N=$D52&" "&AD$25)*('Policy Inputs'!$M:$M=$C52),0),MATCH($O52,'Policy Inputs'!$P$4:$AC$4,0)) ->  | AE52: =SUMPRODUCT(TRANSPOSE($B$11:$B$13),AB52:AD52) ->  | AF52: 0
A53: Roading Contribution: | B53: 0 | C53: 0 | D53: 0 | E53: 0 | F53: ERROR | G53: 0 | I53: =INDEX('Policy Inputs'!$D:$K,MATCH(1,('Policy Inputs'!$A:$A=$E53)*('Policy Inputs'!$B:$B=$B$3),0),MATCH($Z53,'Policy Inputs'!$D$4:$K$4,0)) -> 0 | O53: RoadingDwelling Equivalents per 100m² GFA for Wakatipu | P53: =INDEX('Policy Inputs'!$P:$AC,MATCH(1,('Policy Inputs'!$N:$N=$D53)*('Policy Inputs'!$M:$M=$C53),0),MATCH($O53,'Policy Inputs'!$P$4:$AC$4,0)) -> 0 | Q53: =INDEX('Policy Inputs'!$AH:$AU,MATCH(1,('Policy Inputs'!$AF:$AF=$D53)*('Policy Inputs'!$AE:$AE=$C53),0),MATCH($O53,'Policy Inputs'!$AH$4:$AU$4,0)) -> 0 | R53: 0 | S53: 0 | T53: RoadingDwelling Equivalents per 100m² GFA for Wanaka | U53: =INDEX('Policy Inputs'!$P:$AC,MATCH(1,('Policy Inputs'!$N:$N=$D53)*('Policy Inputs'!$M:$M=$C53),0),MATCH($T53,'Policy Inputs'!$P$4:$AC$4,0)) -> 0 | V53: =INDEX('Policy Inputs'!$AH:$AU,MATCH(1,('Policy Inputs'!$AF:$AF=$D53)*('Policy Inputs'!$AE:$AE=$C53),0),MATCH($T53,'Policy Inputs'!$AH$4:$AU$4,0)) -> 0 | W53: =IF(V53="Unit",$B$6,IF(V53="GFA",$B$7/100,0)) -> 0 | X53: =U53*W53 -> 0 | Y53: =IF($B$4="Wakatipu",S53,IF($B$4="Wanaka",X53,"ERROR")) -> ERROR | Z53: Transportation | AB53: =INDEX('Policy Inputs'!$P:$AC,MATCH(1,('Policy Inputs'!$N:$N=$D53&" "&AB$25)*('Policy Inputs'!$M:$M=$C53),0),MATCH($O53,'Policy Inputs'!$P$4:$AC$4,0)) ->  | AC53: =INDEX('Policy Inputs'!$P:$AC,MATCH(1,('Policy Inputs'!$N:$N=$D53&" "&AC$25)*('Policy Inputs'!$M:$M=$C53),0),MATCH($O53,'Policy Inputs'!$P$4:$AC$4,0)) ->  | AD53: =INDEX('Policy Inputs'!$P:$AC,MATCH(1,('Policy Inputs'!$N:$N=$D53&" "&AD$25)*('Policy Inputs'!$M:$M=$C53),0),MATCH($O53,'Policy Inputs'!$P$4:$AC$4,0)) ->  | AE53: =SUMPRODUCT(TRANSPOSE($B$11:$B$13),AB53:AD53) ->  | AF53: 0
A54: Roading - EAR Contribution: | B54: 0 | C54: 0 | D54: 0 | E54: 0 | F54: 0 | G54: 0 | H54: 0 | I54: =INDEX('Policy Inputs'!$D:$K,MATCH(1,('Policy Inputs'!$A:$A=$E54)*('Policy Inputs'!$B:$B=$B$3),0),MATCH($Z54,'Policy Inputs'!$D$4:$K$4,0)) -> 0 | J54: 0 | K54: 0 | L54: 0 | M54: 0 | O54: Roading - EARDwelling Equivalents per 100m² GFA for Wakatipu | P54: =INDEX('Policy Inputs'!$P:$AC,MATCH(1,('Policy Inputs'!$N:$N=$D54)*('Policy Inputs'!$M:$M=$C54),0),MATCH($O54,'Policy Inputs'!$P$4:$AC$4,0)) -> 0 | Q54: =INDEX('Policy Inputs'!$AH:$AU,MATCH(1,('Policy Inputs'!$AF:$AF=$D54)*('Policy Inputs'!$AE:$AE=$C54),0),MATCH($O54,'Policy Inputs'!$AH$4:$AU$4,0)) -> 0 | R54: 0 | S54: 0 | Y54: =S54 -> 0 | Z54: Transportation - EAR | AB54: =INDEX('Policy Inputs'!$P:$AC,MATCH(1,('Policy Inputs'!$N:$N=$D54&" "&AB$25)*('Policy Inputs'!$M:$M=$C54),0),MATCH($O54,'Policy Inputs'!$P$4:$AC$4,0)) ->  | AC54: =INDEX('Policy Inputs'!$P:$AC,MATCH(1,('Policy Inputs'!$N:$N=$D54&" "&AC$25)*('Policy Inputs'!$M:$M=$C54),0),MATCH($O54,'Policy Inputs'!$P$4:$AC$4,0)) ->  | AD54: =INDEX('Policy Inputs'!$P:$AC,MATCH(1,('Policy Inputs'!$N:$N=$D54&" "&AD$25)*('Policy Inputs'!$M:$M=$C54),0),MATCH($O54,'Policy Inputs'!$P$4:$AC$4,0)) ->  | AE54: =SUMPRODUCT(TRANSPOSE($B$11:$B$13),AB54:AD54) ->  | AF54: 0
A55: Total Contribution: | J55: =SUM(J46:J54) ->  | K55: =SUM(K46:K54) ->  | L55: =SUM(L46:L54) ->  | M55: =SUM(M46:M54) -> 
A57: Assessment 3
A59: Policy Year
A60: Land Use
A61: Reserve Land Contribution (m2) | B61: =VLOOKUP(C71,ResLand_Areas,1+IFERROR(MATCH($B$16,'Policy Inputs'!$CD$4:$CF$4,0),3),FALSE) -> 
A62: Reserve Land Value | B62: =IF(VALUE(LEFT(C71,4))>=2021,VLOOKUP($B$15,'Policy Inputs'!$BY$234:$CB$239,4,FALSE),INDEX('Policy Inputs'!$BU:$BV,MATCH(1,('Policy Inputs'!$BR:$BR=$C$51)*('Policy Inputs'!BS:BS=$B$4),0),MATCH($B$17,'Policy Inputs'!$BU$4:$BV$4,0)))/(1+VLOOKUP(C71,$C$91:$D$106,2,FALSE)) -> 
A63: Reserve Land Payable? | B63: =IF($B$18="Brownfields",VLOOKUP(C71,$F$91:$G$106,2,0),1) -> 1
A65: Activity | B65: Required? | C65: Policy Year - Demand | D65: Land Use | E65: Policy Year - $/DE | F65: Demand Post Development (DE) | G65: Credits for Existing Demand (DE) | H65: Additional Demand (DE) | I65: Development Contribution per DE ($) | J65: Development Contribution (Excl GST) | K65: GST | L65: Development Contribution (Incl GST) | M65: Variance - DC excl GST | P65: Differential | Q65: Differential Type | R65: Quantity | S65: Demand | U65: Differential | V65: Differential Type | W65: Quantity | X65: Demand | Y65: =F65 -> Demand Post Development (DE) | AB65: (1 b/r) | AC65: (2 b/r) | AD65: (3+ b/r) | AE65: Demand (units) | AF65: Demand (GFA/ISA)
A66: Water Supply Contribution: | B66: =B26 -> 0 | C66: =$B$59 -> 0 | D66: =$B$60 -> 0 | E66: =$B$59 -> 0 | F66: =Y66 ->  | G66: =G26 -> 0 | H66: =ROUND(MAX(F66-G66,0),2) ->  | I66: =INDEX('Policy Inputs'!$D:$K,MATCH(1,('Policy Inputs'!$A:$A=$E66)*('Policy Inputs'!$B:$B=$B$3),0),MATCH($Z66,'Policy Inputs'!$D$4:$K$4,0)) -> Standard Contributions | J66: =IF(B66="Not Required",0,ROUND(H66*I66,2)) ->  | K66: =ROUND(J66*$B$9,2) ->  | L66: =J66+K66 ->  | M66: =J66-J26 ->  | O66: Water SupplyDwelling Equivalents per 100m² GFA | P66: =INDEX('Policy Inputs'!$P:$AC,MATCH(1,('Policy Inputs'!$N:$N=$D66)*('Policy Inputs'!$M:$M=$C66),0),MATCH($O66,'Policy Inputs'!$P$4:$AC$4,0)) -> Land Use Differentials | Q66: =INDEX('Policy Inputs'!$AH:$AU,MATCH(1,('Policy Inputs'!$AF:$AF=$D66)*('Policy Inputs'!$AE:$AE=$C66),0),MATCH($O66,'Policy Inputs'!$AH$4:$AU$4,0)) -> Land Use Differential Type | R66: =IF(Q66="Unit",$B$6,IF(Q66="GFA",$B$7/100,0)) -> 0 | S66: =IF(Q66="Both (max)",MAX(AE66,AF66),P66*R66) ->  | T66: Water SupplyPlus Network Factor Dwelling Equivalents | U66: =INDEX('Policy Inputs'!$P:$AC,MATCH(1,('Policy Inputs'!$N:$N=$D66)*('Policy Inputs'!$M:$M=$C66),0),MATCH($T66,'Policy Inputs'!$P$4:$AC$4,0)) -> 0 | V66: =INDEX('Policy Inputs'!$AH:$AU,MATCH(1,('Policy Inputs'!$AF:$AF=$D66)*('Policy Inputs'!$AE:$AE=$C66),0),MATCH($T66,'Policy Inputs'!$AH$4:$AU$4,0)) -> 0 | W66: 1 | X66: =U66*W66 -> 0 | Y66: =S66+X66 ->  | Z66: Water Supply | AB66: =INDEX('Policy Inputs'!$P:$AC,MATCH(1,('Policy Inputs'!$N:$N=$D66&" "&AB$25)*('Policy Inputs'!$M:$M=$C66),0),MATCH($O66,'Policy Inputs'!$P$4:$AC$4,0)) ->  | AC66: =INDEX('Policy Inputs'!$P:$AC,MATCH(1,('Policy Inputs'!$N:$N=$D66&" "&AC$25)*('Policy Inputs'!$M:$M=$C66),0),MATCH($O66,'Policy Inputs'!$P$4:$AC$4,0)) ->  | AD66: =INDEX('Policy Inputs'!$P:$AC,MATCH(1,('Policy Inputs'!$N:$N=$D66&" "&AD$25)*('Policy Inputs'!$M:$M=$C66),0),MATCH($O66,'Policy Inputs'!$P$4:$AC$4,0)) ->  | AE66: =SUMPRODUCT(TRANSPOSE($B$11:$B$13),AB66:AD66) ->  | AF66: =$B$7/100*P66 -> 
A67: Wastewater Contribution: | B67: 0 | C67: =$B$59 -> 0 | D67: =$B$60 -> 0 | E67: =$B$59 -> 0 | F67: 0 | G67: 0 | H67: =ROUND(MAX(F67-G67,0),2) -> 0 | I67: =INDEX('Policy Inputs'!$D:$K,MATCH(1,('Policy Inputs'!$A:$A=$E67)*('Policy Inputs'!$B:$B=$B$3),0),MATCH($Z67,'Policy Inputs'!$D$4:$K$4,0)) -> 0 | J67: =IF(B67="Not Required",0,ROUND(H67*I67,2)) -> 0 | K67: =ROUND(J67*$B$9,2) -> 0 | L67: =J67+K67 -> 0 | M67: 0 | O67: WastewaterDwelling Equivalents per 100m² GFA | P67: =INDEX('Policy Inputs'!$P:$AC,MATCH(1,('Policy Inputs'!$N:$N=$D67)*('Policy Inputs'!$M:$M=$C67),0),MATCH($O67,'Policy Inputs'!$P$4:$AC$4,0)) -> 0 | Q67: =INDEX('Policy Inputs'!$AH:$AU,MATCH(1,('Policy Inputs'!$AF:$AF=$D67)*('Policy Inputs'!$AE:$AE=$C67),0),MATCH($O67,'Policy Inputs'!$AH$4:$AU$4,0)) -> 0 | R67: =IF(Q67="Unit",$B$6,IF(Q67="GFA",$B$7/100,0)) -> 0 | S67: 0 | Y67: =S67 -> 0 | Z67: Wastewater | AB67: =INDEX('Policy Inputs'!$P:$AC,MATCH(1,('Policy Inputs'!$N:$N=$D67&" "&AB$25)*('Policy Inputs'!$M:$M=$C67),0),MATCH($O67,'Policy Inputs'!$P$4:$AC$4,0)) ->  | AC67: =INDEX('Policy Inputs'!$P:$AC,MATCH(1,('Policy Inputs'!$N:$N=$D67&" "&AC$25)*('Policy Inputs'!$M:$M=$C67),0),MATCH($O67,'Policy Inputs'!$P$4:$AC$4,0)) ->  | AD67: =INDEX('Policy Inputs'!$P:$AC,MATCH(1,('Policy Inputs'!$N:$N=$D67&" "&AD$25)*('Policy Inputs'!$M:$M=$C67),0),MATCH($O67,'Policy Inputs'!$P$4:$AC$4,0)) ->  | AE67: =SUMPRODUCT(TRANSPOSE($B$11:$B$13),AB67:AD67) ->  | AF67: =$B$7/100*P67 -> 0
A68: Stormwater Contribution: | B68: 0 | C68: 0 | D68: 0 | E68: 0 | F68: 0 | G68: 0 | H68: 0 | I68: =INDEX('Policy Inputs'!$D:$K,MATCH(1,('Policy Inputs'!$A:$A=$E68)*('Policy Inputs'!$B:$B=$B$3),0),MATCH($Z68,'Policy Inputs'!$D$4:$K$4,0)) -> 0 | J68: 0 | K68: 0 | L68: 0 | M68: 0 | O68: StormwaterDwelling Equivalents per 100m² Impervious Surface Area | P68: =INDEX('Policy Inputs'!$P:$AC,MATCH(1,('Policy Inputs'!$N:$N=$D68)*('Policy Inputs'!$M:$M=$C68),0),MATCH($O68,'Policy Inputs'!$P$4:$AC$4,0)) -> 0 | Q68: =INDEX('Policy Inputs'!$AH:$AU,MATCH(1,('Policy Inputs'!$AF:$AF=$D68)*('Policy Inputs'!$AE:$AE=$C68),0),MATCH($O68,'Policy Inputs'!$AH$4:$AU$4,0)) -> 0 | R68: =IF(Q68="Unit",$B$6,IF(Q68="GFA",$B$8/100,0)) -> 0 | S68: 0 | Y68: =S68 -> 0 | Z68: Stormwater | AB68: =INDEX('Policy Inputs'!$P:$AC,MATCH(1,('Policy Inputs'!$N:$N=$D68&" "&AB$25)*('Policy Inputs'!$M:$M=$C68),0),MATCH($O68,'Policy Inputs'!$P$4:$AC$4,0)) ->  | AC68: =INDEX('Policy Inputs'!$P:$AC,MATCH(1,('Policy Inputs'!$N:$N=$D68&" "&AC$25)*('Policy Inputs'!$M:$M=$C68),0),MATCH($O68,'Policy Inputs'!$P$4:$AC$4,0)) ->  | AD68: =INDEX('Policy Inputs'!$P:$AC,MATCH(1,('Policy Inputs'!$N:$N=$D68&" "&AD$25)*('Policy Inputs'!$M:$M=$C68),0),MATCH($O68,'Policy Inputs'!$P$4:$AC$4,0)) ->  | AE68: =SUMPRODUCT(TRANSPOSE($B$11:$B$13),AB68:AD68) ->  | AF68: 0
A69: Reserve Improvements Contribution: | B69: 0 | C69: 0 | D69: 0 | E69: 0 | F69: ERROR | G69: 0 | I69: =INDEX('Policy Inputs'!$D:$K,MATCH(1,('Policy Inputs'!$A:$A=$E69)*('Policy Inputs'!$B:$B=$B$3),0),MATCH($Z69,'Policy Inputs'!$D$4:$K$4,0)) -> 0 | O69: Reserve ImprovementsDwelling Equivalents per 100m² GFA for Wakatipu | P69: =INDEX('Policy Inputs'!$P:$AC,MATCH(1,('Policy Inputs'!$N:$N=$D69)*('Policy Inputs'!$M:$M=$C69),0),MATCH($O69,'Policy Inputs'!$P$4:$AC$4,0)) -> 0 | Q69: =INDEX('Policy Inputs'!$AH:$AU,MATCH(1,('Policy Inputs'!$AF:$AF=$D69)*('Policy Inputs'!$AE:$AE=$C69),0),MATCH($O69,'Policy Inputs'!$AH$4:$AU$4,0)) -> 0 | R69: =IF(Q69="Unit",$B$6,IF(Q69="GFA",$B$7/100,0)) -> 0 | S69: 0 | T69: Reserve ImprovementsDwelling Equivalents per 100m² GFA for Wanaka | U69: =INDEX('Policy Inputs'!$P:$AC,MATCH(1,('Policy Inputs'!$N:$N=$D69)*('Policy Inputs'!$M:$M=$C69),0),MATCH($T69,'Policy Inputs'!$P$4:$AC$4,0)) -> 0 | V69: =INDEX('Policy Inputs'!$AH:$AU,MATCH(1,('Policy Inputs'!$AF:$AF=$D69)*('Policy Inputs'!$AE:$AE=$C69),0),MATCH($T69,'Policy Inputs'!$AH$4:$AU$4,0)) -> 0 | W69: =IF(V69="Unit",$B$6,IF(V69="GFA",$B$7/100,0)) -> 0 | X69: =U69*W69 -> 0 | Y69: =IF($B$4="Wakatipu",S69,IF($B$4="Wanaka",X69,"ERROR")) -> ERROR | Z69: Reserve Improvements | AB69: =INDEX('Policy Inputs'!$P:$AC,MATCH(1,('Policy Inputs'!$N:$N=$D69&" "&AB$25)*('Policy Inputs'!$M:$M=$C69),0),MATCH($O69,'Policy Inputs'!$P$4:$AC$4,0)) ->  | AC69: =INDEX('Policy Inputs'!$P:$AC,MATCH(1,('Policy Inputs'!$N:$N=$D69&" "&AC$25)*('Policy Inputs'!$M:$M=$C69),0),MATCH($O69,'Policy Inputs'!$P$4:$AC$4,0)) ->  | AD69: =INDEX('Policy Inputs'!$P:$AC,MATCH(1,('Policy Inputs'!$N:$N=$D69&" "&AD$25)*('Policy Inputs'!$M:$M=$C69),0),MATCH($O69,'Policy Inputs'!$P$4:$AC$4,0)) ->  | AE69: =SUMPRODUCT(TRANSPOSE($B$11:$B$13),AB69:AD69) ->  | AF69: 0
A70: Community Infrastructure Contribution: | B70: 0 | C70: 0 | D70: 0 | E70: 0 | F70: ERROR | G70: 0 | I70: =INDEX('Policy Inputs'!$D:$K,MATCH(1,('Policy Inputs'!$A:$A=$E70)*('Policy Inputs'!$B:$B=$B$3),0),MATCH($Z70,'Policy Inputs'!$D$4:$K$4,0)) -> 0 | O70: Community FacilitiesDwelling Equivalents per 100m² GFA for Wakatipu | P70: =INDEX('Policy Inputs'!$P:$AC,MATCH(1,('Policy Inputs'!$N:$N=$D70)*('Policy Inputs'!$M:$M=$C70),0),MATCH($O70,'Policy Inputs'!$P$4:$AC$4,0)) -> 0 | Q70: =INDEX('Policy Inputs'!$AH:$AU,MATCH(1,('Policy Inputs'!$AF:$AF=$D70)*('Policy Inputs'!$AE:$AE=$C70),0),MATCH($O70,'Policy Inputs'!$AH$4:$AU$4,0)) -> 0 | R70: 0 | S70: 0 | T70: Community FacilitiesDwelling Equivalents per 100m² GFA for Wanaka | U70: =INDEX('Policy Inputs'!$P:$AC,MATCH(1,('Policy Inputs'!$N:$N=$D70)*('Policy Inputs'!$M:$M=$C70),0),MATCH($T70,'Policy Inputs'!$P$4:$AC$4,0)) -> 0 | V70: =INDEX('Policy Inputs'!$AH:$AU,MATCH(1,('Policy Inputs'!$AF:$AF=$D70)*('Policy Inputs'!$AE:$AE=$C70),0),MATCH($T70,'Policy Inputs'!$AH$4:$AU$4,0)) -> 0 | W70: =IF(V70="Unit",$B$6,IF(V70="GFA",$B$7/100,0)) -> 0 | X70: =U70*W70 -> 0 | Y70: =IF($B$4="Wakatipu",S70,IF($B$4="Wanaka",X70,"ERROR")) -> ERROR | Z70: Community Facilities | AB70: =INDEX('Policy Inputs'!$P:$AC,MATCH(1,('Policy Inputs'!$N:$N=$D70&" "&AB$25)*('Policy Inputs'!$M:$M=$C70),0),MATCH($O70,'Policy Inputs'!$P$4:$AC$4,0)) ->  | AC70: =INDEX('Policy Inputs'!$P:$AC,MATCH(1,('Policy Inputs'!$N:$N=$D70&" "&AC$25)*('Policy Inputs'!$M:$M=$C70),0),MATCH($O70,'Policy Inputs'!$P$4:$AC$4,0)) ->  | AD70: =INDEX('Policy Inputs'!$P:$AC,MATCH(1,('Policy Inputs'!$N:$N=$D70&" "&AD$25)*('Policy Inputs'!$M:$M=$C70),0),MATCH($O70,'Policy Inputs'!$P$4:$AC$4,0)) ->  | AE70: =SUMPRODUCT(TRANSPOSE($B$11:$B$13),AB70:AD70) ->  | AF70: 0
A71: Reserve Land Contribution: | B71: 0 | C71: 0 | D71: 0 | E71: 0 | F71: ERROR | G71: 0 | I71: =B61*B62*B63 ->  | O71: Reserve LandDwelling Equivalents per 100m² GFA for Wakatipu | P71: =INDEX('Policy Inputs'!$P:$AC,MATCH(1,('Policy Inputs'!$N:$N=$D71)*('Policy Inputs'!$M:$M=$C71),0),MATCH($O71,'Policy Inputs'!$P$4:$AC$4,0)) -> 0 | Q71: =INDEX('Policy Inputs'!$AH:$AU,MATCH(1,('Policy Inputs'!$AF:$AF=$D71)*('Policy Inputs'!$AE:$AE=$C71),0),MATCH($O71,'Policy Inputs'!$AH$4:$AU$4,0)) -> 0 | R71: 0 | S71: 0 | T71: Reserve LandDwelling Equivalents per 100m² GFA for Wanaka | U71: =INDEX('Policy Inputs'!$P:$AC,MATCH(1,('Policy Inputs'!$N:$N=$D71)*('Policy Inputs'!$M:$M=$C71),0),MATCH($T71,'Policy Inputs'!$P$4:$AC$4,0)) -> 0 | V71: =INDEX('Policy Inputs'!$AH:$AU,MATCH(1,('Policy Inputs'!$AF:$AF=$D71)*('Policy Inputs'!$AE:$AE=$C71),0),MATCH($T71,'Policy Inputs'!$AH$4:$AU$4,0)) -> 0 | W71: =IF(V71="Unit",$B$6,IF(V71="GFA",$B$7/100,0)) -> 0 | X71: =U71*W71 -> 0 | Y71: =IF($B$4="Wakatipu",S71,IF($B$4="Wanaka",X71,"ERROR")) -> ERROR | AB71: =INDEX('Policy Inputs'!$P:$AC,MATCH(1,('Policy Inputs'!$N:$N=$D71&" "&AB$25)*('Policy Inputs'!$M:$M=$C71),0),MATCH($O71,'Policy Inputs'!$P$4:$AC$4,0)) ->  | AC71: =INDEX('Policy Inputs'!$P:$AC,MATCH(1,('Policy Inputs'!$N:$N=$D71&" "&AC$25)*('Policy Inputs'!$M:$M=$C71),0),MATCH($O71,'Policy Inputs'!$P$4:$AC$4,0)) ->  | AD71: =INDEX('Policy Inputs'!$P:$AC,MATCH(1,('Policy Inputs'!$N:$N=$D71&" "&AD$25)*('Policy Inputs'!$M:$M=$C71),0),MATCH($O71,'Policy Inputs'!$P$4:$AC$4,0)) ->  | AE71: =SUMPRODUCT(TRANSPOSE($B$11:$B$13),AB71:AD71) ->  | AF71: 0
A72: Premier Sportsfield Reserve Land: | B72: 0 | C72: 0 | D72: 0 | E72: 0 | F72: 0 | G72: 0 | H72: 0 | I72: =INDEX('Policy Inputs'!$D:$K,MATCH(1,('Policy Inputs'!$A:$A=$E72)*('Policy Inputs'!$B:$B=$B$3),0),MATCH($Z72,'Policy Inputs'!$D$4:$K$4,0)) -> 0 | J72: 0 | K72: 0 | L72: 0 | M72: 0 | O72: Reserve Land - premier sportsfieldDwelling Equivalents per 100m² GFA | P72: =INDEX('Policy Inputs'!$P:$AC,MATCH(1,('Policy Inputs'!$N:$N=$D72)*('Policy Inputs'!$M:$M=$C72),0),MATCH($O72,'Policy Inputs'!$P$4:$AC$4,0)) -> 0 | Q72: =INDEX('Policy Inputs'!$AH:$AU,MATCH(1,('Policy Inputs'!$AF:$AF=$D72)*('Policy Inputs'!$AE:$AE=$C72),0),MATCH($O72,'Policy Inputs'!$AH$4:$AU$4,0)) -> 0 | R72: 0 | S72: 0 | Y72: =S72 -> 0 | Z72: Premier Sportsfields - Reserve Land | AB72: =INDEX('Policy Inputs'!$P:$AC,MATCH(1,('Policy Inputs'!$N:$N=$D72&" "&AB$25)*('Policy Inputs'!$M:$M=$C72),0),MATCH($O72,'Policy Inputs'!$P$4:$AC$4,0)) ->  | AC72: =INDEX('Policy Inputs'!$P:$AC,MATCH(1,('Policy Inputs'!$N:$N=$D72&" "&AC$25)*('Policy Inputs'!$M:$M=$C72),0),MATCH($O72,'Policy Inputs'!$P$4:$AC$4,0)) ->  | AD72: =INDEX('Policy Inputs'!$P:$AC,MATCH(1,('Policy Inputs'!$N:$N=$D72&" "&AD$25)*('Policy Inputs'!$M:$M=$C72),0),MATCH($O72,'Policy Inputs'!$P$4:$AC$4,0)) ->  | AE72: =SUMPRODUCT(TRANSPOSE($B$11:$B$13),AB72:AD72) ->  | AF72: 0
A73: Roading Contribution: | B73: 0 | C73: 0 | D73: 0 | E73: 0 | F73: ERROR | G73: 0 | I73: =INDEX('Policy Inputs'!$D:$K,MATCH(1,('Policy Inputs'!$A:$A=$E73)*('Policy Inputs'!$B:$B=$B$3),0),MATCH($Z73,'Policy Inputs'!$D$4:$K$4,0)) -> 0 | O73: RoadingDwelling Equivalents per 100m² GFA for Wakatipu | P73: =INDEX('Policy Inputs'!$P:$AC,MATCH(1,('Policy Inputs'!$N:$N=$D73)*('Policy Inputs'!$M:$M=$C73),0),MATCH($O73,'Policy Inputs'!$P$4:$AC$4,0)) -> 0 | Q73: =INDEX('Policy Inputs'!$AH:$AU,MATCH(1,('Policy Inputs'!$AF:$AF=$D73)*('Policy Inputs'!$AE:$AE=$C73),0),MATCH($O73,'Policy Inputs'!$AH$4:$AU$4,0)) -> 0 | R73: 0 | S73: 0 | T73: RoadingDwelling Equivalents per 100m² GFA for Wanaka | U73: =INDEX('Policy Inputs'!$P:$AC,MATCH(1,('Policy Inputs'!$N:$N=$D73)*('Policy Inputs'!$M:$M=$C73),0),MATCH($T73,'Policy Inputs'!$P$4:$AC$4,0)) -> 0 | V73: =INDEX('Policy Inputs'!$AH:$AU,MATCH(1,('Policy Inputs'!$AF:$AF=$D73)*('Policy Inputs'!$AE:$AE=$C73),0),MATCH($T73,'Policy Inputs'!$AH$4:$AU$4,0)) -> 0 | W73: =IF(V73="Unit",$B$6,IF(V73="GFA",$B$7/100,0)) -> 0 | X73: =U73*W73 -> 0 | Y73: =IF($B$4="Wakatipu",S73,IF($B$4="Wanaka",X73,"ERROR")) -> ERROR | Z73: Transportation | AB73: =INDEX('Policy Inputs'!$P:$AC,MATCH(1,('Policy Inputs'!$N:$N=$D73&" "&AB$25)*('Policy Inputs'!$M:$M=$C73),0),MATCH($O73,'Policy Inputs'!$P$4:$AC$4,0)) ->  | AC73: =INDEX('Policy Inputs'!$P:$AC,MATCH(1,('Policy Inputs'!$N:$N=$D73&" "&AC$25)*('Policy Inputs'!$M:$M=$C73),0),MATCH($O73,'Policy Inputs'!$P$4:$AC$4,0)) ->  | AD73: =INDEX('Policy Inputs'!$P:$AC,MATCH(1,('Policy Inputs'!$N:$N=$D73&" "&AD$25)*('Policy Inputs'!$M:$M=$C73),0),MATCH($O73,'Policy Inputs'!$P$4:$AC$4,0)) ->  | AE73: =SUMPRODUCT(TRANSPOSE($B$11:$B$13),AB73:AD73) ->  | AF73: 0
A74: Roading - EAR Contribution: | B74: 0 | C74: 0 | D74: 0 | E74: 0 | F74: 0 | G74: 0 | H74: 0 | I74: =INDEX('Policy Inputs'!$D:$K,MATCH(1,('Policy Inputs'!$A:$A=$E74)*('Policy Inputs'!$B:$B=$B$3),0),MATCH($Z74,'Policy Inputs'!$D$4:$K$4,0)) -> 0 | J74: 0 | K74: 0 | L74: 0 | M74: 0 | O74: Roading - EARDwelling Equivalents per 100m² GFA for Wakatipu | P74: =INDEX('Policy Inputs'!$P:$AC,MATCH(1,('Policy Inputs'!$N:$N=$D74)*('Policy Inputs'!$M:$M=$C74),0),MATCH($O74,'Policy Inputs'!$P$4:$AC$4,0)) -> 0 | Q74: =INDEX('Policy Inputs'!$AH:$AU,MATCH(1,('Policy Inputs'!$AF:$AF=$D74)*('Policy Inputs'!$AE:$AE=$C74),0),MATCH($O74,'Policy Inputs'!$AH$4:$AU$4,0)) -> 0 | R74: 0 | S74: 0 | Y74: =S74 -> 0 | Z74: Transportation - EAR | AB74: =INDEX('Policy Inputs'!$P:$AC,MATCH(1,('Policy Inputs'!$N:$N=$D74&" "&AB$25)*('Policy Inputs'!$M:$M=$C74),0),MATCH($O74,'Policy Inputs'!$P$4:$AC$4,0)) ->  | AC74: =INDEX('Policy Inputs'!$P:$AC,MATCH(1,('Policy Inputs'!$N:$N=$D74&" "&AC$25)*('Policy Inputs'!$M:$M=$C74),0),MATCH($O74,'Policy Inputs'!$P$4:$AC$4,0)) ->  | AD74: =INDEX('Policy Inputs'!$P:$AC,MATCH(1,('Policy Inputs'!$N:$N=$D74&" "&AD$25)*('Policy Inputs'!$M:$M=$C74),0),MATCH($O74,'Policy Inputs'!$P$4:$AC$4,0)) ->  | AE74: =SUMPRODUCT(TRANSPOSE($B$11:$B$13),AB74:AD74) ->  | AF74: 0
A75: Total Contribution: | J75: =SUM(J66:J74) ->  | K75: =SUM(K66:K74) ->  | L75: =SUM(L66:L74) ->  | M75: =SUM(M66:M74) -> 
B77: Assessment 1 | E77: Assessment 2 | H77: Assessment 3
A78: =A25 -> Activity | B78: =F25 -> Demand Post Development (DE) | C78: =I25 -> Development Contribution per DE ($) | D78: =J25 -> Development Contribution (Excl GST) | E78: =F45 -> Demand Post Development (DE) | F78: =I45 -> Development Contribution per DE ($) | G78: =J45 -> Development Contribution (Excl GST) | H78: =F65 -> Demand Post Development (DE) | I78: =I65 -> Development Contribution per DE ($) | J78: Development Contribution (Excl GST)
A79: Water Supply Contribution: | C79: Standard Contributions | F79: Standard Contributions | I79: Standard Contributions
A80: Wastewater Contribution: | B80: 0 | C80: 0 | D80: 0 | E80: 0 | F80: 0 | G80: 0 | H80: 0 | I80: 0 | J80: 0
A81: Stormwater Contribution: | B81: 0 | C81: 0 | D81: 0 | E81: 0 | F81: 0 | G81: 0 | H81: 0 | I81: 0 | J81: 0
A82: Reserve Improvements Contribution: | B82: ERROR | C82: 0 | E82: ERROR | F82: 0 | H82: ERROR | I82: 0
A83: Community Infrastructure Contribution: | B83: ERROR | C83: 0 | E83: ERROR | F83: 0 | H83: ERROR | I83: 0
A84: Reserve Land Contribution: | B84: ERROR | E84: ERROR | H84: ERROR
A85: Premier Sportsfield Reserve Land: | B85: 0 | C85: 0 | D85: 0 | E85: 0 | F85: 0 | G85: 0 | H85: 0 | I85: 0 | J85: 0
A86: Roading Contribution: | B86: ERROR | C86: 0 | E86: ERROR | F86: 0 | H86: ERROR | I86: 0
A87: Roading - EAR Contribution: | B87: 0 | C87: 0 | D87: 0 | E87: 0 | F87: 0 | G87: 0 | H87: 0 | I87: 0 | J87: 0
A88: Total Contribution: | C88: =SUM(C79:C87) ->  | D88: =J35 ->  | F88: =SUM(F79:F87) ->  | G88: =J55 ->  | I88: =SUM(I79:I87) ->  | J88: =J75 -> 
A90: Land Uses | C90: GST in land Vlaue | F90: Brownfields payable?
A91: Residential | C91: ='Validation Lists'!AA4 -> 2007/08 | D91: 0 | F91: 2007/08 | G91: 1
A92: Visitor accommodation | C92: ='Validation Lists'!AA5 -> 2008/09 | D92: 0 | F92: 2008/09 | G92: 1
A93: Retirement Units (2b/r or more) | C93: ='Validation Lists'!AA6 -> 2009/10 | D93: 0 | F93: 2009/10 | G93: 1
A94: Retirement Units (1 b/r) | C94: ='Validation Lists'!AA7 -> 2010/11 | D94: 0 | F94: 2010/11 | G94: 1
A95: Multi-unit Residential | C95: ='Validation Lists'!AA8 -> 2011/12 | D95: 0 | F95: 2011/12 | G95: 1
A96: Residential flat | C96: ='Validation Lists'!AA9 -> 2012/13 | D96: 0 | F96: 2012/13 | G96: 1
A97: MU-Visitor accommodation | C97: ='Validation Lists'!AA10 -> 2013/14 | D97: 0 | F97: 2013/14 | G97: 1
A98: MU-Commercial | C98: ='Validation Lists'!AA11 -> 2014/15 | D98: 0 | F98: 2014/15 | G98: 1
A99: Industrial - dry | C99: ='Validation Lists'!AA12 -> 2015/16 | D99: 0.15 | F99: 2015/16 | G99: 0
A100: Industrial - wet | C100: ='Validation Lists'!AA13 -> 2016/17 | D100: 0.15 | F100: 2016/17 | G100: 0
A101: General Commercial | C101: ='Validation Lists'!AA14 -> 2017/18 | D101: 0.15 | F101: 2017/18 | G101: 0
A102: Large format Retail | C102: ='Validation Lists'!AA15 -> 2018/19 Original | D102: 0.15 | F102: 2018/19 Original | G102: 0
A103: Restaurant/bar | C103: ='Validation Lists'!AA16 -> 2018/19 Revised | D103: 0.15 | F103: 2018/19 Revised | G103: 0
A104: Child-care centres | C104: ='Validation Lists'!AA17 -> 2021/22 | D104: 0 | F104: 2021/22 | G104: 1
A105: Retirement units | C105: ='Validation Lists'!AA18 -> 2022/23 | D105: 0 | F105: 2022/23 | G105: 1
A106: Accommodation | C106: ='Validation Lists'!AA19 -> 2024/25 | D106: 0 | F106: 2024/25 | G106: 1
A107: Commercial
A108: Childcare Centre
A109: Industrial
A110: Country Dwelling
A111: Country Dwelling Flat
A112: Other
A113: CBD Accommodation
A114: CBD Commercial
A115: Mixed Use Accommodation
A116: Mixed Use Commercial
A117: Primary Industry
A118: Accommodation - Rural
A119: Multi-unit Residential (MUA)
A120: Residential Flat (MUA)

Sheet GFA Estimator (hidden)
A1: GFA estimator for non-residential
A2: If the GFA of a non-residential subdivsision is unknown
A3: Bin | B3: # of lots
A4: 0 to 500m2
A5: 501 to 2000m2
A6: > 2000m2
A7: Total Lots | B7: =SUM(B4:B6) -> 0
A9: GFA | B9: =E17 -> 0 | C9: m2
A10: ISA | B10: =F17 -> 0 | C10: m2
A13: Bin | B13: GFA | C13: ISA | D13: # of lots | E13: Total GFA | F13: Total ISA
A14: 0 to 500m2 | B14: 50 | C14: 62.5 | D14: =B4 -> 0 | E14: =$D14*B14 -> 0 | F14: 0
A15: 501 to 2000m2 | B15: 100 | C15: 125 | D15: =B5 -> 0 | E15: 0 | F15: 0
A16: > 2000m2 | B16: 400 | C16: 500 | D16: =B6 -> 0 | E16: 0 | F16: 0
E17: =SUM(E14:E16) -> 0 | F17: =SUM(F14:F16) -> 0

Sheet Working sheet (hidden)
A1: Free text tab for development information

Sheet Input
A1: 2024 Development Contributions Policy Estimate - Inputs
B7: Consent No. | D7: =IF(Consent_Number="","Please enter consent number","") -> Please enter consent number
B9: Assessment Reference
B11: Site Address
B13: Legal Description
B15: DCN Date | D15: If DCN is left blank then it is assumed as todays date
B17: Consent Formally Received Date | C17: 2025-10-01 | D17: =IF(Consent_Lodged_Date="","Please enter date",IF(Consent_Lodged_Date<'Policy Inputs'!$CO$12,"Date cannot be before 2/04/2007","")) -> 
B19: Consent Granted Date | C19: 2025-10-02 | D19: =IF(Consent_Granted_Date="","Please enter date",IF(Consent_Granted_Date<'Policy Inputs'!$CN$14,"Date cannot be before 1/07/2007","")) -> 
B21: Policy Year | C21: =Policy_Year_Calculation&C23 -> 2024/25
B23: 2018/19 Original or Revised policy | D23: =IF(Policy_Year_Input="2018/19","Please enter original or revised policy",IF(LEFT(Policy_Year_Input,7)="2018/19","",IF(C23="","","Please clear"))) -> 
B25: Policy for Credits | D25: =IF(Credits_PolicyYear_Input="","Please enter policy year","") -> Please enter policy year
B27: Location | D27: =IF(Location="","Please enter location","") -> Please enter location
B29: Reserve Land | D29: =IF(AND(RL_Areas_Input="",VALUE(LEFT(Policy_Year_Input,4))>=2021),"Please enter area for reserve land contribution","") -> Please enter area for reserve land contribution
B31: GST Rate | C31: 0.15 | D31: =IF(GST="","Please enter GST rate","") -> 
B33: Greenfields or Brownfields | D33: =IFERROR(IF(OR(Consent_Number="",VALUE(LEFT(Policy_Year_Input,4))>=2021),"",IF(VLOOKUP(Policy_Year_Input,ResLand_Input,4,0)="input","",IF(Field_Type="","Please enter Greenfields or Brownfields",""))),"") -> 
B35: Urban or Township | D35: =IFERROR(IF(OR(Consent_Number="",VALUE(LEFT(Policy_Year_Input,4))>=2021),"",IF(VLOOKUP(Policy_Year_Input,ResLand_Input,4,0)="input","",IF(Field_Type="Brownfields","Entry not required",IF(AND(Field_Type="Greenfields",Urban_Town="")=TRUE,"Please enter Urban or Township",IF(OR(Urban_Town="Urban",Urban_Town="Township")=TRUE,"",""))))),"") -> 
B37: Number of Land Uses | C37: 1 | D37: =IF(Number_Land_Uses="","Enter No. of Land Uses","") -> 
A39: Pre Development/Subdivision Demand (Credits) | C39: 1st Land Use: | E39: 2nd Land Use: | G39: 3rd Land Use: | I39: 4th Land Use:
B41: Existing Land Use:
B42: =IF(OR(Land_Use_Category_1="mixed use accommodation",Land_Use_Category_2="mixed use accommodation",Land_Use_Category_3="mixed use accommodation",Land_Use_Category_4="mixed use accommodation")=TRUE,"Please ensure credits are treated correctly for a conversion to Mixed Use Accommodation.","") ->  | C42: =IF(C41="","Please enter existing land use","") -> Please enter existing land use | E42: =IF(E41="","Please enter existing land use","") -> Please enter existing land use | G42: =IF(G41="","Please enter existing land use","") -> Please enter existing land use | I42: =IF(I41="","Please enter existing land use","") -> Please enter existing land use
B43: Existing No. of Units:
C44: =IF(AND(IFERROR(VLOOKUP(Land_Use_Category_1_Credits,Credits_LUD_Type,2,FALSE),"")="Unit",No_Res_Units_LU1_Credits=""),"Please enter number of units","") ->  | E44: =IF(AND(IFERROR(VLOOKUP(Land_Use_Category_2_Credits,Credits_LUD_Type,2,FALSE),"")="Unit",No_Res_Units_LU2_Credits=""),"Please enter number of units","") ->  | G44: =IF(AND(IFERROR(VLOOKUP(Land_Use_Category_3_Credits,Credits_LUD_Type,2,FALSE),"")="Unit",No_Res_Units_LU3_Credits=""),"Please enter number of units","") ->  | I44: =IF(AND(IFERROR(VLOOKUP(Land_Use_Category_4_Credits,Credits_LUD_Type,2,FALSE),"")="Unit",No_Res_Units_LU4_Credits=""),"Please enter number of units","") -> 
B45: No. of 1 Bedroom Units:
B46: No. of 2 Bedroom Units:
B47: No. of 3+ Bedroom Units:
E48: =IF(VALUE(LEFT(Credits_PolicyYear_Input,4))>=2024,"Only enter if multi-use residential or residential flat land use","Leave blank") ->  | G48: =IF(VALUE(LEFT(Credits_PolicyYear_Input,4))>=2024,"Only enter if multi-use residential or residential flat land use","Leave blank") ->  | I48: =IF(VALUE(LEFT(Credits_PolicyYear_Input,4))>=2024,"Only enter if multi-use residential or residential flat land use","Leave blank") -> 
B50: Existing GFA:
B51: Existing Site Area:
C52: =IF(Land_Use_Category_1_Credits="Primary Industry","Please enter site area in square meters",IF(IFERROR(VLOOKUP(Land_Use_Category_1_Credits,Credits_LUD_Type,2,FALSE),"")="Unit","",IF(SUM(LU1_GFA_Credits,LU1_SiteArea_Credits)=0,"Please enter GFA (if known) or site area",""))) -> Please enter GFA (if known) or site area | E52: =IF(Land_Use_Category_2_Credits="Primary Industry","Please enter site area in square meters",IF(IFERROR(VLOOKUP(Land_Use_Category_2_Credits,Credits_LUD_Type,2,FALSE),"")="Unit","",IF(SUM(LU2_GFA_Credits,LU2_SiteArea_Credits)=0,"Please enter GFA (if known) or site area",""))) -> Please enter GFA (if known) or site area | G52: =IF(Land_Use_Category_3_Credits="Primary Industry","Please enter site area in square meters",IF(IFERROR(VLOOKUP(Land_Use_Category_3_Credits,Credits_LUD_Type,2,FALSE),"")="Unit","",IF(SUM(LU3_GFA_Credits,LU3_SiteArea_Credits)=0,"Please enter GFA (if known) or site area",""))) -> Please enter GFA (if known) or site area | I52: =IF(Land_Use_Category_4_Credits="Primary Industry","Please enter site area in square meters",IF(IFERROR(VLOOKUP(Land_Use_Category_4_Credits,Credits_LUD_Type,2,FALSE),"")="Unit","",IF(SUM(LU4_GFA_Credits,LU4_SiteArea_Credits)=0,"Please enter GFA (if known) or site area",""))) -> Please enter GFA (if known) or site area
B54: Existing Impervious Surface Area:
C55: =IF(IFERROR(VLOOKUP(Land_Use_Category_1_Credits,Credits_LUD_Type,5,FALSE),"")="Unit","",IF(SUM(LU1_SiteArea_Credits,LU1_ISA_Credits)=0,"Please enter ISA (if known) or site area","")) -> Please enter ISA (if known) or site area | E55: =IF(IFERROR(VLOOKUP(Land_Use_Category_2_Credits,Credits_LUD_Type,5,FALSE),"")="Unit","",IF(SUM(LU2_SiteArea_Credits,LU2_ISA_Credits)=0,"Please enter ISA (if known) or site area","")) -> Please enter ISA (if known) or site area | G55: =IF(IFERROR(VLOOKUP(Land_Use_Category_3_Credits,Credits_LUD_Type,5,FALSE),"")="Unit","",IF(SUM(LU3_SiteArea_Credits,LU3_ISA_Credits)=0,"Please enter ISA (if known) or site area","")) -> Please enter ISA (if known) or site area | I55: =IF(IFERROR(VLOOKUP(Land_Use_Category_4_Credits,Credits_LUD_Type,5,FALSE),"")="Unit","",IF(SUM(LU4_SiteArea_Credits,LU4_ISA_Credits)=0,"Please enter ISA (if known) or site area","")) -> Please enter ISA (if known) or site area
B56: Water Supply Credits Override:
B57: Wastewater Credits Override:
B58: Stormwater Credits Override:
B59: Reserve Improvements Credits Override:
B60: Community Facilities Credits Override:
B61: Reserve Land Credits Override:
B62: Premier Sportsfield Reserve Land Credits Override:
B63: Roading Credits Override:
B64: Eastern Access Road Credits Override:
A66: Post Development/Subdivision Demand | C66: 1st Land Use: | E66: 2nd Land Use: | G66: 3rd Land Use: | I66: 4th Land Use:
B67: The figures entered here should only be the new components added by a development or subdivision. For example: * if an existing residential lot is being subdivided into two lots, the 'Proposed Number of Residential Units' would just be 1 (i.e. the additional lot), * if a Residential Flat is being added to an existing dwelling, the dwelling can be excluded from these calculations.
B68: Subdivision or Development:
C69: =IF(AND(VALUE(LEFT(Policy_Year_Input,4))<2021,Subdivision_Development=""),"Enter Subdivision or Development","") -> 
B71: Proposed Land Use: | D71: =IF('Policy Inputs'!$AL$231=1,"ensure only one land use is used for Mixed Use Accommodation","") -> 
C72: =IF(C71="","Please enter land use",IF(C71="mixed use accommodation","A Reserve Land contribution is not required for a conversion to Mixed Use Accommodation","")) -> Please enter land use | E72: =IF(E71="","Please enter Land Use",IF(E71="mixed use accommodation","A Reserve Land contribution is not required for a conversion to Mixed Use Accommodation","")) -> Please enter Land Use | G72: =IF(G71="","Please enter Land Use",IF(G71="mixed use accommodation","A Reserve Land contribution is not required for a conversion to Mixed Use Accommodation","")) -> Please enter Land Use | I72: =IF(I71="","Please enter Land Use",IF(I71="mixed use accommodation","A Reserve Land contribution is not required for a conversion to Mixed Use Accommodation","")) -> Please enter Land Use
B74: Proposed No. of Units:
C75: Only enter if land use is residential or retirement units
B77: No. of 1 Bedroom Units:
B78: No. of 2 Bedroom Units:
B79: No. of 3+ Bedroom Units:
C80: =IF(VALUE(LEFT(Policy_Year_Input,4))>=2024,"Only enter if multi-use residential or residential flat land use","Leave blank") -> Only enter if multi-use residential or residential flat land use | E80: =IF(VALUE(LEFT(Policy_Year_Input,4))>=2024,"Only enter if multi-use residential or residential flat land use","Leave blank") -> Only enter if multi-use residential or residential flat land use | G80: =IF(VALUE(LEFT(Policy_Year_Input,4))>=2024,"Only enter if multi-use residential or residential flat land use","Leave blank") -> Only enter if multi-use residential or residential flat land use | I80: =IF(VALUE(LEFT(Policy_Year_Input,4))>=2024,"Only enter if multi-use residential or residential flat land use","Leave blank") -> Only enter if multi-use residential or residential flat land use
B82: Is a Water Supply Contribution Required? | C82: Required
B83: Is a Wastewater Contribution Required? | C83: Required
B84: Is a Stormwater Contribution Required? | C84: Required
B85: Is a Reserve Improvements Contribution Required? | C85: Required
B86: Is a Community Facilities Contribution Required? | C86: Required
B87: Is a Reserve Land Contribution Required? | C87: Required
B88: Is a Premier Sportsfield Reserve Land Contribution Required? | C88: Required
B89: Is a Roading Contribution Required? | C89: Required
B90: Is an Eastern Access Road Contribution Required?
C91: =IF(Location="Queenstown","Entry may be required - see EAR_Map",IF(Location="Frankton Flats","Entry may be required - see EAR_Map","Entry not required")) -> Entry not required | E91: =IF(OR(E82="",E83="",E84="",E85="",E86="",E87="",E89="",E90="")=TRUE,"Are any of these contributions required?","") -> Are any of these contributions required? | G91: =IF(OR(G82="",G83="",G84="",G85="",G86="",G87="",G89="",G90="")=TRUE,"Are any of these contributions required?","") -> Are any of these contributions required? | I91: =IF(OR(I82="",I83="",I84="",I85="",I86="",I87="",I89="",I90="")=TRUE,"Are any of these contributions required?","") -> Are any of these contributions required?
B93: Proposed GFA:
C94: Only enter if land use is residential flat, multi-unit residential, or retirement units | E94: =IF(IFERROR(VLOOKUP(Land_Use_Category_2,LUD_Type,2,FALSE),"")="Unit","",IF(SUM(E93)=0,"Please enter GFA (if known)","")) -> Please enter GFA (if known) | G94: =IF(IFERROR(VLOOKUP(Land_Use_Category_3,LUD_Type,2,FALSE),"")="Unit","",IF(SUM(G93)=0,"Please enter GFA (if known)","")) -> Please enter GFA (if known) | I94: =IF(IFERROR(VLOOKUP(Land_Use_Category_4,LUD_Type,2,FALSE),"")="Unit","",IF(SUM(I93)=0,"Please enter GFA (if known)","")) -> Please enter GFA (if known)
B96: Proposed Site Area:
C97: =IF(Land_Use_Category_1="Primary Industry","Please enter site area in square meters",IF(IFERROR(VLOOKUP(Land_Use_Category_1,LUD_Type,2,FALSE),"")="Unit","",IF(SUM(LU1_SiteArea)=0,"Please enter site area if GFA is unknown",""))) -> Please enter site area if GFA is unknown | E97: =IF(Land_Use_Category_2="Primary Industry","Please enter site area in square meters",IF(IFERROR(VLOOKUP(Land_Use_Category_2,LUD_Type,2,FALSE),"")="Unit","",IF(SUM(LU2_SiteArea)=0,"Please enter site area if GFA is unknown",""))) -> Please enter site area if GFA is unknown | G97: =IF(Land_Use_Category_3="Primary Industry","Please enter site area in square meters",IF(IFERROR(VLOOKUP(Land_Use_Category_3,LUD_Type,2,FALSE),"")="Unit","",IF(SUM(LU3_SiteArea)=0,"Please enter site area if GFA is unknown",""))) -> Please enter site area if GFA is unknown | I97: =IF(Land_Use_Category_4="Primary Industry","Please enter site area in square meters",IF(IFERROR(VLOOKUP(Land_Use_Category_4,LUD_Type,2,FALSE),"")="Unit","",IF(SUM(LU4_SiteArea)=0,"Please enter site area if GFA is unknown",""))) -> Please enter site area if GFA is unknown
B99: Assumed GFA (75% of Estimated GFA) | C99: =IF(LU1_GFA<>"","",IF(Land_Use_Category_1="Primary Industry","",IF(LU1_SiteArea="","",IF(ISERROR(Headworks!G151)=TRUE,"",Headworks!G151)))) ->  | E99: =IF(LU2_GFA<>"","",IF(Land_Use_Category_2="Primary Industry","",IF(LU2_SiteArea="","",IF(ISERROR(Headworks!G182)=TRUE,"",Headworks!G182)))) ->  | G99: =IF(LU3_GFA<>"","",IF(Land_Use_Category_3="Primary Industry","",IF(LU3_SiteArea="","",IF(ISERROR(Headworks!G213)=TRUE,"",Headworks!G213)))) ->  | I99: =IF(LU4_GFA<>"","",IF(Land_Use_Category_4="Primary Industry","",IF(LU4_SiteArea="","",IF(ISERROR(Headworks!G244)=TRUE,"",Headworks!G244)))) -> 
B101: Proposed Impervious Surface Area:
C102: =IF(IFERROR(VLOOKUP(Land_Use_Category_1,LUD_Type,5,FALSE),"")="Unit","",IF(SUM(LU1_ISA)=0,"Please enter ISA (if known)","")) -> Please enter ISA (if known) | E102: =IF(IFERROR(VLOOKUP(Land_Use_Category_2,LUD_Type,5,FALSE),"")="Unit","",IF(SUM(LU2_ISA)=0,"Please enter ISA (if known)","")) -> Please enter ISA (if known) | G102: =IF(IFERROR(VLOOKUP(Land_Use_Category_3,LUD_Type,5,FALSE),"")="Unit","",IF(SUM(LU3_ISA)=0,"Please enter ISA (if known)","")) -> Please enter ISA (if known) | I102: =IF(IFERROR(VLOOKUP(Land_Use_Category_4,LUD_Type,5,FALSE),"")="Unit","",IF(SUM(LU4_ISA)=0,"Please enter ISA (if known)","")) -> Please enter ISA (if known)
B104: Total Land Value:
C105: =IF(Policy_Year_Input="0/1","",IF(VLOOKUP(Policy_Year_Input,ResLand_Input,4,0)="set","",IF(C104="","Please enter land value",""))) ->  | E105: =IF(Policy_Year_Input="0/1","",IF(VLOOKUP(Policy_Year_Input,ResLand_Input,4,0)="set","",IF(E104="","Please enter land value",""))) ->  | G105: =IF(Policy_Year_Input="0/1","",IF(VLOOKUP(Policy_Year_Input,ResLand_Input,4,0)="set","",IF(G104="","Please enter land value",""))) ->  | I105: =IF(Policy_Year_Input="0/1","",IF(VLOOKUP(Policy_Year_Input,ResLand_Input,4,0)="set","",IF(I104="","Please enter land value",""))) -> 
B106: Total Buildable/Site Area: | C106: 1
C107: =IF(OR(Field_Type="Brownfields",VALUE(LEFT(Policy_Year_Input,4))>=2021),"",IF(C106="","Please enter buildable or site area","")) ->  | E107: =IF(OR(Field_Type="Brownfields",VALUE(LEFT(Policy_Year_Input,4))>=2021),"",IF(E106="","Please enter buildable or site area","")) ->  | G107: =IF(OR(Field_Type="Brownfields",VALUE(LEFT(Policy_Year_Input,4))>=2021),"",IF(G106="","Please enter buildable or site area","")) ->  | I107: =IF(OR(Field_Type="Brownfields",VALUE(LEFT(Policy_Year_Input,4))>=2021),"",IF(I106="","Please enter buildable or site area","")) -> 
B109: GST in Land Value: | C109: 0.15
B110: Once all details are entered in, go to the Summary page for the results. | E110: =IF(Policy_Year_Input="0/1","",IF(VLOOKUP(Policy_Year_Input,ResLand_Input,4,0)="set","",IF(E109="","Please enter GST % in land value",""))) ->  | G110: =IF(Policy_Year_Input="0/1","",IF(VLOOKUP(Policy_Year_Input,ResLand_Input,4,0)="set","",IF(G109="","Please enter GST % in land value",""))) ->  | I110: =IF(Policy_Year_Input="0/1","",IF(VLOOKUP(Policy_Year_Input,ResLand_Input,4,0)="set","",IF(I109="","Please enter GST % in land value",""))) -> 

Sheet Summary
B1: Development Contributions - Summary
B3: For Consent No. | C3: =Consent_Number -> 0
L4: =IF(ROUND(SUM(L6:M15),0)=0,"OK","check") -> OK
B5: Activity | C5: Demand Post Development (DE) | D5: Credits for Existing Demand (DE) | E5: Additional Demand (DE) | F5: Development Contribution per DE ($) | G5: Development Contribution (Excl GST) | H5: GST | I5: Development Contribution (Incl GST)
B6: Water Supply | C6: =+Headworks!B272 -> 0 | D6: =+Headworks!B271 -> 0 | E6: =Headworks!B273 -> 0 | F6: =+Headworks!B274 -> 0 | G6: =+Headworks!B275 -> 0 | H6: =+Headworks!C275 -> 0 | I6: =+Headworks!D275 -> 0 | K6: =IFERROR(IF(E6<=0,0,E6*F6),IF(AND(C6="Not Required",E6="",F6=""),0)) -> 0 | L6: =IF(ROUND(K6-G6,0)=0,0,1) -> 0 | M6: =IF(E6=0,0,IF(C6-D6=E6,0,1)) -> 0
B7: Wastewater | C7: =+Headworks!B279 -> 0 | D7: =+Headworks!B278 -> 0 | E7: =Headworks!B280 -> 0 | F7: =+Headworks!B281 -> 0 | G7: =+Headworks!B282 -> 0 | H7: =+Headworks!C282 -> 0 | I7: =+Headworks!D282 -> 0 | K7: 0 | L7: =IF(ROUND(K7-G7,0)=0,0,1) -> 0 | M7: =IF(E7=0,0,IF(C7-D7=E7,0,1)) -> 0
B8: Stormwater | C8: =+Headworks!B286 -> 0 | D8: =+Headworks!B285 -> 0 | E8: =Headworks!B287 -> 0 | F8: =+Headworks!B288 -> 0 | G8: =+Headworks!B289 -> 0 | H8: =+Headworks!C289 -> 0 | I8: =+Headworks!D289 -> 0 | K8: 0 | L8: 0 | M8: 0
B9: Reserve Improvements | C9: =+Reserves!B364 -> 0 | D9: =+Reserves!B363 -> 0 | E9: =+Reserves!B365 -> 0 | F9: =+Reserves!B366 -> 0 | G9: =+Reserves!B367 -> 0 | H9: =+Reserves!C367 -> 0 | I9: =+Reserves!D367 -> 0 | K9: 0 | L9: 0 | M9: 0
B10: =IFERROR(IF(VALUE(LEFT(Policy_Year_Input,4))>=2021,"Community Infrastructure","Community Facilities"),"Community Infrastructure") -> Community Infrastructure | C10: =+Reserves!B371 -> 0 | D10: =+Reserves!B370 -> 0 | E10: =+Reserves!B372 -> 0 | F10: =+Reserves!B373 -> 0 | G10: =+Reserves!B374 -> 0 | H10: =+Reserves!C374 -> 0 | I10: =+Reserves!D374 -> 0 | K10: 0 | L10: 0 | M10: 0
B11: Reserve Land | C11: =+Reserves!B378 -> 0 | D11: =+Reserves!B377 -> 0 | E11: =+Reserves!B379 -> 0 | F11: =IF(E11=0,0,G11/E11) -> 0 | G11: =+Reserves!B382 -> 0 | H11: =+Reserves!C382 -> 0 | I11: =G11+H11 -> 0 | K11: 0 | L11: 0 | M11: 0
B12: Premier Sportsground Reserve Land | C12: =Reserves!B386 -> 0 | D12: =Reserves!B385 -> 0 | E12: =Reserves!B387 -> 0 | F12: =Reserves!B388 -> 0 | G12: =Reserves!B389 -> 0 | H12: =Reserves!C389 -> 0 | I12: =Reserves!D389 -> 0 | K12: 0 | L12: 0 | M12: 0
B13: Transportation | C13: =+Roading!B105 -> 0 | D13: =+Roading!B104 -> 0 | E13: =Roading!B106 -> 0 | F13: =+Roading!B107 -> 0 | G13: =Roading!B108 -> 0 | H13: =+Roading!C108 -> 0 | I13: =+Roading!D108 -> 0 | K13: =IFERROR(IF(E13<=0,0,E13*F13),IF(AND(C13="Not Required",E13="",F13=""),0)) -> 0 | L13: 0 | M13: 0
B14: Transportation - EAR | C14: =+EAR!B105 -> 0 | D14: =+EAR!B104 -> 0 | E14: =EAR!B106 -> 0 | F14: =+EAR!B107 -> 0 | G14: =EAR!B108 -> 0 | H14: =+EAR!C108 -> 0 | I14: =+EAR!D108 -> 0 | K14: 0 | L14: 0 | M14: 0
B15: Total Development Contribution | G15: =SUM(G6:G14) -> 0 | H15: =SUM(H6:H14) -> 0 | I15: =SUM(I6:I14) -> 0

Sheet Populate DCN (hidden)
A1: Field | B1: Value | C1: * Make sure Document to Populate is Closed first
C2: If the single land use template is chosen, 91 fields will populate and 24 will not
A4: consent_ref | B4: =IF(Consent_Number="","",Consent_Number) ->  | D4: =IF(ws_Ttl_ex>0,Summary!B6,"") ->  | E4: =IF(ww_Ttl_ex>0,Summary!B7,"") ->  | F4: =IF(sw_Ttl_ex>0,Summary!B8,"") ->  | G4: =IF(resImp_Ttl_ex>0,Summary!B9,"") ->  | H4: =IF(comFac_Ttl_ex>0,Summary!B10,"") ->  | I4: =IF(resLand_Ttl_ex>0,Summary!B11,"") ->  | J4: =IF(RLPS_Ttl_ex>0,Summary!B12,"") ->  | K4: =IF(trprt_Ttl_ex>0,Summary!B13,"") ->  | L4: =IF(EAR_Ttl_ex>0,Summary!B14,"") -> 
A5: assess_ref | B5: =IF(Assessment_Ref="","",Assessment_Ref) -> 
A6: site_address | B6: =IF(Site_Address="","",Site_Address) -> 
A7: legal_desc | B7: =IF(Legal_Desc="","",Legal_Desc) -> 
A8: DCN_date | B8: =IF(DCN_Date="",TODAY(),DCN_Date) -> 2024-10-11
A10: PY_Pre | B10: =IF(Credits_PolicyYear_Input="","","Assessed under "&Credits_PolicyYear_Input&" Policy") -> 
A11: PY_Post | B11: =IF(Policy_Year_Input="0/1","","Assessed under "&Policy_Year_Input&" Policy") -> Assessed under 2024/25 Policy
A13: LU1_pre_category | B13: =IF(Land_Use_Category_1_Credits="","",Land_Use_Category_1_Credits) -> 
A14: LU1_pre_units | B14: =IF(AND(No_Res_Units_LU1_Credits="",SUM(Cr_LU1_1BedUnits,Cr_LU1_2BedUnits,Cr_LU1_3BedUnits)=0),"",MAX(No_Res_Units_LU1_Credits,SUM(Cr_LU1_1BedUnits,Cr_LU1_2BedUnits,Cr_LU1_3BedUnits))) -> 
A15: LU1_pre_GFA | B15: =IF(LU1_GFA_Credits="","",LU1_GFA_Credits) -> 
A16: LU1_pre_ISA | B16: =IF(LU1_ISA_Credits="","",LU1_ISA_Credits) -> 
A17: LU1_post_category | B17: =IF(Land_Use_Category_1="","",Land_Use_Category_1) -> 
A18: LU1_post_units | B18: =IF(AND(No_Res_Units_LU1="",SUM(LU1_1BedUnits,LU1_2BedUnits,LU1_3BedUnits)=0),"",MAX(No_Res_Units_LU1,SUM(LU1_1BedUnits,LU1_2BedUnits,LU1_3BedUnits))) -> 
A19: LU1_post_GFA | B19: =IF(LU1_GFA="","",LU1_GFA) -> 
A20: LU1_post_ISA | B20: =IF(LU1_ISA="","",LU1_ISA) -> 
A22: LU2_pre_category | B22: =IF(Land_Use_Category_2_Credits="","",Land_Use_Category_2_Credits) -> 
A23: LU2_pre_units | B23: =IF(AND(No_Res_Units_LU2_Credits="",SUM(Cr_LU2_1BedUnits,Cr_LU2_2BedUnits,Cr_LU2_3BedUnits)=0),"",MAX(No_Res_Units_LU2_Credits,SUM(Cr_LU2_1BedUnits,Cr_LU2_2BedUnits,Cr_LU2_3BedUnits))) -> 
A24: LU2_pre_GFA | B24: =IF(LU2_GFA_Credits="","",LU2_GFA_Credits) -> 
A25: LU2_pre_ISA | B25: =IF(LU2_ISA_Credits="","",LU2_ISA_Credits) -> 
A26: LU2_post_category | B26: =IF(Land_Use_Category_2="","",Land_Use_Category_2) -> 
A27: LU2_post_units | B27: =IF(AND(No_Res_Units_LU2="",SUM(LU2_1BedUnits,LU2_2BedUnits,LU2_3BedUnits)=0),"",MAX(No_Res_Units_LU2,SUM(LU2_1BedUnits,LU2_2BedUnits,LU2_3BedUnits))) -> 
A28: LU2_post_GFA | B28: =IF(LU2_GFA="","",LU2_GFA) -> 
A29: LU2_post_ISA | B29: =IF(LU2_ISA="","",LU2_ISA) -> 
A31: LU3_pre_category | B31: =IF(Land_Use_Category_3_Credits="","",Land_Use_Category_3_Credits) -> 
A32: LU3_pre_units | B32: =IF(AND(No_Res_Units_LU3_Credits="",SUM(Cr_LU3_1BedUnits,Cr_LU3_2BedUnits,Cr_LU3_3BedUnits)=0),"",MAX(No_Res_Units_LU3_Credits,SUM(Cr_LU3_1BedUnits,Cr_LU3_2BedUnits,Cr_LU3_3BedUnits))) -> 
A33: LU3_pre_GFA | B33: =IF(LU3_GFA_Credits="","",LU3_GFA_Credits) -> 
A34: LU3_pre_ISA | B34: =IF(LU3_ISA_Credits="","",LU3_ISA_Credits) -> 
A35: LU3_post_category | B35: =IF(Land_Use_Category_3="","",Land_Use_Category_3) -> 
A36: LU3_post_units | B36: =IF(AND(No_Res_Units_LU3="",SUM(LU3_1BedUnits,LU3_2BedUnits,LU3_3BedUnits)=0),"",MAX(No_Res_Units_LU3,SUM(LU3_1BedUnits,LU3_2BedUnits,LU3_3BedUnits))) -> 
A37: LU3_post_GFA | B37: =IF(LU3_GFA="","",LU3_GFA) -> 
A38: LU3_post_ISA | B38: =IF(LU3_ISA="","",LU3_ISA) -> 
A40: LU4_pre_category | B40: =IF(Land_Use_Category_4_Credits="","",Land_Use_Category_4_Credits) -> 
A41: LU4_pre_units | B41: =IF(AND(No_Res_Units_LU4_Credits="",SUM(Cr_LU4_1BedUnits,Cr_LU4_2BedUnits,Cr_LU4_3BedUnits)=0),"",MAX(No_Res_Units_LU4_Credits,SUM(Cr_LU4_1BedUnits,Cr_LU4_2BedUnits,Cr_LU4_3BedUnits))) -> 
A42: LU4_pre_GFA | B42: =IF(LU4_GFA_Credits="","",LU4_GFA_Credits) -> 
A43: LU4_pre_ISA | B43: =IF(LU4_ISA_Credits="","",LU4_ISA_Credits) -> 
A44: LU4_post_category | B44: =IF(Land_Use_Category_4="","",Land_Use_Category_4) -> 
A45: LU4_post_units | B45: =IF(AND(No_Res_Units_LU4="",SUM(LU4_1BedUnits,LU4_2BedUnits,LU4_3BedUnits)=0),"",MAX(No_Res_Units_LU4,SUM(LU4_1BedUnits,LU4_2BedUnits,LU4_3BedUnits))) -> 
A46: LU4_post_GFA | B46: =IF(LU4_GFA="","",LU4_GFA) -> 
A47: LU4_post_ISA | B47: =IF(LU4_ISA="","",LU4_ISA) -> 
A49: WS_CA | B49: =IF(WS_DE=0,"",Location) ->  | C49: ="CA_"&SUBSTITUTE(A49,"_CA","") -> CA_WS
A50: WW_CA | B50: =IF(WW_DE=0,"",Location) ->  | C50: ="CA_"&SUBSTITUTE(A50,"_CA","") -> CA_WW
A51: SW_CA | B51: =IF(SW_DE=0,"",Location) ->  | C51: CA_SW
A52: RI_CA | B52: =IF(RI_DE=0,"",Reserves!$D$4) ->  | C52: CA_RI
A53: CI_CA | B53: =IF(CF_DE=0,"",Reserves!$D$4) ->  | C53: CA_CI
A54: RL_CA | B54: =IF(RL_DE=0,"",IF('Calculation Links'!N85="Input",IF(RL_Areas_Input="","",RL_Areas_Input),B53)) ->  | C54: CA_RL
A55: RLPS_CA | B55: =IF(RLPS_DE=0,"",Reserves!$D$4) ->  | C55: CA_RLPS
A56: Tr_CA | B56: =IF(R_DE=0,"",Roading!$D$4) ->  | C56: CA_Tr
A57: EAR_CA | B57: =IF(OR(EAR_DE=0,EAR_DE_Cont=0),"","EAR Contributing Area") ->  | C57: CA_EAR
A59: WS_DE | B59: =WS_DE -> 0
A60: WW_DE | B60: =WW_DE -> 0
A61: SW_DE | B61: =SW_DE -> 0
A62: RI_DE | B62: =RI_DE -> 0
A63: CI_DE | B63: =CF_DE -> 0
A64: RL_DE | B64: =RL_DE -> 0
A65: RLPS_DE | B65: =RLPS_DE -> 0
A66: Tr_DE | B66: =R_DE -> 0
A67: EAR_DE | B67: =IF(EAR_DE_Cont=0,0,EAR_DE) -> 0
A69: WS_Cr | B69: =IF(WS_DE=0,0,WS_CR) -> 0
A70: WW_Cr | B70: =IF(WW_DE=0,0,WW_CR) -> 0
A71: SW_Cr | B71: =IF(SW_DE=0,0,SW_CR) -> 0
A72: RI_Cr | B72: =IF(RI_DE=0,0,RI_CR) -> 0
A73: CI_Cr | B73: =IF(CF_DE=0,0,CF_CR) -> 0
A74: RL_Cr | B74: =IF(RL_DE=0,0,RL_CR) -> 0
A75: RLPS_Cr | B75: =IF(RLPS_DE=0,0,RLPS_CR) -> 0
A76: Tr_Cr | B76: =IF(R_DE=0,0,R_CR) -> 0
A77: EAR_Cr | B77: =IF(B67=0,0,EAR_CR) -> 0
A79: WS_Ad | B79: =MAX(0,B59-B69) -> 0
A80: WW_Ad | B80: =MAX(0,B60-B70) -> 0
A81: SW_Ad | B81: 0
A82: RI_Ad | B82: 0
A83: CI_Ad | B83: 0
A84: RL_Ad | B84: 0
A85: RLPS_Ad | B85: 0
A86: Tr_Ad | B86: 0
A87: EAR_Ad | B87: 0
A89: ws_DE_Cont | B89: =IF(WS_DE=0,0,ws_DE_Cont) -> 0
A90: ww_DE_Cont | B90: =IF(WW_DE=0,0,ww_DE_Cont) -> 0
A91: sw_DE_Cont | B91: =IF(SW_DE=0,0,sw_DE_Cont) -> 0
A92: RI_DE_Cont | B92: =IF(RI_DE=0,0,resImp_DC_Cont) -> 0
A93: CI_DE_Cont | B93: =IF(CF_DE=0,0,comFac_DE_Cont) -> 0
A94: RL_DE_Cont | B94: =IF(RL_DE=0,0,res_Land_DE_Cont) -> 0
A95: RLPS_DE_Cont | B95: =IF(RLPS_DE=0,0,RLPS_DE_Cont) -> 0
A96: Tr_DE_Cont | B96: =IF(R_DE=0,0,trprt_DE_Cont) -> 0
A97: EAR_DE_Cont | B97: =IF(B67=0,0,EAR_DE_Cont) -> 0
A98: Total_DE_Cont | B98: =SUM(B89:B97) -> 0
A100: ws_Ttl_ex | B100: =ws_Ttl_ex -> 0
A101: ww_Ttl_ex | B101: =ww_Ttl_ex -> 0
A102: sw_Ttl_ex | B102: =sw_Ttl_ex -> 0
A103: RI_Ttl_ex | B103: =resImp_Ttl_ex -> 0
A104: CI_Ttl_ex | B104: =comFac_Ttl_ex -> 0
A105: RL_Ttl_ex | B105: =resLand_Ttl_ex -> 0
A106: RLPS_Ttl_ex | B106: =RLPS_Ttl_ex -> 0
A107: Tr_Ttl_ex | B107: =trprt_Ttl_ex -> 0
A108: EAR_Ttl_ex | B108: =EAR_Ttl_ex -> 0
A109: Total_Ttl_ex | B109: =SUM(B100:B108) -> 0
A111: ws_Ttl_inc | B111: =Summary!I6 -> 0
A112: ww_Ttl_inc | B112: =Summary!I7 -> 0
A113: sw_Ttl_inc | B113: =Summary!I8 -> 0
A114: RI_Ttl_inc | B114: =Summary!I9 -> 0
A115: CI_Ttl_inc | B115: =Summary!I10 -> 0
A116: RL_Ttl_inc | B116: =Summary!I11 -> 0
A117: RLPS_Ttl_inc | B117: =Summary!I12 -> 0
A118: Tr_Ttl_inc | B118: =Summary!I13 -> 0
A119: EAR_Ttl_inc | B119: =Summary!I14 -> 0
A121: TOTAL_CONT | B121: =Summary!I15 -> 0
A123: ws_Ttl_incl | B123: =B111 -> 0
A124: ww_Ttl_incl | B124: =B112 -> 0
A125: sw_Ttl_incl | B125: 0
A126: RI_Ttl_incl | B126: 0
A127: CI_Ttl_incl | B127: 0
A128: RL_Ttl_incl | B128: 0
A129: RLPS_Ttl_incl | B129: 0
A130: Tr_Ttl_incl | B130: 0
A131: EAR_Ttl_incl | B131: 0
A133: TOTAL_CONTR | B133: =B121 -> 0

Sheet Headworks (hidden)
A1: Pre Development/Subdivision Demand (Credits) - WS, WW & SW
A2: For Consent No. | B2: =IF(Consent_Number="","",Consent_Number) ->  | F2: No. of Land Uses | G2: =Number_Land_Uses -> 1
F3: GFA Estimation Method | G3: =VLOOKUP(Credits_PolicyYear_Input,estimation_method,2,0) -> 
A4: Location: | B4: =IF(Location="","",Location) ->  | D4: =IF($B$4="","",VLOOKUP(B4,Ward,10,0)) -> 
G5: Standard | K5: (1 b/r) | L5: (2 b/r) | M5: (3+ b/r)
A6: =IF($G$2="1","Land Use Category:","1st Land Use Category:") -> 1st Land Use Category: | B6: =IF(Land_Use_Category_1_Credits="","",Land_Use_Category_1_Credits) ->  | F6: No. of Units | G6: =IF(No_Res_Units_LU1_Credits="",1,No_Res_Units_LU1_Credits) -> 1 | K6: =IF(Cr_LU1_1BedUnits="",0,Cr_LU1_1BedUnits) -> 0 | L6: =IF(Cr_LU1_2BedUnits="",0,Cr_LU1_2BedUnits) -> 0 | M6: =IF(Cr_LU1_3BedUnits="",0,Cr_LU1_3BedUnits) -> 0
A7: 2nd Land Use Category: | B7: =IF(Land_Use_Category_2_Credits="","",Land_Use_Category_2_Credits) ->  | F7: No. of Units | G7: =IF(No_Res_Units_LU2_Credits="",1,No_Res_Units_LU2_Credits) -> 1 | K7: =IF(Cr_LU2_1BedUnits="",0,Cr_LU2_1BedUnits) -> 0 | L7: =IF(Cr_LU2_2BedUnits="",0,Cr_LU2_2BedUnits) -> 0 | M7: =IF(Cr_LU2_3BedUnits="",0,Cr_LU2_3BedUnits) -> 0
A8: 3rd Land Use Category: | B8: =IF(Land_Use_Category_3_Credits="","",Land_Use_Category_3_Credits) ->  | F8: No. of Units | G8: =IF(No_Res_Units_LU3_Credits="",1,No_Res_Units_LU3_Credits) -> 1 | K8: =IF(Cr_LU3_1BedUnits="",0,Cr_LU3_1BedUnits) -> 0 | L8: =IF(Cr_LU3_2BedUnits="",0,Cr_LU3_2BedUnits) -> 0 | M8: =IF(Cr_LU3_3BedUnits="",0,Cr_LU3_3BedUnits) -> 0
A9: 4th Land Use Category: | B9: =IF(Land_Use_Category_4_Credits="","",Land_Use_Category_4_Credits) ->  | F9: No. of Units | G9: =IF(No_Res_Units_LU4_Credits="",1,No_Res_Units_LU4_Credits) -> 1 | K9: =IF(Cr_LU4_1BedUnits="",0,Cr_LU4_1BedUnits) -> 0 | L9: =IF(Cr_LU4_2BedUnits="",0,Cr_LU4_2BedUnits) -> 0 | M9: =IF(Cr_LU4_3BedUnits="",0,Cr_LU4_3BedUnits) -> 0
A11: =IF($G$2="1","","1a ")&"Water Supply Contribution - "&$B$6&" Land Use" -> 1a Water Supply Contribution - Land Use | F11: SITE INFORMATION
A12: Differential Type | B12: =VLOOKUP($B$6,Credits_LUD_Type,2,FALSE) ->  | F12: Gross Floor Area | G12: =IF(LU1_GFA_Credits="","",LU1_GFA_Credits) ->  | H12: m² (known)
A13: Gross Floor Area (GFA): | B13: =IF(B12="Unit",0,IF(G12="",IF(AND($G$3="New",G18="Non-Residential"),G19,G16),G12)) ->  | C13: m² | F13: Site Area | G13: =IF(LU1_SiteArea_Credits="","",LU1_SiteArea_Credits) -> 
A14: Dwelling Equivalents per 100m² GFA: | B14: =VLOOKUP($B$6,Credits_Land_Use_Differentials,2,FALSE) ->  | F14: Building Coverage | G14: =VLOOKUP($B$6,Credits_GFA_Estimates,2,FALSE) -> 
A15: GFA DE's: | B15: =IF(AND(G12="",$G$3="New",G18="Residential"),1,B13/100*B14) ->  | F15: No. of Floors | G15: =VLOOKUP($B$6,Credits_GFA_Estimates,3,FALSE) -> 
A16: No. Units: | B16: =$G$6 -> 1 | F16: Gross Floor Area | G16: =IF(G14=0,Credits_Res_GFA,G13*G14*G15) ->  | H16: m² (estimated)
A17: Dwelling Equivalents per Unit: | B17: =B14 ->  | K17: (1 b/r) | L17: (2 b/r) | M17: (3+ b/r)
A18: Unit DE's: | B18: =IF(B12="Both (max)",SUMPRODUCT(K19:M19,K18:M18),IF(B16="",1,B16*B17)) ->  | F18: Land Use Type | G18: =VLOOKUP(B6,categorisation,2,0) ->  | H18: Residential/Non-Residential | J18: LU 1 WS differential | K18: =VLOOKUP($B$6&" "&K17,Credits_Land_Use_Differentials,2,FALSE) ->  | L18: =VLOOKUP($B$6&" "&L17,Credits_Land_Use_Differentials,2,FALSE) ->  | M18: =VLOOKUP($B$6&" "&M17,Credits_Land_Use_Differentials,2,FALSE) -> 
A19: Network Factor Dwelling Equivalents: | B19: =IF(AND(B13=0,B16=0),0,VLOOKUP($B$6,Credits_Land_Use_Differentials,3,FALSE)) ->  | F19: Non-Res GFA Estimate | G19: =IF(G13<=500,50, IF(G13<=2000,100,400)) -> 400 | H19: m² (estimated) | J19: LU 1 units | K19: =INDEX(K$6:K$9,LEFT($A11,1)) -> 0 | L19: =INDEX(L$6:L$9,LEFT($A11,1)) -> 0 | M19: =INDEX(M$6:M$9,LEFT($A11,1)) -> 0
A20: Dwelling Equivalents: | B20: =IFERROR(IF(B6="",0,IF(LU1_WS_Credit_OR<>"",LU1_WS_Credit_OR,IF(B12="Both (max)",MAX(B15,B18)+B19,IF(B12="Unit",B18+B19,IF(G12="",B15*B16+B19,B15+B19))))),0) -> 0
A22: =IF($G$2="1","","1b ")&"Wastewater Contribution - "&$B$6&" Land Use" -> 1b Wastewater Contribution - Land Use
A23: Differential Type | B23: =VLOOKUP($B$6,Credits_LUD_Type,4,FALSE) -> 
A24: Gross Floor Area (GFA): | B24: =IF(B23="Unit",0,IF(G12="",IF(AND($G$3="New",G18="Non-Residential"),G19,G16),G12)) ->  | C24: m²
A25: Dwelling Equivalents per 100m² GFA: | B25: =VLOOKUP($B$6,Credits_Land_Use_Differentials,4,FALSE) -> 
A26: GFA DE's: | B26: =IF(AND(G12="",$G$3="New",G18="Residential"),1,B24/100*B25) -> 
A27: No. Units: | B27: =$G$6 -> 1
A28: Dwelling Equivalents per Unit: | B28: =B25 ->  | K28: (1 b/r) | L28: (2 b/r) | M28: (3+ b/r)
A29: Unit DE's: | B29: =IF(B23="Both (max)",SUMPRODUCT(K30:M30,K29:M29),IF(B27="",1,B27*B28)) ->  | J29: LU 1 WW differential | K29: =VLOOKUP($B$6&" "&K28,Credits_Land_Use_Differentials,4,FALSE) ->  | L29: =VLOOKUP($B$6&" "&L28,Credits_Land_Use_Differentials,4,FALSE) ->  | M29: =VLOOKUP($B$6&" "&M28,Credits_Land_Use_Differentials,4,FALSE) -> 
A30: Dwelling Equivalents: | B30: =IFERROR(IF(B6="",0,IF(B23="Both (max)",MAX(B26,B29),IF(B23="Unit",B29,IF(G12="",B26*B27,B26)))),0) -> 0 | J30: LU 1 units | K30: =INDEX(K$6:K$9,LEFT($A22,1)) -> 0 | L30: =INDEX(L$6:L$9,LEFT($A22,1)) -> 0 | M30: =INDEX(M$6:M$9,LEFT($A22,1)) -> 0
A32: =IF($G$2="1","","1c ")&"Stormwater Contribution - "&$B$6&" Land Use" -> 1c Stormwater Contribution - Land Use | F32: SITE INFORMATION
A33: Differential Type | B33: =VLOOKUP($B$6,Credits_LUD_Type,5,FALSE) ->  | F33: Impervious Surface Area | G33: =IF(LU1_ISA_Credits="","",LU1_ISA_Credits) ->  | H33: m² (known)
A34: Impervious Surface Area (ISA): | B34: =IF(G33="",IF(AND($G$3="New",G38="Non-Residential"),G39,G36),G33) ->  | C34: m² | F34: Site Area | G34: =IF(LU1_SiteArea_Credits="","",LU1_SiteArea_Credits) -> 
A35: Dwelling Equivalents per 100m² ISA: | B35: =VLOOKUP($B$6,Credits_Land_Use_Differentials,5,FALSE) ->  | F35: Building Coverage | G35: =VLOOKUP($B$6,Credits_Building_Coverages,2,FALSE) -> 
A36: ISA DE's: | B36: =IF(AND(G33="",$G$3="New",G38="Residential"),1,B34/100*B35) ->  | F36: Impervious Surface Area | G36: =IF(G34="",260,G34*G35) -> 260 | H36: m² (estimated)
A37: No. Units: | B37: =$G$6 -> 1
A38: Dwelling Equivalents per Unit: | B38: =B35 ->  | F38: Land Use Type | G38: =VLOOKUP(B6,categorisation,2,0) ->  | H38: Residential/Non-Residential
A39: Unit DE's: | B39: =IF(B37="",1,B37*B38) ->  | F39: Non-Res ISA Estimate | G39: =IF(G34<=500,62.5, IF(G34<=2000,125,500)) -> 500 | H39: m² (estimated)
A40: Dwelling Equivalents: | B40: =IF(B6="",0,IF(B33="Unit",B39,IF(G33="",B36*B37,B36))) -> 0
A42: ="2a Water Supply Contribution - "&$B$7&" Land Use" -> 2a Water Supply Contribution - Land Use | F42: SITE INFORMATION
A43: Differential Type | B43: =VLOOKUP($B$7,Credits_LUD_Type,2,FALSE) ->  | F43: Gross Floor Area | G43: =IF(LU2_GFA_Credits="","",LU2_GFA_Credits) ->  | H43: m² (known)
A44: Gross Floor Area (GFA): | B44: =IF(B43="Unit",0,IF(G43="",IF(AND($G$3="New",G49="Non-Residential"),G50,G47),G43)) ->  | C44: m² | F44: Site Area | G44: =IF(LU2_SiteArea_Credits="","",LU2_SiteArea_Credits) -> 
A45: Dwelling Equivalents per 100m² GFA: | B45: =VLOOKUP($B$7,Credits_Land_Use_Differentials,2,FALSE) ->  | F45: Building Coverage | G45: =VLOOKUP($B$7,Credits_GFA_Estimates,2,FALSE) -> 
A46: GFA DE's: | B46: =IF(AND(G43="",$G$3="New",G49="Residential"),1,B44/100*B45) ->  | F46: No. of Floors | G46: =VLOOKUP($B$7,Credits_GFA_Estimates,3,FALSE) -> 
A47: No. Units: | B47: =$G$7 -> 1 | F47: Gross Floor Area | G47: =IF(G45=0,Credits_Res_GFA,G44*G45*G46) ->  | H47: m² (estimated)
A48: Dwelling Equivalents per Unit: | B48: =B45 ->  | K48: (1 b/r) | L48: (2 b/r) | M48: (3+ b/r)
A49: Unit DE's: | B49: =IF(B43="Both (max)",SUMPRODUCT(K50:M50,K49:M49),IF(B47="",1,B47*B48)) ->  | F49: Land Use Type | G49: =VLOOKUP(B7,categorisation,2,0) ->  | H49: Residential/Non-Residential | J49: LU 2 WS differential | K49: =VLOOKUP($B$7&" "&K48,Credits_Land_Use_Differentials,2,FALSE) ->  | L49: =VLOOKUP($B$7&" "&L48,Credits_Land_Use_Differentials,2,FALSE) ->  | M49: =VLOOKUP($B$7&" "&M48,Credits_Land_Use_Differentials,2,FALSE) -> 
A50: Network Factor Dwelling Equivalents: | B50: =IF(AND(B44=0,B47=0),0,VLOOKUP($B$7,Credits_Land_Use_Differentials,3,FALSE)) ->  | F50: Non-Res GFA Estimate | G50: =IF(G44<=500,50, IF(G44<=2000,100,400)) -> 400 | H50: m² (estimated) | J50: LU 2 units | K50: =INDEX(K$6:K$9,LEFT($A42,1)) -> 0 | L50: =INDEX(L$6:L$9,LEFT($A42,1)) -> 0 | M50: =INDEX(M$6:M$9,LEFT($A42,1)) -> 0
A51: Dwelling Equivalents: | B51: =IFERROR(IF(B7="",0,IF(LU2_WS_Credit_OR<>"",LU2_WS_Credit_OR,IF(B43="Both (max)",MAX(B46,B49)+B50,IF(B43="Unit",B49+B50,IF(G43="",B46*B47+B50,B46+B50))))),0) -> 0
A53: ="2b Wastewater Contribution - "&$B$7&" Land Use" -> 2b Wastewater Contribution - Land Use
A54: Differential Type | B54: =VLOOKUP($B$7,Credits_LUD_Type,4,FALSE) -> 
A55: Gross Floor Area (GFA): | B55: =IF(B54="Unit",0,IF(G43="",IF(AND($G$3="New",G49="Non-Residential"),G50,G47),G43)) ->  | C55: m²
A56: Dwelling Equivalents per 100m² GFA: | B56: =VLOOKUP($B$7,Credits_Land_Use_Differentials,4,FALSE) -> 
A57: GFA DE's: | B57: =IF(AND(G43="",$G$3="New",G49="Residential"),1,B55/100*B56) -> 
A58: No. Units: | B58: =$G$7 -> 1
A59: Dwelling Equivalents per Unit: | B59: =B56 ->  | K59: (1 b/r) | L59: (2 b/r) | M59: (3+ b/r)
A60: Unit DE's: | B60: =IF(B54="Both (max)",SUMPRODUCT(K61:M61,K60:M60),IF(B58="",1,B58*B59)) ->  | J60: LU 2 WW differential | K60: =VLOOKUP($B$7&" "&K59,Credits_Land_Use_Differentials,4,FALSE) ->  | L60: =VLOOKUP($B$7&" "&L59,Credits_Land_Use_Differentials,4,FALSE) ->  | M60: =VLOOKUP($B$7&" "&M59,Credits_Land_Use_Differentials,4,FALSE) -> 
A61: Dwelling Equivalents: | B61: =IFERROR(IF(B7="",0,IF(B54="Both (max)",MAX(B57,B60),IF(B54="Unit",B60,IF(G43="",B57*B58,B57)))),0) -> 0 | J61: LU 2 units | K61: =INDEX(K$6:K$9,LEFT($A53,1)) -> 0 | L61: =INDEX(L$6:L$9,LEFT($A53,1)) -> 0 | M61: =INDEX(M$6:M$9,LEFT($A53,1)) -> 0
A63: ="2c Stormwater Contribution - "&$B$7&" Land Use" -> 2c Stormwater Contribution - Land Use | F63: SITE INFORMATION
A64: Differential Type | B64: =VLOOKUP($B$7,Credits_LUD_Type,5,FALSE) ->  | F64: Impervious Surface Area | G64: =IF(LU2_ISA_Credits="","",LU2_ISA_Credits) ->  | H64: m² (known)
A65: Impervious Surface Area (ISA): | B65: =IF(G64="",IF(AND($G$3="New",G69="Non=Residential"),G70,G67),G64) ->  | C65: m² | F65: Site Area | G65: =IF(LU2_SiteArea_Credits="","",LU2_SiteArea_Credits) -> 
A66: Dwelling Equivalents per 100m² ISA: | B66: =VLOOKUP($B$7,Credits_Land_Use_Differentials,5,FALSE) ->  | F66: Building Coverage | G66: =VLOOKUP($B$7,Credits_Building_Coverages,2,FALSE) -> 
A67: ISA DE's: | B67: =IF(AND(G64="",$G$3="New",G69="Residential"),1,B65/100*B66) ->  | F67: Impervious Surface Area | G67: =IF(G66=0,269,G65*G66) ->  | H67: m² (estimated)
A68: No. Units: | B68: =$G$7 -> 1
A69: Dwelling Equivalents per Unit: | B69: =B66 ->  | F69: Land Use Type | G69: =VLOOKUP(B7,categorisation,2,0) ->  | H69: Residential/Non-Residential
A70: Unit DE's: | B70: =IF(B68="",1,B68*B69) ->  | F70: Non-Res ISA Estimate | G70: =IF(G65<=500,62.5, IF(G65<=2000,125,500)) -> 500 | H70: m² (estimated)
A71: Dwelling Equivalents: | B71: =IF(B7="",0,IF(B64="Unit",B70,IF(G64="",B67*B68,B67))) -> 0
A73: ="3a Water Supply Contribution - "&$B$8&" Land Use" -> 3a Water Supply Contribution - Land Use | F73: SITE INFORMATION
A74: Differential Type | B74: =VLOOKUP($B$8,Credits_LUD_Type,2,FALSE) ->  | F74: Gross Floor Area | G74: =IF(LU3_GFA_Credits="","",LU3_GFA_Credits) ->  | H74: m² (known)
A75: Gross Floor Area (GFA): | B75: =IF(B74="Unit",0,IF(G74="",IF(AND($G$3="New",G80="Non-Residential"),G81,G78),G74)) ->  | C75: m² | F75: Site Area | G75: =IF(LU3_SiteArea_Credits="","",LU3_SiteArea_Credits) -> 
A76: Dwelling Equivalents per 100m² GFA: | B76: =VLOOKUP($B$8,Credits_Land_Use_Differentials,2,FALSE) ->  | F76: Building Coverage | G76: =VLOOKUP($B$8,Credits_GFA_Estimates,2,FALSE) -> 
A77: GFA DE's: | B77: =IF(AND(G74="",$G$3="New",G80="Residential"),1,B75/100*B76) ->  | F77: No. of Floors | G77: =VLOOKUP($B$8,Credits_GFA_Estimates,3,FALSE) -> 
A78: No. Units: | B78: =$G$8 -> 1 | F78: Gross Floor Area | G78: =IF(G76=0,Credits_Res_GFA,G75*G76*G77) ->  | H78: m² (estimated)
A79: Dwelling Equivalents per Unit: | B79: =B76 ->  | K79: (1 b/r) | L79: (2 b/r) | M79: (3+ b/r)
A80: Unit DE's: | B80: =IF(B74="Both (max)",SUMPRODUCT(K81:M81,K80:M80),IF(B78="",1,B78*B79)) ->  | F80: Land Use Type | G80: =VLOOKUP(B8,categorisation,2,0) ->  | H80: Residential/Non-Residential | J80: LU 3 WS differential | K80: =VLOOKUP($B$8&" "&K79,Credits_Land_Use_Differentials,2,FALSE) ->  | L80: =VLOOKUP($B$8&" "&L79,Credits_Land_Use_Differentials,2,FALSE) ->  | M80: =VLOOKUP($B$8&" "&M79,Credits_Land_Use_Differentials,2,FALSE) -> 
A81: Network Factor Dwelling Equivalents: | B81: =IF(AND(B75=0,B78=0),0,VLOOKUP($B$8,Credits_Land_Use_Differentials,3,FALSE)) ->  | F81: Non-Res GFA Estimate | G81: =IF(G75<=500,50, IF(G75<=2000,100,400)) -> 400 | H81: m² (estimated) | J81: LU 3 units | K81: =INDEX(K$6:K$9,LEFT($A73,1)) -> 0 | L81: =INDEX(L$6:L$9,LEFT($A73,1)) -> 0 | M81: =INDEX(M$6:M$9,LEFT($A73,1)) -> 0
A82: Dwelling Equivalents: | B82: =IFERROR(IF(B8="",0,IF(LU3_WS_Credit_OR<>"",LU3_WS_Credit_OR,IF(B74="Both (max)",MAX(B77,B80)+B81,IF(B74="Unit",B80+B81,IF(G74="",B77*B78+B81,B77+B81))))),0) -> 0
A84: ="3b Wastewater Contribution - "&$B$8&" Land Use" -> 3b Wastewater Contribution - Land Use
A85: Differential Type | B85: =VLOOKUP($B$8,Credits_LUD_Type,4,FALSE) -> 
A86: Gross Floor Area (GFA): | B86: =IF(B85="Unit",0,IF(G74="",IF(AND($G$3="New",G80="Non-Residential"),G81,G78),G74)) ->  | C86: m²
A87: Dwelling Equivalents per 100m² GFA: | B87: =VLOOKUP($B$8,Credits_Land_Use_Differentials,4,FALSE) -> 
A88: GFA DE's: | B88: =IF(AND(G74="",$G$3="New",G80="Residential"),1,B86/100*B87) -> 
A89: No. Units: | B89: =$G$8 -> 1
A90: Dwelling Equivalents per Unit: | B90: =B87 ->  | K90: (1 b/r) | L90: (2 b/r) | M90: (3+ b/r)
A91: Unit DE's: | B91: =IF(B85="Both (max)",SUMPRODUCT(K92:M92,K91:M91),IF(B89="",1,B89*B90)) ->  | J91: LU 3 WW differential | K91: =VLOOKUP($B$8&" "&K90,Credits_Land_Use_Differentials,4,FALSE) ->  | L91: =VLOOKUP($B$8&" "&L90,Credits_Land_Use_Differentials,4,FALSE) ->  | M91: =VLOOKUP($B$8&" "&M90,Credits_Land_Use_Differentials,4,FALSE) -> 
A92: Dwelling Equivalents: | B92: =IFERROR(IF(B8="",0,IF(B85="Both (max)",MAX(B88,B91),IF(B85="Unit",B91,IF(G74="",B88*B89,B88)))),0) -> 0 | J92: LU 3 units | K92: =INDEX(K$6:K$9,LEFT($A84,1)) -> 0 | L92: =INDEX(L$6:L$9,LEFT($A84,1)) -> 0 | M92: =INDEX(M$6:M$9,LEFT($A84,1)) -> 0
A94: ="3c Stormwater Contribution - "&$B$8&" Land Use" -> 3c Stormwater Contribution - Land Use | F94: SITE INFORMATION
A95: Differential Type | B95: =VLOOKUP($B$8,Credits_LUD_Type,5,FALSE) ->  | F95: Impervious Surface Area | G95: =IF(LU3_ISA_Credits="","",LU3_ISA_Credits) ->  | H95: m² (known)
A96: Impervious Surface Area (ISA): | B96: =IF(G95="",IF(AND($G$3="New",G100="Non=Residential"),G101,G98),G95) ->  | C96: m² | F96: Site Area | G96: =IF(LU3_SiteArea_Credits="","",LU3_SiteArea_Credits) -> 
A97: Dwelling Equivalents per 100m² ISA: | B97: =VLOOKUP($B$8,Credits_Land_Use_Differentials,5,FALSE) ->  | F97: Building Coverage | G97: =VLOOKUP($B$8,Credits_Building_Coverages,2,FALSE) -> 
A98: ISA DE's: | B98: =IF(AND(G95="",$G$3="New",G100="Residential"),1,B96/100*B97) ->  | F98: Impervious Surface Area | G98: =IF(G97=0,269,G96*G97) ->  | H98: m² (estimated)
A99: No. Units: | B99: =$G$8 -> 1
A100: Dwelling Equivalents per Unit: | B100: =B97 ->  | F100: Land Use Type | G100: =VLOOKUP(B8,categorisation,2,0) ->  | H100: Residential/Non-Residential
A101: Unit DE's: | B101: =IF(B99="",1,B99*B100) ->  | F101: Non-Res ISA Estimate | G101: =IF(G96<=500,62.5, IF(G96<=2000,125,500)) -> 500 | H101: m² (estimated)
A102: Dwelling Equivalents: | B102: =IF(B8="",0,IF(B95="Unit",B101,IF(G95="",B98*B99,B98))) -> 0
A104: ="4a Water Supply Contribution - "&$B$9&" Land Use" -> 4a Water Supply Contribution - Land Use | F104: SITE INFORMATION
A105: Differential Type | B105: =VLOOKUP($B$9,Credits_LUD_Type,2,FALSE) ->  | F105: Gross Floor Area | G105: =IF(LU4_GFA_Credits="","",LU4_GFA_Credits) ->  | H105: m² (known)
A106: Gross Floor Area (GFA): | B106: =IF(B105="Unit",0,IF(G105="",IF(AND($G$3="New",G111="Non-Residential"),G112,G109),G105)) ->  | C106: m² | F106: Site Area | G106: =IF(LU4_SiteArea_Credits="","",LU4_SiteArea_Credits) -> 
A107: Dwelling Equivalents per 100m² GFA: | B107: =VLOOKUP($B$9,Credits_Land_Use_Differentials,2,FALSE) ->  | F107: Building Coverage | G107: =VLOOKUP($B$9,Credits_GFA_Estimates,2,FALSE) -> 
A108: GFA DE's: | B108: =IF(AND(G105="",$G$3="New",G111="Residential"),1,B106/100*B107) ->  | F108: No. of Floors | G108: =VLOOKUP($B$9,Credits_GFA_Estimates,3,FALSE) -> 
A109: No. Units: | B109: =$G$9 -> 1 | F109: Gross Floor Area | G109: =IF(G107=0,Credits_Res_GFA,G106*G107*G108) ->  | H109: m² (estimated)
A110: Dwelling Equivalents per Unit: | B110: =B107 ->  | K110: (1 b/r) | L110: (2 b/r) | M110: (3+ b/r)
A111: Unit DE's: | B111: =IF(B105="Both (max)",SUMPRODUCT(K112:M112,K111:M111),IF(B109="",1,B109*B110)) ->  | F111: Land Use Type | G111: =VLOOKUP(B9,categorisation,2,0) ->  | H111: Residential/Non-Residential | J111: LU 4 WS differential | K111: =VLOOKUP($B$9&" "&K110,Credits_Land_Use_Differentials,2,FALSE) ->  | L111: =VLOOKUP($B$9&" "&L110,Credits_Land_Use_Differentials,2,FALSE) ->  | M111: =VLOOKUP($B$9&" "&M110,Credits_Land_Use_Differentials,2,FALSE) -> 
A112: Network Factor Dwelling Equivalents: | B112: =IF(AND(B106=0,B109=0),0,VLOOKUP($B$9,Credits_Land_Use_Differentials,3,FALSE)) ->  | F112: Non-Res GFA Estimate | G112: =IF(G106<=500,50, IF(G106<=2000,100,400)) -> 400 | H112: m² (estimated) | J112: LU 4 units | K112: =INDEX(K$6:K$9,LEFT($A104,1)) -> 0 | L112: =INDEX(L$6:L$9,LEFT($A104,1)) -> 0 | M112: =INDEX(M$6:M$9,LEFT($A104,1)) -> 0
A113: Dwelling Equivalents: | B113: =IFERROR(IF(B9="",0,IF(LU4_WS_Credit_OR<>"",LU4_WS_Credit_OR,IF(B105="Both (max)",MAX(B108,B111)+B112,IF(B105="Unit",B111+B112,IF(G105="",B108*B109+B112,B108+B112))))),0) -> 0
A115: ="4b Wastewater Contribution - "&$B$9&" Land Use" -> 4b Wastewater Contribution - Land Use
A116: Differential Type | B116: =VLOOKUP($B$9,Credits_LUD_Type,4,FALSE) -> 
A117: Gross Floor Area (GFA): | B117: =IF(B116="Unit",0,IF(G105="",IF(AND($G$3="New",G111="Non-Residential"),G112,G109),G105)) ->  | C117: m²
A118: Dwelling Equivalents per 100m² GFA: | B118: =VLOOKUP($B$9,Credits_Land_Use_Differentials,4,FALSE) -> 
A119: GFA DE's: | B119: =IF(AND(G105="",$G$3="New",G111="Residential"),1,B117/100*B118) -> 
A120: No. Units: | B120: =$G$9 -> 1
A121: Dwelling Equivalents per Unit: | B121: =B118 ->  | K121: (1 b/r) | L121: (2 b/r) | M121: (3+ b/r)
A122: Unit DE's: | B122: =IF(B116="Both (max)",SUMPRODUCT(K123:M123,K122:M122),IF(B120="",1,B120*B121)) ->  | J122: LU 4 WW differential | K122: =VLOOKUP($B$9&" "&K121,Credits_Land_Use_Differentials,4,FALSE) ->  | L122: =VLOOKUP($B$9&" "&L121,Credits_Land_Use_Differentials,4,FALSE) ->  | M122: =VLOOKUP($B$9&" "&M121,Credits_Land_Use_Differentials,4,FALSE) -> 
A123: Dwelling Equivalents: | B123: =IFERROR(IF(B9="",0,IF(B116="Both (max)",MAX(B119,B122),IF(B116="Unit",B122,IF(G105="",B119*B120,B119)))),0) -> 0 | J123: LU 4 units | K123: =INDEX(K$6:K$9,LEFT($A115,1)) -> 0 | L123: =INDEX(L$6:L$9,LEFT($A115,1)) -> 0 | M123: =INDEX(M$6:M$9,LEFT($A115,1)) -> 0
A125: ="4c Stormwater Contribution - "&$B$9&" Land Use" -> 4c Stormwater Contribution - Land Use | F125: SITE INFORMATION
A126: Differential Type | B126: =VLOOKUP($B$9,Credits_LUD_Type,5,FALSE) ->  | F126: Impervious Surface Area | G126: =IF(LU4_ISA_Credits="","",LU4_ISA_Credits) ->  | H126: m² (known)
A127: Impervious Surface Area (ISA): | B127: =IF(G126="",IF(AND($G$3="New",G131="Non=Residential"),G132,G129),G126) ->  | C127: m² | F127: Site Area | G127: =IF(LU4_SiteArea_Credits="","",LU4_SiteArea_Credits) -> 
A128: Dwelling Equivalents per 100m² ISA: | B128: =VLOOKUP($B$9,Credits_Land_Use_Differentials,5,FALSE) ->  | F128: Building Coverage | G128: =VLOOKUP($B$9,Credits_Building_Coverages,2,FALSE) -> 
A129: ISA DE's: | B129: =IF(AND(G126="",$G$3="New",G131="Residential"),1,B127/100*B128) ->  | F129: Impervious Surface Area | G129: =IF(G128=0,269,G127*G128) ->  | H129: m² (estimated)
A130: No. Units: | B130: =$G$9 -> 1
A131: Dwelling Equivalents per Unit: | B131: =B128 ->  | F131: Land Use Type | G131: =VLOOKUP(B9,categorisation,2,0) ->  | H131: Residential/Non-Residential
A132: Unit DE's: | B132: =IF(B130="",1,B130*B131) ->  | F132: Non-Res ISA Estimate | G132: =IF(G127<=500,62.5, IF(G127<=2000,125,500)) -> 500 | H132: m² (estimated)
A133: Dwelling Equivalents: | B133: =IF(B9="",0,IF(B126="Unit",B132,IF(G126="",B129*B130,B129))) -> 0
A135: Post Development/Subdivision Demand - WS, WW & SW
A136: For Consent No. | B136: =B2 -> 
F137: GFA Estimation Method | G137: =VLOOKUP(Policy_Year_Input,estimation_method,2,0) -> New
A138: Location: | B138: =$B$4 -> 
K139: (1 b/r) | L139: (2 b/r) | M139: (3+ b/r)
A140: =IF(D135="1","Land Use Category:","1st Land Use Category:") -> 1st Land Use Category: | B140: =IF(Land_Use_Category_1="","",Land_Use_Category_1) ->  | F140: No. of Units | G140: =IF(No_Res_Units_LU1="",1,No_Res_Units_LU1) -> 1 | K140: =IF(LU1_1BedUnits="",0,LU1_1BedUnits) -> 0 | L140: =IF(LU1_2BedUnits="",0,LU1_2BedUnits) -> 0 | M140: =IF(LU1_3BedUnits="",0,LU1_3BedUnits) -> 0
A141: 2nd Land Use Category: | B141: =IF(Land_Use_Category_2="","",Land_Use_Category_2) ->  | F141: No. of Units | G141: =IF(No_Res_Units_LU2="",1,No_Res_Units_LU2) -> 1 | K141: =IF(LU2_1BedUnits="",0,LU2_1BedUnits) -> 0 | L141: =IF(LU2_2BedUnits="",0,LU2_2BedUnits) -> 0 | M141: =IF(LU2_3BedUnits="",0,LU2_3BedUnits) -> 0
A142: 3rd Land Use Category: | B142: =IF(Land_Use_Category_3="","",Land_Use_Category_3) ->  | F142: No. of Units | G142: =IF(No_Res_Units_LU3="",1,No_Res_Units_LU3) -> 1 | K142: =IF(LU3_1BedUnits="",0,LU3_1BedUnits) -> 0 | L142: =IF(LU3_2BedUnits="",0,LU3_2BedUnits) -> 0 | M142: =IF(LU3_3BedUnits="",0,LU3_3BedUnits) -> 0
A143: 4th Land Use Category: | B143: =IF(Land_Use_Category_4="","",Land_Use_Category_4) ->  | F143: No. of Units | G143: =IF(No_Res_Units_LU4="",1,No_Res_Units_LU4) -> 1 | K143: =IF(LU4_1BedUnits="",0,LU4_1BedUnits) -> 0 | L143: =IF(LU4_2BedUnits="",0,LU4_2BedUnits) -> 0 | M143: =IF(LU4_3BedUnits="",0,LU4_3BedUnits) -> 0
A145: =IF(G2="1","","1a ")&"Water Supply Contribution - "&$B$140&" Land Use" -> 1a Water Supply Contribution - Land Use | D145: =Required_LU1_WS -> Required | F145: SITE INFORMATION
A146: Differential Type | B146: =VLOOKUP($B$140,LUD_Type,2,FALSE) ->  | F146: Gross Floor Area | G146: =IF(LU1_GFA="","",LU1_GFA) ->  | H146: m² (known)
A147: Gross Floor Area (GFA): | B147: =IF(B146="Unit",0,IF(G146="",IF(AND($G$137="New",G153="Non-Residential"),G154,G151),G146)) ->  | C147: m² | F147: Site Area | G147: =IF(LU1_SiteArea="","",LU1_SiteArea) -> 
A148: Dwelling Equivalents per 100m² GFA: | B148: =VLOOKUP($B$140,Land_Use_Differentials,2,FALSE) ->  | F148: Building Coverage | G148: =VLOOKUP($B$140,GFA_Estimates,2,FALSE) -> 
A149: GFA DE's: | B149: =IF(AND(G146="",$G$137="New",G153="Residential"),1,B147/100*B148) ->  | F149: No. of Floors | G149: =VLOOKUP($B$140,GFA_Estimates,3,FALSE) -> 
A150: No. Units: | B150: =$G$140 -> 1 | F150: Gross Floor Area | G150: =IF(G148=0,Res_GFA,G147*G148*G149) ->  | H150: m² (estimated)
A151: Dwelling Equivalents per Unit: | B151: =B148 ->  | G151: =IF(G147>0,G150*0.75,G150) ->  | H151: 75% of m² (estimated) | K151: (1 b/r) | L151: (2 b/r) | M151: (3+ b/r)
A152: Unit DE's: | B152: =IF(B146="Both (max)",SUMPRODUCT(K153:M153,K152:M152),IF(B150="",1,B150*B151)) ->  | J152: LU 1 WS differential | K152: =VLOOKUP($B$140&" "&K151,Land_Use_Differentials,2,FALSE) ->  | L152: =VLOOKUP($B$140&" "&L151,Land_Use_Differentials,2,FALSE) ->  | M152: =VLOOKUP($B$140&" "&M151,Land_Use_Differentials,2,FALSE) -> 
A153: Network Factor Dwelling Equivalents: | B153: =VLOOKUP($B$140,Land_Use_Differentials,3,FALSE) ->  | F153: Land Use Type | G153: =VLOOKUP(B140,categorisation,2,0) ->  | H153: Residential/Non-Residential | J153: LU 1 units | K153: =INDEX(K$140:K$143,LEFT($A145,1)) -> 0 | L153: =INDEX(L$140:L$143,LEFT($A145,1)) -> 0 | M153: =INDEX(M$140:M$143,LEFT($A145,1)) -> 0
A154: Dwelling Equivalents: | B154: =IF(B140="",0,IF(B146="Both (max)",MAX(B152,B149)+B153,IF(B146="Unit",B152+B153,IF(G146="",B150*B149+B153,B149+B153)))) -> 0 | F154: Non-Res GFA Estimate | G154: =IF(G147<=500,50, IF(G147<=2000,100,400)) -> 400 | H154: m² (estimated)
A156: =IF(G2="1","","1b ")&"Wastewater Contribution - "&$B$140&" Land Use" -> 1b Wastewater Contribution - Land Use | D156: =Required_LU1_WW -> Required
A157: Differential Type | B157: =VLOOKUP($B$140,LUD_Type,4,FALSE) -> 
A158: Gross Floor Area (GFA): | B158: =IF(B157="Unit",0,IF(G146="",IF(AND($G$137="New",G153="Non-Residential"),G154,G151),G146)) ->  | C158: m²
A159: Dwelling Equivalents per 100m² GFA: | B159: =VLOOKUP($B$140,Land_Use_Differentials,4,FALSE) -> 
A160: GFA DE's: | B160: =IF(AND(G146="",$G$137="New",G153="Residential"),1,B158/100*B159) -> 
A161: No. Units: | B161: =B150 -> 1
A162: Dwelling Equivalents per Unit: | B162: =B159 ->  | K162: (1 b/r) | L162: (2 b/r) | M162: (3+ b/r)
A163: Unit DE's: | B163: =IF(B157="Both (max)",SUMPRODUCT(K164:M164,K163:M163),IF(B161="",1,B161*B162)) ->  | J163: LU 1 WW differential | K163: =VLOOKUP($B$140&" "&K162,Land_Use_Differentials,4,FALSE) ->  | L163: =VLOOKUP($B$140&" "&L162,Land_Use_Differentials,4,FALSE) ->  | M163: =VLOOKUP($B$140&" "&M162,Land_Use_Differentials,4,FALSE) -> 
A164: Dwelling Equivalents: | B164: =IF(B140="",0,IF(B157="Both (max)",MAX(B160,B163),IF(B157="Unit",B163,IF(G146="",B160*B161,B160)))) -> 0 | J164: LU 1 units | K164: =INDEX(K$140:K$143,LEFT($A156,1)) -> 0 | L164: =INDEX(L$140:L$143,LEFT($A156,1)) -> 0 | M164: =INDEX(M$140:M$143,LEFT($A156,1)) -> 0
A166: =IF(G2="1","","1c ")&"Stormwater Contribution - "&$B$140&" Land Use" -> 1c Stormwater Contribution - Land Use | D166: =Required_LU1_SW -> Required | F166: SITE INFORMATION
A167: Differential Type | B167: =VLOOKUP($B$140,LUD_Type,5,FALSE) ->  | F167: Impervious Surface Area | G167: =IF(LU1_ISA="","",LU1_ISA) ->  | H167: m² (known)
A168: Impermeable Surface Area (ISA): | B168: =IF(G167="",IF(AND($G$137="New",G173="Non-Residential"),G174,G171),G167) ->  | C168: m² | F168: Site Area | G168: =IF(LU1_SiteArea="","",LU1_SiteArea) -> 
A169: Dwelling Equivalents per 100m² ISA: | B169: =VLOOKUP($B$140,Land_Use_Differentials,5,FALSE) ->  | F169: Building Coverage | G169: =VLOOKUP($B$140,Building_Coverages,2,FALSE) -> 
A170: ISA DE's: | B170: =IF(AND(G167="",$G$137="New",G173="Residential"),1,B168/100*B169) ->  | F170: Impervious Surface Area | G170: =IF(G169=0,269,G168*G169) ->  | H170: m² (estimated)
A171: No. Units: | B171: =B150 -> 1 | G171: =IF(G168>0,G170*0.75,G170) ->  | H171: 75% of m² (estimated)
A172: Dwelling Equivalents per Unit: | B172: =B169 -> 
A173: Unit DE's: | B173: =IF(B171="",1,B171*B172) ->  | F173: Land Use Type | G173: =VLOOKUP(B140,categorisation,2,0) ->  | H173: Residential/Non-Residential
A174: Dwelling Equivalents: | B174: =IF(B140="",0,IF(B167="Unit",B173,IF(G167="",B170*B171,B170))) -> 0 | F174: Non-Res ISA Estimate | G174: =IF(G168<=500,62.5, IF(G168<=2000,125,500)) -> 500 | H174: m² (estimated)
A176: ="2a Water Supply Contribution - "&$B$141&" Land Use" -> 2a Water Supply Contribution - Land Use | D176: =Required_LU2_WS -> 0 | F176: SITE INFORMATION
A177: Differential Type | B177: =VLOOKUP($B$141,LUD_Type,2,FALSE) ->  | F177: Gross Floor Area | G177: =IF(LU2_GFA="","",LU2_GFA) ->  | H177: m² (known)
A178: Gross Floor Area (GFA): | B178: =IF(B177="Unit",0,IF(G177="",IF(AND($G$137="New",G184="Non-Residential"),G185,G182),G177)) ->  | C178: m² | F178: Site Area | G178: =IF(LU2_SiteArea="","",LU2_SiteArea) -> 
A179: Dwelling Equivalents per 100m² GFA: | B179: =VLOOKUP($B$141,Land_Use_Differentials,2,FALSE) ->  | F179: Building Coverage | G179: =VLOOKUP($B$141,GFA_Estimates,2,FALSE) -> 
A180: GFA DE's: | B180: =IF(AND(G177="",$G$137="New",G184="Residential"),1,B178/100*B179) ->  | F180: No. of Floors | G180: =VLOOKUP($B$141,GFA_Estimates,3,FALSE) -> 
A181: No. Units: | B181: =$G$141 -> 1 | F181: Gross Floor Area | G181: =IF(G179=0,Res_GFA,G178*G179*G180) ->  | H181: m² (estimated)
A182: Dwelling Equivalents per Unit: | B182: =B179 ->  | G182: =IF(G178>0,G181*0.75,G181) ->  | H182: 75% of m² (estimated) | K182: (1 b/r) | L182: (2 b/r) | M182: (3+ b/r)
A183: Unit DE's: | B183: =IF(B177="Both (max)",SUMPRODUCT(K184:M184,K183:M183),IF(B181="",1,B181*B182)) ->  | J183: LU 2 WS differential | K183: =VLOOKUP($B$141&" "&K182,Land_Use_Differentials,2,FALSE) ->  | L183: =VLOOKUP($B$141&" "&L182,Land_Use_Differentials,2,FALSE) ->  | M183: =VLOOKUP($B$141&" "&M182,Land_Use_Differentials,2,FALSE) -> 
A184: Network Factor Dwelling Equivalents: | B184: =VLOOKUP($B$141,Land_Use_Differentials,3,FALSE) ->  | F184: Land Use Type | G184: =VLOOKUP(B141,categorisation,2,0) ->  | H184: Residential/Non-Residential | J184: LU 2 units | K184: =INDEX(K$140:K$143,LEFT($A176,1)) -> 0 | L184: =INDEX(L$140:L$143,LEFT($A176,1)) -> 0 | M184: =INDEX(M$140:M$143,LEFT($A176,1)) -> 0
A185: Dwelling Equivalents: | B185: =IF(B141="",0,IF(B177="Both (max)",MAX(B183,B180)+B184,IF(B177="Unit",B183+B184,IF(G177="",B181*B180+B184,B180+B184)))) -> 0 | F185: Non-Res GFA Estimate | G185: =IF(G178<=500,50, IF(G178<=2000,100,400)) -> 400 | H185: m² (estimated)
A187: ="2b Wastewater Contribution - "&$B$141&" Land Use" -> 2b Wastewater Contribution - Land Use | D187: =Required_LU2_Ww -> 0
A188: Differential Type | B188: =VLOOKUP($B$141,LUD_Type,4,FALSE) -> 
A189: Gross Floor Area (GFA): | B189: =IF(B188="Unit",0,IF(G177="",IF(AND($G$137="New",G184="Non-Residential"),G185,G182),G177)) ->  | C189: m²
A190: Dwelling Equivalents per 100m² GFA: | B190: =VLOOKUP($B$141,Land_Use_Differentials,4,FALSE) -> 
A191: GFA DE's: | B191: =IF(AND(G177="",$G$137="New",G184="Residential"),1,B189/100*B190) -> 
A192: No. Units: | B192: =B181 -> 1
A193: Dwelling Equivalents per Unit: | B193: =B190 ->  | K193: (1 b/r) | L193: (2 b/r) | M193: (3+ b/r)
A194: Unit DE's: | B194: =IF(B188="Both (max)",SUMPRODUCT(K195:M195,K194:M194),IF(B192="",1,B192*B193)) ->  | J194: LU 2 WW differential | K194: =VLOOKUP($B$141&" "&K193,Land_Use_Differentials,4,FALSE) ->  | L194: =VLOOKUP($B$141&" "&L193,Land_Use_Differentials,4,FALSE) ->  | M194: =VLOOKUP($B$141&" "&M193,Land_Use_Differentials,4,FALSE) -> 
A195: Dwelling Equivalents: | B195: =IF(B141="",0,IF(B188="Both (max)",MAX(B191,B194),IF(B188="Unit",B194,IF(G177="",B191*B192,B191)))) -> 0 | J195: LU 2 units | K195: =INDEX(K$140:K$143,LEFT($A187,1)) -> 0 | L195: =INDEX(L$140:L$143,LEFT($A187,1)) -> 0 | M195: =INDEX(M$140:M$143,LEFT($A187,1)) -> 0
A197: ="2c Stormwater Contribution - "&$B$141&" Land Use" -> 2c Stormwater Contribution - Land Use | D197: =Required_LU2_SW -> 0 | F197: SITE INFORMATION
A198: Differential Type | B198: =VLOOKUP($B$141,LUD_Type,5,FALSE) ->  | F198: Impervious Surface Area | G198: =IF(LU2_ISA="","",LU2_ISA) ->  | H198: m² (known)
A199: Impermeable Surface Area (ISA): | B199: =IF(G198="",IF(AND($G$137="New",G204="Non-Residential"),G205,G202),G198) ->  | C199: m² | F199: Site Area | G199: =IF(LU2_SiteArea="","",LU2_SiteArea) -> 
A200: Dwelling Equivalents per 100m² ISA: | B200: =VLOOKUP($B$141,Land_Use_Differentials,5,FALSE) ->  | F200: Building Coverage | G200: =VLOOKUP($B$141,Building_Coverages,2,FALSE) -> 
A201: ISA DE's: | B201: =IF(AND(G198="",$G$137="New",G204="Residential"),1,B199/100*B200) ->  | F201: Impervious Surface Area | G201: =IF(G200=0,269,G199*G200) ->  | H201: m² (estimated)
A202: No. Units: | B202: =B181 -> 1 | G202: =IF(G199>0,G201*0.75,G201) ->  | H202: 75% of m² (estimated)
A203: Dwelling Equivalents per Unit: | B203: =B200 -> 
A204: Unit DE's: | B204: =IF(B202="",1,B202*B203) ->  | F204: Land Use Type | G204: =VLOOKUP(B141,categorisation,2,0) ->  | H204: Residential/Non-Residential
A205: Dwelling Equivalents: | B205: =IF(B141="",0,IF(B198="Unit",B204,IF(G198="",B201*B202,B201))) -> 0 | F205: Non-Res ISA Estimate | G205: =IF(G199<=500,62.5, IF(G199<=2000,125,500)) -> 500 | H205: m² (estimated)
A207: ="3a Water Supply Contribution - "&$B$142&" Land Use" -> 3a Water Supply Contribution - Land Use | D207: =Required_LU3_WS -> 0 | F207: SITE INFORMATION
A208: Differential Type | B208: =VLOOKUP($B$142,LUD_Type,2,FALSE) ->  | F208: Gross Floor Area | G208: =IF(LU3_GFA="","",LU3_GFA) ->  | H208: m² (known)
A209: Gross Floor Area (GFA): | B209: =IF(B208="Unit",0,IF(G208="",IF(AND($G$137="New",G215="Non-Residential"),G216,G213),G208)) ->  | C209: m² | F209: Site Area | G209: =IF(LU3_SiteArea="","",LU3_SiteArea) -> 
A210: Dwelling Equivalents per 100m² GFA: | B210: =VLOOKUP($B$142,Land_Use_Differentials,2,FALSE) ->  | F210: Building Coverage | G210: =VLOOKUP($B$142,GFA_Estimates,2,FALSE) -> 
A211: GFA DE's: | B211: =IF(AND(G208="",$G$137="New",G215="Residential"),1,B209/100*B210) ->  | F211: No. of Floors | G211: =VLOOKUP($B$142,GFA_Estimates,3,FALSE) -> 
A212: No. Units: | B212: =$G$142 -> 1 | F212: Gross Floor Area | G212: =IF(G210=0,Res_GFA,G209*G210*G211) ->  | H212: m² (estimated)
A213: Dwelling Equivalents per Unit: | B213: =B210 ->  | G213: =IF(G209>0,G212*0.75,G212) ->  | H213: 75% of m² (estimated) | K213: (1 b/r) | L213: (2 b/r) | M213: (3+ b/r)
A214: Unit DE's: | B214: =IF(B208="Both (max)",SUMPRODUCT(K215:M215,K214:M214),IF(B212="",1,B212*B213)) ->  | J214: LU 3 WS differential | K214: =VLOOKUP($B$142&" "&K213,Land_Use_Differentials,2,FALSE) ->  | L214: =VLOOKUP($B$142&" "&L213,Land_Use_Differentials,2,FALSE) ->  | M214: =VLOOKUP($B$142&" "&M213,Land_Use_Differentials,2,FALSE) -> 
A215: Network Factor Dwelling Equivalents: | B215: =VLOOKUP($B$142,Land_Use_Differentials,3,FALSE) ->  | F215: Land Use Type | G215: =VLOOKUP(B142,categorisation,2,0) ->  | H215: Residential/Non-Residential | J215: LU 3 units | K215: =INDEX(K$140:K$143,LEFT($A207,1)) -> 0 | L215: =INDEX(L$140:L$143,LEFT($A207,1)) -> 0 | M215: =INDEX(M$140:M$143,LEFT($A207,1)) -> 0
A216: Dwelling Equivalents: | B216: =IF(B142="",0,IF(B208="Both (max)",MAX(B214,B211)+B215,IF(B208="Unit",B214+B215,IF(G208="",B212*B211+B215,B211+B215)))) -> 0 | F216: Non-Res GFA Estimate | G216: =IF(G209<=500,50, IF(G209<=2000,100,400)) -> 400 | H216: m² (estimated)
A218: ="3b Wastewater Contribution - "&$B$142&" Land Use" -> 3b Wastewater Contribution - Land Use | D218: =Required_LU3_WW -> 0
A219: Differential Type | B219: =VLOOKUP($B$142,LUD_Type,4,FALSE) -> 
A220: Gross Floor Area (GFA): | B220: =IF(B219="Unit",0,IF(G208="",IF(AND($G$137="New",G215="Non-Residential"),G216,G213),G208)) ->  | C220: m²
A221: Dwelling Equivalents per 100m² GFA: | B221: =VLOOKUP($B$142,Land_Use_Differentials,4,FALSE) -> 
... 61 more rows

Sheet Reserves (hidden)
A1: Pre Development/Subdivision Demand (Credits) - Reserves
A2: For Consent No. | B2: =IF(Consent_Number="","",Consent_Number) ->  | F2: No. of Land Uses | G2: =Number_Land_Uses -> 1
F3: GFA Estimation Method | G3: =VLOOKUP(Credits_PolicyYear_Input,estimation_method,2,0) -> 
A4: Location: | B4: =IF(Location="","",Location) ->  | D4: =IF($B$4="","",VLOOKUP(B4,Ward,10,0)) -> 
K5: (1 b/r) | L5: (2 b/r) | M5: (3+ b/r)
A6: =IF(F2="1","Land Use Category:","1st Land Use Category:") -> 1st Land Use Category: | B6: =IF(Land_Use_Category_1_Credits="","",Land_Use_Category_1_Credits) ->  | D6: Policy Year: | F6: No. of Units | G6: =IF(No_Res_Units_LU1_Credits="",1,No_Res_Units_LU1_Credits) -> 1 | K6: =IF(Cr_LU1_1BedUnits="",0,Cr_LU1_1BedUnits) -> 0 | L6: =IF(Cr_LU1_2BedUnits="",0,Cr_LU1_2BedUnits) -> 0 | M6: =IF(Cr_LU1_3BedUnits="",0,Cr_LU1_3BedUnits) -> 0
A7: 2nd Land Use Category: | B7: =IF(Land_Use_Category_2_Credits="","",Land_Use_Category_2_Credits) ->  | D7: =Policy_Year_Input -> 2024/25 | F7: No. of Units | G7: =IF(No_Res_Units_LU2_Credits="",1,No_Res_Units_LU2_Credits) -> 1 | K7: =IF(Cr_LU2_1BedUnits="",0,Cr_LU2_1BedUnits) -> 0 | L7: =IF(Cr_LU2_2BedUnits="",0,Cr_LU2_2BedUnits) -> 0 | M7: =IF(Cr_LU2_3BedUnits="",0,Cr_LU2_3BedUnits) -> 0
A8: 3rd Land Use Category: | B8: =IF(Land_Use_Category_3_Credits="","",Land_Use_Category_3_Credits) ->  | D8: Policy Year (Credits): | F8: No. of Units | G8: =IF(No_Res_Units_LU3_Credits="",1,No_Res_Units_LU3_Credits) -> 1 | K8: =IF(Cr_LU3_1BedUnits="",0,Cr_LU3_1BedUnits) -> 0 | L8: =IF(Cr_LU3_2BedUnits="",0,Cr_LU3_2BedUnits) -> 0 | M8: =IF(Cr_LU3_3BedUnits="",0,Cr_LU3_3BedUnits) -> 0
A9: 4th Land Use Category: | B9: =IF(Land_Use_Category_4_Credits="","",Land_Use_Category_4_Credits) ->  | D9: =Credits_PolicyYear_Input -> 0 | F9: No. of Units | G9: =IF(No_Res_Units_LU4_Credits="",1,No_Res_Units_LU4_Credits) -> 1 | K9: =IF(Cr_LU4_1BedUnits="",0,Cr_LU4_1BedUnits) -> 0 | L9: =IF(Cr_LU4_2BedUnits="",0,Cr_LU4_2BedUnits) -> 0 | M9: =IF(Cr_LU4_3BedUnits="",0,Cr_LU4_3BedUnits) -> 0
D10: Reserve Land PS Credit:
A11: =IF(F2="1","","1a ")&"Reserve Improvements Contribution - "&$B$6&" Land Use" -> 1a Reserve Improvements Contribution - Land Use | D11: =IF(AND(VALUE(LEFT(D7,4))>=2021,D9<>D7),"Reserve Land","Standard") -> Reserve Land | F11: SITE INFORMATION
A12: Differential Type | B12: =VLOOKUP($B$6,Credits_LUD_Type,IF($D$4="Wakatipu",8,9),FALSE) ->  | F12: Gross Floor Area | G12: =IF(LU1_GFA_Credits="","",LU1_GFA_Credits) ->  | H12: m² (known)
A13: Gross Floor Area (GFA): | B13: =IF(G12="",IF(AND($G$3="New",G18="Non-Residential"),G19,G16),G12) ->  | C13: m² | F13: Site Area | G13: =IF(LU1_SiteArea_Credits="","",LU1_SiteArea_Credits) -> 
A14: Dwelling Equivalents per 100m² GFA: | B14: =VLOOKUP($B$6,Credits_Land_Use_Differentials,IF($D$4="Wakatipu",8,9),FALSE) ->  | F14: Building Coverage | G14: =VLOOKUP($B$6,Credits_GFA_Estimates,2,FALSE) -> 
A15: GFA DE's: | B15: =IF(AND(G12="",$G$3="New",G18="Residential"),1,B13/100*B14) ->  | F15: No. of Floors | G15: =VLOOKUP($B$6,Credits_GFA_Estimates,3,FALSE) -> 
A16: No. Units: | B16: =$G$6 -> 1 | F16: Gross Floor Area | G16: =IF(G14=0,Credits_Res_GFA,G13*G14*G15) ->  | H16: m² (estimated)
A17: Dwelling Equivalents per Unit: | B17: =B14 ->  | K17: (1 b/r) | L17: (2 b/r) | M17: (3+ b/r)
A18: Unit DE's: | B18: =IF(B12="Both (max)",SUMPRODUCT(K19:M19,K18:M18),IF(B16="",1,B16*B17)) ->  | F18: Land Use Type | G18: =VLOOKUP(B6,categorisation,2,0) ->  | H18: Residential/Non-Residential | J18: LU 1 differential | K18: =VLOOKUP($B$6&" "&K17,Credits_Land_Use_Differentials,IF($D$4="Wakatipu",8,9),FALSE) ->  | L18: =VLOOKUP($B$6&" "&L17,Credits_Land_Use_Differentials,IF($D$4="Wakatipu",8,9),FALSE) ->  | M18: =VLOOKUP($B$6&" "&M17,Credits_Land_Use_Differentials,IF($D$4="Wakatipu",8,9),FALSE) -> 
A19: Dwelling Equivalents: | B19: =IFERROR(IF(B6="",0,IF(B12="Both (max)",MAX(IF(G12="",B15*B16,B15),B18),IF(B12="Unit",B18,IF(G12="",B15*B16,B15)))),0) -> 0 | F19: Non-Res GFA Estimate | G19: =IF(G13<=500,50, IF(G13<=2000,100,400)) -> 400 | H19: m² (estimated) | J19: LU 1 units | K19: =INDEX(K$6:K$9,LEFT($A11,1)) -> 0 | L19: =INDEX(L$6:L$9,LEFT($A11,1)) -> 0 | M19: =INDEX(M$6:M$9,LEFT($A11,1)) -> 0
A21: =IF(F2="1","","1b ")&"Community Facilities Contribution - "&$B$6&" Land Use" -> 1b Community Facilities Contribution - Land Use
A22: Differential Type | B22: =VLOOKUP($B$6,Credits_LUD_Type,IF($D$4="Wakatipu",6,7),FALSE) -> 
A23: Gross Floor Area (GFA): | B23: =IF(G12="",IF(AND($G$3="New",G18="Non-Residential"),G19,G16),G12) ->  | C23: m²
A24: Dwelling Equivalents per 100m² GFA: | B24: =VLOOKUP($B$6,Credits_Land_Use_Differentials,IF($D$4="Wakatipu",6,7),FALSE) -> 
A25: GFA DE's: | B25: =IF(AND(G12="",$G$3="New",G18="Residential"),1,B23/100*B24) -> 
A26: No. Units: | B26: =$G$6 -> 1
A27: Dwelling Equivalents per Unit: | B27: =B24 ->  | K27: (1 b/r) | L27: (2 b/r) | M27: (3+ b/r)
A28: Unit DE's: | B28: =IF(B22="Both (max)",SUMPRODUCT(K29:M29,K28:M28),IF(B26="",1,B26*B27)) ->  | J28: LU 1 differential | K28: =VLOOKUP($B$6&" "&K27,Credits_Land_Use_Differentials,IF($D$4="Wakatipu",6,7),FALSE) ->  | L28: =VLOOKUP($B$6&" "&L27,Credits_Land_Use_Differentials,IF($D$4="Wakatipu",6,7),FALSE) ->  | M28: =VLOOKUP($B$6&" "&M27,Credits_Land_Use_Differentials,IF($D$4="Wakatipu",6,7),FALSE) -> 
A29: Dwelling Equivalents: | B29: =IFERROR(IF(B6="",0,IF(B22="Both (max)",MAX(IF(G12="",B25*B26,B25),B28),IF(B22="Unit",B28,IF(G12="",B25*B26,B25)))),0) -> 0 | J29: LU 1 units | K29: =INDEX(K$6:K$9,LEFT($A21,1)) -> 0 | L29: =INDEX(L$6:L$9,LEFT($A21,1)) -> 0 | M29: =INDEX(M$6:M$9,LEFT($A21,1)) -> 0
A31: =IF(F7="1","","1c ")&"Reserve Land Contribution - "&$B$6&" Land Use" -> 1c Reserve Land Contribution - Land Use
A32: Differential Type | B32: =VLOOKUP($B$6,Credits_LUD_Type,IF($D$4="Wakatipu",10,11),FALSE) -> 
A33: Gross Floor Area (GFA): | B33: =B23 ->  | C33: m²
A34: Dwelling Equivalents per 100m² GFA: | B34: =VLOOKUP($B$6,Credits_Land_Use_Differentials,IF($D$4="Wakatipu",10,11),FALSE) -> 
A35: GFA DE's: | B35: =IF(AND(G12="",$G$3="New",G18="Residential"),1,B33/100*B34) -> 
A36: No. Units: | B36: =G6 -> 1
A37: Dwelling Equivalents per Unit: | B37: =B34 ->  | K37: (1 b/r) | L37: (2 b/r) | M37: (3+ b/r)
A38: Unit DE's: | B38: =IF(B32="Both (max)",SUMPRODUCT(K39:M39,K38:M38),IF(B36="",1,B36*B37)) ->  | J38: LU 1 differential | K38: =VLOOKUP($B$6&" "&K37,Credits_Land_Use_Differentials,IF($D$4="Wakatipu",10,11),FALSE) ->  | L38: =VLOOKUP($B$6&" "&L37,Credits_Land_Use_Differentials,IF($D$4="Wakatipu",10,11),FALSE) ->  | M38: =VLOOKUP($B$6&" "&M37,Credits_Land_Use_Differentials,IF($D$4="Wakatipu",10,11),FALSE) -> 
A39: Total DE's | B39: =IFERROR(IF(B6="",0,IF(B32="Both (max)",MAX(IF(G12="",B36*B35,B35),B38),IF(B32="Unit",B38,IF(G12="",B36*B35,B35)))),0) -> 0 | J39: LU 1 units | K39: =INDEX(K$6:K$9,LEFT($A31,1)) -> 0 | L39: =INDEX(L$6:L$9,LEFT($A31,1)) -> 0 | M39: =INDEX(M$6:M$9,LEFT($A31,1)) -> 0
A40: Res Land Payable | B40: =IFERROR(VLOOKUP(Credits_PolicyYear_Input,PolicyYear_Field,3,0),0) -> 0
A41: Dwelling Equivalents: | B41: =B39*B40 -> 0
A43: ="1d Reserve Land - Premier Sportsfield Contribution - "&$B$6&" Land Use" -> 1d Reserve Land - Premier Sportsfield Contribution - Land Use
A44: Differential Type | B44: =VLOOKUP($B$6,Credits_LUD_Type,12,FALSE) -> 
A45: Gross Floor Area (GFA): | B45: =LU1_GFA_Credits -> 0 | C45: m²
A46: Dwelling Equivalents per 100m² GFA: | B46: =VLOOKUP($B$6,Credits_Land_Use_Differentials,12,FALSE) -> 
A47: GFA DE's: | B47: =IF(AND(G12="",$G$3="New",G18="Residential"),1,B45/100*B46) -> 
A48: No. Units: | B48: =$G$6 -> 1
A49: Dwelling Equivalents per Unit: | B49: =B46 ->  | K49: (1 b/r) | L49: (2 b/r) | M49: (3+ b/r)
A50: Unit DE's: | B50: =IF(B44="Both (max)",SUMPRODUCT(K51:M51,K50:M50),IF(B48="",1,B48*B49)) ->  | J50: LU 1 differential | K50: =VLOOKUP($B$6&" "&K49,Credits_Land_Use_Differentials,12,FALSE) ->  | L50: =VLOOKUP($B$6&" "&L49,Credits_Land_Use_Differentials,12,FALSE) ->  | M50: =VLOOKUP($B$6&" "&M49,Credits_Land_Use_Differentials,12,FALSE) -> 
A51: Dwelling Equivalents: | B51: =IF($D$11="Reserve Land",B41,IFERROR(IF(OR(B$6="",B44=0),0,IF(B44="Both (max)",MAX(IF(G12="",B47*B48,B47),B50),IF(B44="Unit",B50,IF(G12="",B47*B48,B47)))),0)) -> 0 | J51: LU 1 units | K51: =INDEX(K$6:K$9,LEFT($A43,1)) -> 0 | L51: =INDEX(L$6:L$9,LEFT($A43,1)) -> 0 | M51: =INDEX(M$6:M$9,LEFT($A43,1)) -> 0
A53: =IF(F2="2","","2a ")&"Reserve Improvements Contribution - "&$B$7&" Land Use" -> 2a Reserve Improvements Contribution - Land Use | F53: SITE INFORMATION
A54: Differential Type | B54: =VLOOKUP($B$7,Credits_LUD_Type,IF($D$4="Wakatipu",8,9),FALSE) ->  | F54: Gross Floor Area | G54: =IF(LU2_GFA_Credits="","",LU2_GFA_Credits) ->  | H54: m² (known)
A55: Gross Floor Area (GFA): | B55: =IF(G54="",IF(AND($G$3="New",G60="Non-Residential"),G61,G58),G54) ->  | C55: m² | F55: Site Area | G55: =IF(LU2_SiteArea_Credits="","",LU2_SiteArea_Credits) -> 
A56: Dwelling Equivalents per 100m² GFA: | B56: =VLOOKUP($B$7,Credits_Land_Use_Differentials,IF($D$4="Wakatipu",8,9),FALSE) ->  | F56: Building Coverage | G56: =VLOOKUP($B$7,Credits_GFA_Estimates,2,FALSE) -> 
A57: GFA DE's: | B57: =IF(AND(G54="",$G$3="New",G60="Residential"),1,B55/100*B56) ->  | F57: No. of Floors | G57: =VLOOKUP($B$7,Credits_GFA_Estimates,3,FALSE) -> 
A58: No. Units: | B58: =$G$7 -> 1 | F58: Gross Floor Area | G58: =IF(G56=0,Credits_Res_GFA,G55*G56*G57) ->  | H58: m² (estimated)
A59: Dwelling Equivalents per Unit: | B59: =B56 ->  | K59: (1 b/r) | L59: (2 b/r) | M59: (3+ b/r)
A60: Unit DE's: | B60: =IF(B54="Both (max)",SUMPRODUCT(K61:M61,K60:M60),IF(B58="",1,B58*B59)) ->  | F60: Land Use Type | G60: =VLOOKUP(B7,categorisation,2,0) ->  | H60: Residential/Non-Residential | J60: LU 2 differential | K60: =VLOOKUP($B$7&" "&K59,Credits_Land_Use_Differentials,IF($D$4="Wakatipu",8,9),FALSE) ->  | L60: =VLOOKUP($B$7&" "&L59,Credits_Land_Use_Differentials,IF($D$4="Wakatipu",8,9),FALSE) ->  | M60: =VLOOKUP($B$7&" "&M59,Credits_Land_Use_Differentials,IF($D$4="Wakatipu",8,9),FALSE) -> 
A61: Dwelling Equivalents: | B61: =IFERROR(IF(B7="",0,IF(B54="Both (max)",MAX(IF(G54="",B57*B58,B57),B60),IF(B54="Unit",B60,IF(G54="",B57*B58,B57)))),0) -> 0 | F61: Non-Res GFA Estimate | G61: =IF(G55<=500,50, IF(G55<=2000,100,400)) -> 400 | H61: m² (estimated) | J61: LU 2 units | K61: =INDEX(K$6:K$9,LEFT($A53,1)) -> 0 | L61: =INDEX(L$6:L$9,LEFT($A53,1)) -> 0 | M61: =INDEX(M$6:M$9,LEFT($A53,1)) -> 0
A63: =IF(F2="2","","2b ")&"Community Facilities Contribution - "&$B$7&" Land Use" -> 2b Community Facilities Contribution - Land Use
A64: Differential Type | B64: =VLOOKUP($B$7,Credits_LUD_Type,IF($D$4="Wakatipu",6,7),FALSE) -> 
A65: Gross Floor Area (GFA): | B65: =IF(G54="",IF(AND($G$3="New",G60="Non-Residential"),G61,G58),G54) ->  | C65: m²
A66: Dwelling Equivalents per 100m² GFA: | B66: =VLOOKUP($B$7,Credits_Land_Use_Differentials,IF($D$4="Wakatipu",6,7),FALSE) -> 
A67: GFA DE's: | B67: =IF(AND(G54="",$G$3="New",G60="Residential"),1,B65/100*B66) -> 
A68: No. Units: | B68: =$G$7 -> 1
A69: Dwelling Equivalents per Unit: | B69: =B66 ->  | K69: (1 b/r) | L69: (2 b/r) | M69: (3+ b/r)
A70: Unit DE's: | B70: =IF(B64="Both (max)",SUMPRODUCT(K71:M71,K70:M70),IF(B68="",1,B68*B69)) ->  | J70: LU 2 differential | K70: =VLOOKUP($B$7&" "&K69,Credits_Land_Use_Differentials,IF($D$4="Wakatipu",6,7),FALSE) ->  | L70: =VLOOKUP($B$7&" "&L69,Credits_Land_Use_Differentials,IF($D$4="Wakatipu",6,7),FALSE) ->  | M70: =VLOOKUP($B$7&" "&M69,Credits_Land_Use_Differentials,IF($D$4="Wakatipu",6,7),FALSE) -> 
A71: Dwelling Equivalents: | B71: =IFERROR(IF(B7="",0,IF(B64="Both (max)",MAX(IF(G54="",B67*B68,B67),B70),IF(B64="Unit",B70,IF(G54="",B67*B68,B67)))),0) -> 0 | J71: LU 2 units | K71: =INDEX(K$6:K$9,LEFT($A63,1)) -> 0 | L71: =INDEX(L$6:L$9,LEFT($A63,1)) -> 0 | M71: =INDEX(M$6:M$9,LEFT($A63,1)) -> 0
A73: =IF(F2="2","","2c ")&"Reserve Land Contribution - "&$B$7&" Land Use" -> 2c Reserve Land Contribution - Land Use
A74: Differential Type | B74: =VLOOKUP($B$7,Credits_LUD_Type,IF($D$4="Wakatipu",10,11),FALSE) -> 
A75: Gross Floor Area (GFA): | B75: =B65 ->  | C75: m²
A76: Dwelling Equivalents per 100m² GFA: | B76: =VLOOKUP($B$7,Credits_Land_Use_Differentials,IF($D$4="Wakatipu",10,11),FALSE) -> 
A77: GFA DE's: | B77: =IF(AND(G54="",$G$3="New",G60="Residential"),1,B75/100*B76) -> 
A78: No. Units: | B78: =G7 -> 1
A79: Dwelling Equivalents per Unit: | B79: =B76 ->  | K79: (1 b/r) | L79: (2 b/r) | M79: (3+ b/r)
A80: Unit DE's: | B80: =IF(B74="Both (max)",SUMPRODUCT(K81:M81,K80:M80),IF(B78="",1,B78*B79)) ->  | J80: LU 2 differential | K80: =VLOOKUP($B$7&" "&K79,Credits_Land_Use_Differentials,IF($D$4="Wakatipu",10,11),FALSE) ->  | L80: =VLOOKUP($B$7&" "&L79,Credits_Land_Use_Differentials,IF($D$4="Wakatipu",10,11),FALSE) ->  | M80: =VLOOKUP($B$7&" "&M79,Credits_Land_Use_Differentials,IF($D$4="Wakatipu",10,11),FALSE) -> 
A81: Total DE's | B81: =IFERROR(IF(B7="",0,IF(B74="Both (max)",MAX(IF(G54="",B78*B77,B77),B80),IF(B74="Unit",B80,IF(G54="",B78*B77,B77)))),0) -> 0 | J81: LU 2 units | K81: =INDEX(K$6:K$9,LEFT($A73,1)) -> 0 | L81: =INDEX(L$6:L$9,LEFT($A73,1)) -> 0 | M81: =INDEX(M$6:M$9,LEFT($A73,1)) -> 0
A82: Res Land Payable | B82: =IFERROR(VLOOKUP(Credits_PolicyYear_Input,PolicyYear_Field,3,0),0) -> 0
A83: Dwelling Equivalents: | B83: =B81*B82 -> 0
A85: ="2d Reserve Land - Premier Sportsfield Contribution - "&$B$7&" Land Use" -> 2d Reserve Land - Premier Sportsfield Contribution - Land Use
A86: Differential Type | B86: =VLOOKUP($B$7,Credits_LUD_Type,12,FALSE) -> 
A87: Gross Floor Area (GFA): | B87: =LU2_GFA_Credits -> 0 | C87: m²
A88: Dwelling Equivalents per 100m² GFA: | B88: =VLOOKUP($B$7,Credits_Land_Use_Differentials,12,FALSE) -> 
A89: GFA DE's: | B89: =IF(AND(G54="",$G$3="New",G60="Residential"),1,B87/100*B88) -> 
A90: No. Units: | B90: =$G$7 -> 1
A91: Dwelling Equivalents per Unit: | B91: =B88 ->  | K91: (1 b/r) | L91: (2 b/r) | M91: (3+ b/r)
A92: Unit DE's: | B92: =IF(B86="Both (max)",SUMPRODUCT(K93:M93,K92:M92),IF(B90="",1,B90*B91)) ->  | J92: LU 2 differential | K92: =VLOOKUP($B$7&" "&K91,Credits_Land_Use_Differentials,12,FALSE) ->  | L92: =VLOOKUP($B$7&" "&L91,Credits_Land_Use_Differentials,12,FALSE) ->  | M92: =VLOOKUP($B$7&" "&M91,Credits_Land_Use_Differentials,12,FALSE) -> 
A93: Dwelling Equivalents: | B93: =IF($D$11="Reserve Land",B83,IFERROR(IF(OR(B$7="",B86=0),0,IF(B86="Both (max)",MAX(IF(G54="",B89*B90,B89),B92),IF(B86="Unit",B92,IF(G54="",B89*B90,B89)))),0)) -> 0 | J93: LU 2 units | K93: =INDEX(K$6:K$9,LEFT($A85,1)) -> 0 | L93: =INDEX(L$6:L$9,LEFT($A85,1)) -> 0 | M93: =INDEX(M$6:M$9,LEFT($A85,1)) -> 0
A95: =IF(F2="3","","3a ")&"Reserve Improvements Contribution - "&$B$8&" Land Use" -> 3a Reserve Improvements Contribution - Land Use | F95: SITE INFORMATION
A96: Differential Type | B96: =VLOOKUP($B$8,Credits_LUD_Type,IF($D$4="Wakatipu",8,9),FALSE) ->  | F96: Gross Floor Area | G96: =IF(LU3_GFA_Credits="","",LU3_GFA_Credits) ->  | H96: m² (known)
A97: Gross Floor Area (GFA): | B97: =IF(G96="",IF(AND($G$3="New",G102="Non-Residential"),G103,G100),G96) ->  | C97: m² | F97: Site Area | G97: =IF(LU3_SiteArea_Credits="","",LU3_SiteArea_Credits) -> 
A98: Dwelling Equivalents per 100m² GFA: | B98: =VLOOKUP($B$8,Credits_Land_Use_Differentials,IF($D$4="Wakatipu",8,9),FALSE) ->  | F98: Building Coverage | G98: =VLOOKUP($B$8,Credits_GFA_Estimates,2,FALSE) -> 
A99: GFA DE's: | B99: =IF(AND(G96="",$G$3="New",G102="Residential"),1,B97/100*B98) ->  | F99: No. of Floors | G99: =VLOOKUP($B$8,Credits_GFA_Estimates,3,FALSE) -> 
A100: No. Units: | B100: =$G$8 -> 1 | F100: Gross Floor Area | G100: =IF(G98=0,Credits_Res_GFA,G97*G98*G99) ->  | H100: m² (estimated)
A101: Dwelling Equivalents per Unit: | B101: =B98 ->  | K101: (1 b/r) | L101: (2 b/r) | M101: (3+ b/r)
A102: Unit DE's: | B102: =IF(B96="Both (max)",SUMPRODUCT(K103:M103,K102:M102),IF(B100="",1,B100*B101)) ->  | F102: Land Use Type | G102: =VLOOKUP(B8,categorisation,2,0) ->  | H102: Residential/Non-Residential | J102: LU 3 differential | K102: =VLOOKUP($B$8&" "&K101,Credits_Land_Use_Differentials,IF($D$4="Wakatipu",8,9),FALSE) ->  | L102: =VLOOKUP($B$8&" "&L101,Credits_Land_Use_Differentials,IF($D$4="Wakatipu",8,9),FALSE) ->  | M102: =VLOOKUP($B$8&" "&M101,Credits_Land_Use_Differentials,IF($D$4="Wakatipu",8,9),FALSE) -> 
A103: Dwelling Equivalents: | B103: =IFERROR(IF(B8="",0,IF(B96="Both (max)",MAX(IF(G96="",B99*B100,B99),B102),IF(B96="Unit",B102,IF(G96="",B99*B100,B99)))),0) -> 0 | F103: Non-Res GFA Estimate | G103: =IF(G97<=500,50, IF(G97<=2000,100,400)) -> 400 | H103: m² (estimated) | J103: LU 3 units | K103: =INDEX(K$6:K$9,LEFT($A95,1)) -> 0 | L103: =INDEX(L$6:L$9,LEFT($A95,1)) -> 0 | M103: =INDEX(M$6:M$9,LEFT($A95,1)) -> 0
A105: =IF(F2="3","","3b ")&"Community Facilities Contribution - "&$B$8&" Land Use" -> 3b Community Facilities Contribution - Land Use
A106: Differential Type | B106: =VLOOKUP($B$8,Credits_LUD_Type,IF($D$4="Wakatipu",6,7),FALSE) -> 
A107: Gross Floor Area (GFA): | B107: =IF(G96="",IF(AND($G$3="New",G102="Non-Residential"),G103,G100),G96) ->  | C107: m²
A108: Dwelling Equivalents per 100m² GFA: | B108: =VLOOKUP($B$8,Credits_Land_Use_Differentials,IF($D$4="Wakatipu",6,7),FALSE) -> 
A109: GFA DE's: | B109: =IF(AND(G96="",$G$3="New",G102="Residential"),1,B107/100*B108) -> 
A110: No. Units: | B110: =$G$8 -> 1
A111: Dwelling Equivalents per Unit: | B111: =B108 ->  | K111: (1 b/r) | L111: (2 b/r) | M111: (3+ b/r)
A112: Unit DE's: | B112: =IF(B106="Both (max)",SUMPRODUCT(K113:M113,K112:M112),IF(B110="",1,B110*B111)) ->  | J112: LU 3 differential | K112: =VLOOKUP($B$8&" "&K111,Credits_Land_Use_Differentials,IF($D$4="Wakatipu",6,7),FALSE) ->  | L112: =VLOOKUP($B$8&" "&L111,Credits_Land_Use_Differentials,IF($D$4="Wakatipu",6,7),FALSE) ->  | M112: =VLOOKUP($B$8&" "&M111,Credits_Land_Use_Differentials,IF($D$4="Wakatipu",6,7),FALSE) -> 
A113: Dwelling Equivalents: | B113: =IFERROR(IF(B8="",0,IF(B106="Both (max)",MAX(IF(G96="",B109*B110,B109),B112),IF(B106="Unit",B112,IF(G96="",B109*B110,B109)))),0) -> 0 | J113: LU 3 units | K113: =INDEX(K$6:K$9,LEFT($A105,1)) -> 0 | L113: =INDEX(L$6:L$9,LEFT($A105,1)) -> 0 | M113: =INDEX(M$6:M$9,LEFT($A105,1)) -> 0
A115: =IF(F2="3","","3c ")&"Reserve Land Contribution - "&$B$8&" Land Use" -> 3c Reserve Land Contribution - Land Use
A116: Differential Type | B116: =VLOOKUP($B$8,Credits_LUD_Type,IF($D$4="Wakatipu",10,11),FALSE) -> 
A117: Gross Floor Area (GFA): | B117: =B107 ->  | C117: m²
A118: Dwelling Equivalents per 100m² GFA: | B118: =VLOOKUP($B$8,Credits_Land_Use_Differentials,IF($D$4="Wakatipu",10,11),FALSE) -> 
A119: GFA DE's: | B119: =IF(AND(G96="",$G$3="New",G102="Residential"),1,B117/100*B118) -> 
A120: No. Units: | B120: =G8 -> 1
A121: Dwelling Equivalents per Unit: | B121: =B118 ->  | K121: (1 b/r) | L121: (2 b/r) | M121: (3+ b/r)
A122: Unit DE's: | B122: =IF(B116="Both (max)",SUMPRODUCT(K123:M123,K122:M122),IF(B120="",1,B120*B121)) ->  | J122: LU 3 differential | K122: =VLOOKUP($B$8&" "&K121,Credits_Land_Use_Differentials,IF($D$4="Wakatipu",10,11),FALSE) ->  | L122: =VLOOKUP($B$8&" "&L121,Credits_Land_Use_Differentials,IF($D$4="Wakatipu",10,11),FALSE) ->  | M122: =VLOOKUP($B$8&" "&M121,Credits_Land_Use_Differentials,IF($D$4="Wakatipu",10,11),FALSE) -> 
A123: Total DE's | B123: =IFERROR(IF(B8="",0,IF(B116="Both (max)",MAX(IF(G96="",B120*B119,B119),B122),IF(B116="Unit",B122,IF(G96="",B120*B119,B119)))),0) -> 0 | J123: LU 3 units | K123: =INDEX(K$6:K$9,LEFT($A115,1)) -> 0 | L123: =INDEX(L$6:L$9,LEFT($A115,1)) -> 0 | M123: =INDEX(M$6:M$9,LEFT($A115,1)) -> 0
A124: Res Land Payable | B124: =IFERROR(VLOOKUP(Credits_PolicyYear_Input,PolicyYear_Field,3,0),0) -> 0
A125: Dwelling Equivalents: | B125: =B123*B124 -> 0
A127: ="3d Reserve Land - Premier Sportsfield Contribution - "&$B$8&" Land Use" -> 3d Reserve Land - Premier Sportsfield Contribution - Land Use
A128: Differential Type | B128: =VLOOKUP($B$8,Credits_LUD_Type,12,FALSE) -> 
A129: Gross Floor Area (GFA): | B129: =LU3_GFA_Credits -> 0 | C129: m²
A130: Dwelling Equivalents per 100m² GFA: | B130: =VLOOKUP($B$8,Credits_Land_Use_Differentials,12,FALSE) -> 
A131: GFA DE's: | B131: =IF(AND(G96="",$G$3="New",G102="Residential"),1,B129/100*B130) -> 
A132: No. Units: | B132: =$G$8 -> 1
A133: Dwelling Equivalents per Unit: | B133: =B130 ->  | K133: (1 b/r) | L133: (2 b/r) | M133: (3+ b/r)
A134: Unit DE's: | B134: =IF(B128="Both (max)",SUMPRODUCT(K135:M135,K134:M134),IF(B132="",1,B132*B133)) ->  | J134: LU 3 differential | K134: =VLOOKUP($B$8&" "&K133,Credits_Land_Use_Differentials,12,FALSE) ->  | L134: =VLOOKUP($B$8&" "&L133,Credits_Land_Use_Differentials,12,FALSE) ->  | M134: =VLOOKUP($B$8&" "&M133,Credits_Land_Use_Differentials,12,FALSE) -> 
A135: Dwelling Equivalents: | B135: =IF($D$11="Reserve Land",B125,IFERROR(IF(OR(B$8="",B128=0),0,IF(B128="Both (max)",MAX(IF(G96="",B131*B132,B131),B134),IF(B128="Unit",B134,IF(G96="",B131*B132,B131)))),0)) -> 0 | J135: LU 3 units | K135: =INDEX(K$6:K$9,LEFT($A127,1)) -> 0 | L135: =INDEX(L$6:L$9,LEFT($A127,1)) -> 0 | M135: =INDEX(M$6:M$9,LEFT($A127,1)) -> 0
A137: =IF(F2="4","","4a ")&"Reserve Improvements Contribution - "&$B$9&" Land Use" -> 4a Reserve Improvements Contribution - Land Use | F137: SITE INFORMATION
A138: Differential Type | B138: =VLOOKUP($B$9,Credits_LUD_Type,IF($D$4="Wakatipu",8,9),FALSE) ->  | F138: Gross Floor Area | G138: =IF(LU4_GFA_Credits="","",LU4_GFA_Credits) ->  | H138: m² (known)
A139: Gross Floor Area (GFA): | B139: =IF(G138="",IF(AND($G$3="New",G144="Non-Residential"),G145,G142),G138) ->  | C139: m² | F139: Site Area | G139: =IF(LU4_SiteArea_Credits="","",LU4_SiteArea_Credits) -> 
A140: Dwelling Equivalents per 100m² GFA: | B140: =VLOOKUP($B$9,Credits_Land_Use_Differentials,IF($D$4="Wakatipu",8,9),FALSE) ->  | F140: Building Coverage | G140: =VLOOKUP($B$9,Credits_GFA_Estimates,2,FALSE) -> 
A141: GFA DE's: | B141: =IF(AND(G138="",$G$3="New",G144="Residential"),1,B139/100*B140) ->  | F141: No. of Floors | G141: =VLOOKUP($B$9,Credits_GFA_Estimates,3,FALSE) -> 
A142: No. Units: | B142: =$G$9 -> 1 | F142: Gross Floor Area | G142: =IF(G140=0,Credits_Res_GFA,G139*G140*G141) ->  | H142: m² (estimated)
A143: Dwelling Equivalents per Unit: | B143: =B140 ->  | K143: (1 b/r) | L143: (2 b/r) | M143: (3+ b/r)
A144: Unit DE's: | B144: =IF(B138="Both (max)",SUMPRODUCT(K145:M145,K144:M144),IF(B142="",1,B142*B143)) ->  | F144: Land Use Type | G144: =VLOOKUP(B9,categorisation,2,0) ->  | H144: Residential/Non-Residential | J144: LU 4 differential | K144: =VLOOKUP($B$9&" "&K143,Credits_Land_Use_Differentials,IF($D$4="Wakatipu",8,9),FALSE) ->  | L144: =VLOOKUP($B$9&" "&L143,Credits_Land_Use_Differentials,IF($D$4="Wakatipu",8,9),FALSE) ->  | M144: =VLOOKUP($B$9&" "&M143,Credits_Land_Use_Differentials,IF($D$4="Wakatipu",8,9),FALSE) -> 
A145: Dwelling Equivalents: | B145: =IFERROR(IF(B9="",0,IF(B138="Both (max)",MAX(IF(G138="",B141*B142,B141),B144),IF(B138="Unit",B144,IF(G138="",B141*B142,B141)))),0) -> 0 | F145: Non-Res GFA Estimate | G145: =IF(G139<=500,50, IF(G139<=2000,100,400)) -> 400 | H145: m² (estimated) | J145: LU 4 units | K145: =INDEX(K$6:K$9,LEFT($A137,1)) -> 0 | L145: =INDEX(L$6:L$9,LEFT($A137,1)) -> 0 | M145: =INDEX(M$6:M$9,LEFT($A137,1)) -> 0
A147: =IF(F2="4","","4b ")&"Community Facilities Contribution - "&$B$9&" Land Use" -> 4b Community Facilities Contribution - Land Use
A148: Differential Type | B148: =VLOOKUP($B$9,Credits_LUD_Type,IF($D$4="Wakatipu",6,7),FALSE) -> 
A149: Gross Floor Area (GFA): | B149: =IF(G138="",IF(AND($G$3="New",G144="Non-Residential"),G145,G142),G138) ->  | C149: m²
A150: Dwelling Equivalents per 100m² GFA: | B150: =VLOOKUP($B$9,Credits_Land_Use_Differentials,IF($D$4="Wakatipu",6,7),FALSE) -> 
A151: GFA DE's: | B151: =IF(AND(G138="",$G$3="New",G144="Residential"),1,B149/100*B150) -> 
A152: No. Units: | B152: =$G$9 -> 1
A153: Dwelling Equivalents per Unit: | B153: =B150 ->  | K153: (1 b/r) | L153: (2 b/r) | M153: (3+ b/r)
A154: Unit DE's: | B154: =IF(B148="Both (max)",SUMPRODUCT(K155:M155,K154:M154),IF(B152="",1,B152*B153)) ->  | J154: LU 4 differential | K154: =VLOOKUP($B$9&" "&K153,Credits_Land_Use_Differentials,IF($D$4="Wakatipu",6,7),FALSE) ->  | L154: =VLOOKUP($B$9&" "&L153,Credits_Land_Use_Differentials,IF($D$4="Wakatipu",6,7),FALSE) ->  | M154: =VLOOKUP($B$9&" "&M153,Credits_Land_Use_Differentials,IF($D$4="Wakatipu",6,7),FALSE) -> 
A155: Dwelling Equivalents: | B155: =IFERROR(IF(B9="",0,IF(B148="Both (max)",MAX(IF(G138="",B151*B152,B151),B154),IF(B148="Unit",B154,IF(G138="",B151*B152,B151)))),0) -> 0 | J155: LU 4 units | K155: =INDEX(K$6:K$9,LEFT($A147,1)) -> 0 | L155: =INDEX(L$6:L$9,LEFT($A147,1)) -> 0 | M155: =INDEX(M$6:M$9,LEFT($A147,1)) -> 0
A157: =IF(F2="4","","4c ")&"Reserve Land Contribution - "&$B$9&" Land Use" -> 4c Reserve Land Contribution - Land Use
A158: Differential Type | B158: =VLOOKUP($B$9,Credits_LUD_Type,IF($D$4="Wakatipu",10,11),FALSE) -> 
A159: Gross Floor Area (GFA): | B159: =B149 ->  | C159: m²
A160: Dwelling Equivalents per 100m² GFA: | B160: =VLOOKUP($B$9,Credits_Land_Use_Differentials,IF($D$4="Wakatipu",10,11),FALSE) -> 
A161: GFA DE's: | B161: =IF(AND(G138="",$G$3="New",G144="Residential"),1,B159/100*B160) -> 
A162: No. Units: | B162: =G9 -> 1
A163: Dwelling Equivalents per Unit: | B163: =B160 ->  | K163: (1 b/r) | L163: (2 b/r) | M163: (3+ b/r)
A164: Unit DE's: | B164: =IF(B158="Both (max)",SUMPRODUCT(K165:M165,K164:M164),IF(B162="",1,B162*B163)) ->  | J164: LU 4 differential | K164: =VLOOKUP($B$9&" "&K163,Credits_Land_Use_Differentials,IF($D$4="Wakatipu",10,11),FALSE) ->  | L164: =VLOOKUP($B$9&" "&L163,Credits_Land_Use_Differentials,IF($D$4="Wakatipu",10,11),FALSE) ->  | M164: =VLOOKUP($B$9&" "&M163,Credits_Land_Use_Differentials,IF($D$4="Wakatipu",10,11),FALSE) -> 
A165: Total DE's | B165: =IFERROR(IF(B9="",0,IF(B158="Both (max)",MAX(IF(G138="",B162*B161,B161),B164),IF(B158="Unit",B164,IF(G138="",B162*B161,B161)))),0) -> 0 | J165: LU 4 units | K165: =INDEX(K$6:K$9,LEFT($A157,1)) -> 0 | L165: =INDEX(L$6:L$9,LEFT($A157,1)) -> 0 | M165: =INDEX(M$6:M$9,LEFT($A157,1)) -> 0
A166: Res Land Payable | B166: =IFERROR(VLOOKUP(Credits_PolicyYear_Input,PolicyYear_Field,3,0),0) -> 0
A167: Dwelling Equivalents: | B167: =B165*B166 -> 0
A169: ="4d Reserve Land - Premier Sportsfield Contribution - "&$B$9&" Land Use" -> 4d Reserve Land - Premier Sportsfield Contribution - Land Use
A170: Differential Type | B170: =VLOOKUP($B$9,Credits_LUD_Type,12,FALSE) -> 
A171: Gross Floor Area (GFA): | B171: =LU4_GFA_Credits -> 0 | C171: m²
A172: Dwelling Equivalents per 100m² GFA: | B172: =VLOOKUP($B$9,Credits_Land_Use_Differentials,12,FALSE) -> 
A173: GFA DE's: | B173: =IF(AND(G138="",$G$3="New",G144="Residential"),1,B171/100*B172) -> 
A174: No. Units: | B174: =$G$9 -> 1
A175: Dwelling Equivalents per Unit: | B175: =B172 ->  | K175: (1 b/r) | L175: (2 b/r) | M175: (3+ b/r)
A176: Unit DE's: | B176: =IF(B170="Both (max)",SUMPRODUCT(K177:M177,K176:M176),IF(B174="",1,B174*B175)) ->  | J176: LU 4 differential | K176: =VLOOKUP($B$9&" "&K175,Credits_Land_Use_Differentials,12,FALSE) ->  | L176: =VLOOKUP($B$9&" "&L175,Credits_Land_Use_Differentials,12,FALSE) ->  | M176: =VLOOKUP($B$9&" "&M175,Credits_Land_Use_Differentials,12,FALSE) -> 
A177: Dwelling Equivalents: | B177: =IF($D$11="Reserve Land",B167,IFERROR(IF(OR(B$9="",B170=0),0,IF(B170="Both (max)",MAX(IF(G138="",B173*B174,B173),B176),IF(B170="Unit",B176,IF(G138="",B173*B174,B173)))),0)) -> 0 | J177: LU 4 units | K177: =INDEX(K$6:K$9,LEFT($A169,1)) -> 0 | L177: =INDEX(L$6:L$9,LEFT($A169,1)) -> 0 | M177: =INDEX(M$6:M$9,LEFT($A169,1)) -> 0
A180: Post Development/Subdivision Demand - Reserves
A181: For Consent No. | B181: =Headworks!$B$2 -> 
F182: GFA Estimation Method | G182: =VLOOKUP(Policy_Year_Input,estimation_method,2,0) -> New
A183: Location: | B183: =$B$4 ->  | D183: =$D$4 -> 
A185: Subdivision or Development: | B185: =Subdivision_Development -> 0
K187: (1 b/r) | L187: (2 b/r) | M187: (3+ b/r)
A188: =IF(D180="1","Land Use Category:","1st Land Use Category:") -> 1st Land Use Category: | B188: =IF(Land_Use_Category_1="","",Land_Use_Category_1) ->  | F188: No. of Units | G188: =IF(No_Res_Units_LU1="",1,No_Res_Units_LU1) -> 1 | K188: =IF(LU1_1BedUnits="",0,LU1_1BedUnits) -> 0 | L188: =IF(LU1_2BedUnits="",0,LU1_2BedUnits) -> 0 | M188: =IF(LU1_3BedUnits="",0,LU1_3BedUnits) -> 0
A189: 2nd Land Use Category: | B189: =IF(Land_Use_Category_2="","",Land_Use_Category_2) ->  | F189: No. of Units | G189: =IF(No_Res_Units_LU2="",1,No_Res_Units_LU2) -> 1 | K189: =IF(LU2_1BedUnits="",0,LU2_1BedUnits) -> 0 | L189: =IF(LU2_2BedUnits="",0,LU2_2BedUnits) -> 0 | M189: =IF(LU2_3BedUnits="",0,LU2_3BedUnits) -> 0
A190: 3rd Land Use Category: | B190: =IF(Land_Use_Category_3="","",Land_Use_Category_3) ->  | F190: No. of Units | G190: =IF(No_Res_Units_LU3="",1,No_Res_Units_LU3) -> 1 | K190: =IF(LU3_1BedUnits="",0,LU3_1BedUnits) -> 0 | L190: =IF(LU3_2BedUnits="",0,LU3_2BedUnits) -> 0 | M190: =IF(LU3_3BedUnits="",0,LU3_3BedUnits) -> 0
A191: 4th Land Use Category: | B191: =IF(Land_Use_Category_4="","",Land_Use_Category_4) ->  | F191: No. of Units | G191: =IF(No_Res_Units_LU4="",1,No_Res_Units_LU4) -> 1 | K191: =IF(LU4_1BedUnits="",0,LU4_1BedUnits) -> 0 | L191: =IF(LU4_2BedUnits="",0,LU4_2BedUnits) -> 0 | M191: =IF(LU4_3BedUnits="",0,LU4_3BedUnits) -> 0
A193: =IF(D180="1","","1a ")&"Reserve Improvements Contribution - "&$B$188&" Land Use" -> 1a Reserve Improvements Contribution - Land Use | F193: SITE INFORMATION
A194: Differential Type | B194: =VLOOKUP($B$188,LUD_Type,IF($D$183="Wakatipu",8,9),FALSE) ->  | D194: =Required_LU1_RI -> Required | F194: Gross Floor Area | G194: =IF(LU1_GFA="","",LU1_GFA) ->  | H194: m² (known)
A195: Gross Floor Area (GFA): | B195: =IF(G194="",IF(AND($G$182="New",G201="Non-Residential"),G202,G199),G194) ->  | C195: m² | F195: Site Area | G195: =IF(LU1_SiteArea="","",LU1_SiteArea) -> 
A196: Dwelling Equivalents per 100m² GFA: | B196: =VLOOKUP($B$188,Land_Use_Differentials,IF($D$183="Wakatipu",8,9),FALSE) ->  | F196: Building Coverage | G196: =VLOOKUP($B$188,GFA_Estimates,2,FALSE) -> 
A197: GFA DE's: | B197: =IF(AND(G194="",$G$182="New",G201="Residential"),1,B195/100*B196) ->  | F197: No. of Floors | G197: =VLOOKUP($B$188,GFA_Estimates,3,FALSE) -> 
A198: No. Units: | B198: =$G$188 -> 1 | F198: Gross Floor Area | G198: =IF(G196=0,Res_GFA,G195*G196*G197) ->  | H198: m² (estimated)
A199: Dwelling Equivalents per Unit: | B199: =B196 ->  | G199: =IF(G195>0,G198*0.75,G198) ->  | H199: 75% of m² (estimated) | K199: (1 b/r) | L199: (2 b/r) | M199: (3+ b/r)
A200: Unit DE's: | B200: =IF(B194="Both (max)",SUMPRODUCT(K201:M201,K200:M200),IF(B198="",1,B198*B199)) ->  | J200: LU 1 differential | K200: =VLOOKUP($B$188&" "&K199,Land_Use_Differentials,IF($D$183="Wakatipu",8,9),FALSE) ->  | L200: =VLOOKUP($B$188&" "&L199,Land_Use_Differentials,IF($D$183="Wakatipu",8,9),FALSE) ->  | M200: =VLOOKUP($B$188&" "&M199,Land_Use_Differentials,IF($D$183="Wakatipu",8,9),FALSE) -> 
A201: Dwelling Equivalents: | B201: =IF($B$188="",0,IF(B194="Both (max)",MAX(IF(G194="",B197*B198,B197),B200),IF(B194="Unit",B200,IF(G194="",B197*B198,B197)))) -> 0 | F201: Land Use Type | G201: =VLOOKUP(B188,categorisation,2,0) ->  | H201: Residential/Non-Residential | J201: LU 1 units | K201: =INDEX(K$188:K$191,LEFT($A193,1)) -> 0 | L201: =INDEX(L$188:L$191,LEFT($A193,1)) -> 0 | M201: =INDEX(M$188:M$191,LEFT($A193,1)) -> 0
F202: Non-Res GFA Estimate | G202: =IF(G195<=500,50, IF(G195<=2000,100,400)) -> 400 | H202: m² (estimated)
A203: =IF(D180="1","","1b ")&"Community Facilities Contribution - "&$B$188&" Land Use" -> 1b Community Facilities Contribution - Land Use
A204: Differential Type | B204: =VLOOKUP($B$188,LUD_Type,IF($D$183="Wakatipu",6,7),FALSE) ->  | D204: =Required_LU1_CF -> Required
A205: Gross Floor Area (GFA): | B205: =IF(G194="",IF(AND($G$182="New",G201="Non-Residential"),G202,G199),G194) ->  | C205: m²
A206: Dwelling Equivalents per 100m² GFA: | B206: =VLOOKUP($B$188,Land_Use_Differentials,IF($D$183="Wakatipu",6,7),FALSE) -> 
A207: GFA DE's: | B207: =IF(AND(G194="",$G$182="New",G201="Residential"),1,B205/100*B206) -> 
A208: No. Units: | B208: =G188 -> 1
A209: Dwelling Equivalents per Unit: | B209: =B206 ->  | K209: (1 b/r) | L209: (2 b/r) | M209: (3+ b/r)
A210: Unit DE's: | B210: =IF(B204="Both (max)",SUMPRODUCT(K211:M211,K210:M210),IF(B208="",1,B208*B209)) ->  | J210: LU 1 differential | K210: =VLOOKUP($B$188&" "&K209,Land_Use_Differentials,IF($D$183="Wakatipu",6,7),FALSE) ->  | L210: =VLOOKUP($B$188&" "&L209,Land_Use_Differentials,IF($D$183="Wakatipu",6,7),FALSE) ->  | M210: =VLOOKUP($B$188&" "&M209,Land_Use_Differentials,IF($D$183="Wakatipu",6,7),FALSE) -> 
A211: Dwelling Equivalents: | B211: =IF(B$188="",0,IF(B204="Both (max)",MAX(IF(G194="",B207*B208,B207),B210),IF(B204="Unit",B210,IF(G194="",B207*B208,B207)))) -> 0 | J211: LU 1 units | K211: =INDEX(K$188:K$191,LEFT($A203,1)) -> 0 | L211: =INDEX(L$188:L$191,LEFT($A203,1)) -> 0 | M211: =INDEX(M$188:M$191,LEFT($A203,1)) -> 0
A213: =IF(F189="1","","1c ")&"Reserve Land Contribution - "&$B$188&" Land Use" -> 1c Reserve Land Contribution - Land Use | F213: LAND VALUE
A214: Differential Type | B214: =VLOOKUP($B$188,LUD_Type,IF($D$183="Wakatipu",10,11),FALSE) ->  | D214: =Required_LU1_RL -> Required | F214: Total Land Value | G214: =IF(VLOOKUP(Policy_Year_Input,ResLand_Input,4,0)="set",IF(G221="input",G222,VLOOKUP($D$4,ResLandAvg,IF(Urban_Town="Township",2,IF(Urban_Town="Urban",3)),0))*LU1_Buildable_Area,IF(LU1_LandValue="","",LU1_LandValue)) ->  | H214: (Incl GST)
A215: Gross Floor Area (GFA): | B215: =B205 ->  | C215: m² | F215: GST in Land Value | G215: =IF(VLOOKUP(Policy_Year_Input,ResLand_Input,4,0)="set",0.15,IF(LU1_GST_LandValue="","",LU1_GST_LandValue)) -> 0.15
A216: Dwelling Equivalents per 100m² GFA: | B216: =VLOOKUP($B$188,Land_Use_Differentials,IF($D$4="Wakatipu",10,11),FALSE) ->  | F216: Total Buildable or Site Area | G216: =IF(LU1_Buildable_Area="",0,LU1_Buildable_Area) -> 1 | H216: m²
A217: GFA DE's: | B217: =IF(AND(G194="",$G$182="New",G201="Residential"),1,B215/100*B216) ->  | F217: Value per m² | G217: =IF(G214="","",G214/G216) ->  | H217: $/m²
A218: No. Units: | B218: =B208 -> 1 | F218: Capped Value per m² | G218: =IF(G217>1500,1500,G217) ->  | H218: $/m²
A219: Dwelling Equivalents per Unit: | B219: =B216 ->  | F219: 7.5% Check | G219: =IF($B$185="Development","",0.075*G214/(1+G215)) ->  | K219: (1 b/r) | L219: (2 b/r) | M219: (3+ b/r)
A220: Unit DE's: | B220: =IF(B214="Both (max)",SUMPRODUCT(K221:M221,K220:M220),IF(B218="",1,B218*B219)) ->  | J220: LU 1 differential | K220: =VLOOKUP($B$188&" "&K219,Land_Use_Differentials,IF($D$183="Wakatipu",10,11),FALSE) ->  | L220: =VLOOKUP($B$188&" "&L219,Land_Use_Differentials,IF($D$183="Wakatipu",10,11),FALSE) ->  | M220: =VLOOKUP($B$188&" "&M219,Land_Use_Differentials,IF($D$183="Wakatipu",10,11),FALSE) -> 
A221: Total DE's | B221: =IF(B$188="",0,IF(B214="Both (max)",MAX(IF(G194="",B217*B218,B217),B220),IF(B214="Unit",B220,IF(G194="",B217*B218,B217)))) -> 0 | F221: Land Value - old method | G221: =VLOOKUP($D$4,ResLandAvg,2,0) ->  | J221: LU 1 units | K221: =INDEX(K$188:K$191,LEFT($A213,1)) -> 0 | L221: =INDEX(L$188:L$191,LEFT($A213,1)) -> 0 | M221: =INDEX(M$188:M$191,LEFT($A213,1)) -> 0
... 156 more rows

Sheet Roading (hidden)
A1: Pre Development/Subdivision Demand (Credits) - Roading
A2: For Consent No. | B2: =Headworks!$B$2 ->  | F2: No. of Land Uses | G2: =Number_Land_Uses -> 1
F3: GFA Estimation Method | G3: =VLOOKUP(Credits_PolicyYear_Input,estimation_method,2,0) -> 
A4: Location: | B4: =IF(Location="","",Location) ->  | D4: =IF($B$4="","",VLOOKUP(B4,Ward,10,0)) -> 
K5: (1 b/r) | L5: (2 b/r) | M5: (3+ b/r)
A6: =IF(F2="1","Land Use Category:","1st Land Use Category:") -> 1st Land Use Category: | B6: =IF(Land_Use_Category_1_Credits="","",Land_Use_Category_1_Credits) ->  | F6: No. of Units | G6: =IF(No_Res_Units_LU1_Credits="",1,No_Res_Units_LU1_Credits) -> 1 | K6: =IF(Cr_LU1_1BedUnits="",0,Cr_LU1_1BedUnits) -> 0 | L6: =IF(Cr_LU1_2BedUnits="",0,Cr_LU1_2BedUnits) -> 0 | M6: =IF(Cr_LU1_3BedUnits="",0,Cr_LU1_3BedUnits) -> 0
A7: 2nd Land Use Category: | B7: =IF(Land_Use_Category_2_Credits="","",Land_Use_Category_2_Credits) ->  | F7: No. of Units | G7: =IF(No_Res_Units_LU2_Credits="",1,No_Res_Units_LU2_Credits) -> 1 | K7: =IF(Cr_LU2_1BedUnits="",0,Cr_LU2_1BedUnits) -> 0 | L7: =IF(Cr_LU2_2BedUnits="",0,Cr_LU2_2BedUnits) -> 0 | M7: =IF(Cr_LU2_3BedUnits="",0,Cr_LU2_3BedUnits) -> 0
A8: 3rd Land Use Category: | B8: =IF(Land_Use_Category_3_Credits="","",Land_Use_Category_3_Credits) ->  | F8: No. of Units | G8: =IF(No_Res_Units_LU3_Credits="",1,No_Res_Units_LU3_Credits) -> 1 | K8: =IF(Cr_LU3_1BedUnits="",0,Cr_LU3_1BedUnits) -> 0 | L8: =IF(Cr_LU3_2BedUnits="",0,Cr_LU3_2BedUnits) -> 0 | M8: =IF(Cr_LU3_3BedUnits="",0,Cr_LU3_3BedUnits) -> 0
A9: 4th Land Use Category: | B9: =IF(Land_Use_Category_4_Credits="","",Land_Use_Category_4_Credits) ->  | F9: No. of Units | G9: =IF(No_Res_Units_LU4_Credits="",1,No_Res_Units_LU4_Credits) -> 1 | K9: =IF(Cr_LU4_1BedUnits="",0,Cr_LU4_1BedUnits) -> 0 | L9: =IF(Cr_LU4_2BedUnits="",0,Cr_LU4_2BedUnits) -> 0 | M9: =IF(Cr_LU4_3BedUnits="",0,Cr_LU4_3BedUnits) -> 0
A11: =IF(F2="1","","1 ")&"Roading Contribution - "&$B$6&" Land Use" -> 1 Roading Contribution - Land Use | F11: SITE INFORMATION
A12: Differential Type | B12: =VLOOKUP($B$6,Credits_LUD_Type,IF($D$4="Wakatipu",13,14),FALSE) ->  | F12: Gross Floor Area | G12: =IF(LU1_GFA_Credits="","",LU1_GFA_Credits) ->  | H12: m² (known) | K12: Land Use Type | L12: =VLOOKUP(B6,categorisation,2,0) ->  | M12: Residential/Non-Residential
A13: Gross Floor Area (GFA): | B13: =IF(G12="",IF(AND($G$3="New",L12="Non-Residential"),L13,G16),G12) ->  | C13: m² | F13: Site Area | G13: =IF(LU1_SiteArea_Credits="","",LU1_SiteArea_Credits) ->  | H13: m² (known) | K13: Non-Res GFA Estimate | L13: =IF(G13<=500,50, IF(G13<=2000,100,400)) -> 400 | M13: m² (estimated)
A14: Dwelling Equivalents per 100m² GFA: | B14: =VLOOKUP($B$6,Credits_Land_Use_Differentials,IF($D$4="Wakatipu",13,14),FALSE) ->  | F14: Building Coverage | G14: =VLOOKUP($B$6,GFA_Estimates,2,FALSE) -> 
A15: GFA DE's: | B15: =IF(AND(G12="",$G$3="New",L12="Residential"),1,B13/100*B14) ->  | F15: No. of Floors | G15: =VLOOKUP($B$6,GFA_Estimates,3,FALSE) -> 
A16: No. Units: | B16: =IF(B6="Primary Industry",G18,G6) -> 1 | F16: Gross Floor Area | G16: =IF(G14=0,Credits_Res_GFA,G13*G14*G15) ->  | H16: m² (estimated)
A17: Dwelling Equivalents per Unit: | B17: =B14 ->  | F17: Primary Industry Site Area/DE | G17: =VLOOKUP($D$4,Credits_Roading_PI,2,FALSE) ->  | K17: (1 b/r) | L17: (2 b/r) | M17: (3+ b/r)
A18: Unit DE's: | B18: =IF(B12="Both (max)",SUMPRODUCT(K19:M19,K18:M18),IF(B16="",1,B16*B17)) ->  | F18: Primary Industry Unit Equivalents | G18: =G13/G17 ->  | H18: m² (known) | J18: LU 1 differential | K18: =VLOOKUP($B$6&" "&K17,Credits_Land_Use_Differentials,IF($D$4="Wakatipu",13,14),FALSE) ->  | L18: =VLOOKUP($B$6&" "&L17,Credits_Land_Use_Differentials,IF($D$4="Wakatipu",13,14),FALSE) ->  | M18: =VLOOKUP($B$6&" "&M17,Credits_Land_Use_Differentials,IF($D$4="Wakatipu",13,14),FALSE) -> 
A19: Dwelling Equivalents: | B19: =IFERROR(IF($B$6="",0,IF(B12="Both (max)",MAX(B15,B18),IF(B12="Unit",B18,IF(G12="",B15*B16,B15)))),0) -> 0 | J19: LU 1 units | K19: =INDEX(K$6:K$9,LEFT($A11,1)) -> 0 | L19: =INDEX(L$6:L$9,LEFT($A11,1)) -> 0 | M19: =INDEX(M$6:M$9,LEFT($A11,1)) -> 0
A21: =IF(F2="2","","2 ")&"Roading Contribution - "&$B$7&" Land Use" -> 2 Roading Contribution - Land Use | F21: SITE INFORMATION
A22: Differential Type | B22: =VLOOKUP($B$7,Credits_LUD_Type,IF($D$4="Wakatipu",13,14),FALSE) ->  | F22: Gross Floor Area | G22: =IF(LU2_GFA_Credits="","",LU2_GFA_Credits) ->  | H22: m² (known) | K22: Land Use Type | L22: =VLOOKUP(B7,categorisation,2,0) ->  | M22: Residential/Non-Residential
A23: Gross Floor Area (GFA): | B23: =IF(G22="",IF(AND($G$3="New",L22="Non-Residential"),L23,G26),G22) ->  | C23: m² | F23: Site Area | G23: =IF(LU2_SiteArea_Credits="","",LU2_SiteArea_Credits) ->  | H23: m² (known) | K23: Non-Res GFA Estimate | L23: =IF(G23<=500,50, IF(G23<=2000,100,400)) -> 400 | M23: m² (estimated)
A24: Dwelling Equivalents per 100m² GFA: | B24: =VLOOKUP($B$7,Credits_Land_Use_Differentials,IF($D$4="Wakatipu",13,14),FALSE) ->  | F24: Building Coverage | G24: =VLOOKUP($B$7,GFA_Estimates,2,FALSE) -> 
A25: GFA DE's: | B25: =IF(AND(G22="",$G$3="New",L22="Residential"),1,B23/100*B24) ->  | F25: No. of Floors | G25: =VLOOKUP($B$7,GFA_Estimates,3,FALSE) -> 
A26: No. Units: | B26: =IF(B7="Primary Industry",G28,G7) -> 1 | F26: Gross Floor Area | G26: =IF(G24=0,Credits_Res_GFA,G23*G24*G25) ->  | H26: m² (estimated)
A27: Dwelling Equivalents per Unit: | B27: =B24 ->  | F27: Primary Industry Site Area/DE | G27: =VLOOKUP($D$4,Credits_Roading_PI,2,FALSE) ->  | K27: (1 b/r) | L27: (2 b/r) | M27: (3+ b/r)
A28: Unit DE's: | B28: =IF(B22="Both (max)",SUMPRODUCT(K29:M29,K28:M28),IF(B26="",1,B26*B27)) ->  | F28: Primary Industry GFA Equivalent | G28: =G23/G27 ->  | H28: m² (known) | J28: LU 2 differential | K28: =VLOOKUP($B$7&" "&K27,Credits_Land_Use_Differentials,IF($D$4="Wakatipu",13,14),FALSE) ->  | L28: =VLOOKUP($B$7&" "&L27,Credits_Land_Use_Differentials,IF($D$4="Wakatipu",13,14),FALSE) ->  | M28: =VLOOKUP($B$7&" "&M27,Credits_Land_Use_Differentials,IF($D$4="Wakatipu",13,14),FALSE) -> 
A29: Dwelling Equivalents: | B29: =IFERROR(IF($B$7="",0,IF(B22="Both (max)",MAX(B25,B28),IF(B22="Unit",B28,IF(G22="",B25*B26,B25)))),0) -> 0 | J29: LU 2 units | K29: =INDEX(K$6:K$9,LEFT($A21,1)) -> 0 | L29: =INDEX(L$6:L$9,LEFT($A21,1)) -> 0 | M29: =INDEX(M$6:M$9,LEFT($A21,1)) -> 0
A31: =IF(F2="3","","3 ")&"Roading Contribution - "&$B$8&" Land Use" -> 3 Roading Contribution - Land Use | F31: SITE INFORMATION
A32: Differential Type | B32: =VLOOKUP($B$8,Credits_LUD_Type,IF($D$4="Wakatipu",13,14),FALSE) ->  | F32: Gross Floor Area | G32: =IF(LU3_GFA_Credits="","",LU3_GFA_Credits) ->  | H32: m² (known) | K32: Land Use Type | L32: =VLOOKUP(B8,categorisation,2,0) ->  | M32: Residential/Non-Residential
A33: Gross Floor Area (GFA): | B33: =IF(G32="",IF(AND($G$3="New",L32="Non-Residential"),L33,G36),G32) ->  | C33: m² | F33: Site Area | G33: =IF(LU3_SiteArea_Credits="","",LU3_SiteArea_Credits) ->  | H33: m² (known) | K33: Non-Res GFA Estimate | L33: =IF(G33<=500,50, IF(G33<=2000,100,400)) -> 400 | M33: m² (estimated)
A34: Dwelling Equivalents per 100m² GFA: | B34: =VLOOKUP($B$8,Credits_Land_Use_Differentials,IF($D$4="Wakatipu",13,14),FALSE) ->  | F34: Building Coverage | G34: =VLOOKUP($B$8,GFA_Estimates,2,FALSE) -> 
A35: GFA DE's: | B35: =IF(AND(G32="",$G$3="New",L32="Residential"),1,B33/100*B34) ->  | F35: No. of Floors | G35: =VLOOKUP($B$8,GFA_Estimates,3,FALSE) -> 
A36: No. Units: | B36: =IF(B8="Primary Industry",G38,G8) -> 1 | F36: Gross Floor Area | G36: =IF(G34=0,Credits_Res_GFA,G33*G34*G35) ->  | H36: m² (estimated)
A37: Dwelling Equivalents per Unit: | B37: =B34 ->  | F37: Primary Industry Site Area/DE | G37: =VLOOKUP($D$4,Credits_Roading_PI,2,FALSE) ->  | K37: (1 b/r) | L37: (2 b/r) | M37: (3+ b/r)
A38: Unit DE's: | B38: =IF(B32="Both (max)",SUMPRODUCT(K39:M39,K38:M38),IF(B36="",1,B36*B37)) ->  | F38: Primary Industry GFA Equivalent | G38: =G33/G37 ->  | H38: m² (known) | J38: LU 3 differential | K38: =VLOOKUP($B$8&" "&K37,Credits_Land_Use_Differentials,IF($D$4="Wakatipu",13,14),FALSE) ->  | L38: =VLOOKUP($B$8&" "&L37,Credits_Land_Use_Differentials,IF($D$4="Wakatipu",13,14),FALSE) ->  | M38: =VLOOKUP($B$8&" "&M37,Credits_Land_Use_Differentials,IF($D$4="Wakatipu",13,14),FALSE) -> 
A39: Dwelling Equivalents: | B39: =IFERROR(IF($B$8="",0,IF(B32="Both (max)",MAX(B35,B38),IF(B32="Unit",B38,IF(G32="",B35*B36,B35)))),0) -> 0 | J39: LU 3 units | K39: =INDEX(K$6:K$9,LEFT($A31,1)) -> 0 | L39: =INDEX(L$6:L$9,LEFT($A31,1)) -> 0 | M39: =INDEX(M$6:M$9,LEFT($A31,1)) -> 0
A41: =IF(F2="4","","4 ")&"Roading Contribution - "&$B$9&" Land Use" -> 4 Roading Contribution - Land Use | F41: SITE INFORMATION
A42: Differential Type | B42: =VLOOKUP($B$9,Credits_LUD_Type,IF($D$4="Wakatipu",13,14),FALSE) ->  | F42: Gross Floor Area | G42: =IF(LU4_GFA_Credits="","",LU4_GFA_Credits) ->  | H42: m² (known) | K42: Land Use Type | L42: =VLOOKUP(B9,categorisation,2,0) ->  | M42: Residential/Non-Residential
A43: Gross Floor Area (GFA): | B43: =IF(G42="",IF(AND($G$3="New",L42="Non-Residential"),L43,G46),G42) ->  | C43: m² | F43: Site Area | G43: =IF(LU4_SiteArea_Credits="","",LU4_SiteArea_Credits) ->  | H43: m² (known) | K43: Non-Res GFA Estimate | L43: =IF(G43<=500,50, IF(G43<=2000,100,400)) -> 400 | M43: m² (estimated)
A44: Dwelling Equivalents per 100m² GFA: | B44: =VLOOKUP($B$9,Credits_Land_Use_Differentials,IF($D$4="Wakatipu",13,14),FALSE) ->  | F44: Building Coverage | G44: =VLOOKUP($B$9,GFA_Estimates,2,FALSE) -> 
A45: GFA DE's: | B45: =IF(AND(G42="",$G$3="New",L42="Residential"),1,B43/100*B44) ->  | F45: No. of Floors | G45: =VLOOKUP($B$9,GFA_Estimates,3,FALSE) -> 
A46: No. Units: | B46: =IF(B9="Primary Industry",G48,G9) -> 1 | F46: Gross Floor Area | G46: =IF(G44=0,Credits_Res_GFA,G43*G44*G45) ->  | H46: m² (estimated)
A47: Dwelling Equivalents per Unit: | B47: =B44 ->  | F47: Primary Industry Site Area/DE | G47: =VLOOKUP($D$4,Credits_Roading_PI,2,FALSE) ->  | K47: (1 b/r) | L47: (2 b/r) | M47: (3+ b/r)
A48: Unit DE's: | B48: =IF(B42="Both (max)",SUMPRODUCT(K49:M49,K48:M48),IF(B46="",1,B46*B47)) ->  | F48: Primary Industry GFA Equivalent | G48: =G43/G47 ->  | H48: m² (known) | J48: LU 4 differential | K48: =VLOOKUP($B$9&" "&K47,Credits_Land_Use_Differentials,IF($D$4="Wakatipu",13,14),FALSE) ->  | L48: =VLOOKUP($B$9&" "&L47,Credits_Land_Use_Differentials,IF($D$4="Wakatipu",13,14),FALSE) ->  | M48: =VLOOKUP($B$9&" "&M47,Credits_Land_Use_Differentials,IF($D$4="Wakatipu",13,14),FALSE) -> 
A49: Dwelling Equivalents: | B49: =IFERROR(IF($B$9="",0,IF(B42="Both (max)",MAX(B45,B48),IF(B42="Unit",B48,IF(G42="",B45*B46,B45)))),0) -> 0 | J49: LU 4 units | K49: =INDEX(K$6:K$9,LEFT($A41,1)) -> 0 | L49: =INDEX(L$6:L$9,LEFT($A41,1)) -> 0 | M49: =INDEX(M$6:M$9,LEFT($A41,1)) -> 0
A51: Post Development/Subdivision Demand - Roading
A52: For Consent No. | B52: =Consent_Number -> 0
F53: GFA Estimation Method | G53: =VLOOKUP(Policy_Year_Input,estimation_method,2,0) -> New
A54: Location: | B54: =B4 ->  | D54: =D4 -> 
K55: (1 b/r) | L55: (2 b/r) | M55: (3+ b/r)
A56: =IF(D51="1","Land Use Category:","1st Land Use Category:") -> 1st Land Use Category: | B56: =IF(Land_Use_Category_1="","",Land_Use_Category_1) ->  | F56: No. of Units | G56: =IF(No_Res_Units_LU1="",1,No_Res_Units_LU1) -> 1 | K56: =IF(LU1_1BedUnits="",0,LU1_1BedUnits) -> 0 | L56: =IF(LU1_2BedUnits="",0,LU1_2BedUnits) -> 0 | M56: =IF(LU1_3BedUnits="",0,LU1_3BedUnits) -> 0
A57: 2nd Land Use Category: | B57: =IF(Land_Use_Category_2="","",Land_Use_Category_2) ->  | F57: No. of Units | G57: =IF(No_Res_Units_LU2="",1,No_Res_Units_LU2) -> 1 | K57: =IF(LU2_1BedUnits="",0,LU2_1BedUnits) -> 0 | L57: =IF(LU2_2BedUnits="",0,LU2_2BedUnits) -> 0 | M57: =IF(LU2_3BedUnits="",0,LU2_3BedUnits) -> 0
A58: 3rd Land Use Category: | B58: =IF(Land_Use_Category_3="","",Land_Use_Category_3) ->  | F58: No. of Units | G58: =IF(No_Res_Units_LU3="",1,No_Res_Units_LU3) -> 1 | K58: =IF(LU3_1BedUnits="",0,LU3_1BedUnits) -> 0 | L58: =IF(LU3_2BedUnits="",0,LU3_2BedUnits) -> 0 | M58: =IF(LU3_3BedUnits="",0,LU3_3BedUnits) -> 0
A59: 4th Land Use Category: | B59: =IF(Land_Use_Category_4="","",Land_Use_Category_4) ->  | F59: No. of Units | G59: =IF(No_Res_Units_LU4="",1,No_Res_Units_LU4) -> 1 | K59: =IF(LU4_1BedUnits="",0,LU4_1BedUnits) -> 0 | L59: =IF(LU4_2BedUnits="",0,LU4_2BedUnits) -> 0 | M59: =IF(LU4_3BedUnits="",0,LU4_3BedUnits) -> 0
A61: =IF(D51="1","","1 ")&"Roading Contribution - "&$B$56&" Land Use" -> 1 Roading Contribution - Land Use | F61: SITE INFORMATION
A62: Differential Type | B62: =VLOOKUP($B$56,LUD_Type,IF($D$54="Wakatipu",13,14),FALSE) ->  | D62: =Required_LU1_Rdg -> Required | F62: Gross Floor Area | G62: =IF(LU1_GFA="","",LU1_GFA) ->  | H62: m² (known) | K62: Land Use Type | L62: =VLOOKUP(B56,categorisation,2,0) ->  | M62: Residential/Non-Residential
A63: Gross Floor Area (GFA): | B63: =IF(G62="",IF(AND($G$53="New",L62="Non-Residential"),L63,G67),G62) ->  | C63: m² | F63: Site Area | G63: =IF(LU1_SiteArea="","",LU1_SiteArea) ->  | H63: m² (known) | K63: Non-Res GFA Estimate | L63: =IF(G63<=500,50, IF(G63<=2000,100,400)) -> 400 | M63: m² (estimated)
A64: Dwelling Equivalents per 100m² GFA: | B64: =VLOOKUP($B$56,Land_Use_Differentials,IF($D$54="Wakatipu",13,14),FALSE) ->  | F64: Building Coverage | G64: =VLOOKUP($B$56,GFA_Estimates,2,FALSE) -> 
A65: GFA DE's: | B65: =IF(AND(G62="",$G$53="New",L62="Residential"),1,B63/100*B64) ->  | F65: No. of Floors | G65: =VLOOKUP($B$56,GFA_Estimates,3,FALSE) -> 
A66: No. Units: | B66: =IF(B56="Primary Industry",G69,G56) -> 1 | F66: Gross Floor Area | G66: =IF(G64=0,Res_GFA,G63*G64*G65) ->  | H66: m² (estimated)
A67: Dwelling Equivalents per Unit: | B67: =B64 ->  | G67: =IF(G63>0,G66*0.75,G66) ->  | H67: 75% of m² (estimated) | K67: (1 b/r) | L67: (2 b/r) | M67: (3+ b/r)
A68: Unit DE's: | B68: =IF(B62="Both (max)",SUMPRODUCT(K69:M69,K68:M68),IF(B66="",1,B66*B67)) ->  | F68: Primary Industry Site Area/DE | G68: =VLOOKUP($D$54,Roading_PI,2,FALSE) ->  | J68: LU 1 differential | K68: =VLOOKUP($B$56&" "&K67,Land_Use_Differentials,IF($D$54="Wakatipu",13,14),FALSE) ->  | L68: =VLOOKUP($B$56&" "&L67,Land_Use_Differentials,IF($D$54="Wakatipu",13,14),FALSE) ->  | M68: =VLOOKUP($B$56&" "&M67,Land_Use_Differentials,IF($D$54="Wakatipu",13,14),FALSE) -> 
A69: Dwelling Equivalents: | B69: =IF($B$56="",0,IF(B62="Both (max)",MAX(B65,B68),IF(B62="Unit",B68,IF(G62="",B66*B65,B65)))) -> 0 | F69: Primary Industry GFA Equivalent | G69: =G63/G68 ->  | H69: m² (known) | J69: LU 1 units | K69: =INDEX(K$56:K$59,LEFT($A61,1)) -> 0 | L69: =INDEX(L$56:L$59,LEFT($A61,1)) -> 0 | M69: =INDEX(M$56:M$59,LEFT($A61,1)) -> 0
A71: ="2 "&"Roading Contribution - "&$B$57&" Land Use" -> 2 Roading Contribution - Land Use | F71: SITE INFORMATION
A72: Differential Type | B72: =VLOOKUP($B$57,LUD_Type,IF($D$54="Wakatipu",13,14),FALSE) ->  | D72: =Required_LU2_Rdg -> 0 | F72: Gross Floor Area | G72: =IF(LU2_GFA="","",LU2_GFA) ->  | H72: m² (known) | K72: Land Use Type | L72: =VLOOKUP(B57,categorisation,2,0) ->  | M72: Residential/Non-Residential
A73: Gross Floor Area (GFA): | B73: =IF(G72="",IF(AND($G$53="New",L72="Non-Residential"),L73,G77),G72) ->  | C73: m² | F73: Site Area | G73: =IF(LU2_SiteArea="","",LU2_SiteArea) ->  | H73: m² (known) | K73: Non-Res GFA Estimate | L73: =IF(G73<=500,50, IF(G73<=2000,100,400)) -> 400 | M73: m² (estimated)
A74: Dwelling Equivalents per 100m² GFA: | B74: =VLOOKUP($B$57,Land_Use_Differentials,IF($D$54="Wakatipu",13,14),FALSE) ->  | F74: Building Coverage | G74: =VLOOKUP($B$57,GFA_Estimates,2,FALSE) -> 
A75: GFA DE's: | B75: =IF(AND(G72="",$G$53="New",L72="Residential"),1,B73/100*B74) ->  | F75: No. of Floors | G75: =VLOOKUP($B$57,GFA_Estimates,3,FALSE) -> 
A76: No. Units: | B76: =IF(B57="Primary Industry",G79,G57) -> 1 | F76: Gross Floor Area | G76: =IF(G74=0,Res_GFA,G73*G74*G75) ->  | H76: m² (estimated)
A77: Dwelling Equivalents per Unit: | B77: =B74 ->  | G77: =IF(G73>0,G76*0.75,G76) ->  | H77: 75% of m² (estimated) | K77: (1 b/r) | L77: (2 b/r) | M77: (3+ b/r)
A78: Unit DE's: | B78: =IF(B72="Both (max)",SUMPRODUCT(K79:M79,K78:M78),IF(B76="",1,B76*B77)) ->  | F78: Primary Industry Site Area/DE | G78: =VLOOKUP($D$54,Roading_PI,2,FALSE) ->  | J78: LU 2 differential | K78: =VLOOKUP($B$57&" "&K77,Land_Use_Differentials,IF($D$54="Wakatipu",13,14),FALSE) ->  | L78: =VLOOKUP($B$57&" "&L77,Land_Use_Differentials,IF($D$54="Wakatipu",13,14),FALSE) ->  | M78: =VLOOKUP($B$57&" "&M77,Land_Use_Differentials,IF($D$54="Wakatipu",13,14),FALSE) -> 
A79: Dwelling Equivalents: | B79: =IF($B$57="",0,IF(B72="Both (max)",MAX(B75,B78),IF(B72="Unit",B78,IF(G72="",B76*B75,B75)))) -> 0 | F79: Primary Industry GFA Equivalent | G79: =G73/G78 ->  | H79: m² (known) | J79: LU 2 units | K79: =INDEX(K$56:K$59,LEFT($A71,1)) -> 0 | L79: =INDEX(L$56:L$59,LEFT($A71,1)) -> 0 | M79: =INDEX(M$56:M$59,LEFT($A71,1)) -> 0
A81: ="3 "&"Roading Contribution - "&$B$58&" Land Use" -> 3 Roading Contribution - Land Use | F81: SITE INFORMATION
A82: Differential Type | B82: =VLOOKUP($B$58,LUD_Type,IF($D$54="Wakatipu",13,14),FALSE) ->  | D82: =Required_LU3_Rdg -> 0 | F82: Gross Floor Area | G82: =IF(LU3_GFA="","",LU3_GFA) ->  | H82: m² (known) | K82: Land Use Type | L82: =VLOOKUP(B58,categorisation,2,0) ->  | M82: Residential/Non-Residential
A83: Gross Floor Area (GFA): | B83: =IF(G82="",IF(AND($G$53="New",L82="Non-Residential"),L83,G87),G82) ->  | C83: m² | F83: Site Area | G83: =IF(LU3_SiteArea="","",LU3_SiteArea) ->  | H83: m² (known) | K83: Non-Res GFA Estimate | L83: =IF(G83<=500,50, IF(G83<=2000,100,400)) -> 400 | M83: m² (estimated)
A84: Dwelling Equivalents per 100m² GFA: | B84: =VLOOKUP($B$58,Land_Use_Differentials,IF($D$54="Wakatipu",13,14),FALSE) ->  | F84: Building Coverage | G84: =VLOOKUP($B$58,GFA_Estimates,2,FALSE) -> 
A85: GFA DE's: | B85: =IF(AND(G82="",$G$53="New",L82="Residential"),1,B83/100*B84) ->  | F85: No. of Floors | G85: =VLOOKUP($B$58,GFA_Estimates,3,FALSE) -> 
A86: No. Units: | B86: =IF(B58="Primary Industry",G89,G58) -> 1 | F86: Gross Floor Area | G86: =IF(G84=0,Res_GFA,G83*G84*G85) ->  | H86: m² (estimated)
A87: Dwelling Equivalents per Unit: | B87: =B84 ->  | G87: =IF(G83>0,G86*0.75,G86) ->  | H87: 75% of m² (estimated) | K87: (1 b/r) | L87: (2 b/r) | M87: (3+ b/r)
A88: Unit DE's: | B88: =IF(B82="Both (max)",SUMPRODUCT(K89:M89,K88:M88),IF(B86="",1,B86*B87)) ->  | F88: Primary Industry Site Area/DE | G88: =VLOOKUP($D$54,Roading_PI,2,FALSE) ->  | J88: LU 3 differential | K88: =VLOOKUP($B$58&" "&K87,Land_Use_Differentials,IF($D$54="Wakatipu",13,14),FALSE) ->  | L88: =VLOOKUP($B$58&" "&L87,Land_Use_Differentials,IF($D$54="Wakatipu",13,14),FALSE) ->  | M88: =VLOOKUP($B$58&" "&M87,Land_Use_Differentials,IF($D$54="Wakatipu",13,14),FALSE) -> 
A89: Dwelling Equivalents: | B89: =IF($B$58="",0,IF(B82="Both (max)",MAX(B85,B88),IF(B82="Unit",B88,IF(G82="",B86*B85,B85)))) -> 0 | F89: Primary Industry GFA Equivalent | G89: =G83/G88 ->  | H89: m² (known) | J89: LU 3 units | K89: =INDEX(K$56:K$59,LEFT($A81,1)) -> 0 | L89: =INDEX(L$56:L$59,LEFT($A81,1)) -> 0 | M89: =INDEX(M$56:M$59,LEFT($A81,1)) -> 0
A91: ="4 "&"Roading Contribution - "&$B$59&" Land Use" -> 4 Roading Contribution - Land Use | F91: SITE INFORMATION
A92: Differential Type | B92: =VLOOKUP($B$59,LUD_Type,IF($D$54="Wakatipu",13,14),FALSE) ->  | D92: =Required_LU4_Rdg -> 0 | F92: Gross Floor Area | G92: =IF(LU4_GFA="","",LU4_GFA) ->  | H92: m² (known) | K92: Land Use Type | L92: =VLOOKUP(B59,categorisation,2,0) ->  | M92: Residential/Non-Residential
A93: Gross Floor Area (GFA): | B93: =IF(G92="",IF(AND($G$53="New",L92="Non-Residential"),L93,G97),G92) ->  | C93: m² | F93: Site Area | G93: =IF(LU4_SiteArea="","",LU4_SiteArea) ->  | H93: m² (known) | K93: Non-Res GFA Estimate | L93: =IF(G93<=500,50, IF(G93<=2000,100,400)) -> 400 | M93: m² (estimated)
A94: Dwelling Equivalents per 100m² GFA: | B94: =VLOOKUP($B$59,Land_Use_Differentials,IF($D$54="Wakatipu",13,14),FALSE) ->  | F94: Building Coverage | G94: =VLOOKUP($B$59,GFA_Estimates,2,FALSE) -> 
A95: GFA DE's: | B95: =IF(AND(G92="",$G$53="New",L92="Residential"),1,B93/100*B94) ->  | F95: No. of Floors | G95: =VLOOKUP($B$59,GFA_Estimates,3,FALSE) -> 
A96: No. Units: | B96: =IF(B59="Primary Industry",G99,G59) -> 1 | F96: Gross Floor Area | G96: =IF(G94=0,Res_GFA,G93*G94*G95) ->  | H96: m² (estimated)
A97: Dwelling Equivalents per Unit: | B97: =B94 ->  | G97: =IF(G93>0,G96*0.75,G96) ->  | H97: 75% of m² (estimated) | K97: (1 b/r) | L97: (2 b/r) | M97: (3+ b/r)
A98: Unit DE's: | B98: =IF(B92="Both (max)",SUMPRODUCT(K99:M99,K98:M98),IF(B96="",1,B96*B97)) ->  | F98: Primary Industry Site Area/DE | G98: =VLOOKUP($D$54,Roading_PI,2,FALSE) ->  | J98: LU 4 differential | K98: =VLOOKUP($B$59&" "&K97,Land_Use_Differentials,IF($D$54="Wakatipu",13,14),FALSE) ->  | L98: =VLOOKUP($B$59&" "&L97,Land_Use_Differentials,IF($D$54="Wakatipu",13,14),FALSE) ->  | M98: =VLOOKUP($B$59&" "&M97,Land_Use_Differentials,IF($D$54="Wakatipu",13,14),FALSE) -> 
A99: Dwelling Equivalents: | B99: =IF($B$59="",0,IF(B92="Both (max)",MAX(B95,B98),IF(B92="Unit",B98,IF(G92="",B96*B95,B95)))) -> 0 | F99: Primary Industry GFA Equivalent | G99: =G93/G98 ->  | H99: m² (known) | J99: LU 4 units | K99: =INDEX(K$56:K$59,LEFT($A91,1)) -> 0 | L99: =INDEX(L$56:L$59,LEFT($A91,1)) -> 0 | M99: =INDEX(M$56:M$59,LEFT($A91,1)) -> 0
A102: Summary Outputs
A103: Total Roading Contribution
A104: Pre Demand: | B104: =ROUND(IF(Rdg_Credit_OR<>"",Rdg_Credit_OR,SUM(B19,B29,B39,B49)),2) -> 0
A105: Post Demand: | B105: =ROUND(SUM(IF(D62="required",B69,0),IF(D72="required",B79,0),IF(D82="required",B89,0),IF(D92="required",B99,0)),2) -> 0
A106: Additional Demand (DEs): | B106: =ROUND(MAX(B105-B104,0),2) -> 0
A107: Standard Contribution: | B107: =IF($B$54="",0,VLOOKUP($B$54,Std_Contributions,8,FALSE)) -> 0 | C107: GST | D107: Incl GST
A108: Roading Contribution: | B108: =+B106*B107 -> 0 | C108: =B108*GST -> 0 | D108: =B108+C108 -> 0

Sheet EAR (hidden)
A1: Pre Development/Subdivision Demand (Credits) - Roading - EAR
A2: For Consent No. | B2: =Headworks!$B$2 ->  | F2: No. of Land Uses | G2: =Number_Land_Uses -> 1
F3: GFA Estimation Method | G3: =VLOOKUP(Credits_PolicyYear_Input,estimation_method,2,0) -> 
A4: Location: | B4: =IF(Location="","",Location) ->  | D4: =IF($B$4="","",VLOOKUP(B4,Ward,10,0)) -> 
K5: (1 b/r) | L5: (2 b/r) | M5: (3+ b/r)
A6: =IF(F2="1","Land Use Category:","1st Land Use Category:") -> 1st Land Use Category: | B6: =IF(Land_Use_Category_1_Credits="","",Land_Use_Category_1_Credits) ->  | F6: No. of Units | G6: =IF(No_Res_Units_LU1_Credits="",1,No_Res_Units_LU1_Credits) -> 1 | K6: =IF(Cr_LU1_1BedUnits="",0,Cr_LU1_1BedUnits) -> 0 | L6: =IF(Cr_LU1_2BedUnits="",0,Cr_LU1_2BedUnits) -> 0 | M6: =IF(Cr_LU1_3BedUnits="",0,Cr_LU1_3BedUnits) -> 0
A7: 2nd Land Use Category: | B7: =IF(Land_Use_Category_2_Credits="","",Land_Use_Category_2_Credits) ->  | F7: No. of Units | G7: =IF(No_Res_Units_LU2_Credits="",1,No_Res_Units_LU2_Credits) -> 1 | K7: =IF(Cr_LU2_1BedUnits="",0,Cr_LU2_1BedUnits) -> 0 | L7: =IF(Cr_LU2_2BedUnits="",0,Cr_LU2_2BedUnits) -> 0 | M7: =IF(Cr_LU2_3BedUnits="",0,Cr_LU2_3BedUnits) -> 0
A8: 3rd Land Use Category: | B8: =IF(Land_Use_Category_3_Credits="","",Land_Use_Category_3_Credits) ->  | F8: No. of Units | G8: =IF(No_Res_Units_LU3_Credits="",1,No_Res_Units_LU3_Credits) -> 1 | K8: =IF(Cr_LU3_1BedUnits="",0,Cr_LU3_1BedUnits) -> 0 | L8: =IF(Cr_LU3_2BedUnits="",0,Cr_LU3_2BedUnits) -> 0 | M8: =IF(Cr_LU3_3BedUnits="",0,Cr_LU3_3BedUnits) -> 0
A9: 4th Land Use Category: | B9: =IF(Land_Use_Category_4_Credits="","",Land_Use_Category_4_Credits) ->  | F9: No. of Units | G9: =IF(No_Res_Units_LU4_Credits="",1,No_Res_Units_LU4_Credits) -> 1 | K9: =IF(Cr_LU4_1BedUnits="",0,Cr_LU4_1BedUnits) -> 0 | L9: =IF(Cr_LU4_2BedUnits="",0,Cr_LU4_2BedUnits) -> 0 | M9: =IF(Cr_LU4_3BedUnits="",0,Cr_LU4_3BedUnits) -> 0
A11: =IF($G$2="1","","1 ")&"Roading - EAR Contribution - "&$B$6&" Land Use" -> 1 Roading - EAR Contribution - Land Use | F11: SITE INFORMATION
A12: Differential Type | B12: =VLOOKUP($B$6,Credits_LUD_Type,15,FALSE) ->  | F12: Gross Floor Area | G12: =IF(LU1_GFA_Credits="","",LU1_GFA_Credits) ->  | H12: m² (known) | K12: Land Use Type | L12: =VLOOKUP(B6,categorisation,2,0) ->  | M12: Residential/Non-Residential
A13: Gross Floor Area (GFA): | B13: =IF(G12="",IF(AND($G$3="New",L12="Non-Residential"),L13,G16),G12) ->  | C13: m² | F13: Site Area | G13: =IF(LU1_SiteArea_Credits="","",LU1_SiteArea_Credits) ->  | H13: m² (known) | K13: Non-Res GFA Estimate | L13: =IF(G13<=500,50, IF(G13<=2000,100,400)) -> 400 | M13: m² (estimated)
A14: Dwelling Equivalents per 100m² GFA: | B14: =VLOOKUP($B$6,Credits_Land_Use_Differentials,15,FALSE) ->  | F14: Building Coverage | G14: =VLOOKUP($B$6,GFA_Estimates,2,FALSE) -> 
A15: GFA DE's: | B15: =IF(AND(G12="",$G$3="New",L12="Residential"),1,B13/100*B14) ->  | F15: No. of Floors | G15: =VLOOKUP($B$6,GFA_Estimates,3,FALSE) -> 
A16: No. Units: | B16: =IF(B6="Primary Industry",G18,G6) -> 1 | F16: Gross Floor Area | G16: =IF(G14=0,Credits_Res_GFA,G13*G14*G15) ->  | H16: m² (estimated)
A17: Dwelling Equivalents per Unit: | B17: =B14 ->  | F17: Primary Industry Site Area/DE | G17: =VLOOKUP($D$4,Credits_Roading_PI,2,FALSE) ->  | K17: (1 b/r) | L17: (2 b/r) | M17: (3+ b/r)
A18: Unit DE's: | B18: =IF(B12="Both (max)",SUMPRODUCT(K19:M19,K18:M18),IF(B16="",1,B16*B17)) ->  | F18: Primary Industry Unit Equivalents | G18: =G13/G17 ->  | H18: m² (known) | J18: LU 1 differential | K18: =VLOOKUP($B$6&" "&K17,Credits_Land_Use_Differentials,15,FALSE) ->  | L18: =VLOOKUP($B$6&" "&L17,Credits_Land_Use_Differentials,15,FALSE) ->  | M18: =VLOOKUP($B$6&" "&M17,Credits_Land_Use_Differentials,15,FALSE) -> 
A19: Dwelling Equivalents: | B19: =IFERROR(IF($B$6="",0,IF(B12="Both (max)",MAX(B15,B18),IF(B12="Unit",B18,IF(G12="",B15*B16,B15)))),0) -> 0 | J19: LU 1 units | K19: =INDEX(K$6:K$9,LEFT($A11,1)) -> 0 | L19: =INDEX(L$6:L$9,LEFT($A11,1)) -> 0 | M19: =INDEX(M$6:M$9,LEFT($A11,1)) -> 0
A21: =IF($G$2="2","","2 ")&"Roading - EAR Contribution - "&$B$7&" Land Use" -> 2 Roading - EAR Contribution - Land Use | F21: SITE INFORMATION
A22: Differential Type | B22: =VLOOKUP($B$7,Credits_LUD_Type,15,FALSE) ->  | F22: Gross Floor Area | G22: =IF(LU2_GFA_Credits="","",LU2_GFA_Credits) ->  | H22: m² (known) | K22: Land Use Type | L22: =VLOOKUP(B7,categorisation,2,0) ->  | M22: Residential/Non-Residential
A23: Gross Floor Area (GFA): | B23: =IF(G22="",IF(AND($G$3="New",L22="Non-Residential"),L23,G26),G22) ->  | C23: m² | F23: Site Area | G23: =IF(LU2_SiteArea_Credits="","",LU2_SiteArea_Credits) ->  | H23: m² (known) | K23: Non-Res GFA Estimate | L23: =IF(G23<=500,50, IF(G23<=2000,100,400)) -> 400 | M23: m² (estimated)
A24: Dwelling Equivalents per 100m² GFA: | B24: =VLOOKUP($B$7,Credits_Land_Use_Differentials,15,FALSE) ->  | F24: Building Coverage | G24: =VLOOKUP($B$7,GFA_Estimates,2,FALSE) -> 
A25: GFA DE's: | B25: =IF(AND(G22="",$G$3="New",L22="Residential"),1,B23/100*B24) ->  | F25: No. of Floors | G25: =VLOOKUP($B$7,GFA_Estimates,3,FALSE) -> 
A26: No. Units: | B26: =IF(B7="Primary Industry",G28,G7) -> 1 | F26: Gross Floor Area | G26: =IF(G24=0,Credits_Res_GFA,G23*G24*G25) ->  | H26: m² (estimated)
A27: Dwelling Equivalents per Unit: | B27: =B24 ->  | F27: Primary Industry Site Area/DE | G27: =VLOOKUP($D$4,Credits_Roading_PI,2,FALSE) ->  | K27: (1 b/r) | L27: (2 b/r) | M27: (3+ b/r)
A28: Unit DE's: | B28: =IF(B22="Both (max)",SUMPRODUCT(K29:M29,K28:M28),IF(B26="",1,B26*B27)) ->  | F28: Primary Industry GFA Equivalent | G28: =G23/G27 ->  | H28: m² (known) | J28: LU 2 differential | K28: =VLOOKUP($B$7&" "&K27,Credits_Land_Use_Differentials,15,FALSE) ->  | L28: =VLOOKUP($B$7&" "&L27,Credits_Land_Use_Differentials,15,FALSE) ->  | M28: =VLOOKUP($B$7&" "&M27,Credits_Land_Use_Differentials,15,FALSE) -> 
A29: Dwelling Equivalents: | B29: =IFERROR(IF($B$7="",0,IF(B22="Both (max)",MAX(B25,B28),IF(B22="Unit",B28,IF(G22="",B25*B26,B25)))),0) -> 0 | J29: LU 2 units | K29: =INDEX(K$6:K$9,LEFT($A21,1)) -> 0 | L29: =INDEX(L$6:L$9,LEFT($A21,1)) -> 0 | M29: =INDEX(M$6:M$9,LEFT($A21,1)) -> 0
A31: =IF($G$2="3","","3 ")&"Roading - EAR Contribution - "&$B$8&" Land Use" -> 3 Roading - EAR Contribution - Land Use | F31: SITE INFORMATION
A32: Differential Type | B32: =VLOOKUP($B$8,Credits_LUD_Type,15,FALSE) ->  | F32: Gross Floor Area | G32: =IF(LU3_GFA_Credits="","",LU3_GFA_Credits) ->  | H32: m² (known) | K32: Land Use Type | L32: =VLOOKUP(B8,categorisation,2,0) ->  | M32: Residential/Non-Residential
A33: Gross Floor Area (GFA): | B33: =IF(G32="",IF(AND($G$3="New",L32="Non-Residential"),L33,G36),G32) ->  | C33: m² | F33: Site Area | G33: =IF(LU3_SiteArea_Credits="","",LU3_SiteArea_Credits) ->  | H33: m² (known) | K33: Non-Res GFA Estimate | L33: =IF(G33<=500,50, IF(G33<=2000,100,400)) -> 400 | M33: m² (estimated)
A34: Dwelling Equivalents per 100m² GFA: | B34: =VLOOKUP($B$8,Credits_Land_Use_Differentials,15,FALSE) ->  | F34: Building Coverage | G34: =VLOOKUP($B$8,GFA_Estimates,2,FALSE) -> 
A35: GFA DE's: | B35: =IF(AND(G32="",$G$3="New",L32="Residential"),1,B33/100*B34) ->  | F35: No. of Floors | G35: =VLOOKUP($B$8,GFA_Estimates,3,FALSE) -> 
A36: No. Units: | B36: =IF(B8="Primary Industry",G38,G8) -> 1 | F36: Gross Floor Area | G36: =IF(G34=0,Credits_Res_GFA,G33*G34*G35) ->  | H36: m² (estimated)
A37: Dwelling Equivalents per Unit: | B37: =B34 ->  | F37: Primary Industry Site Area/DE | G37: =VLOOKUP($D$4,Credits_Roading_PI,2,FALSE) ->  | K37: (1 b/r) | L37: (2 b/r) | M37: (3+ b/r)
A38: Unit DE's: | B38: =IF(B32="Both (max)",SUMPRODUCT(K39:M39,K38:M38),IF(B36="",1,B36*B37)) ->  | F38: Primary Industry GFA Equivalent | G38: =G33/G37 ->  | H38: m² (known) | J38: LU 3 differential | K38: =VLOOKUP($B$8&" "&K37,Credits_Land_Use_Differentials,15,FALSE) ->  | L38: =VLOOKUP($B$8&" "&L37,Credits_Land_Use_Differentials,15,FALSE) ->  | M38: =VLOOKUP($B$8&" "&M37,Credits_Land_Use_Differentials,15,FALSE) -> 
A39: Dwelling Equivalents: | B39: =IFERROR(IF($B$8="",0,IF(B32="Both (max)",MAX(B35,B38),IF(B32="Unit",B38,IF(G32="",B35*B36,B35)))),0) -> 0 | J39: LU 3 units | K39: =INDEX(K$6:K$9,LEFT($A31,1)) -> 0 | L39: =INDEX(L$6:L$9,LEFT($A31,1)) -> 0 | M39: =INDEX(M$6:M$9,LEFT($A31,1)) -> 0
A41: =IF($G$2="4","","4 ")&"Roading - EAR Contribution - "&$B$9&" Land Use" -> 4 Roading - EAR Contribution - Land Use | F41: SITE INFORMATION
A42: Differential Type | B42: =VLOOKUP($B$9,Credits_LUD_Type,15,FALSE) ->  | F42: Gross Floor Area | G42: =IF(LU4_GFA_Credits="","",LU4_GFA_Credits) ->  | H42: m² (known) | K42: Land Use Type | L42: =VLOOKUP(B9,categorisation,2,0) ->  | M42: Residential/Non-Residential
A43: Gross Floor Area (GFA): | B43: =IF(G42="",IF(AND($G$3="New",L42="Non-Residential"),L43,G46),G42) ->  | C43: m² | F43: Site Area | G43: =IF(LU4_SiteArea_Credits="","",LU4_SiteArea_Credits) ->  | H43: m² (known) | K43: Non-Res GFA Estimate | L43: =IF(G43<=500,50, IF(G43<=2000,100,400)) -> 400 | M43: m² (estimated)
A44: Dwelling Equivalents per 100m² GFA: | B44: =VLOOKUP($B$9,Credits_Land_Use_Differentials,15,FALSE) ->  | F44: Building Coverage | G44: =VLOOKUP($B$9,GFA_Estimates,2,FALSE) -> 
A45: GFA DE's: | B45: =IF(AND(G42="",$G$3="New",L42="Residential"),1,B43/100*B44) ->  | F45: No. of Floors | G45: =VLOOKUP($B$9,GFA_Estimates,3,FALSE) -> 
A46: No. Units: | B46: =IF(B9="Primary Industry",G48,G9) -> 1 | F46: Gross Floor Area | G46: =IF(G44=0,Credits_Res_GFA,G43*G44*G45) ->  | H46: m² (estimated)
A47: Dwelling Equivalents per Unit: | B47: =B44 ->  | F47: Primary Industry Site Area/DE | G47: =VLOOKUP($D$4,Credits_Roading_PI,2,FALSE) ->  | K47: (1 b/r) | L47: (2 b/r) | M47: (3+ b/r)
A48: Unit DE's: | B48: =IF(B42="Both (max)",SUMPRODUCT(K49:M49,K48:M48),IF(B46="",1,B46*B47)) ->  | F48: Primary Industry GFA Equivalent | G48: =G43/G47 ->  | H48: m² (known) | J48: LU 4 differential | K48: =VLOOKUP($B$9&" "&K47,Credits_Land_Use_Differentials,15,FALSE) ->  | L48: =VLOOKUP($B$9&" "&L47,Credits_Land_Use_Differentials,15,FALSE) ->  | M48: =VLOOKUP($B$9&" "&M47,Credits_Land_Use_Differentials,15,FALSE) -> 
A49: Dwelling Equivalents: | B49: =IFERROR(IF($B$9="",0,IF(B42="Both (max)",MAX(B45,B48),IF(B42="Unit",B48,IF(G42="",B45*B46,B45)))),0) -> 0 | J49: LU 4 units | K49: =INDEX(K$6:K$9,LEFT($A41,1)) -> 0 | L49: =INDEX(L$6:L$9,LEFT($A41,1)) -> 0 | M49: =INDEX(M$6:M$9,LEFT($A41,1)) -> 0
A51: Post Development/Subdivision Demand - Roading - EAR
A52: For Consent No. | B52: =Consent_Number -> 0
F53: GFA Estimation Method | G53: =VLOOKUP(Policy_Year_Input,estimation_method,2,0) -> New
A54: Location: | B54: =B4 ->  | D54: =D4 -> 
K55: (1 b/r) | L55: (2 b/r) | M55: (3+ b/r)
A56: =IF(D51="1","Land Use Category:","1st Land Use Category:") -> 1st Land Use Category: | B56: =IF(Land_Use_Category_1="","",Land_Use_Category_1) ->  | F56: No. of Units | G56: =IF(No_Res_Units_LU1="",1,No_Res_Units_LU1) -> 1 | K56: =IF(LU1_1BedUnits="",0,LU1_1BedUnits) -> 0 | L56: =IF(LU1_2BedUnits="",0,LU1_2BedUnits) -> 0 | M56: =IF(LU1_3BedUnits="",0,LU1_3BedUnits) -> 0
A57: 2nd Land Use Category: | B57: =IF(Land_Use_Category_2="","",Land_Use_Category_2) ->  | F57: No. of Units | G57: =IF(No_Res_Units_LU2="",1,No_Res_Units_LU2) -> 1 | K57: =IF(LU2_1BedUnits="",0,LU2_1BedUnits) -> 0 | L57: =IF(LU2_2BedUnits="",0,LU2_2BedUnits) -> 0 | M57: =IF(LU2_3BedUnits="",0,LU2_3BedUnits) -> 0
A58: 3rd Land Use Category: | B58: =IF(Land_Use_Category_3="","",Land_Use_Category_3) ->  | F58: No. of Units | G58: =IF(No_Res_Units_LU3="",1,No_Res_Units_LU3) -> 1 | K58: =IF(LU3_1BedUnits="",0,LU3_1BedUnits) -> 0 | L58: =IF(LU3_2BedUnits="",0,LU3_2BedUnits) -> 0 | M58: =IF(LU3_3BedUnits="",0,LU3_3BedUnits) -> 0
A59: 4th Land Use Category: | B59: =IF(Land_Use_Category_4="","",Land_Use_Category_4) ->  | F59: No. of Units | G59: =IF(No_Res_Units_LU4="",1,No_Res_Units_LU4) -> 1 | K59: =IF(LU4_1BedUnits="",0,LU4_1BedUnits) -> 0 | L59: =IF(LU4_2BedUnits="",0,LU4_2BedUnits) -> 0 | M59: =IF(LU4_3BedUnits="",0,LU4_3BedUnits) -> 0
A61: =IF($G$2="1","","1 ")&"Roading - EAR Contribution - "&$B$56&" Land Use" -> 1 Roading - EAR Contribution - Land Use | F61: SITE INFORMATION
A62: Differential Type | B62: =VLOOKUP($B$56,LUD_Type,15,FALSE) ->  | D62: =Required_LU1_EAR -> 0 | F62: Gross Floor Area | G62: =IF(LU1_GFA="","",LU1_GFA) ->  | H62: m² (known) | K62: Land Use Type | L62: =VLOOKUP(B56,categorisation,2,0) ->  | M62: Residential/Non-Residential
A63: Gross Floor Area (GFA): | B63: =IF(G62="",IF(AND($G$53="New",L62="Non-Residential"),L63,G67),G62) ->  | C63: m² | F63: Site Area | G63: =IF(LU1_SiteArea="","",LU1_SiteArea) ->  | H63: m² (known) | K63: Non-Res GFA Estimate | L63: =IF(G63<=500,50, IF(G63<=2000,100,400)) -> 400 | M63: m² (estimated)
A64: Dwelling Equivalents per 100m² GFA: | B64: =VLOOKUP($B$56,Land_Use_Differentials,15,FALSE) ->  | F64: Building Coverage | G64: =VLOOKUP($B$56,GFA_Estimates,2,FALSE) -> 
A65: GFA DE's: | B65: =IF(AND(G62="",$G$53="New",L62="Residential"),1,B63/100*B64) ->  | F65: No. of Floors | G65: =VLOOKUP($B$56,GFA_Estimates,3,FALSE) -> 
A66: No. Units: | B66: =IF(B56="Primary Industry",G69,G56) -> 1 | F66: Gross Floor Area | G66: =IF(G64=0,Res_GFA,G63*G64*G65) ->  | H66: m² (estimated)
A67: Dwelling Equivalents per Unit: | B67: =B64 ->  | G67: =IF(G63>0,G66*0.75,G66) ->  | H67: 75% of m² (estimated) | K67: (1 b/r) | L67: (2 b/r) | M67: (3+ b/r)
A68: Unit DE's: | B68: =IF(B62="Both (max)",SUMPRODUCT(K69:M69,K68:M68),IF(B66="",1,B66*B67)) ->  | F68: Primary Industry Site Area/DE | G68: =VLOOKUP($D$54,Roading_PI,2,FALSE) ->  | J68: LU 1 differential | K68: =VLOOKUP($B$56&" "&K67,Land_Use_Differentials,15,FALSE) ->  | L68: =VLOOKUP($B$56&" "&L67,Land_Use_Differentials,15,FALSE) ->  | M68: =VLOOKUP($B$56&" "&M67,Land_Use_Differentials,15,FALSE) -> 
A69: Dwelling Equivalents: | B69: =IF($B$56="",0,IF(B62="Both (max)",MAX(B65,B68),IF(B62="Unit",B68,IF(G62="",B66*B65,B65)))) -> 0 | F69: Primary Industry GFA Equivalent | G69: =G63/G68 ->  | H69: m² (known) | J69: LU 1 units | K69: =INDEX(K$56:K$59,LEFT($A61,1)) -> 0 | L69: =INDEX(L$56:L$59,LEFT($A61,1)) -> 0 | M69: =INDEX(M$56:M$59,LEFT($A61,1)) -> 0
A71: =IF($G$2="2","","2 ")&"Roading - EAR Contribution - "&$B$57&" Land Use" -> 2 Roading - EAR Contribution - Land Use | F71: SITE INFORMATION
A72: Differential Type | B72: =VLOOKUP($B$57,LUD_Type,15,FALSE) ->  | D72: =Required_LU2_EAR -> 0 | F72: Gross Floor Area | G72: =IF(LU2_GFA="","",LU2_GFA) ->  | H72: m² (known) | K72: Land Use Type | L72: =VLOOKUP(B57,categorisation,2,0) ->  | M72: Residential/Non-Residential
A73: Gross Floor Area (GFA): | B73: =IF(G72="",IF(AND($G$53="New",L72="Non-Residential"),L73,G76),G72) ->  | C73: m² | F73: Site Area | G73: =IF(LU2_SiteArea="","",LU2_SiteArea) ->  | H73: m² (known) | K73: Non-Res GFA Estimate | L73: =IF(G73<=500,50, IF(G73<=2000,100,400)) -> 400 | M73: m² (estimated)
A74: Dwelling Equivalents per 100m² GFA: | B74: =VLOOKUP($B$57,Land_Use_Differentials,15,FALSE) ->  | F74: Building Coverage | G74: =VLOOKUP($B$57,GFA_Estimates,2,FALSE) -> 
A75: GFA DE's: | B75: =IF(AND(G72="",$G$53="New",L72="Residential"),1,B73/100*B74) ->  | F75: No. of Floors | G75: =VLOOKUP($B$57,GFA_Estimates,3,FALSE) -> 
A76: No. Units: | B76: =IF(B57="Primary Industry",G79,G57) -> 1 | F76: Gross Floor Area | G76: =IF(G74=0,Res_GFA,G73*G74*G75) ->  | H76: m² (estimated)
A77: Dwelling Equivalents per Unit: | B77: =B74 ->  | G77: =IF(G73>0,G76*0.75,G76) ->  | H77: 75% of m² (estimated) | K77: (1 b/r) | L77: (2 b/r) | M77: (3+ b/r)
A78: Unit DE's: | B78: =IF(B72="Both (max)",SUMPRODUCT(K79:M79,K78:M78),IF(B76="",1,B76*B77)) ->  | F78: Primary Industry Site Area/DE | G78: =VLOOKUP($D$54,Roading_PI,2,FALSE) ->  | J78: LU 2 differential | K78: =VLOOKUP($B$57&" "&K77,Land_Use_Differentials,15,FALSE) ->  | L78: =VLOOKUP($B$57&" "&L77,Land_Use_Differentials,15,FALSE) ->  | M78: =VLOOKUP($B$57&" "&M77,Land_Use_Differentials,15,FALSE) -> 
A79: Dwelling Equivalents: | B79: =IF($B$57="",0,IF(B72="Both (max)",MAX(B75,B78),IF(B72="Unit",B78,IF(G72="",B76*B75,B75)))) -> 0 | F79: Primary Industry GFA Equivalent | G79: =G73/G78 ->  | H79: m² (known) | J79: LU 2 units | K79: =INDEX(K$56:K$59,LEFT($A71,1)) -> 0 | L79: =INDEX(L$56:L$59,LEFT($A71,1)) -> 0 | M79: =INDEX(M$56:M$59,LEFT($A71,1)) -> 0
A81: =IF($G$2="3","","3 ")&"Roading - EAR Contribution - "&$B$58&" Land Use" -> 3 Roading - EAR Contribution - Land Use | F81: SITE INFORMATION
A82: Differential Type | B82: =VLOOKUP($B$58,LUD_Type,15,FALSE) ->  | D82: =Required_LU3_EAR -> 0 | F82: Gross Floor Area | G82: =IF(LU3_GFA="","",LU3_GFA) ->  | H82: m² (known) | K82: Land Use Type | L82: =VLOOKUP(B58,categorisation,2,0) ->  | M82: Residential/Non-Residential
A83: Gross Floor Area (GFA): | B83: =IF(G82="",IF(AND($G$53="New",L82="Non-Residential"),L83,G86),G82) ->  | C83: m² | F83: Site Area | G83: =IF(LU3_SiteArea="","",LU3_SiteArea) ->  | H83: m² (known) | K83: Non-Res GFA Estimate | L83: =IF(G83<=500,50, IF(G83<=2000,100,400)) -> 400 | M83: m² (estimated)
A84: Dwelling Equivalents per 100m² GFA: | B84: =VLOOKUP($B$58,Land_Use_Differentials,15,FALSE) ->  | F84: Building Coverage | G84: =VLOOKUP($B$58,GFA_Estimates,2,FALSE) -> 
A85: GFA DE's: | B85: =IF(AND(G82="",$G$53="New",L82="Residential"),1,B83/100*B84) ->  | F85: No. of Floors | G85: =VLOOKUP($B$58,GFA_Estimates,3,FALSE) -> 
A86: No. Units: | B86: =IF(B58="Primary Industry",G89,G58) -> 1 | F86: Gross Floor Area | G86: =IF(G84=0,Res_GFA,G83*G84*G85) ->  | H86: m² (estimated)
A87: Dwelling Equivalents per Unit: | B87: =B84 ->  | G87: =IF(G83>0,G86*0.75,G86) ->  | H87: 75% of m² (estimated) | K87: (1 b/r) | L87: (2 b/r) | M87: (3+ b/r)
A88: Unit DE's: | B88: =IF(B82="Both (max)",SUMPRODUCT(K89:M89,K88:M88),IF(B86="",1,B86*B87)) ->  | F88: Primary Industry Site Area/DE | G88: =VLOOKUP($D$54,Roading_PI,2,FALSE) ->  | J88: LU 3 differential | K88: =VLOOKUP($B$58&" "&K87,Land_Use_Differentials,15,FALSE) ->  | L88: =VLOOKUP($B$58&" "&L87,Land_Use_Differentials,15,FALSE) ->  | M88: =VLOOKUP($B$58&" "&M87,Land_Use_Differentials,15,FALSE) -> 
A89: Dwelling Equivalents: | B89: =IF($B$58="",0,IF(B82="Both (max)",MAX(B85,B88),IF(B82="Unit",B88,IF(G82="",B86*B85,B85)))) -> 0 | F89: Primary Industry GFA Equivalent | G89: =G83/G88 ->  | H89: m² (known) | J89: LU 3 units | K89: =INDEX(K$56:K$59,LEFT($A81,1)) -> 0 | L89: =INDEX(L$56:L$59,LEFT($A81,1)) -> 0 | M89: =INDEX(M$56:M$59,LEFT($A81,1)) -> 0
A91: =IF($G$2="4","","4 ")&"Roading - EAR Contribution - "&$B$59&" Land Use" -> 4 Roading - EAR Contribution - Land Use | F91: SITE INFORMATION
A92: Differential Type | B92: =VLOOKUP($B$59,LUD_Type,15,FALSE) ->  | D92: =Required_LU4_EAR -> 0 | F92: Gross Floor Area | G92: =IF(LU4_GFA="","",LU4_GFA) ->  | H92: m² (known) | K92: Land Use Type | L92: =VLOOKUP(B59,categorisation,2,0) ->  | M92: Residential/Non-Residential
A93: Gross Floor Area (GFA): | B93: =IF(G92="",IF(AND($G$53="New",L92="Non-Residential"),L93,G96),G92) ->  | C93: m² | F93: Site Area | G93: =IF(LU4_SiteArea="","",LU4_SiteArea) ->  | H93: m² (known) | K93: Non-Res GFA Estimate | L93: =IF(G93<=500,50, IF(G93<=2000,100,400)) -> 400 | M93: m² (estimated)
A94: Dwelling Equivalents per 100m² GFA: | B94: =VLOOKUP($B$59,Land_Use_Differentials,15,FALSE) ->  | F94: Building Coverage | G94: =VLOOKUP($B$59,GFA_Estimates,2,FALSE) -> 
A95: GFA DE's: | B95: =IF(AND(G92="",$G$53="New",L92="Residential"),1,B93/100*B94) ->  | F95: No. of Floors | G95: =VLOOKUP($B$59,GFA_Estimates,3,FALSE) -> 
A96: No. Units: | B96: =IF(B59="Primary Industry",G99,G59) -> 1 | F96: Gross Floor Area | G96: =IF(G94=0,Res_GFA,G93*G94*G95) ->  | H96: m² (estimated)
A97: Dwelling Equivalents per Unit: | B97: =B94 ->  | G97: =IF(G93>0,G96*0.75,G96) ->  | H97: 75% of m² (estimated) | K97: (1 b/r) | L97: (2 b/r) | M97: (3+ b/r)
A98: Unit DE's: | B98: =IF(B92="Both (max)",SUMPRODUCT(K99:M99,K98:M98),IF(B96="",1,B96*B97)) ->  | F98: Primary Industry Site Area/DE | G98: =VLOOKUP($D$54,Roading_PI,2,FALSE) ->  | J98: LU 4 differential | K98: =VLOOKUP($B$59&" "&K97,Land_Use_Differentials,15,FALSE) ->  | L98: =VLOOKUP($B$59&" "&L97,Land_Use_Differentials,15,FALSE) ->  | M98: =VLOOKUP($B$59&" "&M97,Land_Use_Differentials,15,FALSE) -> 
A99: Dwelling Equivalents: | B99: =IF($B$59="",0,IF(B92="Both (max)",MAX(B95,B98),IF(B92="Unit",B98,IF(G92="",B96*B95,B95)))) -> 0 | F99: Primary Industry GFA Equivalent | G99: =G93/G98 ->  | H99: m² (known) | J99: LU 4 units | K99: =INDEX(K$56:K$59,LEFT($A91,1)) -> 0 | L99: =INDEX(L$56:L$59,LEFT($A91,1)) -> 0 | M99: =INDEX(M$56:M$59,LEFT($A91,1)) -> 0
G100: =IF(G93>0,G99*0.75,G99) ->  | H100: 75% of m² (estimated)
A102: Summary Outputs
A103: Total Roading - EAR Contribution
A104: Pre Demand: | B104: =ROUND(IF(EAR_Credit_OR<>"",EAR_Credit_OR,SUM(B19,B29,B39,B49)),2)*IF(Consent_Lodged_Date>=EAREffectiveDate,1,0) -> 0
A105: Post Demand: | B105: =ROUND(SUM(IF(D62="required",B69,0),IF(D72="required",B79,0),IF(D82="required",B89,0),IF(D92="required",B99,0)),2)*IF(Consent_Lodged_Date>=EAREffectiveDate,1,0) -> 0
A106: Additional Demand (DEs): | B106: =ROUND(MAX(B105-B104,0),2) -> 0
A107: Standard Contribution: | B107: =IF($B$54="",0,VLOOKUP($B$54,Std_Contributions,9,FALSE))*IF(Consent_Lodged_Date>=EAREffectiveDate,1,0) -> 0 | C107: GST | D107: Incl GST
A108: Roading - EAR Contribution: | B108: =+B106*B107 -> 0 | C108: =B108*GST -> 0 | D108: =B108+C108 -> 0

Sheet Calculation Links (hidden)
A1: Standard Contributions | L1: Land Use Differentials | M1: Use for post development | Z1: =+HLOOKUP(Z$41,Differentials,2,FALSE) -> 15 | AC1: Land Use Differentials | AD1: Use for pre development (credits)
M3: Water Supply | O3: Wastewater | P3: Stormwater | Q3: Community Facilities | S3: Reserve Improvements | U3: Reserve Land | W3: Reserve Land - premier sportsfield | X3: Roading | Z3: Roading - EAR | AD3: Water Supply | AF3: Wastewater | AG3: Stormwater | AH3: Community Facilities | AJ3: Reserve Improvements | AL3: Reserve Land | AN3: Reserve Land - premier sportsfield | AO3: Roading | AQ3: Roading - EAR
B4: Water Supply | C4: Wastewater | D4: Stormwater | E4: Reserve Improvements | F4: Community Facilities | G4: Premier Sportsfields - Reserve Land | H4: Transportation | I4: Transportation - EAR | M4: Dwelling Equivalents per 100m² GFA | N4: Plus Network Factor Dwelling Equivalents | O4: Dwelling Equivalents per 100m² GFA | P4: Dwelling Equivalents per 100m² Impervious Surface Area | Q4: Dwelling Equivalents per 100m² GFA for Wakatipu | R4: Dwelling Equivalents per 100m² GFA for Wanaka | S4: Dwelling Equivalents per 100m² GFA for Wakatipu | T4: Dwelling Equivalents per 100m² GFA for Wanaka | U4: Dwelling Equivalents per 100m² GFA for Wakatipu | V4: Dwelling Equivalents per 100m² GFA for Wanaka | W4: Dwelling Equivalents per 100m² GFA | X4: Dwelling Equivalents per 100m² GFA for Wakatipu | Y4: Dwelling Equivalents per 100m² GFA for Wanaka | Z4: Dwelling Equivalents per 100m² GFA for Wakatipu | AD4: Dwelling Equivalents per 100m² GFA | AE4: Plus Network Factor Dwelling Equivalents | AF4: Dwelling Equivalents per 100m² GFA | AG4: Dwelling Equivalents per 100m² Impervious Surface Area | AH4: Dwelling Equivalents per 100m² GFA for Wakatipu | AI4: Dwelling Equivalents per 100m² GFA for Wanaka | AJ4: Dwelling Equivalents per 100m² GFA for Wakatipu | AK4: Dwelling Equivalents per 100m² GFA for Wanaka | AL4: Dwelling Equivalents per 100m² GFA for Wakatipu | AM4: Dwelling Equivalents per 100m² GFA for Wanaka | AN4: Dwelling Equivalents per 100m² GFA | AO4: Dwelling Equivalents per 100m² GFA for Wakatipu | AP4: Dwelling Equivalents per 100m² GFA for Wanaka | AQ4: Dwelling Equivalents per 100m² GFA for Wakatipu
A5: ='Validation Lists'!AD2 -> Queenstown | B5: =VLOOKUP(Policy_Year_Input&'Calculation Links'!$A5,Standard_Contributions,HLOOKUP(B$4,Standard_Contributions,2,FALSE),FALSE) -> 5192 | C5: =VLOOKUP(Policy_Year_Input&'Calculation Links'!$A5,Standard_Contributions,HLOOKUP(C$4,Standard_Contributions,2,FALSE),FALSE) -> 12326 | D5: =VLOOKUP(Policy_Year_Input&'Calculation Links'!$A5,Standard_Contributions,HLOOKUP(D$4,Standard_Contributions,2,FALSE),FALSE) -> 4808 | E5: =VLOOKUP(Policy_Year_Input&'Calculation Links'!$A5,Standard_Contributions,HLOOKUP(E$4,Standard_Contributions,2,FALSE),FALSE) -> 1182 | F5: =VLOOKUP(Policy_Year_Input&'Calculation Links'!$A5,Standard_Contributions,HLOOKUP(F$4,Standard_Contributions,2,FALSE),FALSE) -> 3604 | G5: =VLOOKUP(Policy_Year_Input&'Calculation Links'!$A5,Standard_Contributions,HLOOKUP(G$4,Standard_Contributions,2,FALSE),FALSE) -> 500 | H5: =VLOOKUP(Policy_Year_Input&'Calculation Links'!$A5,Standard_Contributions,HLOOKUP(H$4,Standard_Contributions,2,FALSE),FALSE) -> 5339 | I5: =VLOOKUP(Policy_Year_Input&'Calculation Links'!$A5,Standard_Contributions,HLOOKUP(I$4,Standard_Contributions,2,FALSE),FALSE) -> 960 | J5: ='Validation Lists'!AE2 -> Wakatipu | L5: Residential | M5: =VLOOKUP(Policy_Year_Input&'Calculation Links'!$L5,Differentials,HLOOKUP(M$41,Differentials,2,FALSE),FALSE) -> 1 | N5: =VLOOKUP(Policy_Year_Input&'Calculation Links'!$L5,Differentials,HLOOKUP(N$41,Differentials,2,FALSE),FALSE) -> 0 | O5: =VLOOKUP(Policy_Year_Input&'Calculation Links'!$L5,Differentials,HLOOKUP(O$41,Differentials,2,FALSE),FALSE) -> 1 | P5: =VLOOKUP(Policy_Year_Input&'Calculation Links'!$L5,Differentials,HLOOKUP(P$41,Differentials,2,FALSE),FALSE) -> 1 | Q5: =VLOOKUP(Policy_Year_Input&'Calculation Links'!$L5,Differentials,HLOOKUP(Q$41,Differentials,2,FALSE),FALSE) -> 1 | R5: =VLOOKUP(Policy_Year_Input&'Calculation Links'!$L5,Differentials,HLOOKUP(R$41,Differentials,2,FALSE),FALSE) -> 1 | S5: =VLOOKUP(Policy_Year_Input&'Calculation Links'!$L5,Differentials,HLOOKUP(S$41,Differentials,2,FALSE),FALSE) -> 1 | T5: =VLOOKUP(Policy_Year_Input&'Calculation Links'!$L5,Differentials,HLOOKUP(T$41,Differentials,2,FALSE),FALSE) -> 1 | U5: =VLOOKUP(Policy_Year_Input&'Calculation Links'!$L5,Differentials,HLOOKUP(U$41,Differentials,2,FALSE),FALSE) -> 1 | V5: =VLOOKUP(Policy_Year_Input&'Calculation Links'!$L5,Differentials,HLOOKUP(V$41,Differentials,2,FALSE),FALSE) -> 1 | W5: =VLOOKUP(Policy_Year_Input&'Calculation Links'!$L5,Differentials,HLOOKUP(W$41,Differentials,2,FALSE),FALSE) -> 1 | X5: =VLOOKUP(Policy_Year_Input&'Calculation Links'!$L5,Differentials,HLOOKUP(X$41,Differentials,2,FALSE),FALSE) -> 1 | Y5: =VLOOKUP(Policy_Year_Input&'Calculation Links'!$L5,Differentials,HLOOKUP(Y$41,Differentials,2,FALSE),FALSE) -> 1 | Z5: =VLOOKUP(Policy_Year_Input&'Calculation Links'!$L5,Differentials,HLOOKUP(Z$41,Differentials,2,FALSE),FALSE) -> 1 | AA5: =IF(LEFT(Policy_Year_Input,7)="2018/19","NR",AB5) -> R | AB5: R | AC5: Residential | AD5: =VLOOKUP(Credits_PolicyYear_Input&'Calculation Links'!$L5,Differentials,HLOOKUP(AD$41,Differentials,2,FALSE),FALSE) -> 0 | AE5: =VLOOKUP(Credits_PolicyYear_Input&'Calculation Links'!$L5,Differentials,HLOOKUP(AE$41,Differentials,2,FALSE),FALSE) -> 0 | AF5: =VLOOKUP(Credits_PolicyYear_Input&'Calculation Links'!$L5,Differentials,HLOOKUP(AF$41,Differentials,2,FALSE),FALSE) -> 0 | AG5: =VLOOKUP(Credits_PolicyYear_Input&'Calculation Links'!$L5,Differentials,HLOOKUP(AG$41,Differentials,2,FALSE),FALSE) -> 0 | AH5: =VLOOKUP(Credits_PolicyYear_Input&'Calculation Links'!$L5,Differentials,HLOOKUP(AH$41,Differentials,2,FALSE),FALSE) -> 0 | AI5: =VLOOKUP(Credits_PolicyYear_Input&'Calculation Links'!$L5,Differentials,HLOOKUP(AI$41,Differentials,2,FALSE),FALSE) -> 0 | AJ5: =VLOOKUP(Credits_PolicyYear_Input&'Calculation Links'!$L5,Differentials,HLOOKUP(AJ$41,Differentials,2,FALSE),FALSE) -> 0 | AK5: =VLOOKUP(Credits_PolicyYear_Input&'Calculation Links'!$L5,Differentials,HLOOKUP(AK$41,Differentials,2,FALSE),FALSE) -> 0 | AL5: =VLOOKUP(Credits_PolicyYear_Input&'Calculation Links'!$L5,Differentials,HLOOKUP(AL$41,Differentials,2,FALSE),FALSE) -> 0 | AM5: =VLOOKUP(Credits_PolicyYear_Input&'Calculation Links'!$L5,Differentials,HLOOKUP(AM$41,Differentials,2,FALSE),FALSE) -> 0 | AN5: =VLOOKUP(Credits_PolicyYear_Input&'Calculation Links'!$L5,Differentials,HLOOKUP(AN$41,Differentials,2,FALSE),FALSE) -> 0 | AO5: =VLOOKUP(Credits_PolicyYear_Input&'Calculation Links'!$L5,Differentials,HLOOKUP(AO$41,Differentials,2,FALSE),FALSE) -> 0 | AP5: =VLOOKUP(Credits_PolicyYear_Input&'Calculation Links'!$L5,Differentials,HLOOKUP(AP$41,Differentials,2,FALSE),FALSE) -> 0 | AQ5: =VLOOKUP(Credits_PolicyYear_Input&'Calculation Links'!$L5,Differentials,HLOOKUP(AQ$41,Differentials,2,FALSE),FALSE) -> 0 | AR5: =IF(LEFT(Credits_PolicyYear_Input,7)="2018/19","NR",AS5) -> R | AS5: R
A6: ='Validation Lists'!AD3 -> Arrowtown | B6: =VLOOKUP(Policy_Year_Input&'Calculation Links'!$A6,Standard_Contributions,HLOOKUP(B$4,Standard_Contributions,2,FALSE),FALSE) -> 6303 | C6: =VLOOKUP(Policy_Year_Input&'Calculation Links'!$A6,Standard_Contributions,HLOOKUP(C$4,Standard_Contributions,2,FALSE),FALSE) -> 5930 | D6: =VLOOKUP(Policy_Year_Input&'Calculation Links'!$A6,Standard_Contributions,HLOOKUP(D$4,Standard_Contributions,2,FALSE),FALSE) -> 266 | E6: =VLOOKUP(Policy_Year_Input&'Calculation Links'!$A6,Standard_Contributions,HLOOKUP(E$4,Standard_Contributions,2,FALSE),FALSE) -> 1182 | F6: =VLOOKUP(Policy_Year_Input&'Calculation Links'!$A6,Standard_Contributions,HLOOKUP(F$4,Standard_Contributions,2,FALSE),FALSE) -> 3604 | G6: =VLOOKUP(Policy_Year_Input&'Calculation Links'!$A6,Standard_Contributions,HLOOKUP(G$4,Standard_Contributions,2,FALSE),FALSE) -> 500 | H6: =VLOOKUP(Policy_Year_Input&'Calculation Links'!$A6,Standard_Contributions,HLOOKUP(H$4,Standard_Contributions,2,FALSE),FALSE) -> 5339 | I6: =VLOOKUP(Policy_Year_Input&'Calculation Links'!$A6,Standard_Contributions,HLOOKUP(I$4,Standard_Contributions,2,FALSE),FALSE) -> 0 | J6: ='Validation Lists'!AE3 -> Wakatipu | L6: Residential Flat | M6: =VLOOKUP(Policy_Year_Input&'Calculation Links'!$L6,Differentials,HLOOKUP(M$41,Differentials,2,FALSE),FALSE) -> 0.56 | N6: =VLOOKUP(Policy_Year_Input&'Calculation Links'!$L6,Differentials,HLOOKUP(N$41,Differentials,2,FALSE),FALSE) -> 0 | O6: =VLOOKUP(Policy_Year_Input&'Calculation Links'!$L6,Differentials,HLOOKUP(O$41,Differentials,2,FALSE),FALSE) -> 0.56 | P6: =VLOOKUP(Policy_Year_Input&'Calculation Links'!$L6,Differentials,HLOOKUP(P$41,Differentials,2,FALSE),FALSE) -> 0.38 | Q6: =VLOOKUP(Policy_Year_Input&'Calculation Links'!$L6,Differentials,HLOOKUP(Q$41,Differentials,2,FALSE),FALSE) -> 0.56 | R6: =VLOOKUP(Policy_Year_Input&'Calculation Links'!$L6,Differentials,HLOOKUP(R$41,Differentials,2,FALSE),FALSE) -> 0.56 | S6: =VLOOKUP(Policy_Year_Input&'Calculation Links'!$L6,Differentials,HLOOKUP(S$41,Differentials,2,FALSE),FALSE) -> 0.56 | T6: =VLOOKUP(Policy_Year_Input&'Calculation Links'!$L6,Differentials,HLOOKUP(T$41,Differentials,2,FALSE),FALSE) -> 0.56 | U6: =VLOOKUP(Policy_Year_Input&'Calculation Links'!$L6,Differentials,HLOOKUP(U$41,Differentials,2,FALSE),FALSE) -> 0 | V6: =VLOOKUP(Policy_Year_Input&'Calculation Links'!$L6,Differentials,HLOOKUP(V$41,Differentials,2,FALSE),FALSE) -> 0 | W6: =VLOOKUP(Policy_Year_Input&'Calculation Links'!$L6,Differentials,HLOOKUP(W$41,Differentials,2,FALSE),FALSE) -> 0 | X6: =VLOOKUP(Policy_Year_Input&'Calculation Links'!$L6,Differentials,HLOOKUP(X$41,Differentials,2,FALSE),FALSE) -> 0.56 | Y6: =VLOOKUP(Policy_Year_Input&'Calculation Links'!$L6,Differentials,HLOOKUP(Y$41,Differentials,2,FALSE),FALSE) -> 0.56 | Z6: =VLOOKUP(Policy_Year_Input&'Calculation Links'!$L6,Differentials,HLOOKUP(Z$41,Differentials,2,FALSE),FALSE) -> 0.56 | AA6: R | AB6: R | AC6: Residential Flat | AD6: =VLOOKUP(Credits_PolicyYear_Input&'Calculation Links'!$L6,Differentials,HLOOKUP(AD$41,Differentials,2,FALSE),FALSE) -> 0 | AE6: =VLOOKUP(Credits_PolicyYear_Input&'Calculation Links'!$L6,Differentials,HLOOKUP(AE$41,Differentials,2,FALSE),FALSE) -> 0 | AF6: =VLOOKUP(Credits_PolicyYear_Input&'Calculation Links'!$L6,Differentials,HLOOKUP(AF$41,Differentials,2,FALSE),FALSE) -> 0 | AG6: =VLOOKUP(Credits_PolicyYear_Input&'Calculation Links'!$L6,Differentials,HLOOKUP(AG$41,Differentials,2,FALSE),FALSE) -> 0 | AH6: =VLOOKUP(Credits_PolicyYear_Input&'Calculation Links'!$L6,Differentials,HLOOKUP(AH$41,Differentials,2,FALSE),FALSE) -> 0 | AI6: =VLOOKUP(Credits_PolicyYear_Input&'Calculation Links'!$L6,Differentials,HLOOKUP(AI$41,Differentials,2,FALSE),FALSE) -> 0 | AJ6: =VLOOKUP(Credits_PolicyYear_Input&'Calculation Links'!$L6,Differentials,HLOOKUP(AJ$41,Differentials,2,FALSE),FALSE) -> 0 | AK6: =VLOOKUP(Credits_PolicyYear_Input&'Calculation Links'!$L6,Differentials,HLOOKUP(AK$41,Differentials,2,FALSE),FALSE) -> 0 | AL6: =VLOOKUP(Credits_PolicyYear_Input&'Calculation Links'!$L6,Differentials,HLOOKUP(AL$41,Differentials,2,FALSE),FALSE) -> 0 | AM6: =VLOOKUP(Credits_PolicyYear_Input&'Calculation Links'!$L6,Differentials,HLOOKUP(AM$41,Differentials,2,FALSE),FALSE) -> 0 | AN6: =VLOOKUP(Credits_PolicyYear_Input&'Calculation Links'!$L6,Differentials,HLOOKUP(AN$41,Differentials,2,FALSE),FALSE) -> 0 | AO6: =VLOOKUP(Credits_PolicyYear_Input&'Calculation Links'!$L6,Differentials,HLOOKUP(AO$41,Differentials,2,FALSE),FALSE) -> 0 | AP6: =VLOOKUP(Credits_PolicyYear_Input&'Calculation Links'!$L6,Differentials,HLOOKUP(AP$41,Differentials,2,FALSE),FALSE) -> 0 | AQ6: =VLOOKUP(Credits_PolicyYear_Input&'Calculation Links'!$L6,Differentials,HLOOKUP(AQ$41,Differentials,2,FALSE),FALSE) -> 0 | AR6: R | AS6: R
A7: ='Validation Lists'!AD4 -> Glenorchy | B7: =VLOOKUP(Policy_Year_Input&'Calculation Links'!$A7,Standard_Contributions,HLOOKUP(B$4,Standard_Contributions,2,FALSE),FALSE) -> 14494 | C7: =VLOOKUP(Policy_Year_Input&'Calculation Links'!$A7,Standard_Contributions,HLOOKUP(C$4,Standard_Contributions,2,FALSE),FALSE) -> 0 | D7: =VLOOKUP(Policy_Year_Input&'Calculation Links'!$A7,Standard_Contributions,HLOOKUP(D$4,Standard_Contributions,2,FALSE),FALSE) -> 258 | E7: =VLOOKUP(Policy_Year_Input&'Calculation Links'!$A7,Standard_Contributions,HLOOKUP(E$4,Standard_Contributions,2,FALSE),FALSE) -> 1182 | F7: =VLOOKUP(Policy_Year_Input&'Calculation Links'!$A7,Standard_Contributions,HLOOKUP(F$4,Standard_Contributions,2,FALSE),FALSE) -> 3604 | G7: =VLOOKUP(Policy_Year_Input&'Calculation Links'!$A7,Standard_Contributions,HLOOKUP(G$4,Standard_Contributions,2,FALSE),FALSE) -> 500 | H7: =VLOOKUP(Policy_Year_Input&'Calculation Links'!$A7,Standard_Contributions,HLOOKUP(H$4,Standard_Contributions,2,FALSE),FALSE) -> 5339 | I7: =VLOOKUP(Policy_Year_Input&'Calculation Links'!$A7,Standard_Contributions,HLOOKUP(I$4,Standard_Contributions,2,FALSE),FALSE) -> 0 | J7: ='Validation Lists'!AE4 -> Wakatipu | L7: Multi-unit Residential | M7: =VLOOKUP(Policy_Year_Input&'Calculation Links'!$L7,Differentials,HLOOKUP(M$41,Differentials,2,FALSE),FALSE) -> 0.56 | N7: =VLOOKUP(Policy_Year_Input&'Calculation Links'!$L7,Differentials,HLOOKUP(N$41,Differentials,2,FALSE),FALSE) -> 0 | O7: =VLOOKUP(Policy_Year_Input&'Calculation Links'!$L7,Differentials,HLOOKUP(O$41,Differentials,2,FALSE),FALSE) -> 0.56 | P7: =VLOOKUP(Policy_Year_Input&'Calculation Links'!$L7,Differentials,HLOOKUP(P$41,Differentials,2,FALSE),FALSE) -> 0.38 | Q7: =VLOOKUP(Policy_Year_Input&'Calculation Links'!$L7,Differentials,HLOOKUP(Q$41,Differentials,2,FALSE),FALSE) -> 0.56 | R7: =VLOOKUP(Policy_Year_Input&'Calculation Links'!$L7,Differentials,HLOOKUP(R$41,Differentials,2,FALSE),FALSE) -> 0.56 | S7: =VLOOKUP(Policy_Year_Input&'Calculation Links'!$L7,Differentials,HLOOKUP(S$41,Differentials,2,FALSE),FALSE) -> 0.56 | T7: =VLOOKUP(Policy_Year_Input&'Calculation Links'!$L7,Differentials,HLOOKUP(T$41,Differentials,2,FALSE),FALSE) -> 0.56 | U7: =VLOOKUP(Policy_Year_Input&'Calculation Links'!$L7,Differentials,HLOOKUP(U$41,Differentials,2,FALSE),FALSE) -> 0.56 | V7: =VLOOKUP(Policy_Year_Input&'Calculation Links'!$L7,Differentials,HLOOKUP(V$41,Differentials,2,FALSE),FALSE) -> 0.56 | W7: =VLOOKUP(Policy_Year_Input&'Calculation Links'!$L7,Differentials,HLOOKUP(W$41,Differentials,2,FALSE),FALSE) -> 0.56 | X7: =VLOOKUP(Policy_Year_Input&'Calculation Links'!$L7,Differentials,HLOOKUP(X$41,Differentials,2,FALSE),FALSE) -> 0.56 | Y7: =VLOOKUP(Policy_Year_Input&'Calculation Links'!$L7,Differentials,HLOOKUP(Y$41,Differentials,2,FALSE),FALSE) -> 0.56 | Z7: =VLOOKUP(Policy_Year_Input&'Calculation Links'!$L7,Differentials,HLOOKUP(Z$41,Differentials,2,FALSE),FALSE) -> 0.56 | AA7: R | AB7: R | AC7: Multi-unit Residential | AD7: =VLOOKUP(Credits_PolicyYear_Input&'Calculation Links'!$L7,Differentials,HLOOKUP(AD$41,Differentials,2,FALSE),FALSE) -> 0 | AE7: =VLOOKUP(Credits_PolicyYear_Input&'Calculation Links'!$L7,Differentials,HLOOKUP(AE$41,Differentials,2,FALSE),FALSE) -> 0 | AF7: =VLOOKUP(Credits_PolicyYear_Input&'Calculation Links'!$L7,Differentials,HLOOKUP(AF$41,Differentials,2,FALSE),FALSE) -> 0 | AG7: =VLOOKUP(Credits_PolicyYear_Input&'Calculation Links'!$L7,Differentials,HLOOKUP(AG$41,Differentials,2,FALSE),FALSE) -> 0 | AH7: =VLOOKUP(Credits_PolicyYear_Input&'Calculation Links'!$L7,Differentials,HLOOKUP(AH$41,Differentials,2,FALSE),FALSE) -> 0 | AI7: =VLOOKUP(Credits_PolicyYear_Input&'Calculation Links'!$L7,Differentials,HLOOKUP(AI$41,Differentials,2,FALSE),FALSE) -> 0 | AJ7: =VLOOKUP(Credits_PolicyYear_Input&'Calculation Links'!$L7,Differentials,HLOOKUP(AJ$41,Differentials,2,FALSE),FALSE) -> 0 | AK7: =VLOOKUP(Credits_PolicyYear_Input&'Calculation Links'!$L7,Differentials,HLOOKUP(AK$41,Differentials,2,FALSE),FALSE) -> 0 | AL7: =VLOOKUP(Credits_PolicyYear_Input&'Calculation Links'!$L7,Differentials,HLOOKUP(AL$41,Differentials,2,FALSE),FALSE) -> 0 | AM7: =VLOOKUP(Credits_PolicyYear_Input&'Calculation Links'!$L7,Differentials,HLOOKUP(AM$41,Differentials,2,FALSE),FALSE) -> 0 | AN7: =VLOOKUP(Credits_PolicyYear_Input&'Calculation Links'!$L7,Differentials,HLOOKUP(AN$41,Differentials,2,FALSE),FALSE) -> 0 | AO7: =VLOOKUP(Credits_PolicyYear_Input&'Calculation Links'!$L7,Differentials,HLOOKUP(AO$41,Differentials,2,FALSE),FALSE) -> 0 | AP7: =VLOOKUP(Credits_PolicyYear_Input&'Calculation Links'!$L7,Differentials,HLOOKUP(AP$41,Differentials,2,FALSE),FALSE) -> 0 | AQ7: =VLOOKUP(Credits_PolicyYear_Input&'Calculation Links'!$L7,Differentials,HLOOKUP(AQ$41,Differentials,2,FALSE),FALSE) -> 0 | AR7: R | AS7: R
A8: ='Validation Lists'!AD5 -> Lake Hayes | B8: =VLOOKUP(Policy_Year_Input&'Calculation Links'!$A8,Standard_Contributions,HLOOKUP(B$4,Standard_Contributions,2,FALSE),FALSE) -> 5192 | C8: =VLOOKUP(Policy_Year_Input&'Calculation Links'!$A8,Standard_Contributions,HLOOKUP(C$4,Standard_Contributions,2,FALSE),FALSE) -> 7252 | D8: =VLOOKUP(Policy_Year_Input&'Calculation Links'!$A8,Standard_Contributions,HLOOKUP(D$4,Standard_Contributions,2,FALSE),FALSE) -> 0 | E8: =VLOOKUP(Policy_Year_Input&'Calculation Links'!$A8,Standard_Contributions,HLOOKUP(E$4,Standard_Contributions,2,FALSE),FALSE) -> 1182 | F8: =VLOOKUP(Policy_Year_Input&'Calculation Links'!$A8,Standard_Contributions,HLOOKUP(F$4,Standard_Contributions,2,FALSE),FALSE) -> 3604 | G8: =VLOOKUP(Policy_Year_Input&'Calculation Links'!$A8,Standard_Contributions,HLOOKUP(G$4,Standard_Contributions,2,FALSE),FALSE) -> 500 | H8: =VLOOKUP(Policy_Year_Input&'Calculation Links'!$A8,Standard_Contributions,HLOOKUP(H$4,Standard_Contributions,2,FALSE),FALSE) -> 5339 | I8: =VLOOKUP(Policy_Year_Input&'Calculation Links'!$A8,Standard_Contributions,HLOOKUP(I$4,Standard_Contributions,2,FALSE),FALSE) -> 0 | J8: ='Validation Lists'!AE5 -> Wakatipu | L8: Retirement units | M8: =VLOOKUP(Policy_Year_Input&'Calculation Links'!$L8,Differentials,HLOOKUP(M$41,Differentials,2,FALSE),FALSE) ->  | N8: =VLOOKUP(Policy_Year_Input&'Calculation Links'!$L8,Differentials,HLOOKUP(N$41,Differentials,2,FALSE),FALSE) ->  | O8: =VLOOKUP(Policy_Year_Input&'Calculation Links'!$L8,Differentials,HLOOKUP(O$41,Differentials,2,FALSE),FALSE) ->  | P8: =VLOOKUP(Policy_Year_Input&'Calculation Links'!$L8,Differentials,HLOOKUP(P$41,Differentials,2,FALSE),FALSE) ->  | Q8: =VLOOKUP(Policy_Year_Input&'Calculation Links'!$L8,Differentials,HLOOKUP(Q$41,Differentials,2,FALSE),FALSE) ->  | R8: =VLOOKUP(Policy_Year_Input&'Calculation Links'!$L8,Differentials,HLOOKUP(R$41,Differentials,2,FALSE),FALSE) ->  | S8: =VLOOKUP(Policy_Year_Input&'Calculation Links'!$L8,Differentials,HLOOKUP(S$41,Differentials,2,FALSE),FALSE) ->  | T8: =VLOOKUP(Policy_Year_Input&'Calculation Links'!$L8,Differentials,HLOOKUP(T$41,Differentials,2,FALSE),FALSE) ->  | U8: =VLOOKUP(Policy_Year_Input&'Calculation Links'!$L8,Differentials,HLOOKUP(U$41,Differentials,2,FALSE),FALSE) ->  | V8: =VLOOKUP(Policy_Year_Input&'Calculation Links'!$L8,Differentials,HLOOKUP(V$41,Differentials,2,FALSE),FALSE) ->  | W8: =VLOOKUP(Policy_Year_Input&'Calculation Links'!$L8,Differentials,HLOOKUP(W$41,Differentials,2,FALSE),FALSE) ->  | X8: =VLOOKUP(Policy_Year_Input&'Calculation Links'!$L8,Differentials,HLOOKUP(X$41,Differentials,2,FALSE),FALSE) ->  | Y8: =VLOOKUP(Policy_Year_Input&'Calculation Links'!$L8,Differentials,HLOOKUP(Y$41,Differentials,2,FALSE),FALSE) ->  | Z8: =VLOOKUP(Policy_Year_Input&'Calculation Links'!$L8,Differentials,HLOOKUP(Z$41,Differentials,2,FALSE),FALSE) ->  | AA8: R | AB8: R | AC8: Retirement units | AD8: =VLOOKUP(Credits_PolicyYear_Input&'Calculation Links'!$L8,Differentials,HLOOKUP(AD$41,Differentials,2,FALSE),FALSE) -> 0 | AE8: =VLOOKUP(Credits_PolicyYear_Input&'Calculation Links'!$L8,Differentials,HLOOKUP(AE$41,Differentials,2,FALSE),FALSE) -> 0 | AF8: =VLOOKUP(Credits_PolicyYear_Input&'Calculation Links'!$L8,Differentials,HLOOKUP(AF$41,Differentials,2,FALSE),FALSE) -> 0 | AG8: =VLOOKUP(Credits_PolicyYear_Input&'Calculation Links'!$L8,Differentials,HLOOKUP(AG$41,Differentials,2,FALSE),FALSE) -> 0 | AH8: =VLOOKUP(Credits_PolicyYear_Input&'Calculation Links'!$L8,Differentials,HLOOKUP(AH$41,Differentials,2,FALSE),FALSE) -> 0 | AI8: =VLOOKUP(Credits_PolicyYear_Input&'Calculation Links'!$L8,Differentials,HLOOKUP(AI$41,Differentials,2,FALSE),FALSE) -> 0 | AJ8: =VLOOKUP(Credits_PolicyYear_Input&'Calculation Links'!$L8,Differentials,HLOOKUP(AJ$41,Differentials,2,FALSE),FALSE) -> 0 | AK8: =VLOOKUP(Credits_PolicyYear_Input&'Calculation Links'!$L8,Differentials,HLOOKUP(AK$41,Differentials,2,FALSE),FALSE) -> 0 | AL8: =VLOOKUP(Credits_PolicyYear_Input&'Calculation Links'!$L8,Differentials,HLOOKUP(AL$41,Differentials,2,FALSE),FALSE) -> 0 | AM8: =VLOOKUP(Credits_PolicyYear_Input&'Calculation Links'!$L8,Differentials,HLOOKUP(AM$41,Differentials,2,FALSE),FALSE) -> 0 | AN8: =VLOOKUP(Credits_PolicyYear_Input&'Calculation Links'!$L8,Differentials,HLOOKUP(AN$41,Differentials,2,FALSE),FALSE) -> 0 | AO8: =VLOOKUP(Credits_PolicyYear_Input&'Calculation Links'!$L8,Differentials,HLOOKUP(AO$41,Differentials,2,FALSE),FALSE) -> 0 | AP8: =VLOOKUP(Credits_PolicyYear_Input&'Calculation Links'!$L8,Differentials,HLOOKUP(AP$41,Differentials,2,FALSE),FALSE) -> 0 | AQ8: =VLOOKUP(Credits_PolicyYear_Input&'Calculation Links'!$L8,Differentials,HLOOKUP(AQ$41,Differentials,2,FALSE),FALSE) -> 0 | AR8: R | AS8: R
A9: ='Validation Lists'!AD6 -> Arthurs Point | B9: =VLOOKUP(Policy_Year_Input&'Calculation Links'!$A9,Standard_Contributions,HLOOKUP(B$4,Standard_Contributions,2,FALSE),FALSE) -> 3568 | C9: =VLOOKUP(Policy_Year_Input&'Calculation Links'!$A9,Standard_Contributions,HLOOKUP(C$4,Standard_Contributions,2,FALSE),FALSE) -> 12326 | D9: =VLOOKUP(Policy_Year_Input&'Calculation Links'!$A9,Standard_Contributions,HLOOKUP(D$4,Standard_Contributions,2,FALSE),FALSE) -> 0 | E9: =VLOOKUP(Policy_Year_Input&'Calculation Links'!$A9,Standard_Contributions,HLOOKUP(E$4,Standard_Contributions,2,FALSE),FALSE) -> 1182 | F9: =VLOOKUP(Policy_Year_Input&'Calculation Links'!$A9,Standard_Contributions,HLOOKUP(F$4,Standard_Contributions,2,FALSE),FALSE) -> 3604 | G9: =VLOOKUP(Policy_Year_Input&'Calculation Links'!$A9,Standard_Contributions,HLOOKUP(G$4,Standard_Contributions,2,FALSE),FALSE) -> 500 | H9: =VLOOKUP(Policy_Year_Input&'Calculation Links'!$A9,Standard_Contributions,HLOOKUP(H$4,Standard_Contributions,2,FALSE),FALSE) -> 5339 | I9: =VLOOKUP(Policy_Year_Input&'Calculation Links'!$A9,Standard_Contributions,HLOOKUP(I$4,Standard_Contributions,2,FALSE),FALSE) -> 0 | J9: ='Validation Lists'!AE6 -> Wakatipu | L9: Accommodation | M9: =VLOOKUP(Policy_Year_Input&'Calculation Links'!$L9,Differentials,HLOOKUP(M$41,Differentials,2,FALSE),FALSE) ->  | N9: =VLOOKUP(Policy_Year_Input&'Calculation Links'!$L9,Differentials,HLOOKUP(N$41,Differentials,2,FALSE),FALSE) ->  | O9: =VLOOKUP(Policy_Year_Input&'Calculation Links'!$L9,Differentials,HLOOKUP(O$41,Differentials,2,FALSE),FALSE) ->  | P9: =VLOOKUP(Policy_Year_Input&'Calculation Links'!$L9,Differentials,HLOOKUP(P$41,Differentials,2,FALSE),FALSE) ->  | Q9: =VLOOKUP(Policy_Year_Input&'Calculation Links'!$L9,Differentials,HLOOKUP(Q$41,Differentials,2,FALSE),FALSE) ->  | R9: =VLOOKUP(Policy_Year_Input&'Calculation Links'!$L9,Differentials,HLOOKUP(R$41,Differentials,2,FALSE),FALSE) ->  | S9: =VLOOKUP(Policy_Year_Input&'Calculation Links'!$L9,Differentials,HLOOKUP(S$41,Differentials,2,FALSE),FALSE) ->  | T9: =VLOOKUP(Policy_Year_Input&'Calculation Links'!$L9,Differentials,HLOOKUP(T$41,Differentials,2,FALSE),FALSE) ->  | U9: =VLOOKUP(Policy_Year_Input&'Calculation Links'!$L9,Differentials,HLOOKUP(U$41,Differentials,2,FALSE),FALSE) ->  | V9: =VLOOKUP(Policy_Year_Input&'Calculation Links'!$L9,Differentials,HLOOKUP(V$41,Differentials,2,FALSE),FALSE) ->  | W9: =VLOOKUP(Policy_Year_Input&'Calculation Links'!$L9,Differentials,HLOOKUP(W$41,Differentials,2,FALSE),FALSE) ->  | X9: =VLOOKUP(Policy_Year_Input&'Calculation Links'!$L9,Differentials,HLOOKUP(X$41,Differentials,2,FALSE),FALSE) ->  | Y9: =VLOOKUP(Policy_Year_Input&'Calculation Links'!$L9,Differentials,HLOOKUP(Y$41,Differentials,2,FALSE),FALSE) ->  | Z9: =VLOOKUP(Policy_Year_Input&'Calculation Links'!$L9,Differentials,HLOOKUP(Z$41,Differentials,2,FALSE),FALSE) ->  | AA9: R | AB9: R | AC9: Accommodation | AD9: =VLOOKUP(Credits_PolicyYear_Input&'Calculation Links'!$L9,Differentials,HLOOKUP(AD$41,Differentials,2,FALSE),FALSE) -> 0 | AE9: =VLOOKUP(Credits_PolicyYear_Input&'Calculation Links'!$L9,Differentials,HLOOKUP(AE$41,Differentials,2,FALSE),FALSE) -> 0 | AF9: =VLOOKUP(Credits_PolicyYear_Input&'Calculation Links'!$L9,Differentials,HLOOKUP(AF$41,Differentials,2,FALSE),FALSE) -> 0 | AG9: =VLOOKUP(Credits_PolicyYear_Input&'Calculation Links'!$L9,Differentials,HLOOKUP(AG$41,Differentials,2,FALSE),FALSE) -> 0 | AH9: =VLOOKUP(Credits_PolicyYear_Input&'Calculation Links'!$L9,Differentials,HLOOKUP(AH$41,Differentials,2,FALSE),FALSE) -> 0 | AI9: =VLOOKUP(Credits_PolicyYear_Input&'Calculation Links'!$L9,Differentials,HLOOKUP(AI$41,Differentials,2,FALSE),FALSE) -> 0 | AJ9: =VLOOKUP(Credits_PolicyYear_Input&'Calculation Links'!$L9,Differentials,HLOOKUP(AJ$41,Differentials,2,FALSE),FALSE) -> 0 | AK9: =VLOOKUP(Credits_PolicyYear_Input&'Calculation Links'!$L9,Differentials,HLOOKUP(AK$41,Differentials,2,FALSE),FALSE) -> 0 | AL9: =VLOOKUP(Credits_PolicyYear_Input&'Calculation Links'!$L9,Differentials,HLOOKUP(AL$41,Differentials,2,FALSE),FALSE) -> 0 | AM9: =VLOOKUP(Credits_PolicyYear_Input&'Calculation Links'!$L9,Differentials,HLOOKUP(AM$41,Differentials,2,FALSE),FALSE) -> 0 | AN9: =VLOOKUP(Credits_PolicyYear_Input&'Calculation Links'!$L9,Differentials,HLOOKUP(AN$41,Differentials,2,FALSE),FALSE) -> 0 | AO9: =VLOOKUP(Credits_PolicyYear_Input&'Calculation Links'!$L9,Differentials,HLOOKUP(AO$41,Differentials,2,FALSE),FALSE) -> 0 | AP9: =VLOOKUP(Credits_PolicyYear_Input&'Calculation Links'!$L9,Differentials,HLOOKUP(AP$41,Differentials,2,FALSE),FALSE) -> 0 | AQ9: =VLOOKUP(Credits_PolicyYear_Input&'Calculation Links'!$L9,Differentials,HLOOKUP(AQ$41,Differentials,2,FALSE),FALSE) -> 0 | AR9: R | AS9: R
A10: ='Validation Lists'!AD7 -> Frankton Flats | B10: =VLOOKUP(Policy_Year_Input&'Calculation Links'!$A10,Standard_Contributions,HLOOKUP(B$4,Standard_Contributions,2,FALSE),FALSE) -> 5192 | C10: =VLOOKUP(Policy_Year_Input&'Calculation Links'!$A10,Standard_Contributions,HLOOKUP(C$4,Standard_Contributions,2,FALSE),FALSE) -> 12326 | D10: =VLOOKUP(Policy_Year_Input&'Calculation Links'!$A10,Standard_Contributions,HLOOKUP(D$4,Standard_Contributions,2,FALSE),FALSE) -> 5130 | E10: =VLOOKUP(Policy_Year_Input&'Calculation Links'!$A10,Standard_Contributions,HLOOKUP(E$4,Standard_Contributions,2,FALSE),FALSE) -> 1182 | F10: =VLOOKUP(Policy_Year_Input&'Calculation Links'!$A10,Standard_Contributions,HLOOKUP(F$4,Standard_Contributions,2,FALSE),FALSE) -> 3604 | G10: =VLOOKUP(Policy_Year_Input&'Calculation Links'!$A10,Standard_Contributions,HLOOKUP(G$4,Standard_Contributions,2,FALSE),FALSE) -> 500 | H10: =VLOOKUP(Policy_Year_Input&'Calculation Links'!$A10,Standard_Contributions,HLOOKUP(H$4,Standard_Contributions,2,FALSE),FALSE) -> 5339 | I10: =VLOOKUP(Policy_Year_Input&'Calculation Links'!$A10,Standard_Contributions,HLOOKUP(I$4,Standard_Contributions,2,FALSE),FALSE) -> 960 | J10: ='Validation Lists'!AE7 -> Wakatipu | L10: Commercial | M10: =VLOOKUP(Policy_Year_Input&'Calculation Links'!$L10,Differentials,HLOOKUP(M$41,Differentials,2,FALSE),FALSE) ->  | N10: =VLOOKUP(Policy_Year_Input&'Calculation Links'!$L10,Differentials,HLOOKUP(N$41,Differentials,2,FALSE),FALSE) ->  | O10: =VLOOKUP(Policy_Year_Input&'Calculation Links'!$L10,Differentials,HLOOKUP(O$41,Differentials,2,FALSE),FALSE) ->  | P10: =VLOOKUP(Policy_Year_Input&'Calculation Links'!$L10,Differentials,HLOOKUP(P$41,Differentials,2,FALSE),FALSE) ->  | Q10: =VLOOKUP(Policy_Year_Input&'Calculation Links'!$L10,Differentials,HLOOKUP(Q$41,Differentials,2,FALSE),FALSE) ->  | R10: =VLOOKUP(Policy_Year_Input&'Calculation Links'!$L10,Differentials,HLOOKUP(R$41,Differentials,2,FALSE),FALSE) ->  | S10: =VLOOKUP(Policy_Year_Input&'Calculation Links'!$L10,Differentials,HLOOKUP(S$41,Differentials,2,FALSE),FALSE) ->  | T10: =VLOOKUP(Policy_Year_Input&'Calculation Links'!$L10,Differentials,HLOOKUP(T$41,Differentials,2,FALSE),FALSE) ->  | U10: =VLOOKUP(Policy_Year_Input&'Calculation Links'!$L10,Differentials,HLOOKUP(U$41,Differentials,2,FALSE),FALSE) ->  | V10: =VLOOKUP(Policy_Year_Input&'Calculation Links'!$L10,Differentials,HLOOKUP(V$41,Differentials,2,FALSE),FALSE) ->  | W10: =VLOOKUP(Policy_Year_Input&'Calculation Links'!$L10,Differentials,HLOOKUP(W$41,Differentials,2,FALSE),FALSE) ->  | X10: =VLOOKUP(Policy_Year_Input&'Calculation Links'!$L10,Differentials,HLOOKUP(X$41,Differentials,2,FALSE),FALSE) ->  | Y10: =VLOOKUP(Policy_Year_Input&'Calculation Links'!$L10,Differentials,HLOOKUP(Y$41,Differentials,2,FALSE),FALSE) ->  | Z10: =VLOOKUP(Policy_Year_Input&'Calculation Links'!$L10,Differentials,HLOOKUP(Z$41,Differentials,2,FALSE),FALSE) ->  | AA10: NR | AB10: NR | AC10: Commercial | AD10: =VLOOKUP(Credits_PolicyYear_Input&'Calculation Links'!$L10,Differentials,HLOOKUP(AD$41,Differentials,2,FALSE),FALSE) -> 0 | AE10: =VLOOKUP(Credits_PolicyYear_Input&'Calculation Links'!$L10,Differentials,HLOOKUP(AE$41,Differentials,2,FALSE),FALSE) -> 0 | AF10: =VLOOKUP(Credits_PolicyYear_Input&'Calculation Links'!$L10,Differentials,HLOOKUP(AF$41,Differentials,2,FALSE),FALSE) -> 0 | AG10: =VLOOKUP(Credits_PolicyYear_Input&'Calculation Links'!$L10,Differentials,HLOOKUP(AG$41,Differentials,2,FALSE),FALSE) -> 0 | AH10: =VLOOKUP(Credits_PolicyYear_Input&'Calculation Links'!$L10,Differentials,HLOOKUP(AH$41,Differentials,2,FALSE),FALSE) -> 0 | AI10: =VLOOKUP(Credits_PolicyYear_Input&'Calculation Links'!$L10,Differentials,HLOOKUP(AI$41,Differentials,2,FALSE),FALSE) -> 0 | AJ10: =VLOOKUP(Credits_PolicyYear_Input&'Calculation Links'!$L10,Differentials,HLOOKUP(AJ$41,Differentials,2,FALSE),FALSE) -> 0 | AK10: =VLOOKUP(Credits_PolicyYear_Input&'Calculation Links'!$L10,Differentials,HLOOKUP(AK$41,Differentials,2,FALSE),FALSE) -> 0 | AL10: =VLOOKUP(Credits_PolicyYear_Input&'Calculation Links'!$L10,Differentials,HLOOKUP(AL$41,Differentials,2,FALSE),FALSE) -> 0 | AM10: =VLOOKUP(Credits_PolicyYear_Input&'Calculation Links'!$L10,Differentials,HLOOKUP(AM$41,Differentials,2,FALSE),FALSE) -> 0 | AN10: =VLOOKUP(Credits_PolicyYear_Input&'Calculation Links'!$L10,Differentials,HLOOKUP(AN$41,Differentials,2,FALSE),FALSE) -> 0 | AO10: =VLOOKUP(Credits_PolicyYear_Input&'Calculation Links'!$L10,Differentials,HLOOKUP(AO$41,Differentials,2,FALSE),FALSE) -> 0 | AP10: =VLOOKUP(Credits_PolicyYear_Input&'Calculation Links'!$L10,Differentials,HLOOKUP(AP$41,Differentials,2,FALSE),FALSE) -> 0 | AQ10: =VLOOKUP(Credits_PolicyYear_Input&'Calculation Links'!$L10,Differentials,HLOOKUP(AQ$41,Differentials,2,FALSE),FALSE) -> 0 | AR10: NR | AS10: NR
A11: ='Validation Lists'!AD8 -> Shotover Country | B11: =VLOOKUP(Policy_Year_Input&'Calculation Links'!$A11,Standard_Contributions,HLOOKUP(B$4,Standard_Contributions,2,FALSE),FALSE) -> 5192 | C11: =VLOOKUP(Policy_Year_Input&'Calculation Links'!$A11,Standard_Contributions,HLOOKUP(C$4,Standard_Contributions,2,FALSE),FALSE) -> 5468 | D11: =VLOOKUP(Policy_Year_Input&'Calculation Links'!$A11,Standard_Contributions,HLOOKUP(D$4,Standard_Contributions,2,FALSE),FALSE) -> 0 | E11: =VLOOKUP(Policy_Year_Input&'Calculation Links'!$A11,Standard_Contributions,HLOOKUP(E$4,Standard_Contributions,2,FALSE),FALSE) -> 1182 | F11: =VLOOKUP(Policy_Year_Input&'Calculation Links'!$A11,Standard_Contributions,HLOOKUP(F$4,Standard_Contributions,2,FALSE),FALSE) -> 3604 | G11: =VLOOKUP(Policy_Year_Input&'Calculation Links'!$A11,Standard_Contributions,HLOOKUP(G$4,Standard_Contributions,2,FALSE),FALSE) -> 500 | H11: =VLOOKUP(Policy_Year_Input&'Calculation Links'!$A11,Standard_Contributions,HLOOKUP(H$4,Standard_Contributions,2,FALSE),FALSE) -> 5339 | I11: =VLOOKUP(Policy_Year_Input&'Calculation Links'!$A11,Standard_Contributions,HLOOKUP(I$4,Standard_Contributions,2,FALSE),FALSE) -> 0 | J11: ='Validation Lists'!AE8 -> Wakatipu | L11: Childcare Centre | M11: =VLOOKUP(Policy_Year_Input&'Calculation Links'!$L11,Differentials,HLOOKUP(M$41,Differentials,2,FALSE),FALSE) ->  | N11: =VLOOKUP(Policy_Year_Input&'Calculation Links'!$L11,Differentials,HLOOKUP(N$41,Differentials,2,FALSE),FALSE) ->  | O11: =VLOOKUP(Policy_Year_Input&'Calculation Links'!$L11,Differentials,HLOOKUP(O$41,Differentials,2,FALSE),FALSE) ->  | P11: =VLOOKUP(Policy_Year_Input&'Calculation Links'!$L11,Differentials,HLOOKUP(P$41,Differentials,2,FALSE),FALSE) ->  | Q11: =VLOOKUP(Policy_Year_Input&'Calculation Links'!$L11,Differentials,HLOOKUP(Q$41,Differentials,2,FALSE),FALSE) ->  | R11: =VLOOKUP(Policy_Year_Input&'Calculation Links'!$L11,Differentials,HLOOKUP(R$41,Differentials,2,FALSE),FALSE) ->  | S11: =VLOOKUP(Policy_Year_Input&'Calculation Links'!$L11,Differentials,HLOOKUP(S$41,Differentials,2,FALSE),FALSE) ->  | T11: =VLOOKUP(Policy_Year_Input&'Calculation Links'!$L11,Differentials,HLOOKUP(T$41,Differentials,2,FALSE),FALSE) ->  | U11: =VLOOKUP(Policy_Year_Input&'Calculation Links'!$L11,Differentials,HLOOKUP(U$41,Differentials,2,FALSE),FALSE) ->  | V11: =VLOOKUP(Policy_Year_Input&'Calculation Links'!$L11,Differentials,HLOOKUP(V$41,Differentials,2,FALSE),FALSE) ->  | W11: =VLOOKUP(Policy_Year_Input&'Calculation Links'!$L11,Differentials,HLOOKUP(W$41,Differentials,2,FALSE),FALSE) ->  | X11: =VLOOKUP(Policy_Year_Input&'Calculation Links'!$L11,Differentials,HLOOKUP(X$41,Differentials,2,FALSE),FALSE) ->  | Y11: =VLOOKUP(Policy_Year_Input&'Calculation Links'!$L11,Differentials,HLOOKUP(Y$41,Differentials,2,FALSE),FALSE) ->  | Z11: =VLOOKUP(Policy_Year_Input&'Calculation Links'!$L11,Differentials,HLOOKUP(Z$41,Differentials,2,FALSE),FALSE) ->  | AA11: NR | AB11: NR | AC11: Childcare Centre | AD11: =VLOOKUP(Credits_PolicyYear_Input&'Calculation Links'!$L11,Differentials,HLOOKUP(AD$41,Differentials,2,FALSE),FALSE) -> 0 | AE11: =VLOOKUP(Credits_PolicyYear_Input&'Calculation Links'!$L11,Differentials,HLOOKUP(AE$41,Differentials,2,FALSE),FALSE) -> 0 | AF11: =VLOOKUP(Credits_PolicyYear_Input&'Calculation Links'!$L11,Differentials,HLOOKUP(AF$41,Differentials,2,FALSE),FALSE) -> 0 | AG11: =VLOOKUP(Credits_PolicyYear_Input&'Calculation Links'!$L11,Differentials,HLOOKUP(AG$41,Differentials,2,FALSE),FALSE) -> 0 | AH11: =VLOOKUP(Credits_PolicyYear_Input&'Calculation Links'!$L11,Differentials,HLOOKUP(AH$41,Differentials,2,FALSE),FALSE) -> 0 | AI11: =VLOOKUP(Credits_PolicyYear_Input&'Calculation Links'!$L11,Differentials,HLOOKUP(AI$41,Differentials,2,FALSE),FALSE) -> 0 | AJ11: =VLOOKUP(Credits_PolicyYear_Input&'Calculation Links'!$L11,Differentials,HLOOKUP(AJ$41,Differentials,2,FALSE),FALSE) -> 0 | AK11: =VLOOKUP(Credits_PolicyYear_Input&'Calculation Links'!$L11,Differentials,HLOOKUP(AK$41,Differentials,2,FALSE),FALSE) -> 0 | AL11: =VLOOKUP(Credits_PolicyYear_Input&'Calculation Links'!$L11,Differentials,HLOOKUP(AL$41,Differentials,2,FALSE),FALSE) -> 0 | AM11: =VLOOKUP(Credits_PolicyYear_Input&'Calculation Links'!$L11,Differentials,HLOOKUP(AM$41,Differentials,2,FALSE),FALSE) -> 0 | AN11: =VLOOKUP(Credits_PolicyYear_Input&'Calculation Links'!$L11,Differentials,HLOOKUP(AN$41,Differentials,2,FALSE),FALSE) -> 0 | AO11: =VLOOKUP(Credits_PolicyYear_Input&'Calculation Links'!$L11,Differentials,HLOOKUP(AO$41,Differentials,2,FALSE),FALSE) -> 0 | AP11: =VLOOKUP(Credits_PolicyYear_Input&'Calculation Links'!$L11,Differentials,HLOOKUP(AP$41,Differentials,2,FALSE),FALSE) -> 0 | AQ11: =VLOOKUP(Credits_PolicyYear_Input&'Calculation Links'!$L11,Differentials,HLOOKUP(AQ$41,Differentials,2,FALSE),FALSE) -> 0 | AR11: NR | AS11: NR
A12: ='Validation Lists'!AD9 -> Quail Rise | B12: =VLOOKUP(Policy_Year_Input&'Calculation Links'!$A12,Standard_Contributions,HLOOKUP(B$4,Standard_Contributions,2,FALSE),FALSE) ->  | C12: =VLOOKUP(Policy_Year_Input&'Calculation Links'!$A12,Standard_Contributions,HLOOKUP(C$4,Standard_Contributions,2,FALSE),FALSE) ->  | D12: =VLOOKUP(Policy_Year_Input&'Calculation Links'!$A12,Standard_Contributions,HLOOKUP(D$4,Standard_Contributions,2,FALSE),FALSE) ->  | E12: =VLOOKUP(Policy_Year_Input&'Calculation Links'!$A12,Standard_Contributions,HLOOKUP(E$4,Standard_Contributions,2,FALSE),FALSE) ->  | F12: =VLOOKUP(Policy_Year_Input&'Calculation Links'!$A12,Standard_Contributions,HLOOKUP(F$4,Standard_Contributions,2,FALSE),FALSE) ->  | G12: =VLOOKUP(Policy_Year_Input&'Calculation Links'!$A12,Standard_Contributions,HLOOKUP(G$4,Standard_Contributions,2,FALSE),FALSE) ->  | H12: =VLOOKUP(Policy_Year_Input&'Calculation Links'!$A12,Standard_Contributions,HLOOKUP(H$4,Standard_Contributions,2,FALSE),FALSE) ->  | I12: =VLOOKUP(Policy_Year_Input&'Calculation Links'!$A12,Standard_Contributions,HLOOKUP(I$4,Standard_Contributions,2,FALSE),FALSE) ->  | J12: ='Validation Lists'!AE9 -> Wakatipu | L12: Industrial | M12: =VLOOKUP(Policy_Year_Input&'Calculation Links'!$L12,Differentials,HLOOKUP(M$41,Differentials,2,FALSE),FALSE) ->  | N12: =VLOOKUP(Policy_Year_Input&'Calculation Links'!$L12,Differentials,HLOOKUP(N$41,Differentials,2,FALSE),FALSE) ->  | O12: =VLOOKUP(Policy_Year_Input&'Calculation Links'!$L12,Differentials,HLOOKUP(O$41,Differentials,2,FALSE),FALSE) ->  | P12: =VLOOKUP(Policy_Year_Input&'Calculation Links'!$L12,Differentials,HLOOKUP(P$41,Differentials,2,FALSE),FALSE) ->  | Q12: =VLOOKUP(Policy_Year_Input&'Calculation Links'!$L12,Differentials,HLOOKUP(Q$41,Differentials,2,FALSE),FALSE) ->  | R12: =VLOOKUP(Policy_Year_Input&'Calculation Links'!$L12,Differentials,HLOOKUP(R$41,Differentials,2,FALSE),FALSE) ->  | S12: =VLOOKUP(Policy_Year_Input&'Calculation Links'!$L12,Differentials,HLOOKUP(S$41,Differentials,2,FALSE),FALSE) ->  | T12: =VLOOKUP(Policy_Year_Input&'Calculation Links'!$L12,Differentials,HLOOKUP(T$41,Differentials,2,FALSE),FALSE) ->  | U12: =VLOOKUP(Policy_Year_Input&'Calculation Links'!$L12,Differentials,HLOOKUP(U$41,Differentials,2,FALSE),FALSE) ->  | V12: =VLOOKUP(Policy_Year_Input&'Calculation Links'!$L12,Differentials,HLOOKUP(V$41,Differentials,2,FALSE),FALSE) ->  | W12: =VLOOKUP(Policy_Year_Input&'Calculation Links'!$L12,Differentials,HLOOKUP(W$41,Differentials,2,FALSE),FALSE) ->  | X12: =VLOOKUP(Policy_Year_Input&'Calculation Links'!$L12,Differentials,HLOOKUP(X$41,Differentials,2,FALSE),FALSE) ->  | Y12: =VLOOKUP(Policy_Year_Input&'Calculation Links'!$L12,Differentials,HLOOKUP(Y$41,Differentials,2,FALSE),FALSE) ->  | Z12: =VLOOKUP(Policy_Year_Input&'Calculation Links'!$L12,Differentials,HLOOKUP(Z$41,Differentials,2,FALSE),FALSE) ->  | AA12: NR | AB12: NR | AC12: Industrial | AD12: =VLOOKUP(Credits_PolicyYear_Input&'Calculation Links'!$L12,Differentials,HLOOKUP(AD$41,Differentials,2,FALSE),FALSE) -> 0 | AE12: =VLOOKUP(Credits_PolicyYear_Input&'Calculation Links'!$L12,Differentials,HLOOKUP(AE$41,Differentials,2,FALSE),FALSE) -> 0 | AF12: =VLOOKUP(Credits_PolicyYear_Input&'Calculation Links'!$L12,Differentials,HLOOKUP(AF$41,Differentials,2,FALSE),FALSE) -> 0 | AG12: =VLOOKUP(Credits_PolicyYear_Input&'Calculation Links'!$L12,Differentials,HLOOKUP(AG$41,Differentials,2,FALSE),FALSE) -> 0 | AH12: =VLOOKUP(Credits_PolicyYear_Input&'Calculation Links'!$L12,Differentials,HLOOKUP(AH$41,Differentials,2,FALSE),FALSE) -> 0 | AI12: =VLOOKUP(Credits_PolicyYear_Input&'Calculation Links'!$L12,Differentials,HLOOKUP(AI$41,Differentials,2,FALSE),FALSE) -> 0 | AJ12: =VLOOKUP(Credits_PolicyYear_Input&'Calculation Links'!$L12,Differentials,HLOOKUP(AJ$41,Differentials,2,FALSE),FALSE) -> 0 | AK12: =VLOOKUP(Credits_PolicyYear_Input&'Calculation Links'!$L12,Differentials,HLOOKUP(AK$41,Differentials,2,FALSE),FALSE) -> 0 | AL12: =VLOOKUP(Credits_PolicyYear_Input&'Calculation Links'!$L12,Differentials,HLOOKUP(AL$41,Differentials,2,FALSE),FALSE) -> 0 | AM12: =VLOOKUP(Credits_PolicyYear_Input&'Calculation Links'!$L12,Differentials,HLOOKUP(AM$41,Differentials,2,FALSE),FALSE) -> 0 | AN12: =VLOOKUP(Credits_PolicyYear_Input&'Calculation Links'!$L12,Differentials,HLOOKUP(AN$41,Differentials,2,FALSE),FALSE) -> 0 | AO12: =VLOOKUP(Credits_PolicyYear_Input&'Calculation Links'!$L12,Differentials,HLOOKUP(AO$41,Differentials,2,FALSE),FALSE) -> 0 | AP12: =VLOOKUP(Credits_PolicyYear_Input&'Calculation Links'!$L12,Differentials,HLOOKUP(AP$41,Differentials,2,FALSE),FALSE) -> 0 | AQ12: =VLOOKUP(Credits_PolicyYear_Input&'Calculation Links'!$L12,Differentials,HLOOKUP(AQ$41,Differentials,2,FALSE),FALSE) -> 0 | AR12: NR | AS12: NR
A13: ='Validation Lists'!AD10 -> Ladies Mile | B13: =VLOOKUP(Policy_Year_Input&'Calculation Links'!$A13,Standard_Contributions,HLOOKUP(B$4,Standard_Contributions,2,FALSE),FALSE) -> 10958 | C13: =VLOOKUP(Policy_Year_Input&'Calculation Links'!$A13,Standard_Contributions,HLOOKUP(C$4,Standard_Contributions,2,FALSE),FALSE) -> 13323 | D13: =VLOOKUP(Policy_Year_Input&'Calculation Links'!$A13,Standard_Contributions,HLOOKUP(D$4,Standard_Contributions,2,FALSE),FALSE) -> 15642 | E13: =VLOOKUP(Policy_Year_Input&'Calculation Links'!$A13,Standard_Contributions,HLOOKUP(E$4,Standard_Contributions,2,FALSE),FALSE) -> 1182 | F13: =VLOOKUP(Policy_Year_Input&'Calculation Links'!$A13,Standard_Contributions,HLOOKUP(F$4,Standard_Contributions,2,FALSE),FALSE) -> 3604 | G13: =VLOOKUP(Policy_Year_Input&'Calculation Links'!$A13,Standard_Contributions,HLOOKUP(G$4,Standard_Contributions,2,FALSE),FALSE) -> 500 | H13: =VLOOKUP(Policy_Year_Input&'Calculation Links'!$A13,Standard_Contributions,HLOOKUP(H$4,Standard_Contributions,2,FALSE),FALSE) -> 5339 | I13: =VLOOKUP(Policy_Year_Input&'Calculation Links'!$A13,Standard_Contributions,HLOOKUP(I$4,Standard_Contributions,2,FALSE),FALSE) -> 0 | J13: ='Validation Lists'!AE10 -> Wakatipu | L13: Country Dwelling | M13: =VLOOKUP(Policy_Year_Input&'Calculation Links'!$L13,Differentials,HLOOKUP(M$41,Differentials,2,FALSE),FALSE) ->  | N13: =VLOOKUP(Policy_Year_Input&'Calculation Links'!$L13,Differentials,HLOOKUP(N$41,Differentials,2,FALSE),FALSE) ->  | O13: =VLOOKUP(Policy_Year_Input&'Calculation Links'!$L13,Differentials,HLOOKUP(O$41,Differentials,2,FALSE),FALSE) ->  | P13: =VLOOKUP(Policy_Year_Input&'Calculation Links'!$L13,Differentials,HLOOKUP(P$41,Differentials,2,FALSE),FALSE) ->  | Q13: =VLOOKUP(Policy_Year_Input&'Calculation Links'!$L13,Differentials,HLOOKUP(Q$41,Differentials,2,FALSE),FALSE) ->  | R13: =VLOOKUP(Policy_Year_Input&'Calculation Links'!$L13,Differentials,HLOOKUP(R$41,Differentials,2,FALSE),FALSE) ->  | S13: =VLOOKUP(Policy_Year_Input&'Calculation Links'!$L13,Differentials,HLOOKUP(S$41,Differentials,2,FALSE),FALSE) ->  | T13: =VLOOKUP(Policy_Year_Input&'Calculation Links'!$L13,Differentials,HLOOKUP(T$41,Differentials,2,FALSE),FALSE) ->  | U13: =VLOOKUP(Policy_Year_Input&'Calculation Links'!$L13,Differentials,HLOOKUP(U$41,Differentials,2,FALSE),FALSE) ->  | V13: =VLOOKUP(Policy_Year_Input&'Calculation Links'!$L13,Differentials,HLOOKUP(V$41,Differentials,2,FALSE),FALSE) ->  | W13: =VLOOKUP(Policy_Year_Input&'Calculation Links'!$L13,Differentials,HLOOKUP(W$41,Differentials,2,FALSE),FALSE) ->  | X13: =VLOOKUP(Policy_Year_Input&'Calculation Links'!$L13,Differentials,HLOOKUP(X$41,Differentials,2,FALSE),FALSE) ->  | Y13: =VLOOKUP(Policy_Year_Input&'Calculation Links'!$L13,Differentials,HLOOKUP(Y$41,Differentials,2,FALSE),FALSE) ->  | Z13: =VLOOKUP(Policy_Year_Input&'Calculation Links'!$L13,Differentials,HLOOKUP(Z$41,Differentials,2,FALSE),FALSE) ->  | AA13: R | AB13: R | AC13: Country Dwelling | AD13: =VLOOKUP(Credits_PolicyYear_Input&'Calculation Links'!$L13,Differentials,HLOOKUP(AD$41,Differentials,2,FALSE),FALSE) -> 0 | AE13: =VLOOKUP(Credits_PolicyYear_Input&'Calculation Links'!$L13,Differentials,HLOOKUP(AE$41,Differentials,2,FALSE),FALSE) -> 0 | AF13: =VLOOKUP(Credits_PolicyYear_Input&'Calculation Links'!$L13,Differentials,HLOOKUP(AF$41,Differentials,2,FALSE),FALSE) -> 0 | AG13: =VLOOKUP(Credits_PolicyYear_Input&'Calculation Links'!$L13,Differentials,HLOOKUP(AG$41,Differentials,2,FALSE),FALSE) -> 0 | AH13: =VLOOKUP(Credits_PolicyYear_Input&'Calculation Links'!$L13,Differentials,HLOOKUP(AH$41,Differentials,2,FALSE),FALSE) -> 0 | AI13: =VLOOKUP(Credits_PolicyYear_Input&'Calculation Links'!$L13,Differentials,HLOOKUP(AI$41,Differentials,2,FALSE),FALSE) -> 0 | AJ13: =VLOOKUP(Credits_PolicyYear_Input&'Calculation Links'!$L13,Differentials,HLOOKUP(AJ$41,Differentials,2,FALSE),FALSE) -> 0 | AK13: =VLOOKUP(Credits_PolicyYear_Input&'Calculation Links'!$L13,Differentials,HLOOKUP(AK$41,Differentials,2,FALSE),FALSE) -> 0 | AL13: =VLOOKUP(Credits_PolicyYear_Input&'Calculation Links'!$L13,Differentials,HLOOKUP(AL$41,Differentials,2,FALSE),FALSE) -> 0 | AM13: =VLOOKUP(Credits_PolicyYear_Input&'Calculation Links'!$L13,Differentials,HLOOKUP(AM$41,Differentials,2,FALSE),FALSE) -> 0 | AN13: =VLOOKUP(Credits_PolicyYear_Input&'Calculation Links'!$L13,Differentials,HLOOKUP(AN$41,Differentials,2,FALSE),FALSE) -> 0 | AO13: =VLOOKUP(Credits_PolicyYear_Input&'Calculation Links'!$L13,Differentials,HLOOKUP(AO$41,Differentials,2,FALSE),FALSE) -> 0 | AP13: =VLOOKUP(Credits_PolicyYear_Input&'Calculation Links'!$L13,Differentials,HLOOKUP(AP$41,Differentials,2,FALSE),FALSE) -> 0 | AQ13: =VLOOKUP(Credits_PolicyYear_Input&'Calculation Links'!$L13,Differentials,HLOOKUP(AQ$41,Differentials,2,FALSE),FALSE) -> 0 | AR13: R | AS13: R
A14: ='Validation Lists'!AD11 -> Kingston | B14: =VLOOKUP(Policy_Year_Input&'Calculation Links'!$A14,Standard_Contributions,HLOOKUP(B$4,Standard_Contributions,2,FALSE),FALSE) ->  | C14: =VLOOKUP(Policy_Year_Input&'Calculation Links'!$A14,Standard_Contributions,HLOOKUP(C$4,Standard_Contributions,2,FALSE),FALSE) ->  | D14: =VLOOKUP(Policy_Year_Input&'Calculation Links'!$A14,Standard_Contributions,HLOOKUP(D$4,Standard_Contributions,2,FALSE),FALSE) ->  | E14: =VLOOKUP(Policy_Year_Input&'Calculation Links'!$A14,Standard_Contributions,HLOOKUP(E$4,Standard_Contributions,2,FALSE),FALSE) ->  | F14: =VLOOKUP(Policy_Year_Input&'Calculation Links'!$A14,Standard_Contributions,HLOOKUP(F$4,Standard_Contributions,2,FALSE),FALSE) ->  | G14: =VLOOKUP(Policy_Year_Input&'Calculation Links'!$A14,Standard_Contributions,HLOOKUP(G$4,Standard_Contributions,2,FALSE),FALSE) ->  | H14: =VLOOKUP(Policy_Year_Input&'Calculation Links'!$A14,Standard_Contributions,HLOOKUP(H$4,Standard_Contributions,2,FALSE),FALSE) ->  | I14: =VLOOKUP(Policy_Year_Input&'Calculation Links'!$A14,Standard_Contributions,HLOOKUP(I$4,Standard_Contributions,2,FALSE),FALSE) ->  | J14: ='Validation Lists'!AE11 -> Wakatipu | L14: Country Dwelling Flat | M14: =ROUND(M6*M13,2) ->  | N14: =ROUND(N6*M13,2) ->  | O14: =ROUND(O6*O13,2) ->  | P14: =ROUND(P6*P13,2) ->  | R14: =ROUND(R6*R13,2) ->  | S14: =ROUND(S6*S13,2) ->  | T14: =ROUND(T6*T13,2) ->  | W14: =ROUND(W6*W13,2) ->  | AA14: R | AB14: R | AC14: Country Dwelling Flat | AD14: =ROUND(AD6*AD13,2) -> 0 | AE14: =ROUND(AE6*AD13,2) -> 0 | AF14: =ROUND(AF6*AF13,2) -> 0 | AG14: 0 | AH14: 0 | AI14: 0 | AJ14: =ROUND(AJ6*AJ13,2) -> 0 | AK14: =ROUND(AK6*AK13,2) -> 0 | AL14: 0 | AM14: 0 | AN14: =ROUND(AN6*AN13,2) -> 0 | AO14: 0 | AP14: =ROUND(AP6*AP13,2) -> 0 | AQ14: =ROUND(AQ6*AQ13,2) -> 0 | AR14: R | AS14: R
A15: ='Validation Lists'!AD12 -> Kingston Township | B15: =VLOOKUP(Policy_Year_Input&'Calculation Links'!$A15,Standard_Contributions,HLOOKUP(B$4,Standard_Contributions,2,FALSE),FALSE) -> 0 | C15: =VLOOKUP(Policy_Year_Input&'Calculation Links'!$A15,Standard_Contributions,HLOOKUP(C$4,Standard_Contributions,2,FALSE),FALSE) -> 0 | D15: =VLOOKUP(Policy_Year_Input&'Calculation Links'!$A15,Standard_Contributions,HLOOKUP(D$4,Standard_Contributions,2,FALSE),FALSE) -> 0 | E15: =VLOOKUP(Policy_Year_Input&'Calculation Links'!$A15,Standard_Contributions,HLOOKUP(E$4,Standard_Contributions,2,FALSE),FALSE) -> 1182 | F15: =VLOOKUP(Policy_Year_Input&'Calculation Links'!$A15,Standard_Contributions,HLOOKUP(F$4,Standard_Contributions,2,FALSE),FALSE) -> 3604 | G15: =VLOOKUP(Policy_Year_Input&'Calculation Links'!$A15,Standard_Contributions,HLOOKUP(G$4,Standard_Contributions,2,FALSE),FALSE) -> 500 | H15: =VLOOKUP(Policy_Year_Input&'Calculation Links'!$A15,Standard_Contributions,HLOOKUP(H$4,Standard_Contributions,2,FALSE),FALSE) -> 5339 | I15: =VLOOKUP(Policy_Year_Input&'Calculation Links'!$A15,Standard_Contributions,HLOOKUP(I$4,Standard_Contributions,2,FALSE),FALSE) -> 0 | J15: ='Validation Lists'!AE12 -> Wakatipu | L15: Other | M15: =VLOOKUP(Policy_Year_Input&'Calculation Links'!$L15,Differentials,HLOOKUP(M$41,Differentials,2,FALSE),FALSE) ->  | N15: =VLOOKUP(Policy_Year_Input&'Calculation Links'!$L15,Differentials,HLOOKUP(N$41,Differentials,2,FALSE),FALSE) ->  | O15: =VLOOKUP(Policy_Year_Input&'Calculation Links'!$L15,Differentials,HLOOKUP(O$41,Differentials,2,FALSE),FALSE) ->  | P15: =VLOOKUP(Policy_Year_Input&'Calculation Links'!$L15,Differentials,HLOOKUP(P$41,Differentials,2,FALSE),FALSE) ->  | Q15: =VLOOKUP(Policy_Year_Input&'Calculation Links'!$L15,Differentials,HLOOKUP(Q$41,Differentials,2,FALSE),FALSE) ->  | R15: =VLOOKUP(Policy_Year_Input&'Calculation Links'!$L15,Differentials,HLOOKUP(R$41,Differentials,2,FALSE),FALSE) ->  | S15: =VLOOKUP(Policy_Year_Input&'Calculation Links'!$L15,Differentials,HLOOKUP(S$41,Differentials,2,FALSE),FALSE) ->  | T15: =VLOOKUP(Policy_Year_Input&'Calculation Links'!$L15,Differentials,HLOOKUP(T$41,Differentials,2,FALSE),FALSE) ->  | U15: =VLOOKUP(Policy_Year_Input&'Calculation Links'!$L15,Differentials,HLOOKUP(U$41,Differentials,2,FALSE),FALSE) ->  | V15: =VLOOKUP(Policy_Year_Input&'Calculation Links'!$L15,Differentials,HLOOKUP(V$41,Differentials,2,FALSE),FALSE) ->  | W15: =VLOOKUP(Policy_Year_Input&'Calculation Links'!$L15,Differentials,HLOOKUP(W$41,Differentials,2,FALSE),FALSE) ->  | X15: =VLOOKUP(Policy_Year_Input&'Calculation Links'!$L15,Differentials,HLOOKUP(X$41,Differentials,2,FALSE),FALSE) ->  | Y15: =VLOOKUP(Policy_Year_Input&'Calculation Links'!$L15,Differentials,HLOOKUP(Y$41,Differentials,2,FALSE),FALSE) ->  | Z15: =VLOOKUP(Policy_Year_Input&'Calculation Links'!$L15,Differentials,HLOOKUP(Z$41,Differentials,2,FALSE),FALSE) ->  | AA15: R | AB15: R | AC15: Other | AD15: =VLOOKUP(Credits_PolicyYear_Input&'Calculation Links'!$L15,Differentials,HLOOKUP(AD$41,Differentials,2,FALSE),FALSE) -> 0 | AE15: =VLOOKUP(Credits_PolicyYear_Input&'Calculation Links'!$L15,Differentials,HLOOKUP(AE$41,Differentials,2,FALSE),FALSE) -> 0 | AF15: =VLOOKUP(Credits_PolicyYear_Input&'Calculation Links'!$L15,Differentials,HLOOKUP(AF$41,Differentials,2,FALSE),FALSE) -> 0 | AG15: =VLOOKUP(Credits_PolicyYear_Input&'Calculation Links'!$L15,Differentials,HLOOKUP(AG$41,Differentials,2,FALSE),FALSE) -> 0 | AH15: =VLOOKUP(Credits_PolicyYear_Input&'Calculation Links'!$L15,Differentials,HLOOKUP(AH$41,Differentials,2,FALSE),FALSE) -> 0 | AI15: =VLOOKUP(Credits_PolicyYear_Input&'Calculation Links'!$L15,Differentials,HLOOKUP(AI$41,Differentials,2,FALSE),FALSE) -> 0 | AJ15: =VLOOKUP(Credits_PolicyYear_Input&'Calculation Links'!$L15,Differentials,HLOOKUP(AJ$41,Differentials,2,FALSE),FALSE) -> 0 | AK15: =VLOOKUP(Credits_PolicyYear_Input&'Calculation Links'!$L15,Differentials,HLOOKUP(AK$41,Differentials,2,FALSE),FALSE) -> 0 | AL15: =VLOOKUP(Credits_PolicyYear_Input&'Calculation Links'!$L15,Differentials,HLOOKUP(AL$41,Differentials,2,FALSE),FALSE) -> 0 | AM15: =VLOOKUP(Credits_PolicyYear_Input&'Calculation Links'!$L15,Differentials,HLOOKUP(AM$41,Differentials,2,FALSE),FALSE) -> 0 | AN15: =VLOOKUP(Credits_PolicyYear_Input&'Calculation Links'!$L15,Differentials,HLOOKUP(AN$41,Differentials,2,FALSE),FALSE) -> 0 | AO15: =VLOOKUP(Credits_PolicyYear_Input&'Calculation Links'!$L15,Differentials,HLOOKUP(AO$41,Differentials,2,FALSE),FALSE) -> 0 | AP15: =VLOOKUP(Credits_PolicyYear_Input&'Calculation Links'!$L15,Differentials,HLOOKUP(AP$41,Differentials,2,FALSE),FALSE) -> 0 | AQ15: =VLOOKUP(Credits_PolicyYear_Input&'Calculation Links'!$L15,Differentials,HLOOKUP(AQ$41,Differentials,2,FALSE),FALSE) -> 0 | AR15: R | AS15: R
A16: ='Validation Lists'!AD13 -> Kingston - KVL zone | B16: =VLOOKUP(Policy_Year_Input&'Calculation Links'!$A16,Standard_Contributions,HLOOKUP(B$4,Standard_Contributions,2,FALSE),FALSE) -> 2265 | C16: =VLOOKUP(Policy_Year_Input&'Calculation Links'!$A16,Standard_Contributions,HLOOKUP(C$4,Standard_Contributions,2,FALSE),FALSE) -> 3115 | D16: =VLOOKUP(Policy_Year_Input&'Calculation Links'!$A16,Standard_Contributions,HLOOKUP(D$4,Standard_Contributions,2,FALSE),FALSE) -> 1590 | E16: =VLOOKUP(Policy_Year_Input&'Calculation Links'!$A16,Standard_Contributions,HLOOKUP(E$4,Standard_Contributions,2,FALSE),FALSE) -> 1182 | F16: =VLOOKUP(Policy_Year_Input&'Calculation Links'!$A16,Standard_Contributions,HLOOKUP(F$4,Standard_Contributions,2,FALSE),FALSE) -> 3604 | G16: =VLOOKUP(Policy_Year_Input&'Calculation Links'!$A16,Standard_Contributions,HLOOKUP(G$4,Standard_Contributions,2,FALSE),FALSE) -> 500 | H16: =VLOOKUP(Policy_Year_Input&'Calculation Links'!$A16,Standard_Contributions,HLOOKUP(H$4,Standard_Contributions,2,FALSE),FALSE) -> 5339 | I16: =VLOOKUP(Policy_Year_Input&'Calculation Links'!$A16,Standard_Contributions,HLOOKUP(I$4,Standard_Contributions,2,FALSE),FALSE) -> 0 | J16: ='Validation Lists'!AE13 -> Wakatipu | L16: CBD Accommodation | M16: =VLOOKUP(Policy_Year_Input&'Calculation Links'!$L16,Differentials,HLOOKUP(M$41,Differentials,2,FALSE),FALSE) ->  | N16: =VLOOKUP(Policy_Year_Input&'Calculation Links'!$L16,Differentials,HLOOKUP(N$41,Differentials,2,FALSE),FALSE) ->  | O16: =VLOOKUP(Policy_Year_Input&'Calculation Links'!$L16,Differentials,HLOOKUP(O$41,Differentials,2,FALSE),FALSE) ->  | P16: =VLOOKUP(Policy_Year_Input&'Calculation Links'!$L16,Differentials,HLOOKUP(P$41,Differentials,2,FALSE),FALSE) ->  | Q16: =VLOOKUP(Policy_Year_Input&'Calculation Links'!$L16,Differentials,HLOOKUP(Q$41,Differentials,2,FALSE),FALSE) ->  | R16: =VLOOKUP(Policy_Year_Input&'Calculation Links'!$L16,Differentials,HLOOKUP(R$41,Differentials,2,FALSE),FALSE) ->  | S16: =VLOOKUP(Policy_Year_Input&'Calculation Links'!$L16,Differentials,HLOOKUP(S$41,Differentials,2,FALSE),FALSE) ->  | T16: =VLOOKUP(Policy_Year_Input&'Calculation Links'!$L16,Differentials,HLOOKUP(T$41,Differentials,2,FALSE),FALSE) ->  | U16: =VLOOKUP(Policy_Year_Input&'Calculation Links'!$L16,Differentials,HLOOKUP(U$41,Differentials,2,FALSE),FALSE) ->  | V16: =VLOOKUP(Policy_Year_Input&'Calculation Links'!$L16,Differentials,HLOOKUP(V$41,Differentials,2,FALSE),FALSE) ->  | W16: =VLOOKUP(Policy_Year_Input&'Calculation Links'!$L16,Differentials,HLOOKUP(W$41,Differentials,2,FALSE),FALSE) ->  | X16: =VLOOKUP(Policy_Year_Input&'Calculation Links'!$L16,Differentials,HLOOKUP(X$41,Differentials,2,FALSE),FALSE) ->  | Y16: =VLOOKUP(Policy_Year_Input&'Calculation Links'!$L16,Differentials,HLOOKUP(Y$41,Differentials,2,FALSE),FALSE) ->  | Z16: =VLOOKUP(Policy_Year_Input&'Calculation Links'!$L16,Differentials,HLOOKUP(Z$41,Differentials,2,FALSE),FALSE) ->  | AA16: R | AB16: R | AC16: CBD Accommodation | AD16: =VLOOKUP(Credits_PolicyYear_Input&'Calculation Links'!$L16,Differentials,HLOOKUP(AD$41,Differentials,2,FALSE),FALSE) -> 0 | AE16: =VLOOKUP(Credits_PolicyYear_Input&'Calculation Links'!$L16,Differentials,HLOOKUP(AE$41,Differentials,2,FALSE),FALSE) -> 0 | AF16: =VLOOKUP(Credits_PolicyYear_Input&'Calculation Links'!$L16,Differentials,HLOOKUP(AF$41,Differentials,2,FALSE),FALSE) -> 0 | AG16: =VLOOKUP(Credits_PolicyYear_Input&'Calculation Links'!$L16,Differentials,HLOOKUP(AG$41,Differentials,2,FALSE),FALSE) -> 0 | AH16: =VLOOKUP(Credits_PolicyYear_Input&'Calculation Links'!$L16,Differentials,HLOOKUP(AH$41,Differentials,2,FALSE),FALSE) -> 0 | AI16: =VLOOKUP(Credits_PolicyYear_Input&'Calculation Links'!$L16,Differentials,HLOOKUP(AI$41,Differentials,2,FALSE),FALSE) -> 0 | AJ16: =VLOOKUP(Credits_PolicyYear_Input&'Calculation Links'!$L16,Differentials,HLOOKUP(AJ$41,Differentials,2,FALSE),FALSE) -> 0 | AK16: =VLOOKUP(Credits_PolicyYear_Input&'Calculation Links'!$L16,Differentials,HLOOKUP(AK$41,Differentials,2,FALSE),FALSE) -> 0 | AL16: =VLOOKUP(Credits_PolicyYear_Input&'Calculation Links'!$L16,Differentials,HLOOKUP(AL$41,Differentials,2,FALSE),FALSE) -> 0 | AM16: =VLOOKUP(Credits_PolicyYear_Input&'Calculation Links'!$L16,Differentials,HLOOKUP(AM$41,Differentials,2,FALSE),FALSE) -> 0 | AN16: =VLOOKUP(Credits_PolicyYear_Input&'Calculation Links'!$L16,Differentials,HLOOKUP(AN$41,Differentials,2,FALSE),FALSE) -> 0 | AO16: =VLOOKUP(Credits_PolicyYear_Input&'Calculation Links'!$L16,Differentials,HLOOKUP(AO$41,Differentials,2,FALSE),FALSE) -> 0 | AP16: =VLOOKUP(Credits_PolicyYear_Input&'Calculation Links'!$L16,Differentials,HLOOKUP(AP$41,Differentials,2,FALSE),FALSE) -> 0 | AQ16: =VLOOKUP(Credits_PolicyYear_Input&'Calculation Links'!$L16,Differentials,HLOOKUP(AQ$41,Differentials,2,FALSE),FALSE) -> 0 | AR16: R | AS16: R
A17: ='Validation Lists'!AD14 -> Southern Corridor | B17: =VLOOKUP(Policy_Year_Input&'Calculation Links'!$A17,Standard_Contributions,HLOOKUP(B$4,Standard_Contributions,2,FALSE),FALSE) -> 9539 | C17: =VLOOKUP(Policy_Year_Input&'Calculation Links'!$A17,Standard_Contributions,HLOOKUP(C$4,Standard_Contributions,2,FALSE),FALSE) -> 9721 | D17: =VLOOKUP(Policy_Year_Input&'Calculation Links'!$A17,Standard_Contributions,HLOOKUP(D$4,Standard_Contributions,2,FALSE),FALSE) -> 0 | E17: =VLOOKUP(Policy_Year_Input&'Calculation Links'!$A17,Standard_Contributions,HLOOKUP(E$4,Standard_Contributions,2,FALSE),FALSE) -> 1182 | F17: =VLOOKUP(Policy_Year_Input&'Calculation Links'!$A17,Standard_Contributions,HLOOKUP(F$4,Standard_Contributions,2,FALSE),FALSE) -> 3604 | G17: =VLOOKUP(Policy_Year_Input&'Calculation Links'!$A17,Standard_Contributions,HLOOKUP(G$4,Standard_Contributions,2,FALSE),FALSE) -> 500 | H17: =VLOOKUP(Policy_Year_Input&'Calculation Links'!$A17,Standard_Contributions,HLOOKUP(H$4,Standard_Contributions,2,FALSE),FALSE) -> 5339 | I17: =VLOOKUP(Policy_Year_Input&'Calculation Links'!$A17,Standard_Contributions,HLOOKUP(I$4,Standard_Contributions,2,FALSE),FALSE) -> 0 | J17: ='Validation Lists'!AE14 -> Wakatipu | L17: CBD Commercial | M17: =VLOOKUP(Policy_Year_Input&'Calculation Links'!$L17,Differentials,HLOOKUP(M$41,Differentials,2,FALSE),FALSE) ->  | N17: =VLOOKUP(Policy_Year_Input&'Calculation Links'!$L17,Differentials,HLOOKUP(N$41,Differentials,2,FALSE),FALSE) ->  | O17: =VLOOKUP(Policy_Year_Input&'Calculation Links'!$L17,Differentials,HLOOKUP(O$41,Differentials,2,FALSE),FALSE) ->  | P17: =VLOOKUP(Policy_Year_Input&'Calculation Links'!$L17,Differentials,HLOOKUP(P$41,Differentials,2,FALSE),FALSE) ->  | Q17: =VLOOKUP(Policy_Year_Input&'Calculation Links'!$L17,Differentials,HLOOKUP(Q$41,Differentials,2,FALSE),FALSE) ->  | R17: =VLOOKUP(Policy_Year_Input&'Calculation Links'!$L17,Differentials,HLOOKUP(R$41,Differentials,2,FALSE),FALSE) ->  | S17: =VLOOKUP(Policy_Year_Input&'Calculation Links'!$L17,Differentials,HLOOKUP(S$41,Differentials,2,FALSE),FALSE) ->  | T17: =VLOOKUP(Policy_Year_Input&'Calculation Links'!$L17,Differentials,HLOOKUP(T$41,Differentials,2,FALSE),FALSE) ->  | U17: =VLOOKUP(Policy_Year_Input&'Calculation Links'!$L17,Differentials,HLOOKUP(U$41,Differentials,2,FALSE),FALSE) ->  | V17: =VLOOKUP(Policy_Year_Input&'Calculation Links'!$L17,Differentials,HLOOKUP(V$41,Differentials,2,FALSE),FALSE) ->  | W17: =VLOOKUP(Policy_Year_Input&'Calculation Links'!$L17,Differentials,HLOOKUP(W$41,Differentials,2,FALSE),FALSE) ->  | X17: =VLOOKUP(Policy_Year_Input&'Calculation Links'!$L17,Differentials,HLOOKUP(X$41,Differentials,2,FALSE),FALSE) ->  | Y17: =VLOOKUP(Policy_Year_Input&'Calculation Links'!$L17,Differentials,HLOOKUP(Y$41,Differentials,2,FALSE),FALSE) ->  | Z17: =VLOOKUP(Policy_Year_Input&'Calculation Links'!$L17,Differentials,HLOOKUP(Z$41,Differentials,2,FALSE),FALSE) ->  | AA17: NR | AB17: NR | AC17: CBD Commercial | AD17: =VLOOKUP(Credits_PolicyYear_Input&'Calculation Links'!$L17,Differentials,HLOOKUP(AD$41,Differentials,2,FALSE),FALSE) -> 0 | AE17: =VLOOKUP(Credits_PolicyYear_Input&'Calculation Links'!$L17,Differentials,HLOOKUP(AE$41,Differentials,2,FALSE),FALSE) -> 0 | AF17: =VLOOKUP(Credits_PolicyYear_Input&'Calculation Links'!$L17,Differentials,HLOOKUP(AF$41,Differentials,2,FALSE),FALSE) -> 0 | AG17: =VLOOKUP(Credits_PolicyYear_Input&'Calculation Links'!$L17,Differentials,HLOOKUP(AG$41,Differentials,2,FALSE),FALSE) -> 0 | AH17: =VLOOKUP(Credits_PolicyYear_Input&'Calculation Links'!$L17,Differentials,HLOOKUP(AH$41,Differentials,2,FALSE),FALSE) -> 0 | AI17: =VLOOKUP(Credits_PolicyYear_Input&'Calculation Links'!$L17,Differentials,HLOOKUP(AI$41,Differentials,2,FALSE),FALSE) -> 0 | AJ17: =VLOOKUP(Credits_PolicyYear_Input&'Calculation Links'!$L17,Differentials,HLOOKUP(AJ$41,Differentials,2,FALSE),FALSE) -> 0 | AK17: =VLOOKUP(Credits_PolicyYear_Input&'Calculation Links'!$L17,Differentials,HLOOKUP(AK$41,Differentials,2,FALSE),FALSE) -> 0 | AL17: =VLOOKUP(Credits_PolicyYear_Input&'Calculation Links'!$L17,Differentials,HLOOKUP(AL$41,Differentials,2,FALSE),FALSE) -> 0 | AM17: =VLOOKUP(Credits_PolicyYear_Input&'Calculation Links'!$L17,Differentials,HLOOKUP(AM$41,Differentials,2,FALSE),FALSE) -> 0 | AN17: =VLOOKUP(Credits_PolicyYear_Input&'Calculation Links'!$L17,Differentials,HLOOKUP(AN$41,Differentials,2,FALSE),FALSE) -> 0 | AO17: =VLOOKUP(Credits_PolicyYear_Input&'Calculation Links'!$L17,Differentials,HLOOKUP(AO$41,Differentials,2,FALSE),FALSE) -> 0 | AP17: =VLOOKUP(Credits_PolicyYear_Input&'Calculation Links'!$L17,Differentials,HLOOKUP(AP$41,Differentials,2,FALSE),FALSE) -> 0 | AQ17: =VLOOKUP(Credits_PolicyYear_Input&'Calculation Links'!$L17,Differentials,HLOOKUP(AQ$41,Differentials,2,FALSE),FALSE) -> 0 | AR17: NR | AS17: NR
A18: ='Validation Lists'!AD15 -> Wanaka | B18: =VLOOKUP(Policy_Year_Input&'Calculation Links'!$A18,Standard_Contributions,HLOOKUP(B$4,Standard_Contributions,2,FALSE),FALSE) -> 8425 | C18: =VLOOKUP(Policy_Year_Input&'Calculation Links'!$A18,Standard_Contributions,HLOOKUP(C$4,Standard_Contributions,2,FALSE),FALSE) -> 13047 | D18: =VLOOKUP(Policy_Year_Input&'Calculation Links'!$A18,Standard_Contributions,HLOOKUP(D$4,Standard_Contributions,2,FALSE),FALSE) -> 5641 | E18: =VLOOKUP(Policy_Year_Input&'Calculation Links'!$A18,Standard_Contributions,HLOOKUP(E$4,Standard_Contributions,2,FALSE),FALSE) -> 2232 | F18: =VLOOKUP(Policy_Year_Input&'Calculation Links'!$A18,Standard_Contributions,HLOOKUP(F$4,Standard_Contributions,2,FALSE),FALSE) -> 3106 | G18: =VLOOKUP(Policy_Year_Input&'Calculation Links'!$A18,Standard_Contributions,HLOOKUP(G$4,Standard_Contributions,2,FALSE),FALSE) -> 0 | H18: =VLOOKUP(Policy_Year_Input&'Calculation Links'!$A18,Standard_Contributions,HLOOKUP(H$4,Standard_Contributions,2,FALSE),FALSE) -> 2444 | I18: =VLOOKUP(Policy_Year_Input&'Calculation Links'!$A18,Standard_Contributions,HLOOKUP(I$4,Standard_Contributions,2,FALSE),FALSE) -> 0 | J18: ='Validation Lists'!AE15 -> Wanaka | L18: Mixed Use Accommodation | M18: =VLOOKUP(Policy_Year_Input&'Calculation Links'!$L18,Differentials,HLOOKUP(M$41,Differentials,2,FALSE),FALSE) ->  | N18: =VLOOKUP(Policy_Year_Input&'Calculation Links'!$L18,Differentials,HLOOKUP(N$41,Differentials,2,FALSE),FALSE) ->  | O18: =VLOOKUP(Policy_Year_Input&'Calculation Links'!$L18,Differentials,HLOOKUP(O$41,Differentials,2,FALSE),FALSE) ->  | P18: =VLOOKUP(Policy_Year_Input&'Calculation Links'!$L18,Differentials,HLOOKUP(P$41,Differentials,2,FALSE),FALSE) ->  | Q18: =VLOOKUP(Policy_Year_Input&'Calculation Links'!$L18,Differentials,HLOOKUP(Q$41,Differentials,2,FALSE),FALSE) ->  | R18: =VLOOKUP(Policy_Year_Input&'Calculation Links'!$L18,Differentials,HLOOKUP(R$41,Differentials,2,FALSE),FALSE) ->  | S18: =VLOOKUP(Policy_Year_Input&'Calculation Links'!$L18,Differentials,HLOOKUP(S$41,Differentials,2,FALSE),FALSE) ->  | T18: =VLOOKUP(Policy_Year_Input&'Calculation Links'!$L18,Differentials,HLOOKUP(T$41,Differentials,2,FALSE),FALSE) ->  | U18: =VLOOKUP(Policy_Year_Input&'Calculation Links'!$L18,Differentials,HLOOKUP(U$41,Differentials,2,FALSE),FALSE) ->  | V18: =VLOOKUP(Policy_Year_Input&'Calculation Links'!$L18,Differentials,HLOOKUP(V$41,Differentials,2,FALSE),FALSE) ->  | W18: =VLOOKUP(Policy_Year_Input&'Calculation Links'!$L18,Differentials,HLOOKUP(W$41,Differentials,2,FALSE),FALSE) ->  | X18: =VLOOKUP(Policy_Year_Input&'Calculation Links'!$L18,Differentials,HLOOKUP(X$41,Differentials,2,FALSE),FALSE) ->  | Y18: =VLOOKUP(Policy_Year_Input&'Calculation Links'!$L18,Differentials,HLOOKUP(Y$41,Differentials,2,FALSE),FALSE) ->  | Z18: =VLOOKUP(Policy_Year_Input&'Calculation Links'!$L18,Differentials,HLOOKUP(Z$41,Differentials,2,FALSE),FALSE) ->  | AA18: R | AB18: R | AC18: Mixed Use Accommodation | AD18: =VLOOKUP(Credits_PolicyYear_Input&'Calculation Links'!$L18,Differentials,HLOOKUP(AD$41,Differentials,2,FALSE),FALSE) -> 0 | AE18: =VLOOKUP(Credits_PolicyYear_Input&'Calculation Links'!$L18,Differentials,HLOOKUP(AE$41,Differentials,2,FALSE),FALSE) -> 0 | AF18: =VLOOKUP(Credits_PolicyYear_Input&'Calculation Links'!$L18,Differentials,HLOOKUP(AF$41,Differentials,2,FALSE),FALSE) -> 0 | AG18: =VLOOKUP(Credits_PolicyYear_Input&'Calculation Links'!$L18,Differentials,HLOOKUP(AG$41,Differentials,2,FALSE),FALSE) -> 0 | AH18: =VLOOKUP(Credits_PolicyYear_Input&'Calculation Links'!$L18,Differentials,HLOOKUP(AH$41,Differentials,2,FALSE),FALSE) -> 0 | AI18: =VLOOKUP(Credits_PolicyYear_Input&'Calculation Links'!$L18,Differentials,HLOOKUP(AI$41,Differentials,2,FALSE),FALSE) -> 0 | AJ18: =VLOOKUP(Credits_PolicyYear_Input&'Calculation Links'!$L18,Differentials,HLOOKUP(AJ$41,Differentials,2,FALSE),FALSE) -> 0 | AK18: =VLOOKUP(Credits_PolicyYear_Input&'Calculation Links'!$L18,Differentials,HLOOKUP(AK$41,Differentials,2,FALSE),FALSE) -> 0 | AL18: =VLOOKUP(Credits_PolicyYear_Input&'Calculation Links'!$L18,Differentials,HLOOKUP(AL$41,Differentials,2,FALSE),FALSE) -> 0 | AM18: =VLOOKUP(Credits_PolicyYear_Input&'Calculation Links'!$L18,Differentials,HLOOKUP(AM$41,Differentials,2,FALSE),FALSE) -> 0 | AN18: =VLOOKUP(Credits_PolicyYear_Input&'Calculation Links'!$L18,Differentials,HLOOKUP(AN$41,Differentials,2,FALSE),FALSE) -> 0 | AO18: =VLOOKUP(Credits_PolicyYear_Input&'Calculation Links'!$L18,Differentials,HLOOKUP(AO$41,Differentials,2,FALSE),FALSE) -> 0 | AP18: =VLOOKUP(Credits_PolicyYear_Input&'Calculation Links'!$L18,Differentials,HLOOKUP(AP$41,Differentials,2,FALSE),FALSE) -> 0 | AQ18: =VLOOKUP(Credits_PolicyYear_Input&'Calculation Links'!$L18,Differentials,HLOOKUP(AQ$41,Differentials,2,FALSE),FALSE) -> 0 | AR18: R | AS18: R
A19: ='Validation Lists'!AD16 -> Hawea | B19: =VLOOKUP(Policy_Year_Input&'Calculation Links'!$A19,Standard_Contributions,HLOOKUP(B$4,Standard_Contributions,2,FALSE),FALSE) -> 12992 | C19: =VLOOKUP(Policy_Year_Input&'Calculation Links'!$A19,Standard_Contributions,HLOOKUP(C$4,Standard_Contributions,2,FALSE),FALSE) -> 20395 | D19: =VLOOKUP(Policy_Year_Input&'Calculation Links'!$A19,Standard_Contributions,HLOOKUP(D$4,Standard_Contributions,2,FALSE),FALSE) -> 238 | E19: =VLOOKUP(Policy_Year_Input&'Calculation Links'!$A19,Standard_Contributions,HLOOKUP(E$4,Standard_Contributions,2,FALSE),FALSE) -> 2232 | F19: =VLOOKUP(Policy_Year_Input&'Calculation Links'!$A19,Standard_Contributions,HLOOKUP(F$4,Standard_Contributions,2,FALSE),FALSE) -> 3106 | G19: =VLOOKUP(Policy_Year_Input&'Calculation Links'!$A19,Standard_Contributions,HLOOKUP(G$4,Standard_Contributions,2,FALSE),FALSE) -> 0 | H19: =VLOOKUP(Policy_Year_Input&'Calculation Links'!$A19,Standard_Contributions,HLOOKUP(H$4,Standard_Contributions,2,FALSE),FALSE) -> 2444 | I19: =VLOOKUP(Policy_Year_Input&'Calculation Links'!$A19,Standard_Contributions,HLOOKUP(I$4,Standard_Contributions,2,FALSE),FALSE) -> 0 | J19: ='Validation Lists'!AE16 -> Wanaka | L19: Mixed Use Commercial | M19: =VLOOKUP(Policy_Year_Input&'Calculation Links'!$L19,Differentials,HLOOKUP(M$41,Differentials,2,FALSE),FALSE) ->  | N19: =VLOOKUP(Policy_Year_Input&'Calculation Links'!$L19,Differentials,HLOOKUP(N$41,Differentials,2,FALSE),FALSE) ->  | O19: =VLOOKUP(Policy_Year_Input&'Calculation Links'!$L19,Differentials,HLOOKUP(O$41,Differentials,2,FALSE),FALSE) ->  | P19: =VLOOKUP(Policy_Year_Input&'Calculation Links'!$L19,Differentials,HLOOKUP(P$41,Differentials,2,FALSE),FALSE) ->  | Q19: =VLOOKUP(Policy_Year_Input&'Calculation Links'!$L19,Differentials,HLOOKUP(Q$41,Differentials,2,FALSE),FALSE) ->  | R19: =VLOOKUP(Policy_Year_Input&'Calculation Links'!$L19,Differentials,HLOOKUP(R$41,Differentials,2,FALSE),FALSE) ->  | S19: =VLOOKUP(Policy_Year_Input&'Calculation Links'!$L19,Differentials,HLOOKUP(S$41,Differentials,2,FALSE),FALSE) ->  | T19: =VLOOKUP(Policy_Year_Input&'Calculation Links'!$L19,Differentials,HLOOKUP(T$41,Differentials,2,FALSE),FALSE) ->  | U19: =VLOOKUP(Policy_Year_Input&'Calculation Links'!$L19,Differentials,HLOOKUP(U$41,Differentials,2,FALSE),FALSE) ->  | V19: =VLOOKUP(Policy_Year_Input&'Calculation Links'!$L19,Differentials,HLOOKUP(V$41,Differentials,2,FALSE),FALSE) ->  | W19: =VLOOKUP(Policy_Year_Input&'Calculation Links'!$L19,Differentials,HLOOKUP(W$41,Differentials,2,FALSE),FALSE) ->  | X19: =VLOOKUP(Policy_Year_Input&'Calculation Links'!$L19,Differentials,HLOOKUP(X$41,Differentials,2,FALSE),FALSE) ->  | Y19: =VLOOKUP(Policy_Year_Input&'Calculation Links'!$L19,Differentials,HLOOKUP(Y$41,Differentials,2,FALSE),FALSE) ->  | Z19: =VLOOKUP(Policy_Year_Input&'Calculation Links'!$L19,Differentials,HLOOKUP(Z$41,Differentials,2,FALSE),FALSE) ->  | AA19: NR | AB19: NR | AC19: Mixed Use Commercial | AD19: =VLOOKUP(Credits_PolicyYear_Input&'Calculation Links'!$L19,Differentials,HLOOKUP(AD$41,Differentials,2,FALSE),FALSE) -> 0 | AE19: =VLOOKUP(Credits_PolicyYear_Input&'Calculation Links'!$L19,Differentials,HLOOKUP(AE$41,Differentials,2,FALSE),FALSE) -> 0 | AF19: =VLOOKUP(Credits_PolicyYear_Input&'Calculation Links'!$L19,Differentials,HLOOKUP(AF$41,Differentials,2,FALSE),FALSE) -> 0 | AG19: =VLOOKUP(Credits_PolicyYear_Input&'Calculation Links'!$L19,Differentials,HLOOKUP(AG$41,Differentials,2,FALSE),FALSE) -> 0 | AH19: =VLOOKUP(Credits_PolicyYear_Input&'Calculation Links'!$L19,Differentials,HLOOKUP(AH$41,Differentials,2,FALSE),FALSE) -> 0 | AI19: =VLOOKUP(Credits_PolicyYear_Input&'Calculation Links'!$L19,Differentials,HLOOKUP(AI$41,Differentials,2,FALSE),FALSE) -> 0 | AJ19: =VLOOKUP(Credits_PolicyYear_Input&'Calculation Links'!$L19,Differentials,HLOOKUP(AJ$41,Differentials,2,FALSE),FALSE) -> 0 | AK19: =VLOOKUP(Credits_PolicyYear_Input&'Calculation Links'!$L19,Differentials,HLOOKUP(AK$41,Differentials,2,FALSE),FALSE) -> 0 | AL19: =VLOOKUP(Credits_PolicyYear_Input&'Calculation Links'!$L19,Differentials,HLOOKUP(AL$41,Differentials,2,FALSE),FALSE) -> 0 | AM19: =VLOOKUP(Credits_PolicyYear_Input&'Calculation Links'!$L19,Differentials,HLOOKUP(AM$41,Differentials,2,FALSE),FALSE) -> 0 | AN19: =VLOOKUP(Credits_PolicyYear_Input&'Calculation Links'!$L19,Differentials,HLOOKUP(AN$41,Differentials,2,FALSE),FALSE) -> 0 | AO19: =VLOOKUP(Credits_PolicyYear_Input&'Calculation Links'!$L19,Differentials,HLOOKUP(AO$41,Differentials,2,FALSE),FALSE) -> 0 | AP19: =VLOOKUP(Credits_PolicyYear_Input&'Calculation Links'!$L19,Differentials,HLOOKUP(AP$41,Differentials,2,FALSE),FALSE) -> 0 | AQ19: =VLOOKUP(Credits_PolicyYear_Input&'Calculation Links'!$L19,Differentials,HLOOKUP(AQ$41,Differentials,2,FALSE),FALSE) -> 0 | AR19: NR | AS19: NR
A20: ='Validation Lists'!AD17 -> Albert Town | B20: =VLOOKUP(Policy_Year_Input&'Calculation Links'!$A20,Standard_Contributions,HLOOKUP(B$4,Standard_Contributions,2,FALSE),FALSE) -> 8425 | C20: =VLOOKUP(Policy_Year_Input&'Calculation Links'!$A20,Standard_Contributions,HLOOKUP(C$4,Standard_Contributions,2,FALSE),FALSE) -> 13047 | D20: =VLOOKUP(Policy_Year_Input&'Calculation Links'!$A20,Standard_Contributions,HLOOKUP(D$4,Standard_Contributions,2,FALSE),FALSE) -> 236 | E20: =VLOOKUP(Policy_Year_Input&'Calculation Links'!$A20,Standard_Contributions,HLOOKUP(E$4,Standard_Contributions,2,FALSE),FALSE) -> 2232 | F20: =VLOOKUP(Policy_Year_Input&'Calculation Links'!$A20,Standard_Contributions,HLOOKUP(F$4,Standard_Contributions,2,FALSE),FALSE) -> 3106 | G20: =VLOOKUP(Policy_Year_Input&'Calculation Links'!$A20,Standard_Contributions,HLOOKUP(G$4,Standard_Contributions,2,FALSE),FALSE) -> 0 | H20: =VLOOKUP(Policy_Year_Input&'Calculation Links'!$A20,Standard_Contributions,HLOOKUP(H$4,Standard_Contributions,2,FALSE),FALSE) -> 2444 | I20: =VLOOKUP(Policy_Year_Input&'Calculation Links'!$A20,Standard_Contributions,HLOOKUP(I$4,Standard_Contributions,2,FALSE),FALSE) -> 0 | J20: ='Validation Lists'!AE17 -> Wanaka | L20: Primary Industry | M20: =VLOOKUP(Policy_Year_Input&'Calculation Links'!$L20,Differentials,HLOOKUP(M$41,Differentials,2,FALSE),FALSE) ->  | N20: =VLOOKUP(Policy_Year_Input&'Calculation Links'!$L20,Differentials,HLOOKUP(N$41,Differentials,2,FALSE),FALSE) ->  | O20: =VLOOKUP(Policy_Year_Input&'Calculation Links'!$L20,Differentials,HLOOKUP(O$41,Differentials,2,FALSE),FALSE) ->  | P20: =VLOOKUP(Policy_Year_Input&'Calculation Links'!$L20,Differentials,HLOOKUP(P$41,Differentials,2,FALSE),FALSE) ->  | Q20: =VLOOKUP(Policy_Year_Input&'Calculation Links'!$L20,Differentials,HLOOKUP(Q$41,Differentials,2,FALSE),FALSE) ->  | R20: =VLOOKUP(Policy_Year_Input&'Calculation Links'!$L20,Differentials,HLOOKUP(R$41,Differentials,2,FALSE),FALSE) ->  | S20: =VLOOKUP(Policy_Year_Input&'Calculation Links'!$L20,Differentials,HLOOKUP(S$41,Differentials,2,FALSE),FALSE) ->  | T20: =VLOOKUP(Policy_Year_Input&'Calculation Links'!$L20,Differentials,HLOOKUP(T$41,Differentials,2,FALSE),FALSE) ->  | U20: =VLOOKUP(Policy_Year_Input&'Calculation Links'!$L20,Differentials,HLOOKUP(U$41,Differentials,2,FALSE),FALSE) ->  | V20: =VLOOKUP(Policy_Year_Input&'Calculation Links'!$L20,Differentials,HLOOKUP(V$41,Differentials,2,FALSE),FALSE) ->  | W20: =VLOOKUP(Policy_Year_Input&'Calculation Links'!$L20,Differentials,HLOOKUP(W$41,Differentials,2,FALSE),FALSE) ->  | X20: =VLOOKUP(Policy_Year_Input&'Calculation Links'!$L20,Differentials,HLOOKUP(X$41,Differentials,2,FALSE),FALSE) ->  | Y20: =VLOOKUP(Policy_Year_Input&'Calculation Links'!$L20,Differentials,HLOOKUP(Y$41,Differentials,2,FALSE),FALSE) ->  | Z20: =VLOOKUP(Policy_Year_Input&'Calculation Links'!$L20,Differentials,HLOOKUP(Z$41,Differentials,2,FALSE),FALSE) ->  | AA20: R | AB20: R | AC20: Primary Industry | AD20: =VLOOKUP(Credits_PolicyYear_Input&'Calculation Links'!$L20,Differentials,HLOOKUP(AD$41,Differentials,2,FALSE),FALSE) -> 0 | AE20: =VLOOKUP(Credits_PolicyYear_Input&'Calculation Links'!$L20,Differentials,HLOOKUP(AE$41,Differentials,2,FALSE),FALSE) -> 0 | AF20: =VLOOKUP(Credits_PolicyYear_Input&'Calculation Links'!$L20,Differentials,HLOOKUP(AF$41,Differentials,2,FALSE),FALSE) -> 0 | AG20: =VLOOKUP(Credits_PolicyYear_Input&'Calculation Links'!$L20,Differentials,HLOOKUP(AG$41,Differentials,2,FALSE),FALSE) -> 0 | AH20: =VLOOKUP(Credits_PolicyYear_Input&'Calculation Links'!$L20,Differentials,HLOOKUP(AH$41,Differentials,2,FALSE),FALSE) -> 0 | AI20: =VLOOKUP(Credits_PolicyYear_Input&'Calculation Links'!$L20,Differentials,HLOOKUP(AI$41,Differentials,2,FALSE),FALSE) -> 0 | AJ20: =VLOOKUP(Credits_PolicyYear_Input&'Calculation Links'!$L20,Differentials,HLOOKUP(AJ$41,Differentials,2,FALSE),FALSE) -> 0 | AK20: =VLOOKUP(Credits_PolicyYear_Input&'Calculation Links'!$L20,Differentials,HLOOKUP(AK$41,Differentials,2,FALSE),FALSE) -> 0 | AL20: =VLOOKUP(Credits_PolicyYear_Input&'Calculation Links'!$L20,Differentials,HLOOKUP(AL$41,Differentials,2,FALSE),FALSE) -> 0 | AM20: =VLOOKUP(Credits_PolicyYear_Input&'Calculation Links'!$L20,Differentials,HLOOKUP(AM$41,Differentials,2,FALSE),FALSE) -> 0 | AN20: =VLOOKUP(Credits_PolicyYear_Input&'Calculation Links'!$L20,Differentials,HLOOKUP(AN$41,Differentials,2,FALSE),FALSE) -> 0 | AO20: =VLOOKUP(Credits_PolicyYear_Input&'Calculation Links'!$L20,Differentials,HLOOKUP(AO$41,Differentials,2,FALSE),FALSE) -> 0 | AP20: =VLOOKUP(Credits_PolicyYear_Input&'Calculation Links'!$L20,Differentials,HLOOKUP(AP$41,Differentials,2,FALSE),FALSE) -> 0 | AQ20: =VLOOKUP(Credits_PolicyYear_Input&'Calculation Links'!$L20,Differentials,HLOOKUP(AQ$41,Differentials,2,FALSE),FALSE) -> 0 | AR20: R | AS20: R
A21: ='Validation Lists'!AD18 -> Luggate | B21: =VLOOKUP(Policy_Year_Input&'Calculation Links'!$A21,Standard_Contributions,HLOOKUP(B$4,Standard_Contributions,2,FALSE),FALSE) -> 14476 | C21: =VLOOKUP(Policy_Year_Input&'Calculation Links'!$A21,Standard_Contributions,HLOOKUP(C$4,Standard_Contributions,2,FALSE),FALSE) -> 13047 | D21: =VLOOKUP(Policy_Year_Input&'Calculation Links'!$A21,Standard_Contributions,HLOOKUP(D$4,Standard_Contributions,2,FALSE),FALSE) -> 224 | E21: =VLOOKUP(Policy_Year_Input&'Calculation Links'!$A21,Standard_Contributions,HLOOKUP(E$4,Standard_Contributions,2,FALSE),FALSE) -> 2232 | F21: =VLOOKUP(Policy_Year_Input&'Calculation Links'!$A21,Standard_Contributions,HLOOKUP(F$4,Standard_Contributions,2,FALSE),FALSE) -> 3106 | G21: =VLOOKUP(Policy_Year_Input&'Calculation Links'!$A21,Standard_Contributions,HLOOKUP(G$4,Standard_Contributions,2,FALSE),FALSE) -> 0 | H21: =VLOOKUP(Policy_Year_Input&'Calculation Links'!$A21,Standard_Contributions,HLOOKUP(H$4,Standard_Contributions,2,FALSE),FALSE) -> 2444 | I21: =VLOOKUP(Policy_Year_Input&'Calculation Links'!$A21,Standard_Contributions,HLOOKUP(I$4,Standard_Contributions,2,FALSE),FALSE) -> 0 | J21: ='Validation Lists'!AE18 -> Wanaka | L21: Accommodation - Rural | M21: =+M9 ->  | N21: =+N9 ->  | O21: =+O9 ->  | P21: =+P9 ->  | Q21: =ROUND(Q9*Q13,2) ->  | X21: =+X9 ->  | Y21: =+Y9 ->  | Z21: =+Z9 ->  | AA21: R | AB21: R | AC21: Accommodation - Rural | AD21: =+AD9 -> 0 | AE21: =+AE9 -> 0 | AF21: =+AF9 -> 0 | AG21: =+AG9 -> 0 | AH21: =ROUND(AH9*AH13,2) -> 0 | AI21: 0 | AJ21: 0 | AK21: 0 | AL21: 0 | AM21: 0 | AN21: 0 | AO21: =+AO9 -> 0 | AP21: =+AP9 -> 0 | AQ21: =+AQ9 -> 0 | AR21: R | AS21: R
A22: ='Validation Lists'!AD19 -> Cardrona | B22: =VLOOKUP(Policy_Year_Input&'Calculation Links'!$A22,Standard_Contributions,HLOOKUP(B$4,Standard_Contributions,2,FALSE),FALSE) -> 17486 | C22: =VLOOKUP(Policy_Year_Input&'Calculation Links'!$A22,Standard_Contributions,HLOOKUP(C$4,Standard_Contributions,2,FALSE),FALSE) -> 16820 | D22: =VLOOKUP(Policy_Year_Input&'Calculation Links'!$A22,Standard_Contributions,HLOOKUP(D$4,Standard_Contributions,2,FALSE),FALSE) -> 0 | E22: =VLOOKUP(Policy_Year_Input&'Calculation Links'!$A22,Standard_Contributions,HLOOKUP(E$4,Standard_Contributions,2,FALSE),FALSE) -> 2232 | F22: =VLOOKUP(Policy_Year_Input&'Calculation Links'!$A22,Standard_Contributions,HLOOKUP(F$4,Standard_Contributions,2,FALSE),FALSE) -> 3106 | G22: =VLOOKUP(Policy_Year_Input&'Calculation Links'!$A22,Standard_Contributions,HLOOKUP(G$4,Standard_Contributions,2,FALSE),FALSE) -> 0 | H22: =VLOOKUP(Policy_Year_Input&'Calculation Links'!$A22,Standard_Contributions,HLOOKUP(H$4,Standard_Contributions,2,FALSE),FALSE) -> 2444 | I22: =VLOOKUP(Policy_Year_Input&'Calculation Links'!$A22,Standard_Contributions,HLOOKUP(I$4,Standard_Contributions,2,FALSE),FALSE) -> 0 | J22: ='Validation Lists'!AE19 -> Wanaka | L22: =+L7&" (MUA)" -> Multi-unit Residential (MUA) | M22: =VLOOKUP(Policy_Year_Input&'Calculation Links'!$L22,Differentials,HLOOKUP(M$41,Differentials,2,FALSE),FALSE) ->  | N22: =VLOOKUP(Policy_Year_Input&'Calculation Links'!$L22,Differentials,HLOOKUP(N$41,Differentials,2,FALSE),FALSE) ->  | O22: =VLOOKUP(Policy_Year_Input&'Calculation Links'!$L22,Differentials,HLOOKUP(O$41,Differentials,2,FALSE),FALSE) ->  | P22: =VLOOKUP(Policy_Year_Input&'Calculation Links'!$L22,Differentials,HLOOKUP(P$41,Differentials,2,FALSE),FALSE) ->  | Q22: =VLOOKUP(Policy_Year_Input&'Calculation Links'!$L22,Differentials,HLOOKUP(Q$41,Differentials,2,FALSE),FALSE) ->  | R22: =VLOOKUP(Policy_Year_Input&'Calculation Links'!$L22,Differentials,HLOOKUP(R$41,Differentials,2,FALSE),FALSE) ->  | S22: =VLOOKUP(Policy_Year_Input&'Calculation Links'!$L22,Differentials,HLOOKUP(S$41,Differentials,2,FALSE),FALSE) ->  | T22: =VLOOKUP(Policy_Year_Input&'Calculation Links'!$L22,Differentials,HLOOKUP(T$41,Differentials,2,FALSE),FALSE) ->  | U22: =VLOOKUP(Policy_Year_Input&'Calculation Links'!$L22,Differentials,HLOOKUP(U$41,Differentials,2,FALSE),FALSE) ->  | V22: =VLOOKUP(Policy_Year_Input&'Calculation Links'!$L22,Differentials,HLOOKUP(V$41,Differentials,2,FALSE),FALSE) ->  | W22: =VLOOKUP(Policy_Year_Input&'Calculation Links'!$L22,Differentials,HLOOKUP(W$41,Differentials,2,FALSE),FALSE) ->  | X22: =VLOOKUP(Policy_Year_Input&'Calculation Links'!$L22,Differentials,HLOOKUP(X$41,Differentials,2,FALSE),FALSE) ->  | Y22: =VLOOKUP(Policy_Year_Input&'Calculation Links'!$L22,Differentials,HLOOKUP(Y$41,Differentials,2,FALSE),FALSE) ->  | Z22: =VLOOKUP(Policy_Year_Input&'Calculation Links'!$L22,Differentials,HLOOKUP(Z$41,Differentials,2,FALSE),FALSE) ->  | AA22: =IF(LEFT(Policy_Year_Input,7)="2018/19","NR",AB22) -> R | AB22: R | AC22: =+L22 -> Multi-unit Residential (MUA) | AD22: =VLOOKUP(Credits_PolicyYear_Input&'Calculation Links'!$L22,Differentials,HLOOKUP(AD$41,Differentials,2,FALSE),FALSE) -> 0 | AE22: =VLOOKUP(Credits_PolicyYear_Input&'Calculation Links'!$L22,Differentials,HLOOKUP(AE$41,Differentials,2,FALSE),FALSE) -> 0 | AF22: =VLOOKUP(Credits_PolicyYear_Input&'Calculation Links'!$L22,Differentials,HLOOKUP(AF$41,Differentials,2,FALSE),FALSE) -> 0 | AG22: =VLOOKUP(Credits_PolicyYear_Input&'Calculation Links'!$L22,Differentials,HLOOKUP(AG$41,Differentials,2,FALSE),FALSE) -> 0 | AH22: =VLOOKUP(Credits_PolicyYear_Input&'Calculation Links'!$L22,Differentials,HLOOKUP(AH$41,Differentials,2,FALSE),FALSE) -> 0 | AI22: =VLOOKUP(Credits_PolicyYear_Input&'Calculation Links'!$L22,Differentials,HLOOKUP(AI$41,Differentials,2,FALSE),FALSE) -> 0 | AJ22: =VLOOKUP(Credits_PolicyYear_Input&'Calculation Links'!$L22,Differentials,HLOOKUP(AJ$41,Differentials,2,FALSE),FALSE) -> 0 | AK22: =VLOOKUP(Credits_PolicyYear_Input&'Calculation Links'!$L22,Differentials,HLOOKUP(AK$41,Differentials,2,FALSE),FALSE) -> 0 | AL22: =VLOOKUP(Credits_PolicyYear_Input&'Calculation Links'!$L22,Differentials,HLOOKUP(AL$41,Differentials,2,FALSE),FALSE) -> 0 | AM22: =VLOOKUP(Credits_PolicyYear_Input&'Calculation Links'!$L22,Differentials,HLOOKUP(AM$41,Differentials,2,FALSE),FALSE) -> 0 | AN22: =VLOOKUP(Credits_PolicyYear_Input&'Calculation Links'!$L22,Differentials,HLOOKUP(AN$41,Differentials,2,FALSE),FALSE) -> 0 | AO22: =VLOOKUP(Credits_PolicyYear_Input&'Calculation Links'!$L22,Differentials,HLOOKUP(AO$41,Differentials,2,FALSE),FALSE) -> 0 | AP22: =VLOOKUP(Credits_PolicyYear_Input&'Calculation Links'!$L22,Differentials,HLOOKUP(AP$41,Differentials,2,FALSE),FALSE) -> 0 | AQ22: =VLOOKUP(Credits_PolicyYear_Input&'Calculation Links'!$L22,Differentials,HLOOKUP(AQ$41,Differentials,2,FALSE),FALSE) -> 0 | AR22: =IF(LEFT(Credits_PolicyYear_Input,7)="2018/19","NR",AS22) -> R | AS22: R
A23: ='Validation Lists'!AD20 -> Cardrona – MCS zone | B23: =VLOOKUP(Policy_Year_Input&'Calculation Links'!$A23,Standard_Contributions,HLOOKUP(B$4,Standard_Contributions,2,FALSE),FALSE) -> 24990 | C23: =VLOOKUP(Policy_Year_Input&'Calculation Links'!$A23,Standard_Contributions,HLOOKUP(C$4,Standard_Contributions,2,FALSE),FALSE) -> 13180 | D23: =VLOOKUP(Policy_Year_Input&'Calculation Links'!$A23,Standard_Contributions,HLOOKUP(D$4,Standard_Contributions,2,FALSE),FALSE) -> 0 | E23: =VLOOKUP(Policy_Year_Input&'Calculation Links'!$A23,Standard_Contributions,HLOOKUP(E$4,Standard_Contributions,2,FALSE),FALSE) -> 2232 | F23: =VLOOKUP(Policy_Year_Input&'Calculation Links'!$A23,Standard_Contributions,HLOOKUP(F$4,Standard_Contributions,2,FALSE),FALSE) -> 3106 | G23: =VLOOKUP(Policy_Year_Input&'Calculation Links'!$A23,Standard_Contributions,HLOOKUP(G$4,Standard_Contributions,2,FALSE),FALSE) -> 0 | H23: =VLOOKUP(Policy_Year_Input&'Calculation Links'!$A23,Standard_Contributions,HLOOKUP(H$4,Standard_Contributions,2,FALSE),FALSE) -> 2444 | I23: =VLOOKUP(Policy_Year_Input&'Calculation Links'!$A23,Standard_Contributions,HLOOKUP(I$4,Standard_Contributions,2,FALSE),FALSE) -> 0 | J23: ='Validation Lists'!AE20 -> Wanaka | L23: Residential Flat (MUA) | M23: =VLOOKUP(Policy_Year_Input&'Calculation Links'!$L23,Differentials,HLOOKUP(M$41,Differentials,2,FALSE),FALSE) ->  | N23: =VLOOKUP(Policy_Year_Input&'Calculation Links'!$L23,Differentials,HLOOKUP(N$41,Differentials,2,FALSE),FALSE) ->  | O23: =VLOOKUP(Policy_Year_Input&'Calculation Links'!$L23,Differentials,HLOOKUP(O$41,Differentials,2,FALSE),FALSE) ->  | P23: =VLOOKUP(Policy_Year_Input&'Calculation Links'!$L23,Differentials,HLOOKUP(P$41,Differentials,2,FALSE),FALSE) ->  | Q23: =VLOOKUP(Policy_Year_Input&'Calculation Links'!$L23,Differentials,HLOOKUP(Q$41,Differentials,2,FALSE),FALSE) ->  | R23: =VLOOKUP(Policy_Year_Input&'Calculation Links'!$L23,Differentials,HLOOKUP(R$41,Differentials,2,FALSE),FALSE) ->  | S23: =VLOOKUP(Policy_Year_Input&'Calculation Links'!$L23,Differentials,HLOOKUP(S$41,Differentials,2,FALSE),FALSE) ->  | T23: =VLOOKUP(Policy_Year_Input&'Calculation Links'!$L23,Differentials,HLOOKUP(T$41,Differentials,2,FALSE),FALSE) ->  | U23: =VLOOKUP(Policy_Year_Input&'Calculation Links'!$L23,Differentials,HLOOKUP(U$41,Differentials,2,FALSE),FALSE) ->  | V23: =VLOOKUP(Policy_Year_Input&'Calculation Links'!$L23,Differentials,HLOOKUP(V$41,Differentials,2,FALSE),FALSE) ->  | W23: =VLOOKUP(Policy_Year_Input&'Calculation Links'!$L23,Differentials,HLOOKUP(W$41,Differentials,2,FALSE),FALSE) ->  | X23: =VLOOKUP(Policy_Year_Input&'Calculation Links'!$L23,Differentials,HLOOKUP(X$41,Differentials,2,FALSE),FALSE) ->  | Y23: =VLOOKUP(Policy_Year_Input&'Calculation Links'!$L23,Differentials,HLOOKUP(Y$41,Differentials,2,FALSE),FALSE) ->  | Z23: =VLOOKUP(Policy_Year_Input&'Calculation Links'!$L23,Differentials,HLOOKUP(Z$41,Differentials,2,FALSE),FALSE) ->  | AA23: =IF(LEFT(Policy_Year_Input,7)="2018/19","NR",AB23) -> R | AB23: R | AC23: =+L23 -> Residential Flat (MUA) | AD23: =VLOOKUP(Credits_PolicyYear_Input&'Calculation Links'!$L23,Differentials,HLOOKUP(AD$41,Differentials,2,FALSE),FALSE) -> 0 | AE23: =VLOOKUP(Credits_PolicyYear_Input&'Calculation Links'!$L23,Differentials,HLOOKUP(AE$41,Differentials,2,FALSE),FALSE) -> 0 | AF23: =VLOOKUP(Credits_PolicyYear_Input&'Calculation Links'!$L23,Differentials,HLOOKUP(AF$41,Differentials,2,FALSE),FALSE) -> 0 | AG23: =VLOOKUP(Credits_PolicyYear_Input&'Calculation Links'!$L23,Differentials,HLOOKUP(AG$41,Differentials,2,FALSE),FALSE) -> 0 | AH23: =VLOOKUP(Credits_PolicyYear_Input&'Calculation Links'!$L23,Differentials,HLOOKUP(AH$41,Differentials,2,FALSE),FALSE) -> 0 | AI23: =VLOOKUP(Credits_PolicyYear_Input&'Calculation Links'!$L23,Differentials,HLOOKUP(AI$41,Differentials,2,FALSE),FALSE) -> 0 | AJ23: =VLOOKUP(Credits_PolicyYear_Input&'Calculation Links'!$L23,Differentials,HLOOKUP(AJ$41,Differentials,2,FALSE),FALSE) -> 0 | AK23: =VLOOKUP(Credits_PolicyYear_Input&'Calculation Links'!$L23,Differentials,HLOOKUP(AK$41,Differentials,2,FALSE),FALSE) -> 0 | AL23: =VLOOKUP(Credits_PolicyYear_Input&'Calculation Links'!$L23,Differentials,HLOOKUP(AL$41,Differentials,2,FALSE),FALSE) -> 0 | AM23: =VLOOKUP(Credits_PolicyYear_Input&'Calculation Links'!$L23,Differentials,HLOOKUP(AM$41,Differentials,2,FALSE),FALSE) -> 0 | AN23: =VLOOKUP(Credits_PolicyYear_Input&'Calculation Links'!$L23,Differentials,HLOOKUP(AN$41,Differentials,2,FALSE),FALSE) -> 0 | AO23: =VLOOKUP(Credits_PolicyYear_Input&'Calculation Links'!$L23,Differentials,HLOOKUP(AO$41,Differentials,2,FALSE),FALSE) -> 0 | AP23: =VLOOKUP(Credits_PolicyYear_Input&'Calculation Links'!$L23,Differentials,HLOOKUP(AP$41,Differentials,2,FALSE),FALSE) -> 0 | AQ23: =VLOOKUP(Credits_PolicyYear_Input&'Calculation Links'!$L23,Differentials,HLOOKUP(AQ$41,Differentials,2,FALSE),FALSE) -> 0 | AR23: =IF(LEFT(Credits_PolicyYear_Input,7)="2018/19","NR",AS23) -> R | AS23: R
A24: ='Validation Lists'!AD21 -> Other Wakatipu | B24: =VLOOKUP(Policy_Year_Input&'Calculation Links'!$A24,Standard_Contributions,HLOOKUP(B$4,Standard_Contributions,2,FALSE),FALSE) -> 0 | C24: =VLOOKUP(Policy_Year_Input&'Calculation Links'!$A24,Standard_Contributions,HLOOKUP(C$4,Standard_Contributions,2,FALSE),FALSE) -> 0 | D24: =VLOOKUP(Policy_Year_Input&'Calculation Links'!$A24,Standard_Contributions,HLOOKUP(D$4,Standard_Contributions,2,FALSE),FALSE) -> 0 | E24: =VLOOKUP(Policy_Year_Input&'Calculation Links'!$A24,Standard_Contributions,HLOOKUP(E$4,Standard_Contributions,2,FALSE),FALSE) -> 1182 | F24: =VLOOKUP(Policy_Year_Input&'Calculation Links'!$A24,Standard_Contributions,HLOOKUP(F$4,Standard_Contributions,2,FALSE),FALSE) -> 3604 | G24: =VLOOKUP(Policy_Year_Input&'Calculation Links'!$A24,Standard_Contributions,HLOOKUP(G$4,Standard_Contributions,2,FALSE),FALSE) -> 500 | H24: =VLOOKUP(Policy_Year_Input&'Calculation Links'!$A24,Standard_Contributions,HLOOKUP(H$4,Standard_Contributions,2,FALSE),FALSE) -> 5339 | I24: =VLOOKUP(Policy_Year_Input&'Calculation Links'!$A24,Standard_Contributions,HLOOKUP(I$4,Standard_Contributions,2,FALSE),FALSE) -> 0 | J24: ='Validation Lists'!AE21 -> Wakatipu | L24: Visitor accommodation | M24: =VLOOKUP(Policy_Year_Input&'Calculation Links'!$L24,Differentials,HLOOKUP(M$41,Differentials,2,FALSE),FALSE) -> 0.33 | N24: =VLOOKUP(Policy_Year_Input&'Calculation Links'!$L24,Differentials,HLOOKUP(N$41,Differentials,2,FALSE),FALSE) -> 0 | O24: =VLOOKUP(Policy_Year_Input&'Calculation Links'!$L24,Differentials,HLOOKUP(O$41,Differentials,2,FALSE),FALSE) -> 0.5 | P24: =VLOOKUP(Policy_Year_Input&'Calculation Links'!$L24,Differentials,HLOOKUP(P$41,Differentials,2,FALSE),FALSE) -> 0.38 | Q24: =VLOOKUP(Policy_Year_Input&'Calculation Links'!$L24,Differentials,HLOOKUP(Q$41,Differentials,2,FALSE),FALSE) -> 0.33 | R24: =VLOOKUP(Policy_Year_Input&'Calculation Links'!$L24,Differentials,HLOOKUP(R$41,Differentials,2,FALSE),FALSE) -> 0.33 | S24: =VLOOKUP(Policy_Year_Input&'Calculation Links'!$L24,Differentials,HLOOKUP(S$41,Differentials,2,FALSE),FALSE) -> 0 | T24: =VLOOKUP(Policy_Year_Input&'Calculation Links'!$L24,Differentials,HLOOKUP(T$41,Differentials,2,FALSE),FALSE) -> 0 | U24: =VLOOKUP(Policy_Year_Input&'Calculation Links'!$L24,Differentials,HLOOKUP(U$41,Differentials,2,FALSE),FALSE) -> 0 | V24: =VLOOKUP(Policy_Year_Input&'Calculation Links'!$L24,Differentials,HLOOKUP(V$41,Differentials,2,FALSE),FALSE) -> 0 | W24: =VLOOKUP(Policy_Year_Input&'Calculation Links'!$L24,Differentials,HLOOKUP(W$41,Differentials,2,FALSE),FALSE) -> 0 | X24: =VLOOKUP(Policy_Year_Input&'Calculation Links'!$L24,Differentials,HLOOKUP(X$41,Differentials,2,FALSE),FALSE) -> 0.33 | Y24: =VLOOKUP(Policy_Year_Input&'Calculation Links'!$L24,Differentials,HLOOKUP(Y$41,Differentials,2,FALSE),FALSE) -> 0.33 | Z24: =VLOOKUP(Policy_Year_Input&'Calculation Links'!$L24,Differentials,HLOOKUP(Z$41,Differentials,2,FALSE),FALSE) -> 0.33 | AA24: =IF(LEFT(Policy_Year_Input,7)="2018/19","NR",AB24) -> R | AB24: R | AC24: Visitor accommodation | AD24: =VLOOKUP(Credits_PolicyYear_Input&'Calculation Links'!$L24,Differentials,HLOOKUP(AD$41,Differentials,2,FALSE),FALSE) ->  | AE24: =VLOOKUP(Credits_PolicyYear_Input&'Calculation Links'!$L24,Differentials,HLOOKUP(AE$41,Differentials,2,FALSE),FALSE) ->  | AF24: =VLOOKUP(Credits_PolicyYear_Input&'Calculation Links'!$L24,Differentials,HLOOKUP(AF$41,Differentials,2,FALSE),FALSE) ->  | AG24: =VLOOKUP(Credits_PolicyYear_Input&'Calculation Links'!$L24,Differentials,HLOOKUP(AG$41,Differentials,2,FALSE),FALSE) ->  | AH24: =VLOOKUP(Credits_PolicyYear_Input&'Calculation Links'!$L24,Differentials,HLOOKUP(AH$41,Differentials,2,FALSE),FALSE) ->  | AI24: =VLOOKUP(Credits_PolicyYear_Input&'Calculation Links'!$L24,Differentials,HLOOKUP(AI$41,Differentials,2,FALSE),FALSE) ->  | AJ24: =VLOOKUP(Credits_PolicyYear_Input&'Calculation Links'!$L24,Differentials,HLOOKUP(AJ$41,Differentials,2,FALSE),FALSE) ->  | AK24: =VLOOKUP(Credits_PolicyYear_Input&'Calculation Links'!$L24,Differentials,HLOOKUP(AK$41,Differentials,2,FALSE),FALSE) ->  | AL24: =VLOOKUP(Credits_PolicyYear_Input&'Calculation Links'!$L24,Differentials,HLOOKUP(AL$41,Differentials,2,FALSE),FALSE) ->  | AM24: =VLOOKUP(Credits_PolicyYear_Input&'Calculation Links'!$L24,Differentials,HLOOKUP(AM$41,Differentials,2,FALSE),FALSE) ->  | AN24: =VLOOKUP(Credits_PolicyYear_Input&'Calculation Links'!$L24,Differentials,HLOOKUP(AN$41,Differentials,2,FALSE),FALSE) ->  | AO24: =VLOOKUP(Credits_PolicyYear_Input&'Calculation Links'!$L24,Differentials,HLOOKUP(AO$41,Differentials,2,FALSE),FALSE) ->  | AP24: =VLOOKUP(Credits_PolicyYear_Input&'Calculation Links'!$L24,Differentials,HLOOKUP(AP$41,Differentials,2,FALSE),FALSE) ->  | AQ24: =VLOOKUP(Credits_PolicyYear_Input&'Calculation Links'!$L24,Differentials,HLOOKUP(AQ$41,Differentials,2,FALSE),FALSE) ->  | AR24: =IF(LEFT(Credits_PolicyYear_Input,7)="2018/19","NR",AS24) -> R | AS24: R
A25: ='Validation Lists'!AD22 -> Other Wanaka | B25: =VLOOKUP(Policy_Year_Input&'Calculation Links'!$A25,Standard_Contributions,HLOOKUP(B$4,Standard_Contributions,2,FALSE),FALSE) -> 0 | C25: =VLOOKUP(Policy_Year_Input&'Calculation Links'!$A25,Standard_Contributions,HLOOKUP(C$4,Standard_Contributions,2,FALSE),FALSE) -> 0 | D25: =VLOOKUP(Policy_Year_Input&'Calculation Links'!$A25,Standard_Contributions,HLOOKUP(D$4,Standard_Contributions,2,FALSE),FALSE) -> 0 | E25: =VLOOKUP(Policy_Year_Input&'Calculation Links'!$A25,Standard_Contributions,HLOOKUP(E$4,Standard_Contributions,2,FALSE),FALSE) -> 2232 | F25: =VLOOKUP(Policy_Year_Input&'Calculation Links'!$A25,Standard_Contributions,HLOOKUP(F$4,Standard_Contributions,2,FALSE),FALSE) -> 3106 | G25: =VLOOKUP(Policy_Year_Input&'Calculation Links'!$A25,Standard_Contributions,HLOOKUP(G$4,Standard_Contributions,2,FALSE),FALSE) -> 0 | H25: =VLOOKUP(Policy_Year_Input&'Calculation Links'!$A25,Standard_Contributions,HLOOKUP(H$4,Standard_Contributions,2,FALSE),FALSE) -> 2444 | I25: =VLOOKUP(Policy_Year_Input&'Calculation Links'!$A25,Standard_Contributions,HLOOKUP(I$4,Standard_Contributions,2,FALSE),FALSE) -> 0 | J25: ='Validation Lists'!AE22 -> Wanaka | L25: Retirement Units (2b/r or more) | M25: =VLOOKUP(Policy_Year_Input&'Calculation Links'!$L25,Differentials,HLOOKUP(M$41,Differentials,2,FALSE),FALSE) -> 0.6 | N25: =VLOOKUP(Policy_Year_Input&'Calculation Links'!$L25,Differentials,HLOOKUP(N$41,Differentials,2,FALSE),FALSE) -> 0 | O25: =VLOOKUP(Policy_Year_Input&'Calculation Links'!$L25,Differentials,HLOOKUP(O$41,Differentials,2,FALSE),FALSE) -> 0.58 | P25: =VLOOKUP(Policy_Year_Input&'Calculation Links'!$L25,Differentials,HLOOKUP(P$41,Differentials,2,FALSE),FALSE) -> 0.38 | Q25: =VLOOKUP(Policy_Year_Input&'Calculation Links'!$L25,Differentials,HLOOKUP(Q$41,Differentials,2,FALSE),FALSE) -> 0.65 | R25: =VLOOKUP(Policy_Year_Input&'Calculation Links'!$L25,Differentials,HLOOKUP(R$41,Differentials,2,FALSE),FALSE) -> 0.65 | S25: =VLOOKUP(Policy_Year_Input&'Calculation Links'!$L25,Differentials,HLOOKUP(S$41,Differentials,2,FALSE),FALSE) -> 0.41 | T25: =VLOOKUP(Policy_Year_Input&'Calculation Links'!$L25,Differentials,HLOOKUP(T$41,Differentials,2,FALSE),FALSE) -> 0.41 | U25: =VLOOKUP(Policy_Year_Input&'Calculation Links'!$L25,Differentials,HLOOKUP(U$41,Differentials,2,FALSE),FALSE) -> 0.41 | V25: =VLOOKUP(Policy_Year_Input&'Calculation Links'!$L25,Differentials,HLOOKUP(V$41,Differentials,2,FALSE),FALSE) -> 0.41 | W25: =VLOOKUP(Policy_Year_Input&'Calculation Links'!$L25,Differentials,HLOOKUP(W$41,Differentials,2,FALSE),FALSE) -> 0 | X25: =VLOOKUP(Policy_Year_Input&'Calculation Links'!$L25,Differentials,HLOOKUP(X$41,Differentials,2,FALSE),FALSE) -> 0.29 | Y25: =VLOOKUP(Policy_Year_Input&'Calculation Links'!$L25,Differentials,HLOOKUP(Y$41,Differentials,2,FALSE),FALSE) -> 0.29 | Z25: =VLOOKUP(Policy_Year_Input&'Calculation Links'!$L25,Differentials,HLOOKUP(Z$41,Differentials,2,FALSE),FALSE) -> 0.29 | AA25: R | AB25: R | AC25: Retirement Units (2b/r or more) | AD25: =VLOOKUP(Credits_PolicyYear_Input&'Calculation Links'!$L25,Differentials,HLOOKUP(AD$41,Differentials,2,FALSE),FALSE) ->  | AE25: =VLOOKUP(Credits_PolicyYear_Input&'Calculation Links'!$L25,Differentials,HLOOKUP(AE$41,Differentials,2,FALSE),FALSE) ->  | AF25: =VLOOKUP(Credits_PolicyYear_Input&'Calculation Links'!$L25,Differentials,HLOOKUP(AF$41,Differentials,2,FALSE),FALSE) ->  | AG25: =VLOOKUP(Credits_PolicyYear_Input&'Calculation Links'!$L25,Differentials,HLOOKUP(AG$41,Differentials,2,FALSE),FALSE) ->  | AH25: =VLOOKUP(Credits_PolicyYear_Input&'Calculation Links'!$L25,Differentials,HLOOKUP(AH$41,Differentials,2,FALSE),FALSE) ->  | AI25: =VLOOKUP(Credits_PolicyYear_Input&'Calculation Links'!$L25,Differentials,HLOOKUP(AI$41,Differentials,2,FALSE),FALSE) ->  | AJ25: =VLOOKUP(Credits_PolicyYear_Input&'Calculation Links'!$L25,Differentials,HLOOKUP(AJ$41,Differentials,2,FALSE),FALSE) ->  | AK25: =VLOOKUP(Credits_PolicyYear_Input&'Calculation Links'!$L25,Differentials,HLOOKUP(AK$41,Differentials,2,FALSE),FALSE) ->  | AL25: =VLOOKUP(Credits_PolicyYear_Input&'Calculation Links'!$L25,Differentials,HLOOKUP(AL$41,Differentials,2,FALSE),FALSE) ->  | AM25: =VLOOKUP(Credits_PolicyYear_Input&'Calculation Links'!$L25,Differentials,HLOOKUP(AM$41,Differentials,2,FALSE),FALSE) ->  | AN25: =VLOOKUP(Credits_PolicyYear_Input&'Calculation Links'!$L25,Differentials,HLOOKUP(AN$41,Differentials,2,FALSE),FALSE) ->  | AO25: =VLOOKUP(Credits_PolicyYear_Input&'Calculation Links'!$L25,Differentials,HLOOKUP(AO$41,Differentials,2,FALSE),FALSE) ->  | AP25: =VLOOKUP(Credits_PolicyYear_Input&'Calculation Links'!$L25,Differentials,HLOOKUP(AP$41,Differentials,2,FALSE),FALSE) ->  | AQ25: =VLOOKUP(Credits_PolicyYear_Input&'Calculation Links'!$L25,Differentials,HLOOKUP(AQ$41,Differentials,2,FALSE),FALSE) ->  | AR25: R | AS25: R
A26: ='Validation Lists'!AD23 -> 0 | B26: =VLOOKUP(Policy_Year_Input&'Calculation Links'!$A26,Standard_Contributions,HLOOKUP(B$4,Standard_Contributions,2,FALSE),FALSE) ->  | C26: =VLOOKUP(Policy_Year_Input&'Calculation Links'!$A26,Standard_Contributions,HLOOKUP(C$4,Standard_Contributions,2,FALSE),FALSE) ->  | D26: =VLOOKUP(Policy_Year_Input&'Calculation Links'!$A26,Standard_Contributions,HLOOKUP(D$4,Standard_Contributions,2,FALSE),FALSE) ->  | E26: =VLOOKUP(Policy_Year_Input&'Calculation Links'!$A26,Standard_Contributions,HLOOKUP(E$4,Standard_Contributions,2,FALSE),FALSE) ->  | F26: =VLOOKUP(Policy_Year_Input&'Calculation Links'!$A26,Standard_Contributions,HLOOKUP(F$4,Standard_Contributions,2,FALSE),FALSE) ->  | G26: =VLOOKUP(Policy_Year_Input&'Calculation Links'!$A26,Standard_Contributions,HLOOKUP(G$4,Standard_Contributions,2,FALSE),FALSE) ->  | H26: =VLOOKUP(Policy_Year_Input&'Calculation Links'!$A26,Standard_Contributions,HLOOKUP(H$4,Standard_Contributions,2,FALSE),FALSE) ->  | I26: =VLOOKUP(Policy_Year_Input&'Calculation Links'!$A26,Standard_Contributions,HLOOKUP(I$4,Standard_Contributions,2,FALSE),FALSE) ->  | J26: ='Validation Lists'!AE23 -> 0 | L26: Retirement Units (1 b/r) | M26: =VLOOKUP(Policy_Year_Input&'Calculation Links'!$L26,Differentials,HLOOKUP(M$41,Differentials,2,FALSE),FALSE) -> 0.4 | N26: =VLOOKUP(Policy_Year_Input&'Calculation Links'!$L26,Differentials,HLOOKUP(N$41,Differentials,2,FALSE),FALSE) -> 0 | O26: =VLOOKUP(Policy_Year_Input&'Calculation Links'!$L26,Differentials,HLOOKUP(O$41,Differentials,2,FALSE),FALSE) -> 0.38 | P26: =VLOOKUP(Policy_Year_Input&'Calculation Links'!$L26,Differentials,HLOOKUP(P$41,Differentials,2,FALSE),FALSE) -> 0.38 | Q26: =VLOOKUP(Policy_Year_Input&'Calculation Links'!$L26,Differentials,HLOOKUP(Q$41,Differentials,2,FALSE),FALSE) -> 0.43 | R26: =VLOOKUP(Policy_Year_Input&'Calculation Links'!$L26,Differentials,HLOOKUP(R$41,Differentials,2,FALSE),FALSE) -> 0.43 | S26: =VLOOKUP(Policy_Year_Input&'Calculation Links'!$L26,Differentials,HLOOKUP(S$41,Differentials,2,FALSE),FALSE) -> 0.27 | T26: =VLOOKUP(Policy_Year_Input&'Calculation Links'!$L26,Differentials,HLOOKUP(T$41,Differentials,2,FALSE),FALSE) -> 0.27 | U26: =VLOOKUP(Policy_Year_Input&'Calculation Links'!$L26,Differentials,HLOOKUP(U$41,Differentials,2,FALSE),FALSE) -> 0.27 | V26: =VLOOKUP(Policy_Year_Input&'Calculation Links'!$L26,Differentials,HLOOKUP(V$41,Differentials,2,FALSE),FALSE) -> 0.27 | W26: =VLOOKUP(Policy_Year_Input&'Calculation Links'!$L26,Differentials,HLOOKUP(W$41,Differentials,2,FALSE),FALSE) -> 0 | X26: =VLOOKUP(Policy_Year_Input&'Calculation Links'!$L26,Differentials,HLOOKUP(X$41,Differentials,2,FALSE),FALSE) -> 0.19 | Y26: =VLOOKUP(Policy_Year_Input&'Calculation Links'!$L26,Differentials,HLOOKUP(Y$41,Differentials,2,FALSE),FALSE) -> 0.19 | Z26: =VLOOKUP(Policy_Year_Input&'Calculation Links'!$L26,Differentials,HLOOKUP(Z$41,Differentials,2,FALSE),FALSE) -> 0.19 | AA26: R | AB26: R | AC26: Retirement Units (1 b/r) | AD26: =VLOOKUP(Credits_PolicyYear_Input&'Calculation Links'!$L26,Differentials,HLOOKUP(AD$41,Differentials,2,FALSE),FALSE) ->  | AE26: =VLOOKUP(Credits_PolicyYear_Input&'Calculation Links'!$L26,Differentials,HLOOKUP(AE$41,Differentials,2,FALSE),FALSE) ->  | AF26: =VLOOKUP(Credits_PolicyYear_Input&'Calculation Links'!$L26,Differentials,HLOOKUP(AF$41,Differentials,2,FALSE),FALSE) ->  | AG26: =VLOOKUP(Credits_PolicyYear_Input&'Calculation Links'!$L26,Differentials,HLOOKUP(AG$41,Differentials,2,FALSE),FALSE) ->  | AH26: =VLOOKUP(Credits_PolicyYear_Input&'Calculation Links'!$L26,Differentials,HLOOKUP(AH$41,Differentials,2,FALSE),FALSE) ->  | AI26: =VLOOKUP(Credits_PolicyYear_Input&'Calculation Links'!$L26,Differentials,HLOOKUP(AI$41,Differentials,2,FALSE),FALSE) ->  | AJ26: =VLOOKUP(Credits_PolicyYear_Input&'Calculation Links'!$L26,Differentials,HLOOKUP(AJ$41,Differentials,2,FALSE),FALSE) ->  | AK26: =VLOOKUP(Credits_PolicyYear_Input&'Calculation Links'!$L26,Differentials,HLOOKUP(AK$41,Differentials,2,FALSE),FALSE) ->  | AL26: =VLOOKUP(Credits_PolicyYear_Input&'Calculation Links'!$L26,Differentials,HLOOKUP(AL$41,Differentials,2,FALSE),FALSE) ->  | AM26: =VLOOKUP(Credits_PolicyYear_Input&'Calculation Links'!$L26,Differentials,HLOOKUP(AM$41,Differentials,2,FALSE),FALSE) ->  | AN26: =VLOOKUP(Credits_PolicyYear_Input&'Calculation Links'!$L26,Differentials,HLOOKUP(AN$41,Differentials,2,FALSE),FALSE) ->  | AO26: =VLOOKUP(Credits_PolicyYear_Input&'Calculation Links'!$L26,Differentials,HLOOKUP(AO$41,Differentials,2,FALSE),FALSE) ->  | AP26: =VLOOKUP(Credits_PolicyYear_Input&'Calculation Links'!$L26,Differentials,HLOOKUP(AP$41,Differentials,2,FALSE),FALSE) ->  | AQ26: =VLOOKUP(Credits_PolicyYear_Input&'Calculation Links'!$L26,Differentials,HLOOKUP(AQ$41,Differentials,2,FALSE),FALSE) ->  | AR26: R | AS26: R
A27: ='Validation Lists'!AD24 -> 0 | B27: =VLOOKUP(Policy_Year_Input&'Calculation Links'!$A27,Standard_Contributions,HLOOKUP(B$4,Standard_Contributions,2,FALSE),FALSE) ->  | C27: =VLOOKUP(Policy_Year_Input&'Calculation Links'!$A27,Standard_Contributions,HLOOKUP(C$4,Standard_Contributions,2,FALSE),FALSE) ->  | D27: =VLOOKUP(Policy_Year_Input&'Calculation Links'!$A27,Standard_Contributions,HLOOKUP(D$4,Standard_Contributions,2,FALSE),FALSE) ->  | E27: =VLOOKUP(Policy_Year_Input&'Calculation Links'!$A27,Standard_Contributions,HLOOKUP(E$4,Standard_Contributions,2,FALSE),FALSE) ->  | F27: =VLOOKUP(Policy_Year_Input&'Calculation Links'!$A27,Standard_Contributions,HLOOKUP(F$4,Standard_Contributions,2,FALSE),FALSE) ->  | G27: =VLOOKUP(Policy_Year_Input&'Calculation Links'!$A27,Standard_Contributions,HLOOKUP(G$4,Standard_Contributions,2,FALSE),FALSE) ->  | H27: =VLOOKUP(Policy_Year_Input&'Calculation Links'!$A27,Standard_Contributions,HLOOKUP(H$4,Standard_Contributions,2,FALSE),FALSE) ->  | I27: =VLOOKUP(Policy_Year_Input&'Calculation Links'!$A27,Standard_Contributions,HLOOKUP(I$4,Standard_Contributions,2,FALSE),FALSE) ->  | J27: ='Validation Lists'!AE24 -> 0 | L27: MU-Visitor accommodation | M27: =VLOOKUP(Policy_Year_Input&'Calculation Links'!$L27,Differentials,HLOOKUP(M$41,Differentials,2,FALSE),FALSE) -> 0.62 | N27: =VLOOKUP(Policy_Year_Input&'Calculation Links'!$L27,Differentials,HLOOKUP(N$41,Differentials,2,FALSE),FALSE) -> 0 | O27: =VLOOKUP(Policy_Year_Input&'Calculation Links'!$L27,Differentials,HLOOKUP(O$41,Differentials,2,FALSE),FALSE) -> 0.73 | P27: =VLOOKUP(Policy_Year_Input&'Calculation Links'!$L27,Differentials,HLOOKUP(P$41,Differentials,2,FALSE),FALSE) -> 0.38 | Q27: =VLOOKUP(Policy_Year_Input&'Calculation Links'!$L27,Differentials,HLOOKUP(Q$41,Differentials,2,FALSE),FALSE) -> 0.62 | R27: =VLOOKUP(Policy_Year_Input&'Calculation Links'!$L27,Differentials,HLOOKUP(R$41,Differentials,2,FALSE),FALSE) -> 0.62 | S27: =VLOOKUP(Policy_Year_Input&'Calculation Links'!$L27,Differentials,HLOOKUP(S$41,Differentials,2,FALSE),FALSE) -> 0.56 | T27: =VLOOKUP(Policy_Year_Input&'Calculation Links'!$L27,Differentials,HLOOKUP(T$41,Differentials,2,FALSE),FALSE) -> 0.56 | U27: =VLOOKUP(Policy_Year_Input&'Calculation Links'!$L27,Differentials,HLOOKUP(U$41,Differentials,2,FALSE),FALSE) -> 0.56 | V27: =VLOOKUP(Policy_Year_Input&'Calculation Links'!$L27,Differentials,HLOOKUP(V$41,Differentials,2,FALSE),FALSE) -> 0.56 | W27: =VLOOKUP(Policy_Year_Input&'Calculation Links'!$L27,Differentials,HLOOKUP(W$41,Differentials,2,FALSE),FALSE) -> 0.56 | X27: =VLOOKUP(Policy_Year_Input&'Calculation Links'!$L27,Differentials,HLOOKUP(X$41,Differentials,2,FALSE),FALSE) -> 0.62 | Y27: =VLOOKUP(Policy_Year_Input&'Calculation Links'!$L27,Differentials,HLOOKUP(Y$41,Differentials,2,FALSE),FALSE) -> 0.62 | Z27: =VLOOKUP(Policy_Year_Input&'Calculation Links'!$L27,Differentials,HLOOKUP(Z$41,Differentials,2,FALSE),FALSE) -> 0.62 | AA27: R | AB27: R | AC27: MU-Visitor accommodation | AD27: =VLOOKUP(Credits_PolicyYear_Input&'Calculation Links'!$L27,Differentials,HLOOKUP(AD$41,Differentials,2,FALSE),FALSE) ->  | AE27: =VLOOKUP(Credits_PolicyYear_Input&'Calculation Links'!$L27,Differentials,HLOOKUP(AE$41,Differentials,2,FALSE),FALSE) ->  | AF27: =VLOOKUP(Credits_PolicyYear_Input&'Calculation Links'!$L27,Differentials,HLOOKUP(AF$41,Differentials,2,FALSE),FALSE) ->  | AG27: =VLOOKUP(Credits_PolicyYear_Input&'Calculation Links'!$L27,Differentials,HLOOKUP(AG$41,Differentials,2,FALSE),FALSE) ->  | AH27: =VLOOKUP(Credits_PolicyYear_Input&'Calculation Links'!$L27,Differentials,HLOOKUP(AH$41,Differentials,2,FALSE),FALSE) ->  | AI27: =VLOOKUP(Credits_PolicyYear_Input&'Calculation Links'!$L27,Differentials,HLOOKUP(AI$41,Differentials,2,FALSE),FALSE) ->  | AJ27: =VLOOKUP(Credits_PolicyYear_Input&'Calculation Links'!$L27,Differentials,HLOOKUP(AJ$41,Differentials,2,FALSE),FALSE) ->  | AK27: =VLOOKUP(Credits_PolicyYear_Input&'Calculation Links'!$L27,Differentials,HLOOKUP(AK$41,Differentials,2,FALSE),FALSE) ->  | AL27: =VLOOKUP(Credits_PolicyYear_Input&'Calculation Links'!$L27,Differentials,HLOOKUP(AL$41,Differentials,2,FALSE),FALSE) ->  | AM27: =VLOOKUP(Credits_PolicyYear_Input&'Calculation Links'!$L27,Differentials,HLOOKUP(AM$41,Differentials,2,FALSE),FALSE) ->  | AN27: =VLOOKUP(Credits_PolicyYear_Input&'Calculation Links'!$L27,Differentials,HLOOKUP(AN$41,Differentials,2,FALSE),FALSE) ->  | AO27: =VLOOKUP(Credits_PolicyYear_Input&'Calculation Links'!$L27,Differentials,HLOOKUP(AO$41,Differentials,2,FALSE),FALSE) ->  | AP27: =VLOOKUP(Credits_PolicyYear_Input&'Calculation Links'!$L27,Differentials,HLOOKUP(AP$41,Differentials,2,FALSE),FALSE) ->  | AQ27: =VLOOKUP(Credits_PolicyYear_Input&'Calculation Links'!$L27,Differentials,HLOOKUP(AQ$41,Differentials,2,FALSE),FALSE) ->  | AR27: R | AS27: R
